Workbook

Sheet 0. Sobrevida
A1: IDADE | B1: AT-83 | D1: AT-2000 | F1: IBGE-2009
B2: HOMEM | C2: MULHER | D2: HOMEM | E2: MULHER | F2: HOMEM | G2: MULHER | H2: AMBOS
A3: 0 | F3: 69.4 | G3: 77 | H3: 73.2
A4: 1 | F4: 70.3 | G4: 77.5 | H4: 73.9
A5: 2 | F5: 69.4 | G5: 76.6 | H5: 73
A6: 3 | F6: 68.5 | G6: 75.7 | H6: 72.1
A7: 4 | F7: 67.6 | G7: 74.7 | H7: 71.1
A8: 5 | F8: 66.6 | G8: 73.8 | H8: 70.2
A9: 6 | F9: 65.7 | G9: 72.8 | H9: 69.2
A10: 7 | F10: 64.7 | G10: 71.8 | H10: 68.2
A11: 8 | F11: 63.7 | G11: 70.8 | H11: 67.3
A12: 9 | F12: 62.7 | G12: 69.9 | H12: 66.3
A13: 10 | F13: 61.8 | G13: 68.9 | H13: 65.3
A14: 11 | F14: 60.8 | G14: 67.9 | H14: 64.3
A15: 12 | F15: 59.8 | G15: 66.9 | H15: 63.3
A16: 13 | F16: 58.8 | G16: 65.9 | H16: 62.3
A17: 14 | F17: 57.8 | G17: 64.9 | H17: 61.4
A18: 15 | B18: 64.4 | C18: 69.5 | D18: 65.7 | E18: 69.7 | F18: 56.9 | G18: 63.9 | H18: 60.4
A19: 16 | B19: 63.4 | C19: 68.5 | D19: 64.7 | E19: 68.8 | F19: 55.9 | G19: 63 | H19: 59.4
A20: 17 | B20: 62.4 | C20: 67.5 | D20: 63.7 | E20: 67.8 | F20: 55 | G20: 62 | H20: 58.5
A21: 18 | B21: 61.4 | C21: 66.5 | D21: 62.8 | E21: 66.8 | F21: 54.1 | G21: 61 | H21: 57.6
A22: 19 | B22: 60.5 | C22: 65.5 | D22: 61.8 | E22: 65.8 | F22: 53.2 | G22: 60 | H22: 56.6
A23: 20 | B23: 59.5 | C23: 64.5 | D23: 60.8 | E23: 64.8 | F23: 52.3 | G23: 59.1 | H23: 55.7
A24: 21 | B24: 58.5 | C24: 63.6 | D24: 59.9 | E24: 63.8 | F24: 51.4 | G24: 58.1 | H24: 54.8
A25: 22 | B25: 57.6 | C25: 62.6 | D25: 58.9 | E25: 62.9 | F25: 50.6 | G25: 57.1 | H25: 53.9
A26: 23 | B26: 56.6 | C26: 61.6 | D26: 57.9 | E26: 61.9 | F26: 49.7 | G26: 56.2 | H26: 52.9
A27: 24 | B27: 55.6 | C27: 60.6 | D27: 57 | E27: 60.9 | F27: 48.8 | G27: 55.2 | H27: 52
A28: 25 | B28: 54.7 | C28: 59.6 | D28: 56 | E28: 59.9 | F28: 48 | G28: 54.2 | H28: 51.1
A29: 26 | B29: 53.7 | C29: 58.7 | D29: 55.1 | E29: 58.9 | F29: 47.1 | G29: 53.3 | H29: 50.2
A30: 27 | B30: 52.7 | C30: 57.7 | D30: 54.1 | E30: 58 | F30: 46.2 | G30: 52.3 | H30: 49.3
A31: 28 | B31: 51.8 | C31: 56.7 | D31: 53.1 | E31: 57 | F31: 45.4 | G31: 51.4 | H31: 48.4
A32: 29 | B32: 50.8 | C32: 55.7 | D32: 52.2 | E32: 56 | F32: 44.5 | G32: 50.4 | H32: 47.5
A33: 30 | B33: 49.8 | C33: 54.7 | D33: 51.2 | E33: 55 | F33: 43.6 | G33: 49.5 | H33: 46.6
A34: 31 | B34: 48.9 | C34: 53.8 | D34: 50.3 | E34: 54.1 | F34: 42.7 | G34: 48.5 | H34: 45.6
A35: 32 | B35: 47.9 | C35: 52.8 | D35: 49.3 | E35: 53.1 | F35: 41.9 | G35: 47.5 | H35: 44.7
A36: 33 | B36: 46.9 | C36: 51.8 | D36: 48.3 | E36: 52.1 | F36: 41 | G36: 46.6 | H36: 43.8
A37: 34 | B37: 46 | C37: 50.8 | D37: 47.4 | E37: 51.1 | F37: 40.1 | G37: 45.7 | H37: 42.9
A38: 35 | B38: 45 | C38: 49.9 | D38: 46.4 | E38: 50.2 | F38: 39.3 | G38: 44.7 | H38: 42
A39: 36 | B39: 44.1 | C39: 48.9 | D39: 45.4 | E39: 49.2 | F39: 38.4 | G39: 43.8 | H39: 41.1
A40: 37 | B40: 43.1 | C40: 47.9 | D40: 44.5 | E40: 48.2 | F40: 37.5 | G40: 42.8 | H40: 40.2
A41: 38 | B41: 42.2 | C41: 47 | D41: 43.5 | E41: 47.2 | F41: 36.7 | G41: 41.9 | H41: 39.3
A42: 39 | B42: 41.2 | C42: 46 | D42: 42.6 | E42: 46.3 | F42: 35.8 | G42: 41 | H42: 38.4
A43: 40 | B43: 40.3 | C43: 45 | D43: 41.6 | E43: 45.3 | F43: 35 | G43: 40 | H43: 37.6
A44: 41 | B44: 39.3 | C44: 44.1 | D44: 40.6 | E44: 44.3 | F44: 34.1 | G44: 39.1 | H44: 36.7
A45: 42 | B45: 38.4 | C45: 43.1 | D45: 39.7 | E45: 43.4 | F45: 33.3 | G45: 38.2 | H45: 35.8
A46: 43 | B46: 37.4 | C46: 42.1 | D46: 38.7 | E46: 42.4 | F46: 32.5 | G46: 37.3 | H46: 34.9
A47: 44 | B47: 36.5 | C47: 41.2 | D47: 37.8 | E47: 41.4 | F47: 31.7 | G47: 36.4 | H47: 34.1
A48: 45 | B48: 35.6 | C48: 40.2 | D48: 36.9 | E48: 40.5 | F48: 30.8 | G48: 35.5 | H48: 33.2
A49: 46 | B49: 34.7 | C49: 39.2 | D49: 35.9 | E49: 39.5 | F49: 30 | G49: 34.6 | H49: 32.4
A50: 47 | B50: 33.7 | C50: 38.3 | D50: 35 | E50: 38.6 | F50: 29.2 | G50: 33.7 | H50: 31.5
A51: 48 | B51: 32.8 | C51: 37.3 | D51: 34.1 | E51: 37.6 | F51: 28.4 | G51: 32.8 | H51: 30.7
A52: 49 | B52: 32 | C52: 36.4 | D52: 33.2 | E52: 36.7 | F52: 27.6 | G52: 32 | H52: 29.9
A53: 50 | B53: 31.1 | C53: 35.5 | D53: 32.3 | E53: 35.7 | F53: 26.9 | G53: 31.1 | H53: 29
A54: 51 | B54: 30.2 | C54: 34.5 | D54: 31.4 | E54: 34.8 | F54: 26.1 | G54: 30.2 | H54: 28.2
A55: 52 | B55: 29.3 | C55: 33.6 | D55: 30.5 | E55: 33.8 | F55: 25.3 | G55: 29.4 | H55: 27.4
A56: 53 | B56: 28.5 | C56: 32.7 | D56: 29.6 | E56: 32.9 | F56: 24.5 | G56: 28.5 | H56: 26.6
A57: 54 | B57: 27.6 | C57: 31.7 | D57: 28.7 | E57: 32 | F57: 23.8 | G57: 27.7 | H57: 25.8
A58: 55 | B58: 26.8 | C58: 30.8 | D58: 27.9 | E58: 31.1 | F58: 23.1 | G58: 26.9 | H58: 25
A59: 56 | B59: 25.9 | C59: 29.9 | D59: 27 | E59: 30.1 | F59: 22.3 | G59: 26 | H59: 24.3
A60: 57 | B60: 25.1 | C60: 29 | D60: 26.2 | E60: 29.2 | F60: 21.6 | G60: 25.2 | H60: 23.5
A61: 58 | B61: 24.3 | C61: 28.1 | D61: 25.3 | E61: 28.3 | F61: 20.9 | G61: 24.4 | H61: 22.7
A62: 59 | B62: 23.4 | C62: 27.2 | D62: 24.5 | E62: 27.4 | F62: 20.2 | G62: 23.6 | H62: 22
A63: 60 | B63: 22.6 | C63: 26.3 | D63: 23.6 | E63: 26.5 | F63: 19.5 | G63: 22.8 | H63: 21.3
A64: 61 | B64: 21.8 | C64: 25.4 | D64: 22.8 | E64: 25.6 | F64: 18.9 | G64: 22.1 | H64: 20.5
A65: 62 | B65: 21 | C65: 24.6 | D65: 22 | E65: 24.8 | F65: 18.2 | G65: 21.3 | H65: 19.8
A66: 63 | B66: 20.2 | C66: 23.7 | D66: 21.2 | E66: 23.9 | F66: 17.6 | G66: 20.5 | H66: 19.1
A67: 64 | B67: 19.4 | C67: 22.8 | D67: 20.3 | E67: 23 | F67: 16.9 | G67: 19.8 | H67: 18.5
A68: 65 | B68: 18.6 | C68: 22 | D68: 19.5 | E68: 22.2 | F68: 16.3 | G68: 19.1 | H68: 17.8
A69: 66 | B69: 17.9 | C69: 21.1 | D69: 18.8 | E69: 21.3 | F69: 15.7 | G69: 18.4 | H69: 17.1
A70: 67 | B70: 17.1 | C70: 20.3 | D70: 18 | E70: 20.5 | F70: 15.1 | G70: 17.6 | H70: 16.5
A71: 68 | B71: 16.4 | C71: 19.5 | D71: 17.2 | E71: 19.7 | F71: 14.5 | G71: 17 | H71: 15.8
A72: 69 | B72: 15.7 | C72: 18.7 | D72: 16.5 | E72: 18.8 | F72: 13.9 | G72: 16.3 | H72: 15.2
A73: 70 | B73: 15 | C73: 17.9 | D73: 15.8 | E73: 18 | F73: 13.4 | G73: 15.6 | H73: 14.6
A74: 71 | B74: 14.3 | C74: 17.1 | D74: 15.1 | E74: 17.2 | F74: 12.8 | G74: 15 | H74: 14
A75: 72 | B75: 13.6 | C75: 16.3 | D75: 14.4 | E75: 16.4 | F75: 12.3 | G75: 14.3 | H75: 13.4
A76: 73 | B76: 13 | C76: 15.5 | D76: 13.7 | E76: 15.6 | F76: 11.8 | G76: 13.7 | H76: 12.9
A77: 74 | B77: 12.3 | C77: 14.8 | D77: 13 | E77: 14.9 | F77: 11.4 | G77: 13.1 | H77: 12.3
A78: 75 | B78: 11.7 | C78: 14 | D78: 12.4 | E78: 14.1 | F78: 10.9 | G78: 12.6 | H78: 11.8
A79: 76 | B79: 11.1 | C79: 13.3 | D79: 11.8 | E79: 13.4 | F79: 10.5 | G79: 12 | H79: 11.3
A80: 77 | B80: 10.6 | C80: 12.6 | D80: 11.2 | E80: 12.7 | F80: 10.1 | G80: 11.5 | H80: 10.9
A81: 78 | B81: 10 | C81: 11.9 | D81: 10.6 | E81: 12 | F81: 9.7 | G81: 11 | H81: 10.4
A82: 79 | B82: 9.5 | C82: 11.3 | D82: 10.1 | E82: 11.3 | F82: 9.3 | G82: 10.5 | H82: 10
A83: 80 | B83: 9 | C83: 10.6 | D83: 9.5 | E83: 10.7 | F83: 9 | G83: 10 | H83: 9.6
A84: 81 | B84: 8.5 | C84: 10 | D84: 9 | E84: 10.1 | F84: 8.6 | G84: 9.5 | H84: 9.1
A85: 82 | B85: 8 | C85: 9.4 | D85: 8.5 | E85: 9.5 | F85: 8.3 | G85: 9.1 | H85: 8.8
A86: 83 | B86: 7.6 | C86: 8.8 | D86: 8.1 | E86: 8.9 | F86: 8 | G86: 8.7 | H86: 8.4
A87: 84 | B87: 7.1 | C87: 8.3 | D87: 7.6 | E87: 8.3 | F87: 7.6 | G87: 8.3 | H87: 8
A88: 85 | B88: 6.7 | C88: 7.8 | D88: 7.2 | E88: 7.8 | F88: 7.3 | G88: 7.8 | H88: 7.6
A89: 86 | B89: 6.4 | C89: 7.3 | D89: 6.8 | E89: 7.3 | F89: 6.9 | G89: 7.4 | H89: 7.2
A90: 87 | B90: 6 | C90: 6.8 | D90: 6.4 | E90: 6.9 | F90: 6.6 | G90: 7.1 | H90: 6.9
A91: 88 | B91: 5.7 | C91: 6.4 | D91: 6 | E91: 6.4 | F91: 6.3 | G91: 6.7 | H91: 6.5
A92: 89 | B92: 5.4 | C92: 6 | D92: 5.7 | E92: 6 | F92: 6 | G92: 6.3 | H92: 6.1
A93: 90 | B93: 5.1 | C93: 5.6 | D93: 5.4 | E93: 5.6 | F93: 5.6 | G93: 5.9 | H93: 5.8
A94: 91 | B94: 4.8 | C94: 5.3 | D94: 5.1 | E94: 5.3 | F94: 5.3 | G94: 5.6 | H94: 5.4
A95: 92 | B95: 4.5 | C95: 4.9 | D95: 4.8 | E95: 4.9 | F95: 5 | G95: 5.2 | H95: 5.1
A96: 93 | B96: 4.2 | C96: 4.6 | D96: 4.5 | E96: 4.7 | F96: 4.7 | G96: 4.9 | H96: 4.8
A97: 94 | B97: 4 | C97: 4.4 | D97: 4.2 | E97: 4.4 | F97: 4.3 | G97: 4.5 | H97: 4.4
A98: 95 | B98: 3.7 | C98: 4.1 | D98: 4 | E98: 4.1 | F98: 4 | G98: 4.2 | H98: 4.1
A99: 96 | B99: 3.5 | C99: 3.9 | D99: 3.7 | E99: 3.9 | F99: 3.7 | G99: 3.8 | H99: 3.8
A100: 97 | B100: 3.3 | C100: 3.7 | D100: 3.5 | E100: 3.7 | F100: 3.4 | G100: 3.5 | H100: 3.5
A101: 98 | B101: 3.1 | C101: 3.4 | D101: 3.3 | E101: 3.5 | F101: 3.1 | G101: 3.2 | H101: 3.1
A102: 99 | B102: 2.9 | C102: 3.2 | D102: 3.1 | E102: 3.3 | F102: 2.8 | G102: 2.9 | H102: 2.8
A103: 100 | B103: 2.7 | C103: 3 | D103: 2.9 | E103: 3 | F103: 2.5 | G103: 2.6 | H103: 2.5
A104: 101 | B104: 2.5 | C104: 2.8 | D104: 2.7 | E104: 2.8 | F104: 2.2 | G104: 2.3 | H104: 2.2
A105: 102 | B105: 2.3 | C105: 2.6 | D105: 2.5 | E105: 2.6 | F105: 1.9 | G105: 2 | H105: 1.9
A106: 103 | B106: 2.1 | C106: 2.4 | D106: 2.3 | E106: 2.4 | F106: 1.6 | G106: 1.7 | H106: 1.6
A107: 104 | B107: 1.9 | C107: 2.2 | D107: 2.1 | E107: 2.2 | F107: 1.3 | G107: 1.4 | H107: 1.4
A108: 105 | B108: 1.7 | C108: 2 | D108: 1.9 | E108: 2 | F108: 1.1 | G108: 1.1 | H108: 1.1
A109: 106 | B109: 1.6 | C109: 1.8 | D109: 1.7 | E109: 1.8 | F109: 0.8 | G109: 0.9 | H109: 0.9
A110: 107 | B110: 1.4 | C110: 1.6 | D110: 1.5 | E110: 1.6 | F110: 0.6 | G110: 0.7 | H110: 0.7
A111: 108 | B111: 1.3 | C111: 1.4 | D111: 1.4 | E111: 1.5 | F111: 0.5 | G111: 0.6 | H111: 0.5
A112: 109 | B112: 1.1 | C112: 1.3 | D112: 1.2 | E112: 1.3 | F112: 0.5 | G112: 0.5 | H112: 0.5
A113: 110 | B113: 1 | C113: 1.1 | D113: 1.1 | E113: 1.1 | F113: 0.5 | G113: 0.5 | H113: 0.5
A114: 111 | B114: 0.9 | C114: 1 | D114: 0.9 | E114: 1 | F114: 0.5 | G114: 0.5 | H114: 0.5
A115: 112 | B115: 0.8 | C115: 0.8 | D115: 0.8 | E115: 0.8 | F115: 0.5 | G115: 0.8 | H115: 0.5
A116: 113 | B116: 0.7 | C116: 0.7 | D116: 0.7 | E116: 0.7 | F116: 0.5 | G116: 0.7 | H116: 0.5
A117: 114 | B117: 0.6 | C117: 0.6 | D117: 0.6 | E117: 0.6 | F117: 0.5 | G117: 0.6 | H117: 0.5
A118: 115 | B118: 0.5 | C118: 0.5 | D118: 0.5 | E118: 0.5 | F118: 0.5 | G118: 0.5 | H118: 0.5
A119: 116 | B119: 0.5 | C119: 0.5 | D119: 0.5 | E119: 0.5 | F119: 0.5 | G119: 0.5 | H119: 0.5
A120: 117 | B120: 0.5 | C120: 0.5 | D120: 0.5 | E120: 0.5 | F120: 0.5 | G120: 0.5 | H120: 0.5
A121: 118 | B121: 0.5 | C121: 0.5 | D121: 0.5 | E121: 0.5 | F121: 0.5 | G121: 0.5 | H121: 0.5
A122: 119 | B122: 0.5 | C122: 0.5 | D122: 0.5 | E122: 0.5 | F122: 0.5 | G122: 0.5 | H122: 0.5
A123: 120 | B123: 0.5 | C123: 0.5 | D123: 0.5 | E123: 0.5 | F123: 0.5 | G123: 0.5 | H123: 0.5

Sheet 1. Premissas
A1: CAMPO | B1: EXPECTATIVA DE SOBREVIDA
A2: 1.01 | B2: Tábua de mortalidade: | F2: IBGE-2009
A3: CAMPO | B3: RENTABILIDADE LÍQUIDA
A4: 1.02 | B4: Índice anual | F4: 0.05
A5: 1.03 | B5: Índice mensal | F5: =IF(F4="","",POWER(1+F4,1/12)-1) -> 0.004074123784
A6: CAMPO | B6: REGIME GERAL DE PREVIDÊNCIA SOCIAL - RGPS
A7: 1.04 | B7: Alíquota de contribuição do empregador: | F7: 0.2
A8: 1.05 | B8: Alíquotas de contribuição do segurado: | C8: DE | D8: ATÉ | E8: ALÍQUOTA | F8: DEDUÇÃO
C9: 0.01 | D9: 1107.52 | E9: 0.08 | F9: 0
C10: =D9+0.01 -> 1107.53 | D10: 1845.87 | E10: 0.09 | F10: =(E10-E9)*D9 -> 11.0752
C11: =D10+0.01 -> 1845.88 | D11: 3691.74 | E11: 0.11 | F11: =(E11-E10)*D10+F10 -> 47.9926
A12: 1.06 | B12: Percentual das contribuições destinado ao custeio de aposentadoria: | F12: 0.21
A13: 1.07 | B13: Simular rentabilidade de recursos do RGPS? | F13: Não
A14: CAMPO | B14: REGIME DE PREVIDÊNCIA DO SERVIDOR PÚBLICO FEDERAL - RPSPF
A15: 1.08 | B15: Alíquota de contribuição da União: | F15: =RPSPF_alíquota_servidor*2 -> 0.22
A16: 1.09 | B16: Alíquota de contribuição do servidor, ativo ou inativo: | F16: 0.11
A17: 1.10 | B17: Base de contribuição da União se sujeitará, após a instituição do RPC, ao limite do RGPS? | F17: Não
A18: 1.11 | B18: Base de contribuição do servidor se sujeitará, após a instituição do RPC, ao limite do RGPS? | F18: Sim
A19: 1.12 | B19: Percentual das contribuições do servidor ativo destinado ao custeio de aposentadoria: | F19: 0.65
A20: 1.13 | B20: Percentual das contribuições do servidor aposentado destinado ao custeio de aposentadoria: | F20: =RPSPF_percentual_custeio_ativo -> 0.65
A21: 1.14 | B21: Simular rentabilidade de recursos do RPSPF? | F21: Não
A22: CAMPO | B22: REGIME DE PREVIDÊNCIA COMPLEMENTAR - RPC
A23: 1.15 | B23: Alíquota máxima de contribuição da União: | F23: 0.075
A24: 1.16 | B24: Alíquota de contribuição normal do participante: | F24: =RPC_alíquota_máxima_patrocinador -> 0.075
A25: 1.17 | B25: Alíquota de contribuição do assistido: | F25: 0.01
A26: 1.18 | B26: Alíquota de contribuição facultativa do participante: | F26: 0
A27: 1.19 | B27: Percentual das contribuições do participante destinado ao custeio do benefício programado: | F27: =RPSPF_percentual_custeio_ativo -> 0.65
A28: 1.20 | B28: Percentual das contribuições do assistido destinado ao custeio do benefício programado: | F28: 0
A29: CAMPO | B29: SERVIDORES PÚBLICOS FEDERAIS
A30: 1.21 | B30: Remuneração média dos servidores ativos do Poder Executivo | F30: 7533
A31: 1.22 | B31: Limite máximo de remuneração: | F31: 26723.13
A32: Tecle [Ctrl-p] para restabelecer os valores de referência das premissas.

Sheet 2. Segurado
A1: CAMPO | B1: DADOS DO SEGURADO
A2: 2.01 | B2: Sexo: | F2: Masculino
A3: 2.02 | B3: Idade, em anos, ao se aposentar: | F3: 60
A4: 2.03 | B4: Expectativa de sobrevida, em anos, ao se aposentar: | F4: =IF(OR(sexo="",idade=""),"",VLOOKUP(idade,expectativa_de_sobrevida,IF(Tábua_de_Mortalidade="AT-83",2,IF(Tábua_de_Mortalidade="AT-2000",4,IF(Tábua_de_Mortalidade="IBGE-2009",6,NA())))+IF(sexo="Feminino",1,0),FALSE)) -> 19.5
A5: 2.04 | B5: Expectativa de sobrevida, em meses, ao se aposentar: | F5: =IF(F4="","",ROUNDUP(F4*12,0)) -> 234
A6: 2.05 | B6: Tempo de contribuição, em anos, até a aposentadoria: | F6: 35
A7: 2.06 | B7: Tempo de contribuição, em meses, até a aposentadoria: | F7: =IF(anos_de_contribuição="","",ROUNDUP(anos_de_contribuição*12,0)) -> 420
A8: 2.07 | B8: Professor com exercício exclusivo do magistério? | F8: Não
A9: 2.08 | B9: Fator previdenciário (RGPS): | F9: =IF(sexo="","",ROUND((anos_de_contribuição+IF(sexo="Feminino",5,0)+IF(magistério="Sim",5,0))*0.31/VLOOKUP(idade,expectativa_de_sobrevida,8,FALSE)*(1+(idade+(anos_de_contribuição+IF(sexo="Feminino",5,0)+IF(magistério="Sim",5,0))*0.31)/100),4)) -> 0.8703
A10: 2.09 | B10: Beneficiário é portador de doença incapacitante? | F10: Não
A11: Tecle [Ctrl-s] para restabelecer os valores de referência do segurado.
A12: Tecle [Ctrl-b] para estimar o valor dos benefícios.
A13: CAMPO | B13: PERÍODO CONTRIBUTIVO
B14: MESES | D14: REMUNERAÇÃO
B15: DE | C15: ATÉ
A16: 2.10 | B16: =IF(ROW()=16,1,IF(OR(C15="",C15>=meses_de_contribuição),"",C15+1)) -> 1 | C16: =meses_de_contribuição -> 420 | D16: =remuneração_média_Executivo -> 7533

Sheet 3. Estimativa
A1: Tecle [Ctrl-b] para estimar o valor dos benefícios.
A2: CAMPO | B2: FASE DE ACUMULAÇÃO DE RECURSOS | D2: RGPS | E2: RPSPF com RPC | H2: RPSPF sem RPC (B) | I2: DIFERENÇA (B-A)
E3: RPSPF (A) | F3: RPC | G3: Soma
A4: 3.01 | B4: Maior salário de contribuição | D4: ='8. Maiores Remunerações'!A4 -> 3691.74 | E4: ='8. Maiores Remunerações'!B4 -> 3691.74 | F4: ='8. Maiores Remunerações'!C4 -> 3841.26 | G4: =SUM(E4:F4) -> 7533 | H4: ='8. Maiores Remunerações'!D4 -> 7533 | I4: =H4-E4 -> 3841.26
A5: 3.02 | B5: Média dos salários de contribuição | D5: =AVERAGE(INDIRECT(CONCATENATE("'8. Maiores Remunerações'!A4:A",3+meses_de_contribuição))) -> 3691.74 | E5: =AVERAGE(INDIRECT(CONCATENATE("'8. Maiores Remunerações'!B4:B",3+meses_de_contribuição))) -> 3691.74 | F5: =AVERAGE(INDIRECT(CONCATENATE("'8. Maiores Remunerações'!C4:C",3+meses_de_contribuição))) -> 3841.26 | G5: =SUM(E5:F5) -> 7533 | H5: =AVERAGE(INDIRECT(CONCATENATE("'8. Maiores Remunerações'!D4:D",3+meses_de_contribuição))) -> 7533 | I5: =H5-E5 -> 3841.26
A6: 3.03 | B6: Média dos maiores salários de contribuição, corresp. a 80% do período contributivo | D6: =AVERAGE(INDIRECT(CONCATENATE("'8. Maiores Remunerações'!A4:A",3+ROUNDDOWN(meses_de_contribuição*0.8,0)))) -> 3691.74 | E6: =AVERAGE(INDIRECT(CONCATENATE("'8. Maiores Remunerações'!B4:B",3+ROUNDDOWN(meses_de_contribuição*0.8,0)))) -> 3691.74 | F6: =AVERAGE(INDIRECT(CONCATENATE("'8. Maiores Remunerações'!C4:C",3+ROUNDDOWN(meses_de_contribuição*0.8,0)))) -> 3841.26 | G6: 7533 | H6: =AVERAGE(INDIRECT(CONCATENATE("'8. Maiores Remunerações'!D4:D",3+ROUNDDOWN(meses_de_contribuição*0.8,0)))) -> 7533 | I6: 3841.26
A7: 3.04 | B7: Contribuições do segurado, servidor ou participante | D7: =SUM('4. Acumulação RGPS'!I5:I1204) -> 184771.587 | E7: =SUM('5. Acumulação RPSPF com RPC'!I5:I1204) -> 184771.587 | F7: =SUM('6. Acumulação RPC'!I5:I1204)+SUM('6. Acumulação RPC'!K5:K1204) -> 131082.9975 | G7: =SUM(E7:F7) -> 315854.5845 | H7: =SUM('7. Acumulação RPSPF sem RPC'!I5:I1204) -> 377026.65 | I7: 192255.063
A8: 3.05 | B8: Contribuições do empregador, União ou patrocinador | D8: =SUM('4. Acumulação RGPS'!J5:J1204) -> 685503 | E8: =SUM('5. Acumulação RPSPF com RPC'!J5:J1204) -> 754053.3 | F8: =SUM('6. Acumulação RPC'!J5:J1204) -> 131082.9975 | G8: 885136.2975 | H8: =SUM('7. Acumulação RPSPF sem RPC'!J5:J1204) -> 754053.3 | I8: 0
A9: 3.06 | B9: Total de contribuições | D9: =SUM(D7:D8) -> 870274.587 | E9: =SUM(E7:E8) -> 938824.887 | F9: =SUM(F7:F8) -> 262165.995 | G9: 1200990.882 | H9: =SUM(H7:H8) -> 1131079.95 | I9: 192255.063
A10: 3.07 | B10: Recursos de contribuições reservados para custeio do benefício programado | D10: =SUM('4. Acumulação RGPS'!L5:L1204) -> 182757.6633 | E10: =SUM('5. Acumulação RPSPF com RPC'!L5:L1204) -> 610236.1766 | F10: =SUM('6. Acumulação RPC'!L5:L1204) -> 170407.8967 | G10: 780644.0733 | H10: =SUM('7. Acumulação RPSPF sem RPC'!L5:L1204) -> 735201.9675 | I10: 124965.7909
A11: 3.08 | B11: Rendimentos | D11: =SUM('4. Acumulação RGPS'!N5:N1204) -> 0 | E11: =SUM('5. Acumulação RPSPF com RPC'!N5:N1204) -> 0 | F11: =SUM('6. Acumulação RPC'!N5:N1204) -> 278563.8345 | G11: 278563.8345 | H11: =SUM('7. Acumulação RPSPF sem RPC'!N5:N1204) -> 0 | I11: 0
A12: 3.09 | B12: Saldo final | D12: =INDIRECT(CONCATENATE("'4. Acumulação RGPS'!O",4+meses_de_contribuição)) -> 182757.6633 | E12: =INDIRECT(CONCATENATE("'5. Acumulação RPSPF com RPC'!O",4+meses_de_contribuição)) -> 610236.1766 | F12: =INDIRECT(CONCATENATE("'6. Acumulação RPC'!O",4+meses_de_contribuição)) -> 448971.7312 | G12: 1059207.908 | H12: =INDIRECT(CONCATENATE("'7. Acumulação RPSPF sem RPC'!O",4+meses_de_contribuição)) -> 735201.9675 | I12: 124965.7909
A13: CAMPO | B13: FASE DE PERCEPÇÃO DE BENEFÍCIO | D13: RGPS | E13: RPSPF com RPC | H13: RPSPF sem RPC (B) | I13: DIFERENÇA (B-A)
E14: RPSPF (A) | F14: RPC | G14: Soma
A15: 3.10 | B15: Valor do benefício mensal | D15: =IF(RGPS_média_80_por_cento*fator_previdenciário>RGPS_limite_máximo_valor_benefício,RGPS_limite_máximo_valor_benefício,RGPS_média_80_por_cento*fator_previdenciário) -> 3212.921322 | E15: =IF(RPSPF_com_RPC_média_80_por_cento>RGPS_limite_máximo_valor_benefício,RGPS_limite_máximo_valor_benefício,RPSPF_com_RPC_média_80_por_cento) -> 3691.74 | F15: 2758.756022 | G15: =SUM(E15:F15) -> 6450.496022 | H15: =IF(RPSPF_sem_RPC_média_80_por_cento>limite_máximo_de_remuneração,limite_máximo_de_remuneração,RPSPF_sem_RPC_média_80_por_cento) -> 7533 | I15: =H15-E15 -> 3841.26
A16: 3.11 | B16: Valor da contribuição mensal do aposentado ou assistido | D16: 0 | E16: 0 | F16: =RPC_valor_do_benefício*RPC_alíquota_assistido -> 27.58756022 | G16: =SUM(E16:F16) -> 27.58756022 | H16: =IF(portador_doença_incapacitante="Sim",IF(RPSPF_sem_RPC_valor_do_benefício>2*RGPS_limite_máximo_valor_benefício,RPSPF_sem_RPC_valor_do_benefício-2*RGPS_limite_máximo_valor_benefício,0),IF(RPSPF_sem_RPC_valor_do_benefício>RGPS_limite_máximo_valor_benefício,RPSPF_sem_RPC_valor_do_benefício-RGPS_limite_máximo_valor_benefício,0))*RPSPF_alíquota_servidor -> 422.5386 | I16: =H16-E16 -> 422.5386
A17: 3.12 | B17: Diferença entre os valores mensais do benefício e da contribuição | D17: =RGPS_valor_do_benefício-RGPS_contribuição_aposentado -> 3212.921322 | E17: =RPSPF_com_RPC_valor_do_benefício-RPSPF_com_RPC_contribuição_aposentado -> 3691.74 | F17: =RPC_valor_do_benefício-RPC_valor_contribuição_assistido -> 2731.168462 | G17: =SUM(E17:F17) -> 6422.908462 | H17: =RPSPF_sem_RPC_valor_do_benefício-RPSPF_sem_RPC_contribuição_do_aposentado -> 7110.4614 | I17: 3418.7214
A18: 3.13 | B18: Total de benefícios até o final da expectativa de sobrevida | D18: =SUM('9. Percepção RGPS'!B5:B1204) -> 812869.0945 | E18: =SUM('10. Percepção RPSPF com RPC'!B5:B1204) -> 934010.22 | F18: =SUM('11. Percepção RPC'!B5:B1204) -> 697965.2736 | G18: =SUM(E18:F18) -> 1631975.494 | H18: =SUM('12. Percepção RPSPF sem RPC'!B5:B1204) -> 1905849 | I18: 971838.78
A19: 3.14 | B19: Total de contribuições até o final da expectativa de sobrevida | D19: 0 | E19: 0 | F19: =SUM('11. Percepção RPC'!E5:E1204) -> 6979.652736 | G19: 6979.652736 | H19: =SUM('12. Percepção RPSPF sem RPC'!E5:E1204) -> 106902.2658 | I19: 106902.2658
A20: 3.15 | B20: Diferença entre os totais de benefícios e de contribuições | D20: =D18-D19 -> 812869.0945 | E20: =E18-E19 -> 934010.22 | F20: 690985.6208 | G20: 1624995.841 | H20: =H18-H19 -> 1798946.734 | I20: 864936.5142
A21: 3.16 | B21: Recursos de contribuições reservados para custeio do benefício programado | D21: 0 | E21: 0 | F21: =SUM('11. Percepção RPC'!F5:F1204) -> 0 | G21: 0 | H21: =SUM('12. Percepção RPSPF sem RPC'!F5:F1204) -> 69486.47277 | I21: 69486.47277
A22: 3.17 | B22: Rendimentos | D22: =SUM('9. Percepção RGPS'!H5:H1204) -> 0 | E22: =SUM('10. Percepção RPSPF com RPC'!H5:H1204) -> 0 | F22: =SUM('11. Percepção RPC'!H5:H1204) -> 248993.5423 | G22: 248993.5423 | H22: =SUM('12. Percepção RPSPF sem RPC'!H5:H1204) -> 0 | I22: 0
A23: 3.18 | B23: Saldo final | D23: =INDIRECT(CONCATENATE("'9. Percepção RGPS'!I",4+expectativa_de_sobrevida_em_meses)) -> -630111.4312 | E23: =INDIRECT(CONCATENATE("'10. Percepção RPSPF com RPC'!I",4+expectativa_de_sobrevida_em_meses)) -> -323774.0434 | F23: =INDIRECT(CONCATENATE("'11. Percepção RPC'!I",4+expectativa_de_sobrevida_em_meses)) -> 4.813045962e-09 | G23: =SUM(E23:F23) -> -323774.0434 | H23: =INDIRECT(CONCATENATE("'12. Percepção RPSPF sem RPC'!I",4+expectativa_de_sobrevida_em_meses)) -> -1101160.56 | I23: =(H23-E23) -> -777386.5163
A24: Tecle [Ctrl-r] para estimar rentabilidade que estabeleça o equilíbrio financeiro do Regime de Previdência dos Servidores Públicos Federais.
A25: CAMPO | B25: EFEITOS DA INSTITUIÇÃO DO REGIME DE PREVIDÊNCIA COMPLEMENTAR | E25: RPSPF | F25: RPC | G25: Soma
A26: 3.19 | B26: Para o servidor | C26: durante a fase de acumulação de recursos | E26: =I7 -> 192255.063 | F26: =-RPC_contribuições_participante -> -131082.9975 | G26: =SUM(E26:F26) -> 61172.0655
A27: 3.20 | C27: durante a fase de percepção de benefício | E27: =-I20 -> -864936.5142 | F27: =F20 -> 690985.6208 | G27: -173950.8934
A28: 3.21 | C28: total | E28: =SUM(E26:E27) -> -672681.4512 | F28: =SUM(F26:F27) -> 559902.6233 | G28: -112778.8279
A29: 3.22 | B29: Para a União | C29: durante a fase de acumulação de recursos | E29: =I8 -> 0 | F29: =-RPC_contribuições_União -> -131082.9975 | G29: -131082.9975
A30: 3.23 | C30: durante a fase de percepção de benefício | E30: =-I23 -> 777386.5163 | F30: 0 | G30: =SUM(E30:F30) -> 777386.5163
A31: 3.24 | C31: total | E31: =SUM(E29:E30) -> 777386.5163 | F31: =SUM(F29:F30) -> -131082.9975 | G31: 646303.5188
A32: CAMPO | B32: PRINCIPAIS VARIÁVEIS CONSIDERADAS NA ESTIMATIVA | D32: RGPS | E32: RPSPF | F32: RPC
A33: 3.25 | B33: Tábua de mortalidade: | D33: IBGE-2009 | E33: =Tábua_de_Mortalidade -> IBGE-2009 | F33: =Tábua_de_Mortalidade -> IBGE-2009
A34: 3.26 | B34: Índice de rentabilidade anual líquida: | D34: =IF(RGPS_simular_rentabilidade="Não",0,rentabilidade_anual) -> 0 | E34: =IF(RPSPF_simular_rentabilidade="Não",0,rentabilidade_anual) -> 0 | F34: =rentabilidade_anual -> 0.05
A35: 3.27 | B35: Alíquota de contribuição da União: | D35: =RGPS_alíquota_contribuição_empregador -> 0.2 | E35: =RPSPF_alíquota_União -> 0.22 | F35: =IF(RPC_alíquota_participante>RPC_alíquota_máxima_patrocinador,RPC_alíquota_máxima_patrocinador,RPC_alíquota_participante) -> 0.075
A36: 3.28 | B36: Alíquota de contribuição do servidor ativo: | D36: vide campo 1.05 | E36: =RPSPF_alíquota_servidor -> 0.11 | F36: =RPC_alíquota_participante -> 0.075
A37: 3.29 | B37: Alíquota de contribuição do servidor aposentado: | D37: 0 | E37: =RPSPF_alíquota_servidor -> 0.11 | F37: =RPC_alíquota_assistido -> 0.01
A38: 3.30 | B38: Alíquota de contribuição facultativa do participante: | D38: 0 | E38: 0 | F38: =RPC_alíquota_contribuição_facultativa -> 0
A39: 3.31 | B39: Base de contribuição da União sujeita ao limite do RGPS? | D39: Não | E39: =RPSPF_base_de_cálculo_contribuição_União_limitada -> Não | F39: Não
A40: 3.32 | B40: Base de contribuição do servidor sujeita ao limite do RGPS? | D40: Sim | E40: =RPSPF_base_de_cálculo_contribuição_servidor_limitada -> Sim | F40: Não
A41: 3.33 | B41: Percentual das contrib. do servidor ativo destinado ao custeio de aposentadoria: | D41: =RGPS_percentual_custeio_aposentadoria -> 0.21 | E41: =RPSPF_percentual_custeio_ativo -> 0.65 | F41: =RPC_percentual_custeio_aposentadoria_acumulação -> 0.65
A42: 3.34 | B42: Percentual das contrib. do serv. aposentado destinado ao custeio de aposent.: | D42: 0 | E42: =RPSPF_percentual_custeio_inativo -> 0.65 | F42: =RPC_percentual_custeio_aposentadoria_percepção -> 0

Sheet 4. Acumulação RGPS
A1: Mês | B1: Remuneração | C1: CONTRIBUIÇÕES | M1: Saldo anterior | N1: Rendimentos | O1: Saldo atual
C2: Bases de cálculo | F2: Alíquotas | I2: Valores
C3: Normal | E3: Facultativa | F3: Normal | H3: Facultativa | I3: Normal | K3: Facultativa | L3: Custeio de aposentadoria
C4: Segurado | D4: Empregador | F4: Segurado | G4: Empregador | I4: Segurado | J4: Empregador
A5: =ROW()-4 -> 1 | B5: =IF($A5>meses_de_contribuição,0,VLOOKUP($A5,período_contributivo,3,TRUE)) -> 7533 | C5: =IF($A5>meses_de_contribuição,0,IF($B5>RGPS_limite_máximo_valor_benefício,RGPS_limite_máximo_valor_benefício,$B5)) -> 3691.74 | D5: =IF($A5>meses_de_contribuição,0,$B5) -> 7533 | F5: =IF($A5>meses_de_contribuição,0,VLOOKUP($C5,RGPS_alíquotas_contribuição_segurado,3,TRUE)) -> 0.11 | G5: =RGPS_alíquota_contribuição_empregador -> 0.2 | I5: =$C5*F5*IF(MOD($A5,12)=0,2,1) -> 406.0914 | J5: =$D5*G5*IF(MOD($A5,12)=0,2,1) -> 1506.6 | L5: =SUM(I5:K5)*RGPS_percentual_custeio_aposentadoria -> 401.665194 | M5: =IF($A5=1,0,O4) -> 0 | N5: =$M5*IF(OR(RGPS_simular_rentabilidade="Não",$A5>meses_de_contribuição),0,rentabilidade_mensal) -> 0 | O5: =SUM(L5:N5) -> 401.665194
A6: =ROW()-4 -> 2 | B6: 7533 | C6: 3691.74 | D6: 7533 | F6: 0.11 | G6: 0.2 | I6: =$C6*F6*IF(MOD($A6,12)=0,2,1) -> 406.0914 | J6: =$D6*G6*IF(MOD($A6,12)=0,2,1) -> 1506.6 | L6: 401.665194 | M6: =IF($A6=1,0,O5) -> 401.665194 | N6: 0 | O6: =SUM(L6:N6) -> 803.330388
A7: 3 | B7: 7533 | C7: 3691.74 | D7: 7533 | F7: 0.11 | G7: 0.2 | I7: 406.0914 | J7: 1506.6 | L7: 401.665194 | M7: 803.330388 | N7: 0 | O7: 1204.995582
A8: 4 | B8: 7533 | C8: 3691.74 | D8: 7533 | F8: 0.11 | G8: 0.2 | I8: 406.0914 | J8: 1506.6 | L8: 401.665194 | M8: 1204.995582 | N8: 0 | O8: 1606.660776
A9: 5 | B9: 7533 | C9: 3691.74 | D9: 7533 | F9: 0.11 | G9: 0.2 | I9: 406.0914 | J9: 1506.6 | L9: 401.665194 | M9: 1606.660776 | N9: 0 | O9: 2008.32597
A10: 6 | B10: 7533 | C10: 3691.74 | D10: 7533 | F10: 0.11 | G10: 0.2 | I10: 406.0914 | J10: 1506.6 | L10: 401.665194 | M10: 2008.32597 | N10: 0 | O10: 2409.991164
A11: 7 | B11: 7533 | C11: 3691.74 | D11: 7533 | F11: 0.11 | G11: 0.2 | I11: 406.0914 | J11: 1506.6 | L11: 401.665194 | M11: 2409.991164 | N11: 0 | O11: 2811.656358
A12: 8 | B12: 7533 | C12: 3691.74 | D12: 7533 | F12: 0.11 | G12: 0.2 | I12: 406.0914 | J12: 1506.6 | L12: 401.665194 | M12: 2811.656358 | N12: 0 | O12: 3213.321552
A13: 9 | B13: 7533 | C13: 3691.74 | D13: 7533 | F13: 0.11 | G13: 0.2 | I13: 406.0914 | J13: 1506.6 | L13: 401.665194 | M13: 3213.321552 | N13: 0 | O13: 3614.986746
A14: 10 | B14: 7533 | C14: 3691.74 | D14: 7533 | F14: 0.11 | G14: 0.2 | I14: 406.0914 | J14: 1506.6 | L14: 401.665194 | M14: 3614.986746 | N14: 0 | O14: 4016.65194
A15: 11 | B15: 7533 | C15: 3691.74 | D15: 7533 | F15: 0.11 | G15: 0.2 | I15: 406.0914 | J15: 1506.6 | L15: 401.665194 | M15: 4016.65194 | N15: 0 | O15: 4418.317134
A16: 12 | B16: 7533 | C16: 3691.74 | D16: 7533 | F16: 0.11 | G16: 0.2 | I16: 812.1828 | J16: 3013.2 | L16: 803.330388 | M16: 4418.317134 | N16: 0 | O16: 5221.647522
A17: 13 | B17: 7533 | C17: 3691.74 | D17: 7533 | F17: 0.11 | G17: 0.2 | I17: 406.0914 | J17: 1506.6 | L17: 401.665194 | M17: 5221.647522 | N17: 0 | O17: 5623.312716
A18: 14 | B18: 7533 | C18: 3691.74 | D18: 7533 | F18: 0.11 | G18: 0.2 | I18: 406.0914 | J18: 1506.6 | L18: 401.665194 | M18: 5623.312716 | N18: 0 | O18: 6024.97791
A19: 15 | B19: 7533 | C19: 3691.74 | D19: 7533 | F19: 0.11 | G19: 0.2 | I19: 406.0914 | J19: 1506.6 | L19: 401.665194 | M19: 6024.97791 | N19: 0 | O19: 6426.643104
A20: 16 | B20: 7533 | C20: 3691.74 | D20: 7533 | F20: 0.11 | G20: 0.2 | I20: 406.0914 | J20: 1506.6 | L20: 401.665194 | M20: 6426.643104 | N20: 0 | O20: 6828.308298
A21: 17 | B21: 7533 | C21: 3691.74 | D21: 7533 | F21: 0.11 | G21: 0.2 | I21: 406.0914 | J21: 1506.6 | L21: 401.665194 | M21: 6828.308298 | N21: 0 | O21: 7229.973492
A22: 18 | B22: 7533 | C22: 3691.74 | D22: 7533 | F22: 0.11 | G22: 0.2 | I22: 406.0914 | J22: 1506.6 | L22: 401.665194 | M22: 7229.973492 | N22: 0 | O22: 7631.638686
A23: 19 | B23: 7533 | C23: 3691.74 | D23: 7533 | F23: 0.11 | G23: 0.2 | I23: 406.0914 | J23: 1506.6 | L23: 401.665194 | M23: 7631.638686 | N23: 0 | O23: 8033.30388
A24: 20 | B24: 7533 | C24: 3691.74 | D24: 7533 | F24: 0.11 | G24: 0.2 | I24: 406.0914 | J24: 1506.6 | L24: 401.665194 | M24: 8033.30388 | N24: 0 | O24: 8434.969074
A25: 21 | B25: 7533 | C25: 3691.74 | D25: 7533 | F25: 0.11 | G25: 0.2 | I25: 406.0914 | J25: 1506.6 | L25: 401.665194 | M25: 8434.969074 | N25: 0 | O25: 8836.634268
A26: 22 | B26: 7533 | C26: 3691.74 | D26: 7533 | F26: 0.11 | G26: 0.2 | I26: 406.0914 | J26: 1506.6 | L26: 401.665194 | M26: 8836.634268 | N26: 0 | O26: 9238.299462
A27: 23 | B27: 7533 | C27: 3691.74 | D27: 7533 | F27: 0.11 | G27: 0.2 | I27: 406.0914 | J27: 1506.6 | L27: 401.665194 | M27: 9238.299462 | N27: 0 | O27: 9639.964656
A28: 24 | B28: 7533 | C28: 3691.74 | D28: 7533 | F28: 0.11 | G28: 0.2 | I28: 812.1828 | J28: 3013.2 | L28: 803.330388 | M28: 9639.964656 | N28: 0 | O28: 10443.29504
A29: 25 | B29: 7533 | C29: 3691.74 | D29: 7533 | F29: 0.11 | G29: 0.2 | I29: 406.0914 | J29: 1506.6 | L29: 401.665194 | M29: 10443.29504 | N29: 0 | O29: 10844.96024
A30: 26 | B30: 7533 | C30: 3691.74 | D30: 7533 | F30: 0.11 | G30: 0.2 | I30: 406.0914 | J30: 1506.6 | L30: 401.665194 | M30: 10844.96024 | N30: 0 | O30: 11246.62543
A31: 27 | B31: 7533 | C31: 3691.74 | D31: 7533 | F31: 0.11 | G31: 0.2 | I31: 406.0914 | J31: 1506.6 | L31: 401.665194 | M31: 11246.62543 | N31: 0 | O31: 11648.29063
A32: 28 | B32: 7533 | C32: 3691.74 | D32: 7533 | F32: 0.11 | G32: 0.2 | I32: 406.0914 | J32: 1506.6 | L32: 401.665194 | M32: 11648.29063 | N32: 0 | O32: 12049.95582
A33: 29 | B33: 7533 | C33: 3691.74 | D33: 7533 | F33: 0.11 | G33: 0.2 | I33: 406.0914 | J33: 1506.6 | L33: 401.665194 | M33: 12049.95582 | N33: 0 | O33: 12451.62101
A34: 30 | B34: 7533 | C34: 3691.74 | D34: 7533 | F34: 0.11 | G34: 0.2 | I34: 406.0914 | J34: 1506.6 | L34: 401.665194 | M34: 12451.62101 | N34: 0 | O34: 12853.28621
A35: 31 | B35: 7533 | C35: 3691.74 | D35: 7533 | F35: 0.11 | G35: 0.2 | I35: 406.0914 | J35: 1506.6 | L35: 401.665194 | M35: 12853.28621 | N35: 0 | O35: 13254.9514
A36: 32 | B36: 7533 | C36: 3691.74 | D36: 7533 | F36: 0.11 | G36: 0.2 | I36: 406.0914 | J36: 1506.6 | L36: 401.665194 | M36: 13254.9514 | N36: 0 | O36: 13656.6166
A37: 33 | B37: 7533 | C37: 3691.74 | D37: 7533 | F37: 0.11 | G37: 0.2 | I37: 406.0914 | J37: 1506.6 | L37: 401.665194 | M37: 13656.6166 | N37: 0 | O37: 14058.28179
A38: 34 | B38: 7533 | C38: 3691.74 | D38: 7533 | F38: 0.11 | G38: 0.2 | I38: 406.0914 | J38: 1506.6 | L38: 401.665194 | M38: 14058.28179 | N38: 0 | O38: 14459.94698
A39: 35 | B39: 7533 | C39: 3691.74 | D39: 7533 | F39: 0.11 | G39: 0.2 | I39: 406.0914 | J39: 1506.6 | L39: 401.665194 | M39: 14459.94698 | N39: 0 | O39: 14861.61218
A40: 36 | B40: 7533 | C40: 3691.74 | D40: 7533 | F40: 0.11 | G40: 0.2 | I40: 812.1828 | J40: 3013.2 | L40: 803.330388 | M40: 14861.61218 | N40: 0 | O40: 15664.94257
A41: 37 | B41: 7533 | C41: 3691.74 | D41: 7533 | F41: 0.11 | G41: 0.2 | I41: 406.0914 | J41: 1506.6 | L41: 401.665194 | M41: 15664.94257 | N41: 0 | O41: 16066.60776
A42: 38 | B42: 7533 | C42: 3691.74 | D42: 7533 | F42: 0.11 | G42: 0.2 | I42: 406.0914 | J42: 1506.6 | L42: 401.665194 | M42: 16066.60776 | N42: 0 | O42: 16468.27295
A43: 39 | B43: 7533 | C43: 3691.74 | D43: 7533 | F43: 0.11 | G43: 0.2 | I43: 406.0914 | J43: 1506.6 | L43: 401.665194 | M43: 16468.27295 | N43: 0 | O43: 16869.93815
A44: 40 | B44: 7533 | C44: 3691.74 | D44: 7533 | F44: 0.11 | G44: 0.2 | I44: 406.0914 | J44: 1506.6 | L44: 401.665194 | M44: 16869.93815 | N44: 0 | O44: 17271.60334
A45: 41 | B45: 7533 | C45: 3691.74 | D45: 7533 | F45: 0.11 | G45: 0.2 | I45: 406.0914 | J45: 1506.6 | L45: 401.665194 | M45: 17271.60334 | N45: 0 | O45: 17673.26854
A46: 42 | B46: 7533 | C46: 3691.74 | D46: 7533 | F46: 0.11 | G46: 0.2 | I46: 406.0914 | J46: 1506.6 | L46: 401.665194 | M46: 17673.26854 | N46: 0 | O46: 18074.93373
A47: 43 | B47: 7533 | C47: 3691.74 | D47: 7533 | F47: 0.11 | G47: 0.2 | I47: 406.0914 | J47: 1506.6 | L47: 401.665194 | M47: 18074.93373 | N47: 0 | O47: 18476.59892
A48: 44 | B48: 7533 | C48: 3691.74 | D48: 7533 | F48: 0.11 | G48: 0.2 | I48: 406.0914 | J48: 1506.6 | L48: 401.665194 | M48: 18476.59892 | N48: 0 | O48: 18878.26412
A49: 45 | B49: 7533 | C49: 3691.74 | D49: 7533 | F49: 0.11 | G49: 0.2 | I49: 406.0914 | J49: 1506.6 | L49: 401.665194 | M49: 18878.26412 | N49: 0 | O49: 19279.92931
A50: 46 | B50: 7533 | C50: 3691.74 | D50: 7533 | F50: 0.11 | G50: 0.2 | I50: 406.0914 | J50: 1506.6 | L50: 401.665194 | M50: 19279.92931 | N50: 0 | O50: 19681.59451
A51: 47 | B51: 7533 | C51: 3691.74 | D51: 7533 | F51: 0.11 | G51: 0.2 | I51: 406.0914 | J51: 1506.6 | L51: 401.665194 | M51: 19681.59451 | N51: 0 | O51: 20083.2597
A52: 48 | B52: 7533 | C52: 3691.74 | D52: 7533 | F52: 0.11 | G52: 0.2 | I52: 812.1828 | J52: 3013.2 | L52: 803.330388 | M52: 20083.2597 | N52: 0 | O52: 20886.59009
A53: 49 | B53: 7533 | C53: 3691.74 | D53: 7533 | F53: 0.11 | G53: 0.2 | I53: 406.0914 | J53: 1506.6 | L53: 401.665194 | M53: 20886.59009 | N53: 0 | O53: 21288.25528
A54: 50 | B54: 7533 | C54: 3691.74 | D54: 7533 | F54: 0.11 | G54: 0.2 | I54: 406.0914 | J54: 1506.6 | L54: 401.665194 | M54: 21288.25528 | N54: 0 | O54: 21689.92048
A55: 51 | B55: 7533 | C55: 3691.74 | D55: 7533 | F55: 0.11 | G55: 0.2 | I55: 406.0914 | J55: 1506.6 | L55: 401.665194 | M55: 21689.92048 | N55: 0 | O55: 22091.58567
A56: 52 | B56: 7533 | C56: 3691.74 | D56: 7533 | F56: 0.11 | G56: 0.2 | I56: 406.0914 | J56: 1506.6 | L56: 401.665194 | M56: 22091.58567 | N56: 0 | O56: 22493.25086
A57: 53 | B57: 7533 | C57: 3691.74 | D57: 7533 | F57: 0.11 | G57: 0.2 | I57: 406.0914 | J57: 1506.6 | L57: 401.665194 | M57: 22493.25086 | N57: 0 | O57: 22894.91606
A58: 54 | B58: 7533 | C58: 3691.74 | D58: 7533 | F58: 0.11 | G58: 0.2 | I58: 406.0914 | J58: 1506.6 | L58: 401.665194 | M58: 22894.91606 | N58: 0 | O58: 23296.58125
A59: 55 | B59: 7533 | C59: 3691.74 | D59: 7533 | F59: 0.11 | G59: 0.2 | I59: 406.0914 | J59: 1506.6 | L59: 401.665194 | M59: 23296.58125 | N59: 0 | O59: 23698.24645
A60: 56 | B60: 7533 | C60: 3691.74 | D60: 7533 | F60: 0.11 | G60: 0.2 | I60: 406.0914 | J60: 1506.6 | L60: 401.665194 | M60: 23698.24645 | N60: 0 | O60: 24099.91164
A61: 57 | B61: 7533 | C61: 3691.74 | D61: 7533 | F61: 0.11 | G61: 0.2 | I61: 406.0914 | J61: 1506.6 | L61: 401.665194 | M61: 24099.91164 | N61: 0 | O61: 24501.57683
A62: 58 | B62: 7533 | C62: 3691.74 | D62: 7533 | F62: 0.11 | G62: 0.2 | I62: 406.0914 | J62: 1506.6 | L62: 401.665194 | M62: 24501.57683 | N62: 0 | O62: 24903.24203
A63: 59 | B63: 7533 | C63: 3691.74 | D63: 7533 | F63: 0.11 | G63: 0.2 | I63: 406.0914 | J63: 1506.6 | L63: 401.665194 | M63: 24903.24203 | N63: 0 | O63: 25304.90722
A64: 60 | B64: 7533 | C64: 3691.74 | D64: 7533 | F64: 0.11 | G64: 0.2 | I64: 812.1828 | J64: 3013.2 | L64: 803.330388 | M64: 25304.90722 | N64: 0 | O64: 26108.23761
A65: 61 | B65: 7533 | C65: 3691.74 | D65: 7533 | F65: 0.11 | G65: 0.2 | I65: 406.0914 | J65: 1506.6 | L65: 401.665194 | M65: 26108.23761 | N65: 0 | O65: 26509.9028
A66: 62 | B66: 7533 | C66: 3691.74 | D66: 7533 | F66: 0.11 | G66: 0.2 | I66: 406.0914 | J66: 1506.6 | L66: 401.665194 | M66: 26509.9028 | N66: 0 | O66: 26911.568
A67: 63 | B67: 7533 | C67: 3691.74 | D67: 7533 | F67: 0.11 | G67: 0.2 | I67: 406.0914 | J67: 1506.6 | L67: 401.665194 | M67: 26911.568 | N67: 0 | O67: 27313.23319
A68: 64 | B68: 7533 | C68: 3691.74 | D68: 7533 | F68: 0.11 | G68: 0.2 | I68: 406.0914 | J68: 1506.6 | L68: 401.665194 | M68: 27313.23319 | N68: 0 | O68: 27714.89839
A69: 65 | B69: =IF($A69>meses_de_contribuição,0,VLOOKUP($A69,período_contributivo,3,TRUE)) -> 7533 | C69: =IF($A69>meses_de_contribuição,0,IF($B69>RGPS_limite_máximo_valor_benefício,RGPS_limite_máximo_valor_benefício,$B69)) -> 3691.74 | D69: =IF($A69>meses_de_contribuição,0,$B69) -> 7533 | F69: =IF($A69>meses_de_contribuição,0,VLOOKUP($C69,RGPS_alíquotas_contribuição_segurado,3,TRUE)) -> 0.11 | G69: =RGPS_alíquota_contribuição_empregador -> 0.2 | I69: 406.0914 | J69: 1506.6 | L69: =SUM(I69:K69)*RGPS_percentual_custeio_aposentadoria -> 401.665194 | M69: 27714.89839 | N69: =$M69*IF(OR(RGPS_simular_rentabilidade="Não",$A69>meses_de_contribuição),0,rentabilidade_mensal) -> 0 | O69: 28116.56358
A70: =ROW()-4 -> 66 | B70: 7533 | C70: 3691.74 | D70: 7533 | F70: 0.11 | G70: 0.2 | I70: =$C70*F70*IF(MOD($A70,12)=0,2,1) -> 406.0914 | J70: =$D70*G70*IF(MOD($A70,12)=0,2,1) -> 1506.6 | L70: 401.665194 | M70: =IF($A70=1,0,O69) -> 28116.56358 | N70: 0 | O70: =SUM(L70:N70) -> 28518.22877
A71: 67 | B71: 7533 | C71: 3691.74 | D71: 7533 | F71: 0.11 | G71: 0.2 | I71: 406.0914 | J71: 1506.6 | L71: 401.665194 | M71: 28518.22877 | N71: 0 | O71: 28919.89397
A72: 68 | B72: 7533 | C72: 3691.74 | D72: 7533 | F72: 0.11 | G72: 0.2 | I72: 406.0914 | J72: 1506.6 | L72: 401.665194 | M72: 28919.89397 | N72: 0 | O72: 29321.55916
A73: 69 | B73: 7533 | C73: 3691.74 | D73: 7533 | F73: 0.11 | G73: 0.2 | I73: 406.0914 | J73: 1506.6 | L73: 401.665194 | M73: 29321.55916 | N73: 0 | O73: 29723.22436
A74: 70 | B74: 7533 | C74: 3691.74 | D74: 7533 | F74: 0.11 | G74: 0.2 | I74: 406.0914 | J74: 1506.6 | L74: 401.665194 | M74: 29723.22436 | N74: 0 | O74: 30124.88955
A75: 71 | B75: 7533 | C75: 3691.74 | D75: 7533 | F75: 0.11 | G75: 0.2 | I75: 406.0914 | J75: 1506.6 | L75: 401.665194 | M75: 30124.88955 | N75: 0 | O75: 30526.55474
A76: 72 | B76: 7533 | C76: 3691.74 | D76: 7533 | F76: 0.11 | G76: 0.2 | I76: 812.1828 | J76: 3013.2 | L76: 803.330388 | M76: 30526.55474 | N76: 0 | O76: 31329.88513
A77: 73 | B77: 7533 | C77: 3691.74 | D77: 7533 | F77: 0.11 | G77: 0.2 | I77: 406.0914 | J77: 1506.6 | L77: 401.665194 | M77: 31329.88513 | N77: 0 | O77: 31731.55033
A78: 74 | B78: 7533 | C78: 3691.74 | D78: 7533 | F78: 0.11 | G78: 0.2 | I78: 406.0914 | J78: 1506.6 | L78: 401.665194 | M78: 31731.55033 | N78: 0 | O78: 32133.21552
A79: 75 | B79: 7533 | C79: 3691.74 | D79: 7533 | F79: 0.11 | G79: 0.2 | I79: 406.0914 | J79: 1506.6 | L79: 401.665194 | M79: 32133.21552 | N79: 0 | O79: 32534.88071
A80: 76 | B80: 7533 | C80: 3691.74 | D80: 7533 | F80: 0.11 | G80: 0.2 | I80: 406.0914 | J80: 1506.6 | L80: 401.665194 | M80: 32534.88071 | N80: 0 | O80: 32936.54591
A81: 77 | B81: 7533 | C81: 3691.74 | D81: 7533 | F81: 0.11 | G81: 0.2 | I81: 406.0914 | J81: 1506.6 | L81: 401.665194 | M81: 32936.54591 | N81: 0 | O81: 33338.2111
A82: 78 | B82: 7533 | C82: 3691.74 | D82: 7533 | F82: 0.11 | G82: 0.2 | I82: 406.0914 | J82: 1506.6 | L82: 401.665194 | M82: 33338.2111 | N82: 0 | O82: 33739.8763
A83: 79 | B83: 7533 | C83: 3691.74 | D83: 7533 | F83: 0.11 | G83: 0.2 | I83: 406.0914 | J83: 1506.6 | L83: 401.665194 | M83: 33739.8763 | N83: 0 | O83: 34141.54149
A84: 80 | B84: 7533 | C84: 3691.74 | D84: 7533 | F84: 0.11 | G84: 0.2 | I84: 406.0914 | J84: 1506.6 | L84: 401.665194 | M84: 34141.54149 | N84: 0 | O84: 34543.20668
A85: 81 | B85: 7533 | C85: 3691.74 | D85: 7533 | F85: 0.11 | G85: 0.2 | I85: 406.0914 | J85: 1506.6 | L85: 401.665194 | M85: 34543.20668 | N85: 0 | O85: 34944.87188
A86: 82 | B86: 7533 | C86: 3691.74 | D86: 7533 | F86: 0.11 | G86: 0.2 | I86: 406.0914 | J86: 1506.6 | L86: 401.665194 | M86: 34944.87188 | N86: 0 | O86: 35346.53707
A87: 83 | B87: 7533 | C87: 3691.74 | D87: 7533 | F87: 0.11 | G87: 0.2 | I87: 406.0914 | J87: 1506.6 | L87: 401.665194 | M87: 35346.53707 | N87: 0 | O87: 35748.20227
A88: 84 | B88: 7533 | C88: 3691.74 | D88: 7533 | F88: 0.11 | G88: 0.2 | I88: 812.1828 | J88: 3013.2 | L88: 803.330388 | M88: 35748.20227 | N88: 0 | O88: 36551.53265
A89: 85 | B89: 7533 | C89: 3691.74 | D89: 7533 | F89: 0.11 | G89: 0.2 | I89: 406.0914 | J89: 1506.6 | L89: 401.665194 | M89: 36551.53265 | N89: 0 | O89: 36953.19785
A90: 86 | B90: 7533 | C90: 3691.74 | D90: 7533 | F90: 0.11 | G90: 0.2 | I90: 406.0914 | J90: 1506.6 | L90: 401.665194 | M90: 36953.19785 | N90: 0 | O90: 37354.86304
A91: 87 | B91: 7533 | C91: 3691.74 | D91: 7533 | F91: 0.11 | G91: 0.2 | I91: 406.0914 | J91: 1506.6 | L91: 401.665194 | M91: 37354.86304 | N91: 0 | O91: 37756.52824
A92: 88 | B92: 7533 | C92: 3691.74 | D92: 7533 | F92: 0.11 | G92: 0.2 | I92: 406.0914 | J92: 1506.6 | L92: 401.665194 | M92: 37756.52824 | N92: 0 | O92: 38158.19343
A93: 89 | B93: 7533 | C93: 3691.74 | D93: 7533 | F93: 0.11 | G93: 0.2 | I93: 406.0914 | J93: 1506.6 | L93: 401.665194 | M93: 38158.19343 | N93: 0 | O93: 38559.85862
A94: 90 | B94: 7533 | C94: 3691.74 | D94: 7533 | F94: 0.11 | G94: 0.2 | I94: 406.0914 | J94: 1506.6 | L94: 401.665194 | M94: 38559.85862 | N94: 0 | O94: 38961.52382
A95: 91 | B95: 7533 | C95: 3691.74 | D95: 7533 | F95: 0.11 | G95: 0.2 | I95: 406.0914 | J95: 1506.6 | L95: 401.665194 | M95: 38961.52382 | N95: 0 | O95: 39363.18901
A96: 92 | B96: 7533 | C96: 3691.74 | D96: 7533 | F96: 0.11 | G96: 0.2 | I96: 406.0914 | J96: 1506.6 | L96: 401.665194 | M96: 39363.18901 | N96: 0 | O96: 39764.85421
A97: 93 | B97: 7533 | C97: 3691.74 | D97: 7533 | F97: 0.11 | G97: 0.2 | I97: 406.0914 | J97: 1506.6 | L97: 401.665194 | M97: 39764.85421 | N97: 0 | O97: 40166.5194
A98: 94 | B98: 7533 | C98: 3691.74 | D98: 7533 | F98: 0.11 | G98: 0.2 | I98: 406.0914 | J98: 1506.6 | L98: 401.665194 | M98: 40166.5194 | N98: 0 | O98: 40568.18459
A99: 95 | B99: 7533 | C99: 3691.74 | D99: 7533 | F99: 0.11 | G99: 0.2 | I99: 406.0914 | J99: 1506.6 | L99: 401.665194 | M99: 40568.18459 | N99: 0 | O99: 40969.84979
A100: 96 | B100: 7533 | C100: 3691.74 | D100: 7533 | F100: 0.11 | G100: 0.2 | I100: 812.1828 | J100: 3013.2 | L100: 803.330388 | M100: 40969.84979 | N100: 0 | O100: 41773.18018
A101: 97 | B101: 7533 | C101: 3691.74 | D101: 7533 | F101: 0.11 | G101: 0.2 | I101: 406.0914 | J101: 1506.6 | L101: 401.665194 | M101: 41773.18018 | N101: 0 | O101: 42174.84537
A102: 98 | B102: 7533 | C102: 3691.74 | D102: 7533 | F102: 0.11 | G102: 0.2 | I102: 406.0914 | J102: 1506.6 | L102: 401.665194 | M102: 42174.84537 | N102: 0 | O102: 42576.51056
A103: 99 | B103: 7533 | C103: 3691.74 | D103: 7533 | F103: 0.11 | G103: 0.2 | I103: 406.0914 | J103: 1506.6 | L103: 401.665194 | M103: 42576.51056 | N103: 0 | O103: 42978.17576
A104: 100 | B104: 7533 | C104: 3691.74 | D104: 7533 | F104: 0.11 | G104: 0.2 | I104: 406.0914 | J104: 1506.6 | L104: 401.665194 | M104: 42978.17576 | N104: 0 | O104: 43379.84095
A105: 101 | B105: 7533 | C105: 3691.74 | D105: 7533 | F105: 0.11 | G105: 0.2 | I105: 406.0914 | J105: 1506.6 | L105: 401.665194 | M105: 43379.84095 | N105: 0 | O105: 43781.50615
A106: 102 | B106: 7533 | C106: 3691.74 | D106: 7533 | F106: 0.11 | G106: 0.2 | I106: 406.0914 | J106: 1506.6 | L106: 401.665194 | M106: 43781.50615 | N106: 0 | O106: 44183.17134
A107: 103 | B107: 7533 | C107: 3691.74 | D107: 7533 | F107: 0.11 | G107: 0.2 | I107: 406.0914 | J107: 1506.6 | L107: 401.665194 | M107: 44183.17134 | N107: 0 | O107: 44584.83653
A108: 104 | B108: 7533 | C108: 3691.74 | D108: 7533 | F108: 0.11 | G108: 0.2 | I108: 406.0914 | J108: 1506.6 | L108: 401.665194 | M108: 44584.83653 | N108: 0 | O108: 44986.50173
A109: 105 | B109: 7533 | C109: 3691.74 | D109: 7533 | F109: 0.11 | G109: 0.2 | I109: 406.0914 | J109: 1506.6 | L109: 401.665194 | M109: 44986.50173 | N109: 0 | O109: 45388.16692
A110: 106 | B110: 7533 | C110: 3691.74 | D110: 7533 | F110: 0.11 | G110: 0.2 | I110: 406.0914 | J110: 1506.6 | L110: 401.665194 | M110: 45388.16692 | N110: 0 | O110: 45789.83212
A111: 107 | B111: 7533 | C111: 3691.74 | D111: 7533 | F111: 0.11 | G111: 0.2 | I111: 406.0914 | J111: 1506.6 | L111: 401.665194 | M111: 45789.83212 | N111: 0 | O111: 46191.49731
A112: 108 | B112: 7533 | C112: 3691.74 | D112: 7533 | F112: 0.11 | G112: 0.2 | I112: 812.1828 | J112: 3013.2 | L112: 803.330388 | M112: 46191.49731 | N112: 0 | O112: 46994.8277
A113: 109 | B113: 7533 | C113: 3691.74 | D113: 7533 | F113: 0.11 | G113: 0.2 | I113: 406.0914 | J113: 1506.6 | L113: 401.665194 | M113: 46994.8277 | N113: 0 | O113: 47396.49289
A114: 110 | B114: 7533 | C114: 3691.74 | D114: 7533 | F114: 0.11 | G114: 0.2 | I114: 406.0914 | J114: 1506.6 | L114: 401.665194 | M114: 47396.49289 | N114: 0 | O114: 47798.15809
A115: 111 | B115: 7533 | C115: 3691.74 | D115: 7533 | F115: 0.11 | G115: 0.2 | I115: 406.0914 | J115: 1506.6 | L115: 401.665194 | M115: 47798.15809 | N115: 0 | O115: 48199.82328
A116: 112 | B116: 7533 | C116: 3691.74 | D116: 7533 | F116: 0.11 | G116: 0.2 | I116: 406.0914 | J116: 1506.6 | L116: 401.665194 | M116: 48199.82328 | N116: 0 | O116: 48601.48847
A117: 113 | B117: 7533 | C117: 3691.74 | D117: 7533 | F117: 0.11 | G117: 0.2 | I117: 406.0914 | J117: 1506.6 | L117: 401.665194 | M117: 48601.48847 | N117: 0 | O117: 49003.15367
A118: 114 | B118: 7533 | C118: 3691.74 | D118: 7533 | F118: 0.11 | G118: 0.2 | I118: 406.0914 | J118: 1506.6 | L118: 401.665194 | M118: 49003.15367 | N118: 0 | O118: 49404.81886
A119: 115 | B119: 7533 | C119: 3691.74 | D119: 7533 | F119: 0.11 | G119: 0.2 | I119: 406.0914 | J119: 1506.6 | L119: 401.665194 | M119: 49404.81886 | N119: 0 | O119: 49806.48406
A120: 116 | B120: 7533 | C120: 3691.74 | D120: 7533 | F120: 0.11 | G120: 0.2 | I120: 406.0914 | J120: 1506.6 | L120: 401.665194 | M120: 49806.48406 | N120: 0 | O120: 50208.14925
A121: 117 | B121: 7533 | C121: 3691.74 | D121: 7533 | F121: 0.11 | G121: 0.2 | I121: 406.0914 | J121: 1506.6 | L121: 401.665194 | M121: 50208.14925 | N121: 0 | O121: 50609.81444
A122: 118 | B122: 7533 | C122: 3691.74 | D122: 7533 | F122: 0.11 | G122: 0.2 | I122: 406.0914 | J122: 1506.6 | L122: 401.665194 | M122: 50609.81444 | N122: 0 | O122: 51011.47964
A123: 119 | B123: 7533 | C123: 3691.74 | D123: 7533 | F123: 0.11 | G123: 0.2 | I123: 406.0914 | J123: 1506.6 | L123: 401.665194 | M123: 51011.47964 | N123: 0 | O123: 51413.14483
A124: 120 | B124: 7533 | C124: 3691.74 | D124: 7533 | F124: 0.11 | G124: 0.2 | I124: 812.1828 | J124: 3013.2 | L124: 803.330388 | M124: 51413.14483 | N124: 0 | O124: 52216.47522
A125: 121 | B125: 7533 | C125: 3691.74 | D125: 7533 | F125: 0.11 | G125: 0.2 | I125: 406.0914 | J125: 1506.6 | L125: 401.665194 | M125: 52216.47522 | N125: 0 | O125: 52618.14041
A126: 122 | B126: 7533 | C126: 3691.74 | D126: 7533 | F126: 0.11 | G126: 0.2 | I126: 406.0914 | J126: 1506.6 | L126: 401.665194 | M126: 52618.14041 | N126: 0 | O126: 53019.80561
A127: 123 | B127: 7533 | C127: 3691.74 | D127: 7533 | F127: 0.11 | G127: 0.2 | I127: 406.0914 | J127: 1506.6 | L127: 401.665194 | M127: 53019.80561 | N127: 0 | O127: 53421.4708
A128: 124 | B128: 7533 | C128: 3691.74 | D128: 7533 | F128: 0.11 | G128: 0.2 | I128: 406.0914 | J128: 1506.6 | L128: 401.665194 | M128: 53421.4708 | N128: 0 | O128: 53823.136
A129: 125 | B129: 7533 | C129: 3691.74 | D129: 7533 | F129: 0.11 | G129: 0.2 | I129: 406.0914 | J129: 1506.6 | L129: 401.665194 | M129: 53823.136 | N129: 0 | O129: 54224.80119
A130: 126 | B130: 7533 | C130: 3691.74 | D130: 7533 | F130: 0.11 | G130: 0.2 | I130: 406.0914 | J130: 1506.6 | L130: 401.665194 | M130: 54224.80119 | N130: 0 | O130: 54626.46638
A131: 127 | B131: 7533 | C131: 3691.74 | D131: 7533 | F131: 0.11 | G131: 0.2 | I131: 406.0914 | J131: 1506.6 | L131: 401.665194 | M131: 54626.46638 | N131: 0 | O131: 55028.13158
A132: 128 | B132: 7533 | C132: 3691.74 | D132: 7533 | F132: 0.11 | G132: 0.2 | I132: 406.0914 | J132: 1506.6 | L132: 401.665194 | M132: 55028.13158 | N132: 0 | O132: 55429.79677
A133: 129 | B133: =IF($A133>meses_de_contribuição,0,VLOOKUP($A133,período_contributivo,3,TRUE)) -> 7533 | C133: =IF($A133>meses_de_contribuição,0,IF($B133>RGPS_limite_máximo_valor_benefício,RGPS_limite_máximo_valor_benefício,$B133)) -> 3691.74 | D133: =IF($A133>meses_de_contribuição,0,$B133) -> 7533 | F133: =IF($A133>meses_de_contribuição,0,VLOOKUP($C133,RGPS_alíquotas_contribuição_segurado,3,TRUE)) -> 0.11 | G133: =RGPS_alíquota_contribuição_empregador -> 0.2 | I133: 406.0914 | J133: 1506.6 | L133: =SUM(I133:K133)*RGPS_percentual_custeio_aposentadoria -> 401.665194 | M133: 55429.79677 | N133: =$M133*IF(OR(RGPS_simular_rentabilidade="Não",$A133>meses_de_contribuição),0,rentabilidade_mensal) -> 0 | O133: 55831.46197
A134: =ROW()-4 -> 130 | B134: 7533 | C134: 3691.74 | D134: 7533 | F134: 0.11 | G134: 0.2 | I134: =$C134*F134*IF(MOD($A134,12)=0,2,1) -> 406.0914 | J134: =$D134*G134*IF(MOD($A134,12)=0,2,1) -> 1506.6 | L134: 401.665194 | M134: =IF($A134=1,0,O133) -> 55831.46197 | N134: 0 | O134: =SUM(L134:N134) -> 56233.12716
A135: 131 | B135: 7533 | C135: 3691.74 | D135: 7533 | F135: 0.11 | G135: 0.2 | I135: 406.0914 | J135: 1506.6 | L135: 401.665194 | M135: 56233.12716 | N135: 0 | O135: 56634.79235
A136: 132 | B136: 7533 | C136: 3691.74 | D136: 7533 | F136: 0.11 | G136: 0.2 | I136: 812.1828 | J136: 3013.2 | L136: 803.330388 | M136: 56634.79235 | N136: 0 | O136: 57438.12274
A137: 133 | B137: 7533 | C137: 3691.74 | D137: 7533 | F137: 0.11 | G137: 0.2 | I137: 406.0914 | J137: 1506.6 | L137: 401.665194 | M137: 57438.12274 | N137: 0 | O137: 57839.78794
A138: 134 | B138: 7533 | C138: 3691.74 | D138: 7533 | F138: 0.11 | G138: 0.2 | I138: 406.0914 | J138: 1506.6 | L138: 401.665194 | M138: 57839.78794 | N138: 0 | O138: 58241.45313
A139: 135 | B139: 7533 | C139: 3691.74 | D139: 7533 | F139: 0.11 | G139: 0.2 | I139: 406.0914 | J139: 1506.6 | L139: 401.665194 | M139: 58241.45313 | N139: 0 | O139: 58643.11832
A140: 136 | B140: 7533 | C140: 3691.74 | D140: 7533 | F140: 0.11 | G140: 0.2 | I140: 406.0914 | J140: 1506.6 | L140: 401.665194 | M140: 58643.11832 | N140: 0 | O140: 59044.78352
A141: 137 | B141: 7533 | C141: 3691.74 | D141: 7533 | F141: 0.11 | G141: 0.2 | I141: 406.0914 | J141: 1506.6 | L141: 401.665194 | M141: 59044.78352 | N141: 0 | O141: 59446.44871
A142: 138 | B142: 7533 | C142: 3691.74 | D142: 7533 | F142: 0.11 | G142: 0.2 | I142: 406.0914 | J142: 1506.6 | L142: 401.665194 | M142: 59446.44871 | N142: 0 | O142: 59848.11391
A143: 139 | B143: 7533 | C143: 3691.74 | D143: 7533 | F143: 0.11 | G143: 0.2 | I143: 406.0914 | J143: 1506.6 | L143: 401.665194 | M143: 59848.11391 | N143: 0 | O143: 60249.7791
A144: 140 | B144: 7533 | C144: 3691.74 | D144: 7533 | F144: 0.11 | G144: 0.2 | I144: 406.0914 | J144: 1506.6 | L144: 401.665194 | M144: 60249.7791 | N144: 0 | O144: 60651.44429
A145: 141 | B145: 7533 | C145: 3691.74 | D145: 7533 | F145: 0.11 | G145: 0.2 | I145: 406.0914 | J145: 1506.6 | L145: 401.665194 | M145: 60651.44429 | N145: 0 | O145: 61053.10949
A146: 142 | B146: 7533 | C146: 3691.74 | D146: 7533 | F146: 0.11 | G146: 0.2 | I146: 406.0914 | J146: 1506.6 | L146: 401.665194 | M146: 61053.10949 | N146: 0 | O146: 61454.77468
A147: 143 | B147: 7533 | C147: 3691.74 | D147: 7533 | F147: 0.11 | G147: 0.2 | I147: 406.0914 | J147: 1506.6 | L147: 401.665194 | M147: 61454.77468 | N147: 0 | O147: 61856.43988
A148: 144 | B148: 7533 | C148: 3691.74 | D148: 7533 | F148: 0.11 | G148: 0.2 | I148: 812.1828 | J148: 3013.2 | L148: 803.330388 | M148: 61856.43988 | N148: 0 | O148: 62659.77026
A149: 145 | B149: 7533 | C149: 3691.74 | D149: 7533 | F149: 0.11 | G149: 0.2 | I149: 406.0914 | J149: 1506.6 | L149: 401.665194 | M149: 62659.77026 | N149: 0 | O149: 63061.43546
A150: 146 | B150: 7533 | C150: 3691.74 | D150: 7533 | F150: 0.11 | G150: 0.2 | I150: 406.0914 | J150: 1506.6 | L150: 401.665194 | M150: 63061.43546 | N150: 0 | O150: 63463.10065
A151: 147 | B151: 7533 | C151: 3691.74 | D151: 7533 | F151: 0.11 | G151: 0.2 | I151: 406.0914 | J151: 1506.6 | L151: 401.665194 | M151: 63463.10065 | N151: 0 | O151: 63864.76585
A152: 148 | B152: 7533 | C152: 3691.74 | D152: 7533 | F152: 0.11 | G152: 0.2 | I152: 406.0914 | J152: 1506.6 | L152: 401.665194 | M152: 63864.76585 | N152: 0 | O152: 64266.43104
A153: 149 | B153: 7533 | C153: 3691.74 | D153: 7533 | F153: 0.11 | G153: 0.2 | I153: 406.0914 | J153: 1506.6 | L153: 401.665194 | M153: 64266.43104 | N153: 0 | O153: 64668.09623
A154: 150 | B154: 7533 | C154: 3691.74 | D154: 7533 | F154: 0.11 | G154: 0.2 | I154: 406.0914 | J154: 1506.6 | L154: 401.665194 | M154: 64668.09623 | N154: 0 | O154: 65069.76143
A155: 151 | B155: 7533 | C155: 3691.74 | D155: 7533 | F155: 0.11 | G155: 0.2 | I155: 406.0914 | J155: 1506.6 | L155: 401.665194 | M155: 65069.76143 | N155: 0 | O155: 65471.42662
A156: 152 | B156: 7533 | C156: 3691.74 | D156: 7533 | F156: 0.11 | G156: 0.2 | I156: 406.0914 | J156: 1506.6 | L156: 401.665194 | M156: 65471.42662 | N156: 0 | O156: 65873.09182
A157: 153 | B157: 7533 | C157: 3691.74 | D157: 7533 | F157: 0.11 | G157: 0.2 | I157: 406.0914 | J157: 1506.6 | L157: 401.665194 | M157: 65873.09182 | N157: 0 | O157: 66274.75701
A158: 154 | B158: 7533 | C158: 3691.74 | D158: 7533 | F158: 0.11 | G158: 0.2 | I158: 406.0914 | J158: 1506.6 | L158: 401.665194 | M158: 66274.75701 | N158: 0 | O158: 66676.4222
A159: 155 | B159: 7533 | C159: 3691.74 | D159: 7533 | F159: 0.11 | G159: 0.2 | I159: 406.0914 | J159: 1506.6 | L159: 401.665194 | M159: 66676.4222 | N159: 0 | O159: 67078.0874
A160: 156 | B160: 7533 | C160: 3691.74 | D160: 7533 | F160: 0.11 | G160: 0.2 | I160: 812.1828 | J160: 3013.2 | L160: 803.330388 | M160: 67078.0874 | N160: 0 | O160: 67881.41779
A161: 157 | B161: 7533 | C161: 3691.74 | D161: 7533 | F161: 0.11 | G161: 0.2 | I161: 406.0914 | J161: 1506.6 | L161: 401.665194 | M161: 67881.41779 | N161: 0 | O161: 68283.08298
A162: 158 | B162: 7533 | C162: 3691.74 | D162: 7533 | F162: 0.11 | G162: 0.2 | I162: 406.0914 | J162: 1506.6 | L162: 401.665194 | M162: 68283.08298 | N162: 0 | O162: 68684.74817
A163: 159 | B163: 7533 | C163: 3691.74 | D163: 7533 | F163: 0.11 | G163: 0.2 | I163: 406.0914 | J163: 1506.6 | L163: 401.665194 | M163: 68684.74817 | N163: 0 | O163: 69086.41337
A164: 160 | B164: 7533 | C164: 3691.74 | D164: 7533 | F164: 0.11 | G164: 0.2 | I164: 406.0914 | J164: 1506.6 | L164: 401.665194 | M164: 69086.41337 | N164: 0 | O164: 69488.07856
A165: 161 | B165: 7533 | C165: 3691.74 | D165: 7533 | F165: 0.11 | G165: 0.2 | I165: 406.0914 | J165: 1506.6 | L165: 401.665194 | M165: 69488.07856 | N165: 0 | O165: 69889.74376
A166: 162 | B166: 7533 | C166: 3691.74 | D166: 7533 | F166: 0.11 | G166: 0.2 | I166: 406.0914 | J166: 1506.6 | L166: 401.665194 | M166: 69889.74376 | N166: 0 | O166: 70291.40895
A167: 163 | B167: 7533 | C167: 3691.74 | D167: 7533 | F167: 0.11 | G167: 0.2 | I167: 406.0914 | J167: 1506.6 | L167: 401.665194 | M167: 70291.40895 | N167: 0 | O167: 70693.07414
A168: 164 | B168: 7533 | C168: 3691.74 | D168: 7533 | F168: 0.11 | G168: 0.2 | I168: 406.0914 | J168: 1506.6 | L168: 401.665194 | M168: 70693.07414 | N168: 0 | O168: 71094.73934
A169: 165 | B169: 7533 | C169: 3691.74 | D169: 7533 | F169: 0.11 | G169: 0.2 | I169: 406.0914 | J169: 1506.6 | L169: 401.665194 | M169: 71094.73934 | N169: 0 | O169: 71496.40453
A170: 166 | B170: 7533 | C170: 3691.74 | D170: 7533 | F170: 0.11 | G170: 0.2 | I170: 406.0914 | J170: 1506.6 | L170: 401.665194 | M170: 71496.40453 | N170: 0 | O170: 71898.06973
A171: 167 | B171: 7533 | C171: 3691.74 | D171: 7533 | F171: 0.11 | G171: 0.2 | I171: 406.0914 | J171: 1506.6 | L171: 401.665194 | M171: 71898.06973 | N171: 0 | O171: 72299.73492
A172: 168 | B172: 7533 | C172: 3691.74 | D172: 7533 | F172: 0.11 | G172: 0.2 | I172: 812.1828 | J172: 3013.2 | L172: 803.330388 | M172: 72299.73492 | N172: 0 | O172: 73103.06531
A173: 169 | B173: 7533 | C173: 3691.74 | D173: 7533 | F173: 0.11 | G173: 0.2 | I173: 406.0914 | J173: 1506.6 | L173: 401.665194 | M173: 73103.06531 | N173: 0 | O173: 73504.7305
A174: 170 | B174: 7533 | C174: 3691.74 | D174: 7533 | F174: 0.11 | G174: 0.2 | I174: 406.0914 | J174: 1506.6 | L174: 401.665194 | M174: 73504.7305 | N174: 0 | O174: 73906.3957
A175: 171 | B175: 7533 | C175: 3691.74 | D175: 7533 | F175: 0.11 | G175: 0.2 | I175: 406.0914 | J175: 1506.6 | L175: 401.665194 | M175: 73906.3957 | N175: 0 | O175: 74308.06089
A176: 172 | B176: 7533 | C176: 3691.74 | D176: 7533 | F176: 0.11 | G176: 0.2 | I176: 406.0914 | J176: 1506.6 | L176: 401.665194 | M176: 74308.06089 | N176: 0 | O176: 74709.72608
A177: 173 | B177: 7533 | C177: 3691.74 | D177: 7533 | F177: 0.11 | G177: 0.2 | I177: 406.0914 | J177: 1506.6 | L177: 401.665194 | M177: 74709.72608 | N177: 0 | O177: 75111.39128
A178: 174 | B178: 7533 | C178: 3691.74 | D178: 7533 | F178: 0.11 | G178: 0.2 | I178: 406.0914 | J178: 1506.6 | L178: 401.665194 | M178: 75111.39128 | N178: 0 | O178: 75513.05647
A179: 175 | B179: 7533 | C179: 3691.74 | D179: 7533 | F179: 0.11 | G179: 0.2 | I179: 406.0914 | J179: 1506.6 | L179: 401.665194 | M179: 75513.05647 | N179: 0 | O179: 75914.72167
A180: 176 | B180: 7533 | C180: 3691.74 | D180: 7533 | F180: 0.11 | G180: 0.2 | I180: 406.0914 | J180: 1506.6 | L180: 401.665194 | M180: 75914.72167 | N180: 0 | O180: 76316.38686
A181: 177 | B181: 7533 | C181: 3691.74 | D181: 7533 | F181: 0.11 | G181: 0.2 | I181: 406.0914 | J181: 1506.6 | L181: 401.665194 | M181: 76316.38686 | N181: 0 | O181: 76718.05205
A182: 178 | B182: 7533 | C182: 3691.74 | D182: 7533 | F182: 0.11 | G182: 0.2 | I182: 406.0914 | J182: 1506.6 | L182: 401.665194 | M182: 76718.05205 | N182: 0 | O182: 77119.71725
A183: 179 | B183: 7533 | C183: 3691.74 | D183: 7533 | F183: 0.11 | G183: 0.2 | I183: 406.0914 | J183: 1506.6 | L183: 401.665194 | M183: 77119.71725 | N183: 0 | O183: 77521.38244
A184: 180 | B184: 7533 | C184: 3691.74 | D184: 7533 | F184: 0.11 | G184: 0.2 | I184: 812.1828 | J184: 3013.2 | L184: 803.330388 | M184: 77521.38244 | N184: 0 | O184: 78324.71283
A185: 181 | B185: 7533 | C185: 3691.74 | D185: 7533 | F185: 0.11 | G185: 0.2 | I185: 406.0914 | J185: 1506.6 | L185: 401.665194 | M185: 78324.71283 | N185: 0 | O185: 78726.37802
A186: 182 | B186: 7533 | C186: 3691.74 | D186: 7533 | F186: 0.11 | G186: 0.2 | I186: 406.0914 | J186: 1506.6 | L186: 401.665194 | M186: 78726.37802 | N186: 0 | O186: 79128.04322
A187: 183 | B187: 7533 | C187: 3691.74 | D187: 7533 | F187: 0.11 | G187: 0.2 | I187: 406.0914 | J187: 1506.6 | L187: 401.665194 | M187: 79128.04322 | N187: 0 | O187: 79529.70841
A188: 184 | B188: 7533 | C188: 3691.74 | D188: 7533 | F188: 0.11 | G188: 0.2 | I188: 406.0914 | J188: 1506.6 | L188: 401.665194 | M188: 79529.70841 | N188: 0 | O188: 79931.37361
A189: 185 | B189: 7533 | C189: 3691.74 | D189: 7533 | F189: 0.11 | G189: 0.2 | I189: 406.0914 | J189: 1506.6 | L189: 401.665194 | M189: 79931.37361 | N189: 0 | O189: 80333.0388
A190: 186 | B190: 7533 | C190: 3691.74 | D190: 7533 | F190: 0.11 | G190: 0.2 | I190: 406.0914 | J190: 1506.6 | L190: 401.665194 | M190: 80333.0388 | N190: 0 | O190: 80734.70399
A191: 187 | B191: 7533 | C191: 3691.74 | D191: 7533 | F191: 0.11 | G191: 0.2 | I191: 406.0914 | J191: 1506.6 | L191: 401.665194 | M191: 80734.70399 | N191: 0 | O191: 81136.36919
A192: 188 | B192: 7533 | C192: 3691.74 | D192: 7533 | F192: 0.11 | G192: 0.2 | I192: 406.0914 | J192: 1506.6 | L192: 401.665194 | M192: 81136.36919 | N192: 0 | O192: 81538.03438
A193: 189 | B193: 7533 | C193: 3691.74 | D193: 7533 | F193: 0.11 | G193: 0.2 | I193: 406.0914 | J193: 1506.6 | L193: 401.665194 | M193: 81538.03438 | N193: 0 | O193: 81939.69958
A194: 190 | B194: 7533 | C194: 3691.74 | D194: 7533 | F194: 0.11 | G194: 0.2 | I194: 406.0914 | J194: 1506.6 | L194: 401.665194 | M194: 81939.69958 | N194: 0 | O194: 82341.36477
A195: 191 | B195: 7533 | C195: 3691.74 | D195: 7533 | F195: 0.11 | G195: 0.2 | I195: 406.0914 | J195: 1506.6 | L195: 401.665194 | M195: 82341.36477 | N195: 0 | O195: 82743.02996
A196: 192 | B196: 7533 | C196: 3691.74 | D196: 7533 | F196: 0.11 | G196: 0.2 | I196: 812.1828 | J196: 3013.2 | L196: 803.330388 | M196: 82743.02996 | N196: 0 | O196: 83546.36035
A197: 193 | B197: =IF($A197>meses_de_contribuição,0,VLOOKUP($A197,período_contributivo,3,TRUE)) -> 7533 | C197: =IF($A197>meses_de_contribuição,0,IF($B197>RGPS_limite_máximo_valor_benefício,RGPS_limite_máximo_valor_benefício,$B197)) -> 3691.74 | D197: =IF($A197>meses_de_contribuição,0,$B197) -> 7533 | F197: =IF($A197>meses_de_contribuição,0,VLOOKUP($C197,RGPS_alíquotas_contribuição_segurado,3,TRUE)) -> 0.11 | G197: =RGPS_alíquota_contribuição_empregador -> 0.2 | I197: 406.0914 | J197: 1506.6 | L197: =SUM(I197:K197)*RGPS_percentual_custeio_aposentadoria -> 401.665194 | M197: 83546.36035 | N197: =$M197*IF(OR(RGPS_simular_rentabilidade="Não",$A197>meses_de_contribuição),0,rentabilidade_mensal) -> 0 | O197: 83948.02555
A198: =ROW()-4 -> 194 | B198: 7533 | C198: 3691.74 | D198: 7533 | F198: 0.11 | G198: 0.2 | I198: =$C198*F198*IF(MOD($A198,12)=0,2,1) -> 406.0914 | J198: =$D198*G198*IF(MOD($A198,12)=0,2,1) -> 1506.6 | L198: 401.665194 | M198: =IF($A198=1,0,O197) -> 83948.02555 | N198: 0 | O198: =SUM(L198:N198) -> 84349.69074
A199: 195 | B199: 7533 | C199: 3691.74 | D199: 7533 | F199: 0.11 | G199: 0.2 | I199: 406.0914 | J199: 1506.6 | L199: 401.665194 | M199: 84349.69074 | N199: 0 | O199: 84751.35593
A200: 196 | B200: 7533 | C200: 3691.74 | D200: 7533 | F200: 0.11 | G200: 0.2 | I200: 406.0914 | J200: 1506.6 | L200: 401.665194 | M200: 84751.35593 | N200: 0 | O200: 85153.02113
... 1004 more rows

Sheet 5. Acumulação RPSPF com RPC
A1: Mês | B1: Remuneração | C1: CONTRIBUIÇÕES | M1: Saldo anterior | N1: Rendimentos | O1: Saldo atual
C2: Bases de cálculo | F2: Alíquotas | I2: Valores
C3: Normal | E3: Facultativa | F3: Normal | H3: Facultativa | I3: Normal | K3: Facultativa | L3: Custeio de aposentadoria
C4: Servidor | D4: União | F4: Servidor | G4: União | I4: Servidor | J4: União
A5: =ROW()-4 -> 1 | B5: =IF($A5>meses_de_contribuição,0,VLOOKUP($A5,período_contributivo,3,TRUE)) -> 7533 | C5: =IF($A5>meses_de_contribuição,0,IF(AND(RPSPF_base_de_cálculo_contribuição_servidor_limitada="Sim",$B5>RGPS_limite_máximo_valor_benefício),RGPS_limite_máximo_valor_benefício,$B5)) -> 3691.74 | D5: =IF($A5>meses_de_contribuição,0,IF(AND(RPSPF_base_de_cálculo_contribuição_União_limitada="Sim",$B5>RGPS_limite_máximo_valor_benefício),RGPS_limite_máximo_valor_benefício,$B5)) -> 7533 | F5: =RPSPF_alíquota_servidor -> 0.11 | G5: =RPSPF_alíquota_União -> 0.22 | I5: =C5*F5*IF(MOD($A5,12)=0,2,1) -> 406.0914 | J5: =D5*G5*IF(MOD($A5,12)=0,2,1) -> 1657.26 | L5: =SUM(I5:K5)*RPSPF_percentual_custeio_ativo -> 1341.17841 | M5: =IF($A5=1,0,O4) -> 0 | N5: =$M5*IF(OR(RPSPF_simular_rentabilidade="Não",A5>meses_de_contribuição),0,rentabilidade_mensal) -> 0 | O5: =SUM(L5:N5) -> 1341.17841
A6: =ROW()-4 -> 2 | B6: 7533 | C6: 3691.74 | D6: 7533 | F6: 0.11 | G6: 0.22 | I6: =C6*F6*IF(MOD($A6,12)=0,2,1) -> 406.0914 | J6: =D6*G6*IF(MOD($A6,12)=0,2,1) -> 1657.26 | L6: 1341.17841 | M6: =IF($A6=1,0,O5) -> 1341.17841 | N6: 0 | O6: =SUM(L6:N6) -> 2682.35682
A7: 3 | B7: 7533 | C7: 3691.74 | D7: 7533 | F7: 0.11 | G7: 0.22 | I7: 406.0914 | J7: 1657.26 | L7: 1341.17841 | M7: 2682.35682 | N7: 0 | O7: 4023.53523
A8: 4 | B8: 7533 | C8: 3691.74 | D8: 7533 | F8: 0.11 | G8: 0.22 | I8: 406.0914 | J8: 1657.26 | L8: 1341.17841 | M8: 4023.53523 | N8: 0 | O8: 5364.71364
A9: 5 | B9: 7533 | C9: 3691.74 | D9: 7533 | F9: 0.11 | G9: 0.22 | I9: 406.0914 | J9: 1657.26 | L9: 1341.17841 | M9: 5364.71364 | N9: 0 | O9: 6705.89205
A10: 6 | B10: 7533 | C10: 3691.74 | D10: 7533 | F10: 0.11 | G10: 0.22 | I10: 406.0914 | J10: 1657.26 | L10: 1341.17841 | M10: 6705.89205 | N10: 0 | O10: 8047.07046
A11: 7 | B11: 7533 | C11: 3691.74 | D11: 7533 | F11: 0.11 | G11: 0.22 | I11: 406.0914 | J11: 1657.26 | L11: 1341.17841 | M11: 8047.07046 | N11: 0 | O11: 9388.24887
A12: 8 | B12: 7533 | C12: 3691.74 | D12: 7533 | F12: 0.11 | G12: 0.22 | I12: 406.0914 | J12: 1657.26 | L12: 1341.17841 | M12: 9388.24887 | N12: 0 | O12: 10729.42728
A13: 9 | B13: 7533 | C13: 3691.74 | D13: 7533 | F13: 0.11 | G13: 0.22 | I13: 406.0914 | J13: 1657.26 | L13: 1341.17841 | M13: 10729.42728 | N13: 0 | O13: 12070.60569
A14: 10 | B14: 7533 | C14: 3691.74 | D14: 7533 | F14: 0.11 | G14: 0.22 | I14: 406.0914 | J14: 1657.26 | L14: 1341.17841 | M14: 12070.60569 | N14: 0 | O14: 13411.7841
A15: 11 | B15: 7533 | C15: 3691.74 | D15: 7533 | F15: 0.11 | G15: 0.22 | I15: 406.0914 | J15: 1657.26 | L15: 1341.17841 | M15: 13411.7841 | N15: 0 | O15: 14752.96251
A16: 12 | B16: 7533 | C16: 3691.74 | D16: 7533 | F16: 0.11 | G16: 0.22 | I16: 812.1828 | J16: 3314.52 | L16: 2682.35682 | M16: 14752.96251 | N16: 0 | O16: 17435.31933
A17: 13 | B17: 7533 | C17: 3691.74 | D17: 7533 | F17: 0.11 | G17: 0.22 | I17: 406.0914 | J17: 1657.26 | L17: 1341.17841 | M17: 17435.31933 | N17: 0 | O17: 18776.49774
A18: 14 | B18: 7533 | C18: 3691.74 | D18: 7533 | F18: 0.11 | G18: 0.22 | I18: 406.0914 | J18: 1657.26 | L18: 1341.17841 | M18: 18776.49774 | N18: 0 | O18: 20117.67615
A19: 15 | B19: 7533 | C19: 3691.74 | D19: 7533 | F19: 0.11 | G19: 0.22 | I19: 406.0914 | J19: 1657.26 | L19: 1341.17841 | M19: 20117.67615 | N19: 0 | O19: 21458.85456
A20: 16 | B20: 7533 | C20: 3691.74 | D20: 7533 | F20: 0.11 | G20: 0.22 | I20: 406.0914 | J20: 1657.26 | L20: 1341.17841 | M20: 21458.85456 | N20: 0 | O20: 22800.03297
A21: 17 | B21: 7533 | C21: 3691.74 | D21: 7533 | F21: 0.11 | G21: 0.22 | I21: 406.0914 | J21: 1657.26 | L21: 1341.17841 | M21: 22800.03297 | N21: 0 | O21: 24141.21138
A22: 18 | B22: 7533 | C22: 3691.74 | D22: 7533 | F22: 0.11 | G22: 0.22 | I22: 406.0914 | J22: 1657.26 | L22: 1341.17841 | M22: 24141.21138 | N22: 0 | O22: 25482.38979
A23: 19 | B23: 7533 | C23: 3691.74 | D23: 7533 | F23: 0.11 | G23: 0.22 | I23: 406.0914 | J23: 1657.26 | L23: 1341.17841 | M23: 25482.38979 | N23: 0 | O23: 26823.5682
A24: 20 | B24: 7533 | C24: 3691.74 | D24: 7533 | F24: 0.11 | G24: 0.22 | I24: 406.0914 | J24: 1657.26 | L24: 1341.17841 | M24: 26823.5682 | N24: 0 | O24: 28164.74661
A25: 21 | B25: 7533 | C25: =IF($A25>meses_de_contribuição,0,IF(AND(RPSPF_base_de_cálculo_contribuição_servidor_limitada="Sim",$B25>RGPS_limite_máximo_valor_benefício),RGPS_limite_máximo_valor_benefício,$B25)) -> 3691.74 | D25: 7533 | F25: 0.11 | G25: 0.22 | I25: 406.0914 | J25: 1657.26 | L25: 1341.17841 | M25: 28164.74661 | N25: 0 | O25: 29505.92502
A26: 22 | B26: 7533 | C26: 3691.74 | D26: 7533 | F26: 0.11 | G26: 0.22 | I26: 406.0914 | J26: 1657.26 | L26: 1341.17841 | M26: 29505.92502 | N26: 0 | O26: 30847.10343
A27: 23 | B27: 7533 | C27: 3691.74 | D27: 7533 | F27: 0.11 | G27: 0.22 | I27: 406.0914 | J27: 1657.26 | L27: 1341.17841 | M27: 30847.10343 | N27: 0 | O27: 32188.28184
A28: 24 | B28: 7533 | C28: 3691.74 | D28: 7533 | F28: 0.11 | G28: 0.22 | I28: 812.1828 | J28: 3314.52 | L28: 2682.35682 | M28: 32188.28184 | N28: 0 | O28: 34870.63866
A29: 25 | B29: 7533 | C29: 3691.74 | D29: 7533 | F29: 0.11 | G29: 0.22 | I29: 406.0914 | J29: 1657.26 | L29: 1341.17841 | M29: 34870.63866 | N29: 0 | O29: 36211.81707
A30: 26 | B30: 7533 | C30: 3691.74 | D30: 7533 | F30: 0.11 | G30: 0.22 | I30: 406.0914 | J30: 1657.26 | L30: 1341.17841 | M30: 36211.81707 | N30: 0 | O30: 37552.99548
A31: 27 | B31: 7533 | C31: 3691.74 | D31: 7533 | F31: 0.11 | G31: 0.22 | I31: 406.0914 | J31: 1657.26 | L31: 1341.17841 | M31: 37552.99548 | N31: 0 | O31: 38894.17389
A32: 28 | B32: 7533 | C32: 3691.74 | D32: 7533 | F32: 0.11 | G32: 0.22 | I32: 406.0914 | J32: 1657.26 | L32: 1341.17841 | M32: 38894.17389 | N32: 0 | O32: 40235.3523
A33: 29 | B33: 7533 | C33: 3691.74 | D33: 7533 | F33: 0.11 | G33: 0.22 | I33: 406.0914 | J33: 1657.26 | L33: 1341.17841 | M33: 40235.3523 | N33: 0 | O33: 41576.53071
A34: 30 | B34: 7533 | C34: 3691.74 | D34: 7533 | F34: 0.11 | G34: 0.22 | I34: 406.0914 | J34: 1657.26 | L34: 1341.17841 | M34: 41576.53071 | N34: 0 | O34: 42917.70912
A35: 31 | B35: 7533 | C35: 3691.74 | D35: 7533 | F35: 0.11 | G35: 0.22 | I35: 406.0914 | J35: 1657.26 | L35: 1341.17841 | M35: 42917.70912 | N35: 0 | O35: 44258.88753
A36: 32 | B36: 7533 | C36: 3691.74 | D36: 7533 | F36: 0.11 | G36: 0.22 | I36: 406.0914 | J36: 1657.26 | L36: 1341.17841 | M36: 44258.88753 | N36: 0 | O36: 45600.06594
A37: 33 | B37: 7533 | C37: 3691.74 | D37: 7533 | F37: 0.11 | G37: 0.22 | I37: 406.0914 | J37: 1657.26 | L37: 1341.17841 | M37: 45600.06594 | N37: 0 | O37: 46941.24435
A38: 34 | B38: 7533 | C38: 3691.74 | D38: 7533 | F38: 0.11 | G38: 0.22 | I38: 406.0914 | J38: 1657.26 | L38: 1341.17841 | M38: 46941.24435 | N38: 0 | O38: 48282.42276
A39: 35 | B39: 7533 | C39: 3691.74 | D39: 7533 | F39: 0.11 | G39: 0.22 | I39: 406.0914 | J39: 1657.26 | L39: 1341.17841 | M39: 48282.42276 | N39: 0 | O39: 49623.60117
A40: 36 | B40: 7533 | C40: 3691.74 | D40: 7533 | F40: 0.11 | G40: 0.22 | I40: 812.1828 | J40: 3314.52 | L40: 2682.35682 | M40: 49623.60117 | N40: 0 | O40: 52305.95799
A41: 37 | B41: 7533 | C41: 3691.74 | D41: 7533 | F41: 0.11 | G41: 0.22 | I41: 406.0914 | J41: 1657.26 | L41: 1341.17841 | M41: 52305.95799 | N41: 0 | O41: 53647.1364
A42: 38 | B42: 7533 | C42: 3691.74 | D42: 7533 | F42: 0.11 | G42: 0.22 | I42: 406.0914 | J42: 1657.26 | L42: 1341.17841 | M42: 53647.1364 | N42: 0 | O42: 54988.31481
A43: 39 | B43: 7533 | C43: 3691.74 | D43: 7533 | F43: 0.11 | G43: 0.22 | I43: 406.0914 | J43: 1657.26 | L43: 1341.17841 | M43: 54988.31481 | N43: 0 | O43: 56329.49322
A44: 40 | B44: 7533 | C44: 3691.74 | D44: 7533 | F44: 0.11 | G44: 0.22 | I44: 406.0914 | J44: 1657.26 | L44: 1341.17841 | M44: 56329.49322 | N44: 0 | O44: 57670.67163
A45: 41 | B45: 7533 | C45: 3691.74 | D45: 7533 | F45: 0.11 | G45: 0.22 | I45: 406.0914 | J45: 1657.26 | L45: 1341.17841 | M45: 57670.67163 | N45: 0 | O45: 59011.85004
A46: 42 | B46: 7533 | C46: 3691.74 | D46: 7533 | F46: 0.11 | G46: 0.22 | I46: 406.0914 | J46: 1657.26 | L46: 1341.17841 | M46: 59011.85004 | N46: 0 | O46: 60353.02845
A47: 43 | B47: 7533 | C47: 3691.74 | D47: 7533 | F47: 0.11 | G47: 0.22 | I47: 406.0914 | J47: 1657.26 | L47: 1341.17841 | M47: 60353.02845 | N47: 0 | O47: 61694.20686
A48: 44 | B48: 7533 | C48: 3691.74 | D48: 7533 | F48: 0.11 | G48: 0.22 | I48: 406.0914 | J48: 1657.26 | L48: 1341.17841 | M48: 61694.20686 | N48: 0 | O48: 63035.38527
A49: 45 | B49: 7533 | C49: 3691.74 | D49: 7533 | F49: 0.11 | G49: 0.22 | I49: 406.0914 | J49: 1657.26 | L49: 1341.17841 | M49: 63035.38527 | N49: 0 | O49: 64376.56368
A50: 46 | B50: 7533 | C50: 3691.74 | D50: 7533 | F50: 0.11 | G50: 0.22 | I50: 406.0914 | J50: 1657.26 | L50: 1341.17841 | M50: 64376.56368 | N50: 0 | O50: 65717.74209
A51: 47 | B51: 7533 | C51: 3691.74 | D51: 7533 | F51: 0.11 | G51: 0.22 | I51: 406.0914 | J51: 1657.26 | L51: 1341.17841 | M51: 65717.74209 | N51: 0 | O51: 67058.9205
A52: 48 | B52: 7533 | C52: 3691.74 | D52: 7533 | F52: 0.11 | G52: 0.22 | I52: 812.1828 | J52: 3314.52 | L52: 2682.35682 | M52: 67058.9205 | N52: 0 | O52: 69741.27732
A53: 49 | B53: 7533 | C53: 3691.74 | D53: 7533 | F53: 0.11 | G53: 0.22 | I53: 406.0914 | J53: 1657.26 | L53: 1341.17841 | M53: 69741.27732 | N53: 0 | O53: 71082.45573
A54: 50 | B54: 7533 | C54: 3691.74 | D54: 7533 | F54: 0.11 | G54: 0.22 | I54: 406.0914 | J54: 1657.26 | L54: 1341.17841 | M54: 71082.45573 | N54: 0 | O54: 72423.63414
A55: 51 | B55: 7533 | C55: 3691.74 | D55: 7533 | F55: 0.11 | G55: 0.22 | I55: 406.0914 | J55: 1657.26 | L55: 1341.17841 | M55: 72423.63414 | N55: 0 | O55: 73764.81255
A56: 52 | B56: 7533 | C56: 3691.74 | D56: 7533 | F56: 0.11 | G56: 0.22 | I56: 406.0914 | J56: 1657.26 | L56: 1341.17841 | M56: 73764.81255 | N56: 0 | O56: 75105.99096
A57: 53 | B57: 7533 | C57: 3691.74 | D57: 7533 | F57: 0.11 | G57: 0.22 | I57: 406.0914 | J57: 1657.26 | L57: 1341.17841 | M57: 75105.99096 | N57: 0 | O57: 76447.16937
A58: 54 | B58: 7533 | C58: 3691.74 | D58: 7533 | F58: 0.11 | G58: 0.22 | I58: 406.0914 | J58: 1657.26 | L58: 1341.17841 | M58: 76447.16937 | N58: 0 | O58: 77788.34778
A59: 55 | B59: 7533 | C59: 3691.74 | D59: 7533 | F59: 0.11 | G59: 0.22 | I59: 406.0914 | J59: 1657.26 | L59: 1341.17841 | M59: 77788.34778 | N59: 0 | O59: 79129.52619
A60: 56 | B60: 7533 | C60: 3691.74 | D60: 7533 | F60: 0.11 | G60: 0.22 | I60: 406.0914 | J60: 1657.26 | L60: 1341.17841 | M60: 79129.52619 | N60: 0 | O60: 80470.7046
A61: 57 | B61: 7533 | C61: 3691.74 | D61: 7533 | F61: 0.11 | G61: 0.22 | I61: 406.0914 | J61: 1657.26 | L61: 1341.17841 | M61: 80470.7046 | N61: 0 | O61: 81811.88301
A62: 58 | B62: 7533 | C62: 3691.74 | D62: 7533 | F62: 0.11 | G62: 0.22 | I62: 406.0914 | J62: 1657.26 | L62: 1341.17841 | M62: 81811.88301 | N62: 0 | O62: 83153.06142
A63: 59 | B63: 7533 | C63: 3691.74 | D63: 7533 | F63: 0.11 | G63: 0.22 | I63: 406.0914 | J63: 1657.26 | L63: 1341.17841 | M63: 83153.06142 | N63: 0 | O63: 84494.23983
A64: 60 | B64: 7533 | C64: 3691.74 | D64: 7533 | F64: 0.11 | G64: 0.22 | I64: 812.1828 | J64: 3314.52 | L64: 2682.35682 | M64: 84494.23983 | N64: 0 | O64: 87176.59665
A65: 61 | B65: 7533 | C65: 3691.74 | D65: 7533 | F65: 0.11 | G65: 0.22 | I65: 406.0914 | J65: 1657.26 | L65: 1341.17841 | M65: 87176.59665 | N65: 0 | O65: 88517.77506
A66: 62 | B66: 7533 | C66: 3691.74 | D66: 7533 | F66: 0.11 | G66: 0.22 | I66: 406.0914 | J66: 1657.26 | L66: 1341.17841 | M66: 88517.77506 | N66: 0 | O66: 89858.95347
A67: 63 | B67: 7533 | C67: 3691.74 | D67: 7533 | F67: 0.11 | G67: 0.22 | I67: 406.0914 | J67: 1657.26 | L67: 1341.17841 | M67: 89858.95347 | N67: 0 | O67: 91200.13188
A68: 64 | B68: 7533 | C68: 3691.74 | D68: 7533 | F68: 0.11 | G68: 0.22 | I68: 406.0914 | J68: 1657.26 | L68: 1341.17841 | M68: 91200.13188 | N68: 0 | O68: 92541.31029
A69: 65 | B69: =IF($A69>meses_de_contribuição,0,VLOOKUP($A69,período_contributivo,3,TRUE)) -> 7533 | C69: 3691.74 | D69: =IF($A69>meses_de_contribuição,0,IF(AND(RPSPF_base_de_cálculo_contribuição_União_limitada="Sim",$B69>RGPS_limite_máximo_valor_benefício),RGPS_limite_máximo_valor_benefício,$B69)) -> 7533 | F69: =RPSPF_alíquota_servidor -> 0.11 | G69: =RPSPF_alíquota_União -> 0.22 | I69: 406.0914 | J69: 1657.26 | L69: =SUM(I69:K69)*RPSPF_percentual_custeio_ativo -> 1341.17841 | M69: 92541.31029 | N69: =$M69*IF(OR(RPSPF_simular_rentabilidade="Não",A69>meses_de_contribuição),0,rentabilidade_mensal) -> 0 | O69: 93882.4887
A70: =ROW()-4 -> 66 | B70: 7533 | C70: 3691.74 | D70: 7533 | F70: 0.11 | G70: 0.22 | I70: =C70*F70*IF(MOD($A70,12)=0,2,1) -> 406.0914 | J70: =D70*G70*IF(MOD($A70,12)=0,2,1) -> 1657.26 | L70: 1341.17841 | M70: =IF($A70=1,0,O69) -> 93882.4887 | N70: 0 | O70: =SUM(L70:N70) -> 95223.66711
A71: 67 | B71: 7533 | C71: 3691.74 | D71: 7533 | F71: 0.11 | G71: 0.22 | I71: 406.0914 | J71: 1657.26 | L71: 1341.17841 | M71: 95223.66711 | N71: 0 | O71: 96564.84552
A72: 68 | B72: 7533 | C72: 3691.74 | D72: 7533 | F72: 0.11 | G72: 0.22 | I72: 406.0914 | J72: 1657.26 | L72: 1341.17841 | M72: 96564.84552 | N72: 0 | O72: 97906.02393
A73: 69 | B73: 7533 | C73: 3691.74 | D73: 7533 | F73: 0.11 | G73: 0.22 | I73: 406.0914 | J73: 1657.26 | L73: 1341.17841 | M73: 97906.02393 | N73: 0 | O73: 99247.20234
A74: 70 | B74: 7533 | C74: 3691.74 | D74: 7533 | F74: 0.11 | G74: 0.22 | I74: 406.0914 | J74: 1657.26 | L74: 1341.17841 | M74: 99247.20234 | N74: 0 | O74: 100588.3807
A75: 71 | B75: 7533 | C75: 3691.74 | D75: 7533 | F75: 0.11 | G75: 0.22 | I75: 406.0914 | J75: 1657.26 | L75: 1341.17841 | M75: 100588.3807 | N75: 0 | O75: 101929.5592
A76: 72 | B76: 7533 | C76: 3691.74 | D76: 7533 | F76: 0.11 | G76: 0.22 | I76: 812.1828 | J76: 3314.52 | L76: 2682.35682 | M76: 101929.5592 | N76: 0 | O76: 104611.916
A77: 73 | B77: 7533 | C77: 3691.74 | D77: 7533 | F77: 0.11 | G77: 0.22 | I77: 406.0914 | J77: 1657.26 | L77: 1341.17841 | M77: 104611.916 | N77: 0 | O77: 105953.0944
A78: 74 | B78: 7533 | C78: 3691.74 | D78: 7533 | F78: 0.11 | G78: 0.22 | I78: 406.0914 | J78: 1657.26 | L78: 1341.17841 | M78: 105953.0944 | N78: 0 | O78: 107294.2728
A79: 75 | B79: 7533 | C79: 3691.74 | D79: 7533 | F79: 0.11 | G79: 0.22 | I79: 406.0914 | J79: 1657.26 | L79: 1341.17841 | M79: 107294.2728 | N79: 0 | O79: 108635.4512
A80: 76 | B80: 7533 | C80: 3691.74 | D80: 7533 | F80: 0.11 | G80: 0.22 | I80: 406.0914 | J80: 1657.26 | L80: 1341.17841 | M80: 108635.4512 | N80: 0 | O80: 109976.6296
A81: 77 | B81: 7533 | C81: 3691.74 | D81: 7533 | F81: 0.11 | G81: 0.22 | I81: 406.0914 | J81: 1657.26 | L81: 1341.17841 | M81: 109976.6296 | N81: 0 | O81: 111317.808
A82: 78 | B82: 7533 | C82: 3691.74 | D82: 7533 | F82: 0.11 | G82: 0.22 | I82: 406.0914 | J82: 1657.26 | L82: 1341.17841 | M82: 111317.808 | N82: 0 | O82: 112658.9864
A83: 79 | B83: 7533 | C83: 3691.74 | D83: 7533 | F83: 0.11 | G83: 0.22 | I83: 406.0914 | J83: 1657.26 | L83: 1341.17841 | M83: 112658.9864 | N83: 0 | O83: 114000.1648
A84: 80 | B84: 7533 | C84: 3691.74 | D84: 7533 | F84: 0.11 | G84: 0.22 | I84: 406.0914 | J84: 1657.26 | L84: 1341.17841 | M84: 114000.1648 | N84: 0 | O84: 115341.3433
A85: 81 | B85: 7533 | C85: 3691.74 | D85: 7533 | F85: 0.11 | G85: 0.22 | I85: 406.0914 | J85: 1657.26 | L85: 1341.17841 | M85: 115341.3433 | N85: 0 | O85: 116682.5217
A86: 82 | B86: 7533 | C86: 3691.74 | D86: 7533 | F86: 0.11 | G86: 0.22 | I86: 406.0914 | J86: 1657.26 | L86: 1341.17841 | M86: 116682.5217 | N86: 0 | O86: 118023.7001
A87: 83 | B87: 7533 | C87: 3691.74 | D87: 7533 | F87: 0.11 | G87: 0.22 | I87: 406.0914 | J87: 1657.26 | L87: 1341.17841 | M87: 118023.7001 | N87: 0 | O87: 119364.8785
A88: 84 | B88: 7533 | C88: 3691.74 | D88: 7533 | F88: 0.11 | G88: 0.22 | I88: 812.1828 | J88: 3314.52 | L88: 2682.35682 | M88: 119364.8785 | N88: 0 | O88: 122047.2353
A89: 85 | B89: 7533 | C89: =IF($A89>meses_de_contribuição,0,IF(AND(RPSPF_base_de_cálculo_contribuição_servidor_limitada="Sim",$B89>RGPS_limite_máximo_valor_benefício),RGPS_limite_máximo_valor_benefício,$B89)) -> 3691.74 | D89: 7533 | F89: 0.11 | G89: 0.22 | I89: 406.0914 | J89: 1657.26 | L89: 1341.17841 | M89: 122047.2353 | N89: 0 | O89: 123388.4137
A90: 86 | B90: 7533 | C90: 3691.74 | D90: 7533 | F90: 0.11 | G90: 0.22 | I90: 406.0914 | J90: 1657.26 | L90: 1341.17841 | M90: 123388.4137 | N90: 0 | O90: 124729.5921
A91: 87 | B91: 7533 | C91: 3691.74 | D91: 7533 | F91: 0.11 | G91: 0.22 | I91: 406.0914 | J91: 1657.26 | L91: 1341.17841 | M91: 124729.5921 | N91: 0 | O91: 126070.7705
A92: 88 | B92: 7533 | C92: 3691.74 | D92: 7533 | F92: 0.11 | G92: 0.22 | I92: 406.0914 | J92: 1657.26 | L92: 1341.17841 | M92: 126070.7705 | N92: 0 | O92: 127411.9489
A93: 89 | B93: 7533 | C93: 3691.74 | D93: 7533 | F93: 0.11 | G93: 0.22 | I93: 406.0914 | J93: 1657.26 | L93: 1341.17841 | M93: 127411.9489 | N93: 0 | O93: 128753.1274
A94: 90 | B94: 7533 | C94: 3691.74 | D94: 7533 | F94: 0.11 | G94: 0.22 | I94: 406.0914 | J94: 1657.26 | L94: 1341.17841 | M94: 128753.1274 | N94: 0 | O94: 130094.3058
A95: 91 | B95: 7533 | C95: 3691.74 | D95: 7533 | F95: 0.11 | G95: 0.22 | I95: 406.0914 | J95: 1657.26 | L95: 1341.17841 | M95: 130094.3058 | N95: 0 | O95: 131435.4842
A96: 92 | B96: 7533 | C96: 3691.74 | D96: 7533 | F96: 0.11 | G96: 0.22 | I96: 406.0914 | J96: 1657.26 | L96: 1341.17841 | M96: 131435.4842 | N96: 0 | O96: 132776.6626
A97: 93 | B97: 7533 | C97: 3691.74 | D97: 7533 | F97: 0.11 | G97: 0.22 | I97: 406.0914 | J97: 1657.26 | L97: 1341.17841 | M97: 132776.6626 | N97: 0 | O97: 134117.841
A98: 94 | B98: 7533 | C98: 3691.74 | D98: 7533 | F98: 0.11 | G98: 0.22 | I98: 406.0914 | J98: 1657.26 | L98: 1341.17841 | M98: 134117.841 | N98: 0 | O98: 135459.0194
A99: 95 | B99: 7533 | C99: 3691.74 | D99: 7533 | F99: 0.11 | G99: 0.22 | I99: 406.0914 | J99: 1657.26 | L99: 1341.17841 | M99: 135459.0194 | N99: 0 | O99: 136800.1978
A100: 96 | B100: 7533 | C100: 3691.74 | D100: 7533 | F100: 0.11 | G100: 0.22 | I100: 812.1828 | J100: 3314.52 | L100: 2682.35682 | M100: 136800.1978 | N100: 0 | O100: 139482.5546
A101: 97 | B101: 7533 | C101: 3691.74 | D101: 7533 | F101: 0.11 | G101: 0.22 | I101: 406.0914 | J101: 1657.26 | L101: 1341.17841 | M101: 139482.5546 | N101: 0 | O101: 140823.733
A102: 98 | B102: 7533 | C102: 3691.74 | D102: 7533 | F102: 0.11 | G102: 0.22 | I102: 406.0914 | J102: 1657.26 | L102: 1341.17841 | M102: 140823.733 | N102: 0 | O102: 142164.9115
A103: 99 | B103: 7533 | C103: 3691.74 | D103: 7533 | F103: 0.11 | G103: 0.22 | I103: 406.0914 | J103: 1657.26 | L103: 1341.17841 | M103: 142164.9115 | N103: 0 | O103: 143506.0899
A104: 100 | B104: 7533 | C104: 3691.74 | D104: 7533 | F104: 0.11 | G104: 0.22 | I104: 406.0914 | J104: 1657.26 | L104: 1341.17841 | M104: 143506.0899 | N104: 0 | O104: 144847.2683
A105: 101 | B105: 7533 | C105: 3691.74 | D105: 7533 | F105: 0.11 | G105: 0.22 | I105: 406.0914 | J105: 1657.26 | L105: 1341.17841 | M105: 144847.2683 | N105: 0 | O105: 146188.4467
A106: 102 | B106: 7533 | C106: 3691.74 | D106: 7533 | F106: 0.11 | G106: 0.22 | I106: 406.0914 | J106: 1657.26 | L106: 1341.17841 | M106: 146188.4467 | N106: 0 | O106: 147529.6251
A107: 103 | B107: 7533 | C107: 3691.74 | D107: 7533 | F107: 0.11 | G107: 0.22 | I107: 406.0914 | J107: 1657.26 | L107: 1341.17841 | M107: 147529.6251 | N107: 0 | O107: 148870.8035
A108: 104 | B108: 7533 | C108: 3691.74 | D108: 7533 | F108: 0.11 | G108: 0.22 | I108: 406.0914 | J108: 1657.26 | L108: 1341.17841 | M108: 148870.8035 | N108: 0 | O108: 150211.9819
A109: 105 | B109: 7533 | C109: 3691.74 | D109: 7533 | F109: 0.11 | G109: 0.22 | I109: 406.0914 | J109: 1657.26 | L109: 1341.17841 | M109: 150211.9819 | N109: 0 | O109: 151553.1603
A110: 106 | B110: 7533 | C110: 3691.74 | D110: 7533 | F110: 0.11 | G110: 0.22 | I110: 406.0914 | J110: 1657.26 | L110: 1341.17841 | M110: 151553.1603 | N110: 0 | O110: 152894.3387
A111: 107 | B111: 7533 | C111: 3691.74 | D111: 7533 | F111: 0.11 | G111: 0.22 | I111: 406.0914 | J111: 1657.26 | L111: 1341.17841 | M111: 152894.3387 | N111: 0 | O111: 154235.5171
A112: 108 | B112: 7533 | C112: 3691.74 | D112: 7533 | F112: 0.11 | G112: 0.22 | I112: 812.1828 | J112: 3314.52 | L112: 2682.35682 | M112: 154235.5171 | N112: 0 | O112: 156917.874
A113: 109 | B113: 7533 | C113: 3691.74 | D113: 7533 | F113: 0.11 | G113: 0.22 | I113: 406.0914 | J113: 1657.26 | L113: 1341.17841 | M113: 156917.874 | N113: 0 | O113: 158259.0524
A114: 110 | B114: 7533 | C114: 3691.74 | D114: 7533 | F114: 0.11 | G114: 0.22 | I114: 406.0914 | J114: 1657.26 | L114: 1341.17841 | M114: 158259.0524 | N114: 0 | O114: 159600.2308
A115: 111 | B115: 7533 | C115: 3691.74 | D115: 7533 | F115: 0.11 | G115: 0.22 | I115: 406.0914 | J115: 1657.26 | L115: 1341.17841 | M115: 159600.2308 | N115: 0 | O115: 160941.4092
A116: 112 | B116: 7533 | C116: 3691.74 | D116: 7533 | F116: 0.11 | G116: 0.22 | I116: 406.0914 | J116: 1657.26 | L116: 1341.17841 | M116: 160941.4092 | N116: 0 | O116: 162282.5876
A117: 113 | B117: 7533 | C117: 3691.74 | D117: 7533 | F117: 0.11 | G117: 0.22 | I117: 406.0914 | J117: 1657.26 | L117: 1341.17841 | M117: 162282.5876 | N117: 0 | O117: 163623.766
A118: 114 | B118: 7533 | C118: 3691.74 | D118: 7533 | F118: 0.11 | G118: 0.22 | I118: 406.0914 | J118: 1657.26 | L118: 1341.17841 | M118: 163623.766 | N118: 0 | O118: 164964.9444
A119: 115 | B119: 7533 | C119: 3691.74 | D119: 7533 | F119: 0.11 | G119: 0.22 | I119: 406.0914 | J119: 1657.26 | L119: 1341.17841 | M119: 164964.9444 | N119: 0 | O119: 166306.1228
A120: 116 | B120: 7533 | C120: 3691.74 | D120: 7533 | F120: 0.11 | G120: 0.22 | I120: 406.0914 | J120: 1657.26 | L120: 1341.17841 | M120: 166306.1228 | N120: 0 | O120: 167647.3012
A121: 117 | B121: 7533 | C121: 3691.74 | D121: 7533 | F121: 0.11 | G121: 0.22 | I121: 406.0914 | J121: 1657.26 | L121: 1341.17841 | M121: 167647.3012 | N121: 0 | O121: 168988.4797
A122: 118 | B122: 7533 | C122: 3691.74 | D122: 7533 | F122: 0.11 | G122: 0.22 | I122: 406.0914 | J122: 1657.26 | L122: 1341.17841 | M122: 168988.4797 | N122: 0 | O122: 170329.6581
A123: 119 | B123: 7533 | C123: 3691.74 | D123: 7533 | F123: 0.11 | G123: 0.22 | I123: 406.0914 | J123: 1657.26 | L123: 1341.17841 | M123: 170329.6581 | N123: 0 | O123: 171670.8365
A124: 120 | B124: 7533 | C124: 3691.74 | D124: 7533 | F124: 0.11 | G124: 0.22 | I124: 812.1828 | J124: 3314.52 | L124: 2682.35682 | M124: 171670.8365 | N124: 0 | O124: 174353.1933
A125: 121 | B125: 7533 | C125: 3691.74 | D125: 7533 | F125: 0.11 | G125: 0.22 | I125: 406.0914 | J125: 1657.26 | L125: 1341.17841 | M125: 174353.1933 | N125: 0 | O125: 175694.3717
A126: 122 | B126: 7533 | C126: 3691.74 | D126: 7533 | F126: 0.11 | G126: 0.22 | I126: 406.0914 | J126: 1657.26 | L126: 1341.17841 | M126: 175694.3717 | N126: 0 | O126: 177035.5501
A127: 123 | B127: 7533 | C127: 3691.74 | D127: 7533 | F127: 0.11 | G127: 0.22 | I127: 406.0914 | J127: 1657.26 | L127: 1341.17841 | M127: 177035.5501 | N127: 0 | O127: 178376.7285
A128: 124 | B128: 7533 | C128: 3691.74 | D128: 7533 | F128: 0.11 | G128: 0.22 | I128: 406.0914 | J128: 1657.26 | L128: 1341.17841 | M128: 178376.7285 | N128: 0 | O128: 179717.9069
A129: 125 | B129: 7533 | C129: 3691.74 | D129: 7533 | F129: 0.11 | G129: 0.22 | I129: 406.0914 | J129: 1657.26 | L129: 1341.17841 | M129: 179717.9069 | N129: 0 | O129: 181059.0853
A130: 126 | B130: 7533 | C130: 3691.74 | D130: 7533 | F130: 0.11 | G130: 0.22 | I130: 406.0914 | J130: 1657.26 | L130: 1341.17841 | M130: 181059.0853 | N130: 0 | O130: 182400.2638
A131: 127 | B131: 7533 | C131: 3691.74 | D131: 7533 | F131: 0.11 | G131: 0.22 | I131: 406.0914 | J131: 1657.26 | L131: 1341.17841 | M131: 182400.2638 | N131: 0 | O131: 183741.4422
A132: 128 | B132: 7533 | C132: 3691.74 | D132: 7533 | F132: 0.11 | G132: 0.22 | I132: 406.0914 | J132: 1657.26 | L132: 1341.17841 | M132: 183741.4422 | N132: 0 | O132: 185082.6206
A133: 129 | B133: =IF($A133>meses_de_contribuição,0,VLOOKUP($A133,período_contributivo,3,TRUE)) -> 7533 | C133: 3691.74 | D133: =IF($A133>meses_de_contribuição,0,IF(AND(RPSPF_base_de_cálculo_contribuição_União_limitada="Sim",$B133>RGPS_limite_máximo_valor_benefício),RGPS_limite_máximo_valor_benefício,$B133)) -> 7533 | F133: =RPSPF_alíquota_servidor -> 0.11 | G133: =RPSPF_alíquota_União -> 0.22 | I133: 406.0914 | J133: 1657.26 | L133: =SUM(I133:K133)*RPSPF_percentual_custeio_ativo -> 1341.17841 | M133: 185082.6206 | N133: =$M133*IF(OR(RPSPF_simular_rentabilidade="Não",A133>meses_de_contribuição),0,rentabilidade_mensal) -> 0 | O133: 186423.799
A134: =ROW()-4 -> 130 | B134: 7533 | C134: 3691.74 | D134: 7533 | F134: 0.11 | G134: 0.22 | I134: =C134*F134*IF(MOD($A134,12)=0,2,1) -> 406.0914 | J134: =D134*G134*IF(MOD($A134,12)=0,2,1) -> 1657.26 | L134: 1341.17841 | M134: =IF($A134=1,0,O133) -> 186423.799 | N134: 0 | O134: =SUM(L134:N134) -> 187764.9774
A135: 131 | B135: 7533 | C135: 3691.74 | D135: 7533 | F135: 0.11 | G135: 0.22 | I135: 406.0914 | J135: 1657.26 | L135: 1341.17841 | M135: 187764.9774 | N135: 0 | O135: 189106.1558
A136: 132 | B136: 7533 | C136: 3691.74 | D136: 7533 | F136: 0.11 | G136: 0.22 | I136: 812.1828 | J136: 3314.52 | L136: 2682.35682 | M136: 189106.1558 | N136: 0 | O136: 191788.5126
A137: 133 | B137: 7533 | C137: 3691.74 | D137: 7533 | F137: 0.11 | G137: 0.22 | I137: 406.0914 | J137: 1657.26 | L137: 1341.17841 | M137: 191788.5126 | N137: 0 | O137: 193129.691
A138: 134 | B138: 7533 | C138: 3691.74 | D138: 7533 | F138: 0.11 | G138: 0.22 | I138: 406.0914 | J138: 1657.26 | L138: 1341.17841 | M138: 193129.691 | N138: 0 | O138: 194470.8694
A139: 135 | B139: 7533 | C139: 3691.74 | D139: 7533 | F139: 0.11 | G139: 0.22 | I139: 406.0914 | J139: 1657.26 | L139: 1341.17841 | M139: 194470.8694 | N139: 0 | O139: 195812.0479
A140: 136 | B140: 7533 | C140: 3691.74 | D140: 7533 | F140: 0.11 | G140: 0.22 | I140: 406.0914 | J140: 1657.26 | L140: 1341.17841 | M140: 195812.0479 | N140: 0 | O140: 197153.2263
A141: 137 | B141: 7533 | C141: 3691.74 | D141: 7533 | F141: 0.11 | G141: 0.22 | I141: 406.0914 | J141: 1657.26 | L141: 1341.17841 | M141: 197153.2263 | N141: 0 | O141: 198494.4047
A142: 138 | B142: 7533 | C142: 3691.74 | D142: 7533 | F142: 0.11 | G142: 0.22 | I142: 406.0914 | J142: 1657.26 | L142: 1341.17841 | M142: 198494.4047 | N142: 0 | O142: 199835.5831
A143: 139 | B143: 7533 | C143: 3691.74 | D143: 7533 | F143: 0.11 | G143: 0.22 | I143: 406.0914 | J143: 1657.26 | L143: 1341.17841 | M143: 199835.5831 | N143: 0 | O143: 201176.7615
A144: 140 | B144: 7533 | C144: 3691.74 | D144: 7533 | F144: 0.11 | G144: 0.22 | I144: 406.0914 | J144: 1657.26 | L144: 1341.17841 | M144: 201176.7615 | N144: 0 | O144: 202517.9399
A145: 141 | B145: 7533 | C145: 3691.74 | D145: 7533 | F145: 0.11 | G145: 0.22 | I145: 406.0914 | J145: 1657.26 | L145: 1341.17841 | M145: 202517.9399 | N145: 0 | O145: 203859.1183
A146: 142 | B146: 7533 | C146: 3691.74 | D146: 7533 | F146: 0.11 | G146: 0.22 | I146: 406.0914 | J146: 1657.26 | L146: 1341.17841 | M146: 203859.1183 | N146: 0 | O146: 205200.2967
A147: 143 | B147: 7533 | C147: 3691.74 | D147: 7533 | F147: 0.11 | G147: 0.22 | I147: 406.0914 | J147: 1657.26 | L147: 1341.17841 | M147: 205200.2967 | N147: 0 | O147: 206541.4751
A148: 144 | B148: 7533 | C148: 3691.74 | D148: 7533 | F148: 0.11 | G148: 0.22 | I148: 812.1828 | J148: 3314.52 | L148: 2682.35682 | M148: 206541.4751 | N148: 0 | O148: 209223.832
A149: 145 | B149: 7533 | C149: 3691.74 | D149: 7533 | F149: 0.11 | G149: 0.22 | I149: 406.0914 | J149: 1657.26 | L149: 1341.17841 | M149: 209223.832 | N149: 0 | O149: 210565.0104
A150: 146 | B150: 7533 | C150: 3691.74 | D150: 7533 | F150: 0.11 | G150: 0.22 | I150: 406.0914 | J150: 1657.26 | L150: 1341.17841 | M150: 210565.0104 | N150: 0 | O150: 211906.1888
A151: 147 | B151: 7533 | C151: 3691.74 | D151: 7533 | F151: 0.11 | G151: 0.22 | I151: 406.0914 | J151: 1657.26 | L151: 1341.17841 | M151: 211906.1888 | N151: 0 | O151: 213247.3672
A152: 148 | B152: 7533 | C152: 3691.74 | D152: 7533 | F152: 0.11 | G152: 0.22 | I152: 406.0914 | J152: 1657.26 | L152: 1341.17841 | M152: 213247.3672 | N152: 0 | O152: 214588.5456
A153: 149 | B153: 7533 | C153: =IF($A153>meses_de_contribuição,0,IF(AND(RPSPF_base_de_cálculo_contribuição_servidor_limitada="Sim",$B153>RGPS_limite_máximo_valor_benefício),RGPS_limite_máximo_valor_benefício,$B153)) -> 3691.74 | D153: 7533 | F153: 0.11 | G153: 0.22 | I153: 406.0914 | J153: 1657.26 | L153: 1341.17841 | M153: 214588.5456 | N153: 0 | O153: 215929.724
A154: 150 | B154: 7533 | C154: 3691.74 | D154: 7533 | F154: 0.11 | G154: 0.22 | I154: 406.0914 | J154: 1657.26 | L154: 1341.17841 | M154: 215929.724 | N154: 0 | O154: 217270.9024
A155: 151 | B155: 7533 | C155: 3691.74 | D155: 7533 | F155: 0.11 | G155: 0.22 | I155: 406.0914 | J155: 1657.26 | L155: 1341.17841 | M155: 217270.9024 | N155: 0 | O155: 218612.0808
A156: 152 | B156: 7533 | C156: 3691.74 | D156: 7533 | F156: 0.11 | G156: 0.22 | I156: 406.0914 | J156: 1657.26 | L156: 1341.17841 | M156: 218612.0808 | N156: 0 | O156: 219953.2592
A157: 153 | B157: 7533 | C157: 3691.74 | D157: 7533 | F157: 0.11 | G157: 0.22 | I157: 406.0914 | J157: 1657.26 | L157: 1341.17841 | M157: 219953.2592 | N157: 0 | O157: 221294.4376
A158: 154 | B158: 7533 | C158: 3691.74 | D158: 7533 | F158: 0.11 | G158: 0.22 | I158: 406.0914 | J158: 1657.26 | L158: 1341.17841 | M158: 221294.4376 | N158: 0 | O158: 222635.6161
A159: 155 | B159: 7533 | C159: 3691.74 | D159: 7533 | F159: 0.11 | G159: 0.22 | I159: 406.0914 | J159: 1657.26 | L159: 1341.17841 | M159: 222635.6161 | N159: 0 | O159: 223976.7945
A160: 156 | B160: 7533 | C160: 3691.74 | D160: 7533 | F160: 0.11 | G160: 0.22 | I160: 812.1828 | J160: 3314.52 | L160: 2682.35682 | M160: 223976.7945 | N160: 0 | O160: 226659.1513
A161: 157 | B161: 7533 | C161: 3691.74 | D161: 7533 | F161: 0.11 | G161: 0.22 | I161: 406.0914 | J161: 1657.26 | L161: 1341.17841 | M161: 226659.1513 | N161: 0 | O161: 228000.3297
A162: 158 | B162: 7533 | C162: 3691.74 | D162: 7533 | F162: 0.11 | G162: 0.22 | I162: 406.0914 | J162: 1657.26 | L162: 1341.17841 | M162: 228000.3297 | N162: 0 | O162: 229341.5081
A163: 159 | B163: 7533 | C163: 3691.74 | D163: 7533 | F163: 0.11 | G163: 0.22 | I163: 406.0914 | J163: 1657.26 | L163: 1341.17841 | M163: 229341.5081 | N163: 0 | O163: 230682.6865
A164: 160 | B164: 7533 | C164: 3691.74 | D164: 7533 | F164: 0.11 | G164: 0.22 | I164: 406.0914 | J164: 1657.26 | L164: 1341.17841 | M164: 230682.6865 | N164: 0 | O164: 232023.8649
A165: 161 | B165: 7533 | C165: 3691.74 | D165: 7533 | F165: 0.11 | G165: 0.22 | I165: 406.0914 | J165: 1657.26 | L165: 1341.17841 | M165: 232023.8649 | N165: 0 | O165: 233365.0433
A166: 162 | B166: 7533 | C166: 3691.74 | D166: 7533 | F166: 0.11 | G166: 0.22 | I166: 406.0914 | J166: 1657.26 | L166: 1341.17841 | M166: 233365.0433 | N166: 0 | O166: 234706.2217
A167: 163 | B167: 7533 | C167: 3691.74 | D167: 7533 | F167: 0.11 | G167: 0.22 | I167: 406.0914 | J167: 1657.26 | L167: 1341.17841 | M167: 234706.2217 | N167: 0 | O167: 236047.4002
A168: 164 | B168: 7533 | C168: 3691.74 | D168: 7533 | F168: 0.11 | G168: 0.22 | I168: 406.0914 | J168: 1657.26 | L168: 1341.17841 | M168: 236047.4002 | N168: 0 | O168: 237388.5786
A169: 165 | B169: 7533 | C169: 3691.74 | D169: 7533 | F169: 0.11 | G169: 0.22 | I169: 406.0914 | J169: 1657.26 | L169: 1341.17841 | M169: 237388.5786 | N169: 0 | O169: 238729.757
A170: 166 | B170: 7533 | C170: 3691.74 | D170: 7533 | F170: 0.11 | G170: 0.22 | I170: 406.0914 | J170: 1657.26 | L170: 1341.17841 | M170: 238729.757 | N170: 0 | O170: 240070.9354
A171: 167 | B171: 7533 | C171: 3691.74 | D171: 7533 | F171: 0.11 | G171: 0.22 | I171: 406.0914 | J171: 1657.26 | L171: 1341.17841 | M171: 240070.9354 | N171: 0 | O171: 241412.1138
A172: 168 | B172: 7533 | C172: 3691.74 | D172: 7533 | F172: 0.11 | G172: 0.22 | I172: 812.1828 | J172: 3314.52 | L172: 2682.35682 | M172: 241412.1138 | N172: 0 | O172: 244094.4706
A173: 169 | B173: 7533 | C173: 3691.74 | D173: 7533 | F173: 0.11 | G173: 0.22 | I173: 406.0914 | J173: 1657.26 | L173: 1341.17841 | M173: 244094.4706 | N173: 0 | O173: 245435.649
A174: 170 | B174: 7533 | C174: 3691.74 | D174: 7533 | F174: 0.11 | G174: 0.22 | I174: 406.0914 | J174: 1657.26 | L174: 1341.17841 | M174: 245435.649 | N174: 0 | O174: 246776.8274
A175: 171 | B175: 7533 | C175: 3691.74 | D175: 7533 | F175: 0.11 | G175: 0.22 | I175: 406.0914 | J175: 1657.26 | L175: 1341.17841 | M175: 246776.8274 | N175: 0 | O175: 248118.0058
A176: 172 | B176: 7533 | C176: 3691.74 | D176: 7533 | F176: 0.11 | G176: 0.22 | I176: 406.0914 | J176: 1657.26 | L176: 1341.17841 | M176: 248118.0058 | N176: 0 | O176: 249459.1843
A177: 173 | B177: 7533 | C177: 3691.74 | D177: 7533 | F177: 0.11 | G177: 0.22 | I177: 406.0914 | J177: 1657.26 | L177: 1341.17841 | M177: 249459.1843 | N177: 0 | O177: 250800.3627
A178: 174 | B178: 7533 | C178: 3691.74 | D178: 7533 | F178: 0.11 | G178: 0.22 | I178: 406.0914 | J178: 1657.26 | L178: 1341.17841 | M178: 250800.3627 | N178: 0 | O178: 252141.5411
A179: 175 | B179: 7533 | C179: 3691.74 | D179: 7533 | F179: 0.11 | G179: 0.22 | I179: 406.0914 | J179: 1657.26 | L179: 1341.17841 | M179: 252141.5411 | N179: 0 | O179: 253482.7195
A180: 176 | B180: 7533 | C180: 3691.74 | D180: 7533 | F180: 0.11 | G180: 0.22 | I180: 406.0914 | J180: 1657.26 | L180: 1341.17841 | M180: 253482.7195 | N180: 0 | O180: 254823.8979
A181: 177 | B181: 7533 | C181: 3691.74 | D181: 7533 | F181: 0.11 | G181: 0.22 | I181: 406.0914 | J181: 1657.26 | L181: 1341.17841 | M181: 254823.8979 | N181: 0 | O181: 256165.0763
A182: 178 | B182: 7533 | C182: 3691.74 | D182: 7533 | F182: 0.11 | G182: 0.22 | I182: 406.0914 | J182: 1657.26 | L182: 1341.17841 | M182: 256165.0763 | N182: 0 | O182: 257506.2547
A183: 179 | B183: 7533 | C183: 3691.74 | D183: 7533 | F183: 0.11 | G183: 0.22 | I183: 406.0914 | J183: 1657.26 | L183: 1341.17841 | M183: 257506.2547 | N183: 0 | O183: 258847.4331
A184: 180 | B184: 7533 | C184: 3691.74 | D184: 7533 | F184: 0.11 | G184: 0.22 | I184: 812.1828 | J184: 3314.52 | L184: 2682.35682 | M184: 258847.4331 | N184: 0 | O184: 261529.7899
A185: 181 | B185: 7533 | C185: 3691.74 | D185: 7533 | F185: 0.11 | G185: 0.22 | I185: 406.0914 | J185: 1657.26 | L185: 1341.17841 | M185: 261529.7899 | N185: 0 | O185: 262870.9684
A186: 182 | B186: 7533 | C186: 3691.74 | D186: 7533 | F186: 0.11 | G186: 0.22 | I186: 406.0914 | J186: 1657.26 | L186: 1341.17841 | M186: 262870.9684 | N186: 0 | O186: 264212.1468
A187: 183 | B187: 7533 | C187: 3691.74 | D187: 7533 | F187: 0.11 | G187: 0.22 | I187: 406.0914 | J187: 1657.26 | L187: 1341.17841 | M187: 264212.1468 | N187: 0 | O187: 265553.3252
A188: 184 | B188: 7533 | C188: 3691.74 | D188: 7533 | F188: 0.11 | G188: 0.22 | I188: 406.0914 | J188: 1657.26 | L188: 1341.17841 | M188: 265553.3252 | N188: 0 | O188: 266894.5036
A189: 185 | B189: 7533 | C189: 3691.74 | D189: 7533 | F189: 0.11 | G189: 0.22 | I189: 406.0914 | J189: 1657.26 | L189: 1341.17841 | M189: 266894.5036 | N189: 0 | O189: 268235.682
A190: 186 | B190: 7533 | C190: 3691.74 | D190: 7533 | F190: 0.11 | G190: 0.22 | I190: 406.0914 | J190: 1657.26 | L190: 1341.17841 | M190: 268235.682 | N190: 0 | O190: 269576.8604
A191: 187 | B191: 7533 | C191: 3691.74 | D191: 7533 | F191: 0.11 | G191: 0.22 | I191: 406.0914 | J191: 1657.26 | L191: 1341.17841 | M191: 269576.8604 | N191: 0 | O191: 270918.0388
A192: 188 | B192: 7533 | C192: 3691.74 | D192: 7533 | F192: 0.11 | G192: 0.22 | I192: 406.0914 | J192: 1657.26 | L192: 1341.17841 | M192: 270918.0388 | N192: 0 | O192: 272259.2172
A193: 189 | B193: 7533 | C193: 3691.74 | D193: 7533 | F193: 0.11 | G193: 0.22 | I193: 406.0914 | J193: 1657.26 | L193: 1341.17841 | M193: 272259.2172 | N193: 0 | O193: 273600.3956
A194: 190 | B194: 7533 | C194: 3691.74 | D194: 7533 | F194: 0.11 | G194: 0.22 | I194: 406.0914 | J194: 1657.26 | L194: 1341.17841 | M194: 273600.3956 | N194: 0 | O194: 274941.574
A195: 191 | B195: 7533 | C195: 3691.74 | D195: 7533 | F195: 0.11 | G195: 0.22 | I195: 406.0914 | J195: 1657.26 | L195: 1341.17841 | M195: 274941.574 | N195: 0 | O195: 276282.7525
A196: 192 | B196: 7533 | C196: 3691.74 | D196: 7533 | F196: 0.11 | G196: 0.22 | I196: 812.1828 | J196: 3314.52 | L196: 2682.35682 | M196: 276282.7525 | N196: 0 | O196: 278965.1093
A197: 193 | B197: =IF($A197>meses_de_contribuição,0,VLOOKUP($A197,período_contributivo,3,TRUE)) -> 7533 | C197: 3691.74 | D197: =IF($A197>meses_de_contribuição,0,IF(AND(RPSPF_base_de_cálculo_contribuição_União_limitada="Sim",$B197>RGPS_limite_máximo_valor_benefício),RGPS_limite_máximo_valor_benefício,$B197)) -> 7533 | F197: =RPSPF_alíquota_servidor -> 0.11 | G197: =RPSPF_alíquota_União -> 0.22 | I197: 406.0914 | J197: 1657.26 | L197: =SUM(I197:K197)*RPSPF_percentual_custeio_ativo -> 1341.17841 | M197: 278965.1093 | N197: =$M197*IF(OR(RPSPF_simular_rentabilidade="Não",A197>meses_de_contribuição),0,rentabilidade_mensal) -> 0 | O197: 280306.2877
A198: =ROW()-4 -> 194 | B198: 7533 | C198: 3691.74 | D198: 7533 | F198: 0.11 | G198: 0.22 | I198: =C198*F198*IF(MOD($A198,12)=0,2,1) -> 406.0914 | J198: =D198*G198*IF(MOD($A198,12)=0,2,1) -> 1657.26 | L198: 1341.17841 | M198: =IF($A198=1,0,O197) -> 280306.2877 | N198: 0 | O198: =SUM(L198:N198) -> 281647.4661
A199: 195 | B199: 7533 | C199: 3691.74 | D199: 7533 | F199: 0.11 | G199: 0.22 | I199: 406.0914 | J199: 1657.26 | L199: 1341.17841 | M199: 281647.4661 | N199: 0 | O199: 282988.6445
A200: 196 | B200: 7533 | C200: 3691.74 | D200: 7533 | F200: 0.11 | G200: 0.22 | I200: 406.0914 | J200: 1657.26 | L200: 1341.17841 | M200: 282988.6445 | N200: 0 | O200: 284329.8229
... 1004 more rows

Sheet 6. Acumulação RPC
A1: Mês | B1: Remuneração | C1: CONTRIBUIÇÕES | M1: Saldo anterior | N1: Rendimentos | O1: Saldo atual
C2: Bases de cálculo | F2: Alíquotas | I2: Valores
C3: Normal | E3: Facultativa | F3: Normal | H3: Facultativa | I3: Normal | K3: Facultativa | L3: Custeio de aposentadoria
C4: Servidor | D4: União | F4: Servidor | G4: União | I4: Servidor | J4: União
A5: =ROW()-4 -> 1 | B5: =IF($A5>meses_de_contribuição,0,VLOOKUP($A5,período_contributivo,3,TRUE)) -> 7533 | C5: =IF($B5<RGPS_limite_máximo_valor_benefício,0,$B5-RGPS_limite_máximo_valor_benefício) -> 3841.26 | D5: 3841.26 | E5: =B5 -> 7533 | F5: =RPC_alíquota_participante -> 0.075 | G5: =IF($F5>RPC_alíquota_máxima_patrocinador,RPC_alíquota_máxima_patrocinador,$F5) -> 0.075 | H5: =RPC_alíquota_contribuição_facultativa -> 0 | I5: =C5*F5*IF(MOD($A5,12)=0,2,1) -> 288.0945 | J5: =D5*G5*IF(MOD($A5,12)=0,2,1) -> 288.0945 | K5: =E5*H5*IF(MOD($A5,12)=0,2,1) -> 0 | L5: =SUM(I5:K5)*RPC_percentual_custeio_aposentadoria_acumulação -> 374.52285 | M5: =IF($A5=1,0,O4) -> 0 | N5: =$M5*IF(A5>meses_de_contribuição,0,rentabilidade_mensal) -> 0 | O5: =SUM(L5:N5) -> 374.52285
A6: =ROW()-4 -> 2 | B6: 7533 | C6: 3841.26 | D6: 3841.26 | E6: =B6 -> 7533 | F6: 0.075 | G6: 0.075 | H6: 0 | I6: =C6*F6*IF(MOD($A6,12)=0,2,1) -> 288.0945 | J6: =D6*G6*IF(MOD($A6,12)=0,2,1) -> 288.0945 | K6: =E6*H6*IF(MOD($A6,12)=0,2,1) -> 0 | L6: 374.52285 | M6: =IF($A6=1,0,O5) -> 374.52285 | N6: 1.525852451 | O6: =SUM(L6:N6) -> 750.5715525
A7: 3 | B7: 7533 | C7: 3841.26 | D7: 3841.26 | E7: 7533 | F7: 0.075 | G7: 0.075 | H7: 0 | I7: 288.0945 | J7: 288.0945 | K7: 0 | L7: 374.52285 | M7: 750.5715525 | N7: 3.057921413 | O7: 1128.152324
A8: 4 | B8: 7533 | C8: 3841.26 | D8: 3841.26 | E8: 7533 | F8: 0.075 | G8: 0.075 | H8: 0 | I8: 288.0945 | J8: 288.0945 | K8: 0 | L8: 374.52285 | M8: 1128.152324 | N8: 4.596232214 | O8: 1507.271406
A9: 5 | B9: 7533 | C9: 3841.26 | D9: 3841.26 | E9: 7533 | F9: 0.075 | G9: 0.075 | H9: 0 | I9: 288.0945 | J9: 288.0945 | K9: 0 | L9: 374.52285 | M9: 1507.271406 | N9: 6.140810284 | O9: 1887.935066
A10: 6 | B10: 7533 | C10: 3841.26 | D10: 3841.26 | E10: 7533 | F10: 0.075 | G10: 0.075 | H10: 0 | I10: 288.0945 | J10: 288.0945 | K10: 0 | L10: 374.52285 | M10: 1887.935066 | N10: 7.691681156 | O10: 2270.149598
A11: 7 | B11: 7533 | C11: 3841.26 | D11: 3841.26 | E11: 7533 | F11: 0.075 | G11: 0.075 | H11: 0 | I11: 288.0945 | J11: 288.0945 | K11: 0 | L11: 374.52285 | M11: 2270.149598 | N11: 9.248870468 | O11: 2653.921318
A12: 8 | B12: 7533 | C12: 3841.26 | D12: 3841.26 | E12: 7533 | F12: 0.075 | G12: 0.075 | H12: 0 | I12: 288.0945 | J12: 288.0945 | K12: 0 | L12: 374.52285 | M12: 2653.921318 | N12: 10.81240396 | O12: 3039.256572
A13: 9 | B13: 7533 | C13: 3841.26 | D13: 3841.26 | E13: 7533 | F13: 0.075 | G13: 0.075 | H13: 0 | I13: 288.0945 | J13: 288.0945 | K13: 0 | L13: 374.52285 | M13: 3039.256572 | N13: 12.38230748 | O13: 3426.161729
A14: 10 | B14: 7533 | C14: 3841.26 | D14: 3841.26 | E14: 7533 | F14: 0.075 | G14: 0.075 | H14: 0 | I14: 288.0945 | J14: 288.0945 | K14: 0 | L14: 374.52285 | M14: 3426.161729 | N14: 13.95860699 | O14: 3814.643186
A15: 11 | B15: 7533 | C15: 3841.26 | D15: 3841.26 | E15: 7533 | F15: 0.075 | G15: 0.075 | H15: 0 | I15: 288.0945 | J15: 288.0945 | K15: 0 | L15: 374.52285 | M15: 3814.643186 | N15: 15.54132853 | O15: 4204.707365
A16: 12 | B16: 7533 | C16: 3841.26 | D16: 3841.26 | E16: 7533 | F16: 0.075 | G16: 0.075 | H16: 0 | I16: 576.189 | J16: 576.189 | K16: 0 | L16: 749.0457 | M16: 4204.707365 | N16: 17.13049828 | O16: 4970.883563
A17: 13 | B17: 7533 | C17: 3841.26 | D17: 3841.26 | E17: 7533 | F17: 0.075 | G17: 0.075 | H17: 0 | I17: 288.0945 | J17: 288.0945 | K17: 0 | L17: 374.52285 | M17: 4970.883563 | N17: 20.25199495 | O17: 5365.658408
A18: 14 | B18: 7533 | C18: 3841.26 | D18: 3841.26 | E18: 7533 | F18: 0.075 | G18: 0.075 | H18: 0 | I18: 288.0945 | J18: 288.0945 | K18: 0 | L18: 374.52285 | M18: 5365.658408 | N18: 21.86035654 | O18: 5762.041615
A19: 15 | B19: 7533 | C19: 3841.26 | D19: 3841.26 | E19: 7533 | F19: 0.075 | G19: 0.075 | H19: 0 | I19: 288.0945 | J19: 288.0945 | K19: 0 | L19: 374.52285 | M19: 5762.041615 | N19: 23.47527078 | O19: 6160.039736
A20: 16 | B20: 7533 | C20: 3841.26 | D20: 3841.26 | E20: 7533 | F20: 0.075 | G20: 0.075 | H20: 0 | I20: 288.0945 | J20: 288.0945 | K20: 0 | L20: 374.52285 | M20: 6160.039736 | N20: 25.09676439 | O20: 6559.65935
A21: 17 | B21: 7533 | C21: 3841.26 | D21: 3841.26 | E21: 7533 | F21: 0.075 | G21: 0.075 | H21: 0 | I21: 288.0945 | J21: 288.0945 | K21: 0 | L21: 374.52285 | M21: 6559.65935 | N21: 26.72486417 | O21: 6960.907064
A22: 18 | B22: 7533 | C22: 3841.26 | D22: 3841.26 | E22: 7533 | F22: 0.075 | G22: 0.075 | H22: 0 | I22: 288.0945 | J22: 288.0945 | K22: 0 | L22: 374.52285 | M22: 6960.907064 | N22: 28.35959703 | O22: 7363.789511
A23: 19 | B23: 7533 | C23: 3841.26 | D23: 3841.26 | E23: 7533 | F23: 0.075 | G23: 0.075 | H23: 0 | I23: 288.0945 | J23: 288.0945 | K23: 0 | L23: 374.52285 | M23: 7363.789511 | N23: 30.00098998 | O23: 7768.313351
A24: 20 | B24: 7533 | C24: 3841.26 | D24: 3841.26 | E24: 7533 | F24: 0.075 | G24: 0.075 | H24: 0 | I24: 288.0945 | J24: 288.0945 | K24: 0 | L24: 374.52285 | M24: 7768.313351 | N24: 31.64907018 | O24: 8174.485271
A25: 21 | B25: 7533 | C25: =IF($B25<RGPS_limite_máximo_valor_benefício,0,$B25-RGPS_limite_máximo_valor_benefício) -> 3841.26 | D25: 3841.26 | E25: 7533 | F25: 0.075 | G25: 0.075 | H25: 0 | I25: 288.0945 | J25: 288.0945 | K25: 0 | L25: 374.52285 | M25: 8174.485271 | N25: 33.30386486 | O25: 8582.311986
A26: 22 | B26: 7533 | C26: 3841.26 | D26: 3841.26 | E26: 7533 | F26: 0.075 | G26: 0.075 | H26: 0 | I26: 288.0945 | J26: 288.0945 | K26: 0 | L26: 374.52285 | M26: 8582.311986 | N26: 34.96540138 | O26: 8991.800238
A27: 23 | B27: 7533 | C27: 3841.26 | D27: 3841.26 | E27: 7533 | F27: 0.075 | G27: 0.075 | H27: 0 | I27: 288.0945 | J27: 288.0945 | K27: 0 | L27: 374.52285 | M27: 8991.800238 | N27: 36.63370721 | O27: 9402.956795
A28: 24 | B28: 7533 | C28: 3841.26 | D28: 3841.26 | E28: 7533 | F28: 0.075 | G28: 0.075 | H28: 0 | I28: 576.189 | J28: 576.189 | K28: 0 | L28: 749.0457 | M28: 9402.956795 | N28: 38.30880991 | O28: 10190.3113
A29: 25 | B29: 7533 | C29: 3841.26 | D29: 3841.26 | E29: 7533 | F29: 0.075 | G29: 0.075 | H29: 0 | I29: 288.0945 | J29: 288.0945 | K29: 0 | L29: 374.52285 | M29: 10190.3113 | N29: 41.51658965 | O29: 10606.35074
A30: 26 | B30: 7533 | C30: 3841.26 | D30: 3841.26 | E30: 7533 | F30: 0.075 | G30: 0.075 | H30: 0 | I30: 288.0945 | J30: 288.0945 | K30: 0 | L30: 374.52285 | M30: 10606.35074 | N30: 43.21158582 | O30: 11024.08518
A31: 27 | B31: 7533 | C31: 3841.26 | D31: 3841.26 | E31: 7533 | F31: 0.075 | G31: 0.075 | H31: 0 | I31: 288.0945 | J31: 288.0945 | K31: 0 | L31: 374.52285 | M31: 11024.08518 | N31: 44.91348763 | O31: 11443.52152
A32: 28 | B32: 7533 | C32: 3841.26 | D32: 3841.26 | E32: 7533 | F32: 0.075 | G32: 0.075 | H32: 0 | I32: 288.0945 | J32: 288.0945 | K32: 0 | L32: 374.52285 | M32: 11443.52152 | N32: 46.62232318 | O32: 11864.66669
A33: 29 | B33: 7533 | C33: 3841.26 | D33: 3841.26 | E33: 7533 | F33: 0.075 | G33: 0.075 | H33: 0 | I33: 288.0945 | J33: 288.0945 | K33: 0 | L33: 374.52285 | M33: 11864.66669 | N33: 48.33812075 | O33: 12287.52766
A34: 30 | B34: 7533 | C34: 3841.26 | D34: 3841.26 | E34: 7533 | F34: 0.075 | G34: 0.075 | H34: 0 | I34: 288.0945 | J34: 288.0945 | K34: 0 | L34: 374.52285 | M34: 12287.52766 | N34: 50.06090869 | O34: 12712.11142
A35: 31 | B35: 7533 | C35: 3841.26 | D35: 3841.26 | E35: 7533 | F35: 0.075 | G35: 0.075 | H35: 0 | I35: 288.0945 | J35: 288.0945 | K35: 0 | L35: 374.52285 | M35: 12712.11142 | N35: 51.79071548 | O35: 13138.42499
A36: 32 | B36: 7533 | C36: 3841.26 | D36: 3841.26 | E36: 7533 | F36: 0.075 | G36: 0.075 | H36: 0 | I36: 288.0945 | J36: 288.0945 | K36: 0 | L36: 374.52285 | M36: 13138.42499 | N36: 53.52756971 | O36: 13566.47541
A37: 33 | B37: 7533 | C37: 3841.26 | D37: 3841.26 | E37: 7533 | F37: 0.075 | G37: 0.075 | H37: 0 | I37: 288.0945 | J37: 288.0945 | K37: 0 | L37: 374.52285 | M37: 13566.47541 | N37: 55.27150011 | O37: 13996.26976
A38: 34 | B38: 7533 | C38: 3841.26 | D38: 3841.26 | E38: 7533 | F38: 0.075 | G38: 0.075 | H38: 0 | I38: 288.0945 | J38: 288.0945 | K38: 0 | L38: 374.52285 | M38: 13996.26976 | N38: 57.02253549 | O38: 14427.81514
A39: 35 | B39: 7533 | C39: 3841.26 | D39: 3841.26 | E39: 7533 | F39: 0.075 | G39: 0.075 | H39: 0 | I39: 288.0945 | J39: 288.0945 | K39: 0 | L39: 374.52285 | M39: 14427.81514 | N39: 58.78070481 | O39: 14861.1187
A40: 36 | B40: 7533 | C40: 3841.26 | D40: 3841.26 | E40: 7533 | F40: 0.075 | G40: 0.075 | H40: 0 | I40: 576.189 | J40: 576.189 | K40: 0 | L40: 749.0457 | M40: 14861.1187 | N40: 60.54603713 | O40: 15670.71043
A41: 37 | B41: 7533 | C41: 3841.26 | D41: 3841.26 | E41: 7533 | F41: 0.075 | G41: 0.075 | H41: 0 | I41: 288.0945 | J41: 288.0945 | K41: 0 | L41: 374.52285 | M41: 15670.71043 | N41: 63.84441408 | O41: 16109.0777
A42: 38 | B42: 7533 | C42: 3841.26 | D42: 3841.26 | E42: 7533 | F42: 0.075 | G42: 0.075 | H42: 0 | I42: 288.0945 | J42: 288.0945 | K42: 0 | L42: 374.52285 | M42: 16109.0777 | N42: 65.63037658 | O42: 16549.23092
A43: 39 | B43: 7533 | C43: 3841.26 | D43: 3841.26 | E43: 7533 | F43: 0.075 | G43: 0.075 | H43: 0 | I43: 288.0945 | J43: 288.0945 | K43: 0 | L43: 374.52285 | M43: 16549.23092 | N43: 67.42361531 | O43: 16991.17739
A44: 40 | B44: 7533 | C44: 3841.26 | D44: 3841.26 | E44: 7533 | F44: 0.075 | G44: 0.075 | H44: 0 | I44: 288.0945 | J44: 288.0945 | K44: 0 | L44: 374.52285 | M44: 16991.17739 | N44: 69.22415991 | O44: 17434.9244
A45: 41 | B45: 7533 | C45: 3841.26 | D45: 3841.26 | E45: 7533 | F45: 0.075 | G45: 0.075 | H45: 0 | I45: 288.0945 | J45: 288.0945 | K45: 0 | L45: 374.52285 | M45: 17434.9244 | N45: 71.03204016 | O45: 17880.47929
A46: 42 | B46: 7533 | C46: 3841.26 | D46: 3841.26 | E46: 7533 | F46: 0.075 | G46: 0.075 | H46: 0 | I46: 288.0945 | J46: 288.0945 | K46: 0 | L46: 374.52285 | M46: 17880.47929 | N46: 72.84728593 | O46: 18327.84943
A47: 43 | B47: 7533 | C47: 3841.26 | D47: 3841.26 | E47: 7533 | F47: 0.075 | G47: 0.075 | H47: 0 | I47: 288.0945 | J47: 288.0945 | K47: 0 | L47: 374.52285 | M47: 18327.84943 | N47: 74.66992725 | O47: 18777.0422
A48: 44 | B48: 7533 | C48: 3841.26 | D48: 3841.26 | E48: 7533 | F48: 0.075 | G48: 0.075 | H48: 0 | I48: 288.0945 | J48: 288.0945 | K48: 0 | L48: 374.52285 | M48: 18777.0422 | N48: 76.49999422 | O48: 19228.06505
A49: 45 | B49: 7533 | C49: 3841.26 | D49: 3841.26 | E49: 7533 | F49: 0.075 | G49: 0.075 | H49: 0 | I49: 288.0945 | J49: 288.0945 | K49: 0 | L49: 374.52285 | M49: 19228.06505 | N49: 78.33751712 | O49: 19680.92541
A50: 46 | B50: 7533 | C50: 3841.26 | D50: 3841.26 | E50: 7533 | F50: 0.075 | G50: 0.075 | H50: 0 | I50: 288.0945 | J50: 288.0945 | K50: 0 | L50: 374.52285 | M50: 19680.92541 | N50: 80.18252631 | O50: 20135.63079
A51: 47 | B51: 7533 | C51: 3841.26 | D51: 3841.26 | E51: 7533 | F51: 0.075 | G51: 0.075 | H51: 0 | I51: 288.0945 | J51: 288.0945 | K51: 0 | L51: 374.52285 | M51: 20135.63079 | N51: 82.0350523 | O51: 20592.18869
A52: 48 | B52: 7533 | C52: 3841.26 | D52: 3841.26 | E52: 7533 | F52: 0.075 | G52: 0.075 | H52: 0 | I52: 576.189 | J52: 576.189 | K52: 0 | L52: 749.0457 | M52: 20592.18869 | N52: 83.89512571 | O52: 21425.12952
A53: 49 | B53: 7533 | C53: 3841.26 | D53: 3841.26 | E53: 7533 | F53: 0.075 | G53: 0.075 | H53: 0 | I53: 288.0945 | J53: 288.0945 | K53: 0 | L53: 374.52285 | M53: 21425.12952 | N53: 87.28862974 | O53: 21886.941
A54: 50 | B54: 7533 | C54: 3841.26 | D54: 3841.26 | E54: 7533 | F54: 0.075 | G54: 0.075 | H54: 0 | I54: 288.0945 | J54: 288.0945 | K54: 0 | L54: 374.52285 | M54: 21886.941 | N54: 89.17010687 | O54: 22350.63395
A55: 51 | B55: 7533 | C55: 3841.26 | D55: 3841.26 | E55: 7533 | F55: 0.075 | G55: 0.075 | H55: 0 | I55: 288.0945 | J55: 288.0945 | K55: 0 | L55: 374.52285 | M55: 22350.63395 | N55: 91.05924937 | O55: 22816.21605
A56: 52 | B56: 7533 | C56: 3841.26 | D56: 3841.26 | E56: 7533 | F56: 0.075 | G56: 0.075 | H56: 0 | I56: 288.0945 | J56: 288.0945 | K56: 0 | L56: 374.52285 | M56: 22816.21605 | N56: 92.95608848 | O56: 23283.69499
A57: 53 | B57: 7533 | C57: 3841.26 | D57: 3841.26 | E57: 7533 | F57: 0.075 | G57: 0.075 | H57: 0 | I57: 288.0945 | J57: 288.0945 | K57: 0 | L57: 374.52285 | M57: 23283.69499 | N57: 94.86065554 | O57: 23753.0785
A58: 54 | B58: 7533 | C58: 3841.26 | D58: 3841.26 | E58: 7533 | F58: 0.075 | G58: 0.075 | H58: 0 | I58: 288.0945 | J58: 288.0945 | K58: 0 | L58: 374.52285 | M58: 23753.0785 | N58: 96.77298204 | O58: 24224.37433
A59: 55 | B59: 7533 | C59: 3841.26 | D59: 3841.26 | E59: 7533 | F59: 0.075 | G59: 0.075 | H59: 0 | I59: 288.0945 | J59: 288.0945 | K59: 0 | L59: 374.52285 | M59: 24224.37433 | N59: 98.6930996 | O59: 24697.59028
A60: 56 | B60: 7533 | C60: 3841.26 | D60: 3841.26 | E60: 7533 | F60: 0.075 | G60: 0.075 | H60: 0 | I60: 288.0945 | J60: 288.0945 | K60: 0 | L60: 374.52285 | M60: 24697.59028 | N60: 100.62104 | O60: 25172.73417
A61: 57 | B61: 7533 | C61: 3841.26 | D61: 3841.26 | E61: 7533 | F61: 0.075 | G61: 0.075 | H61: 0 | I61: 288.0945 | J61: 288.0945 | K61: 0 | L61: 374.52285 | M61: 25172.73417 | N61: 102.556835 | O61: 25649.81385
A62: 58 | B62: 7533 | C62: 3841.26 | D62: 3841.26 | E62: 7533 | F62: 0.075 | G62: 0.075 | H62: 0 | I62: 288.0945 | J62: 288.0945 | K62: 0 | L62: 374.52285 | M62: 25649.81385 | N62: 104.5005167 | O62: 26128.83722
A63: 59 | B63: 7533 | C63: 3841.26 | D63: 3841.26 | E63: 7533 | F63: 0.075 | G63: 0.075 | H63: 0 | I63: 288.0945 | J63: 288.0945 | K63: 0 | L63: 374.52285 | M63: 26128.83722 | N63: 106.4521172 | O63: 26609.81219
A64: 60 | B64: 7533 | C64: 3841.26 | D64: 3841.26 | E64: 7533 | F64: 0.075 | G64: 0.075 | H64: 0 | I64: 576.189 | J64: 576.189 | K64: 0 | L64: 749.0457 | M64: 26609.81219 | N64: 108.4116687 | O64: 27467.26956
A65: 61 | B65: 7533 | C65: 3841.26 | D65: 3841.26 | E65: 7533 | F65: 0.075 | G65: 0.075 | H65: 0 | I65: 288.0945 | J65: 288.0945 | K65: 0 | L65: 374.52285 | M65: 27467.26956 | N65: 111.9050562 | O65: 27953.69746
A66: 62 | B66: 7533 | C66: 3841.26 | D66: 3841.26 | E66: 7533 | F66: 0.075 | G66: 0.075 | H66: 0 | I66: 288.0945 | J66: 288.0945 | K66: 0 | L66: 374.52285 | M66: 27953.69746 | N66: 113.8868237 | O66: 28442.10714
A67: 63 | B67: 7533 | C67: 3841.26 | D67: 3841.26 | E67: 7533 | F67: 0.075 | G67: 0.075 | H67: 0 | I67: 288.0945 | J67: 288.0945 | K67: 0 | L67: 374.52285 | M67: 28442.10714 | N67: 115.8766651 | O67: 28932.50665
A68: 64 | B68: 7533 | C68: 3841.26 | D68: 3841.26 | E68: 7533 | F68: 0.075 | G68: 0.075 | H68: 0 | I68: 288.0945 | J68: 288.0945 | K68: 0 | L68: 374.52285 | M68: 28932.50665 | N68: 117.8746135 | O68: 29424.90412
A69: 65 | B69: =IF($A69>meses_de_contribuição,0,VLOOKUP($A69,período_contributivo,3,TRUE)) -> 7533 | C69: 3841.26 | D69: 3841.26 | E69: 7533 | F69: =RPC_alíquota_participante -> 0.075 | G69: =IF($F69>RPC_alíquota_máxima_patrocinador,RPC_alíquota_máxima_patrocinador,$F69) -> 0.075 | H69: =RPC_alíquota_contribuição_facultativa -> 0 | I69: 288.0945 | J69: 288.0945 | K69: 0 | L69: =SUM(I69:K69)*RPC_percentual_custeio_aposentadoria_acumulação -> 374.52285 | M69: 29424.90412 | N69: =$M69*IF(A69>meses_de_contribuição,0,rentabilidade_mensal) -> 119.8807017 | O69: 29919.30767
A70: =ROW()-4 -> 66 | B70: 7533 | C70: 3841.26 | D70: 3841.26 | E70: =B70 -> 7533 | F70: 0.075 | G70: 0.075 | H70: 0 | I70: =C70*F70*IF(MOD($A70,12)=0,2,1) -> 288.0945 | J70: =D70*G70*IF(MOD($A70,12)=0,2,1) -> 288.0945 | K70: =E70*H70*IF(MOD($A70,12)=0,2,1) -> 0 | L70: 374.52285 | M70: =IF($A70=1,0,O69) -> 29919.30767 | N70: 121.894963 | O70: =SUM(L70:N70) -> 30415.72548
A71: 67 | B71: 7533 | C71: 3841.26 | D71: 3841.26 | E71: 7533 | F71: 0.075 | G71: 0.075 | H71: 0 | I71: 288.0945 | J71: 288.0945 | K71: 0 | L71: 374.52285 | M71: 30415.72548 | N71: 123.9174306 | O71: 30914.16576
A72: 68 | B72: 7533 | C72: 3841.26 | D72: 3841.26 | E72: 7533 | F72: 0.075 | G72: 0.075 | H72: 0 | I72: 288.0945 | J72: 288.0945 | K72: 0 | L72: 374.52285 | M72: 30914.16576 | N72: 125.948138 | O72: 31414.63675
A73: 69 | B73: 7533 | C73: 3841.26 | D73: 3841.26 | E73: 7533 | F73: 0.075 | G73: 0.075 | H73: 0 | I73: 288.0945 | J73: 288.0945 | K73: 0 | L73: 374.52285 | M73: 31414.63675 | N73: 127.9871187 | O73: 31917.14672
A74: 70 | B74: 7533 | C74: 3841.26 | D74: 3841.26 | E74: 7533 | F74: 0.075 | G74: 0.075 | H74: 0 | I74: 288.0945 | J74: 288.0945 | K74: 0 | L74: 374.52285 | M74: 31917.14672 | N74: 130.0344065 | O74: 32421.70397
A75: 71 | B75: 7533 | C75: 3841.26 | D75: 3841.26 | E75: 7533 | F75: 0.075 | G75: 0.075 | H75: 0 | I75: 288.0945 | J75: 288.0945 | K75: 0 | L75: 374.52285 | M75: 32421.70397 | N75: 132.0900353 | O75: 32928.31686
A76: 72 | B76: 7533 | C76: 3841.26 | D76: 3841.26 | E76: 7533 | F76: 0.075 | G76: 0.075 | H76: 0 | I76: 576.189 | J76: 576.189 | K76: 0 | L76: 749.0457 | M76: 32928.31686 | N76: 134.1540389 | O76: 33811.5166
A77: 73 | B77: 7533 | C77: 3841.26 | D77: 3841.26 | E77: 7533 | F77: 0.075 | G77: 0.075 | H77: 0 | I77: 288.0945 | J77: 288.0945 | K77: 0 | L77: 374.52285 | M77: 33811.5166 | N77: 137.7523039 | O77: 34323.79175
A78: 74 | B78: 7533 | C78: 3841.26 | D78: 3841.26 | E78: 7533 | F78: 0.075 | G78: 0.075 | H78: 0 | I78: 288.0945 | J78: 288.0945 | K78: 0 | L78: 374.52285 | M78: 34323.79175 | N78: 139.8393763 | O78: 34838.15398
A79: 75 | B79: 7533 | C79: 3841.26 | D79: 3841.26 | E79: 7533 | F79: 0.075 | G79: 0.075 | H79: 0 | I79: 288.0945 | J79: 288.0945 | K79: 0 | L79: 374.52285 | M79: 34838.15398 | N79: 141.9349517 | O79: 35354.61178
A80: 76 | B80: 7533 | C80: 3841.26 | D80: 3841.26 | E80: 7533 | F80: 0.075 | G80: 0.075 | H80: 0 | I80: 288.0945 | J80: 288.0945 | K80: 0 | L80: 374.52285 | M80: 35354.61178 | N80: 144.0390647 | O80: 35873.17369
A81: 77 | B81: 7533 | C81: 3841.26 | D81: 3841.26 | E81: 7533 | F81: 0.075 | G81: 0.075 | H81: 0 | I81: 288.0945 | J81: 288.0945 | K81: 0 | L81: 374.52285 | M81: 35873.17369 | N81: 146.1517501 | O81: 36393.8483
A82: 78 | B82: 7533 | C82: 3841.26 | D82: 3841.26 | E82: 7533 | F82: 0.075 | G82: 0.075 | H82: 0 | I82: 288.0945 | J82: 288.0945 | K82: 0 | L82: 374.52285 | M82: 36393.8483 | N82: 148.2730429 | O82: 36916.64419
A83: 79 | B83: 7533 | C83: 3841.26 | D83: 3841.26 | E83: 7533 | F83: 0.075 | G83: 0.075 | H83: 0 | I83: 288.0945 | J83: 288.0945 | K83: 0 | L83: 374.52285 | M83: 36916.64419 | N83: 150.4029781 | O83: 37441.57002
A84: 80 | B84: 7533 | C84: 3841.26 | D84: 3841.26 | E84: 7533 | F84: 0.075 | G84: 0.075 | H84: 0 | I84: 288.0945 | J84: 288.0945 | K84: 0 | L84: 374.52285 | M84: 37441.57002 | N84: 152.5415909 | O84: 37968.63446
A85: 81 | B85: 7533 | C85: 3841.26 | D85: 3841.26 | E85: 7533 | F85: 0.075 | G85: 0.075 | H85: 0 | I85: 288.0945 | J85: 288.0945 | K85: 0 | L85: 374.52285 | M85: 37968.63446 | N85: 154.6889167 | O85: 38497.84622
A86: 82 | B86: 7533 | C86: 3841.26 | D86: 3841.26 | E86: 7533 | F86: 0.075 | G86: 0.075 | H86: 0 | I86: 288.0945 | J86: 288.0945 | K86: 0 | L86: 374.52285 | M86: 38497.84622 | N86: 156.8449909 | O86: 39029.21406
A87: 83 | B87: 7533 | C87: 3841.26 | D87: 3841.26 | E87: 7533 | F87: 0.075 | G87: 0.075 | H87: 0 | I87: 288.0945 | J87: 288.0945 | K87: 0 | L87: 374.52285 | M87: 39029.21406 | N87: 159.0098493 | O87: 39562.74676
A88: 84 | B88: 7533 | C88: 3841.26 | D88: 3841.26 | E88: 7533 | F88: 0.075 | G88: 0.075 | H88: 0 | I88: 576.189 | J88: 576.189 | K88: 0 | L88: 749.0457 | M88: 39562.74676 | N88: 161.1835275 | O88: 40472.97599
A89: 85 | B89: 7533 | C89: =IF($B89<RGPS_limite_máximo_valor_benefício,0,$B89-RGPS_limite_máximo_valor_benefício) -> 3841.26 | D89: 3841.26 | E89: 7533 | F89: 0.075 | G89: 0.075 | H89: 0 | I89: 288.0945 | J89: 288.0945 | K89: 0 | L89: 374.52285 | M89: 40472.97599 | N89: 164.8919141 | O89: 41012.39076
A90: 86 | B90: 7533 | C90: 3841.26 | D90: 3841.26 | E90: 7533 | F90: 0.075 | G90: 0.075 | H90: 0 | I90: 288.0945 | J90: 288.0945 | K90: 0 | L90: 374.52285 | M90: 41012.39076 | N90: 167.0895566 | O90: 41554.00316
A91: 87 | B91: 7533 | C91: 3841.26 | D91: 3841.26 | E91: 7533 | F91: 0.075 | G91: 0.075 | H91: 0 | I91: 288.0945 | J91: 288.0945 | K91: 0 | L91: 374.52285 | M91: 41554.00316 | N91: 169.2961526 | O91: 42097.82216
A92: 88 | B92: 7533 | C92: 3841.26 | D92: 3841.26 | E92: 7533 | F92: 0.075 | G92: 0.075 | H92: 0 | I92: 288.0945 | J92: 288.0945 | K92: 0 | L92: 374.52285 | M92: 42097.82216 | N92: 171.5117385 | O92: 42643.85675
A93: 89 | B93: 7533 | C93: 3841.26 | D93: 3841.26 | E93: 7533 | F93: 0.075 | G93: 0.075 | H93: 0 | I93: 288.0945 | J93: 288.0945 | K93: 0 | L93: 374.52285 | M93: 42643.85675 | N93: 173.736351 | O93: 43192.11595
A94: 90 | B94: 7533 | C94: 3841.26 | D94: 3841.26 | E94: 7533 | F94: 0.075 | G94: 0.075 | H94: 0 | I94: 288.0945 | J94: 288.0945 | K94: 0 | L94: 374.52285 | M94: 43192.11595 | N94: 175.9700269 | O94: 43742.60883
A95: 91 | B95: 7533 | C95: 3841.26 | D95: 3841.26 | E95: 7533 | F95: 0.075 | G95: 0.075 | H95: 0 | I95: 288.0945 | J95: 288.0945 | K95: 0 | L95: 374.52285 | M95: 43742.60883 | N95: 178.212803 | O95: 44295.34448
A96: 92 | B96: 7533 | C96: 3841.26 | D96: 3841.26 | E96: 7533 | F96: 0.075 | G96: 0.075 | H96: 0 | I96: 288.0945 | J96: 288.0945 | K96: 0 | L96: 374.52285 | M96: 44295.34448 | N96: 180.4647165 | O96: 44850.33205
A97: 93 | B97: 7533 | C97: 3841.26 | D97: 3841.26 | E97: 7533 | F97: 0.075 | G97: 0.075 | H97: 0 | I97: 288.0945 | J97: 288.0945 | K97: 0 | L97: 374.52285 | M97: 44850.33205 | N97: 182.7258045 | O97: 45407.5807
A98: 94 | B98: 7533 | C98: 3841.26 | D98: 3841.26 | E98: 7533 | F98: 0.075 | G98: 0.075 | H98: 0 | I98: 288.0945 | J98: 288.0945 | K98: 0 | L98: 374.52285 | M98: 45407.5807 | N98: 184.9961045 | O98: 45967.09966
A99: 95 | B99: 7533 | C99: 3841.26 | D99: 3841.26 | E99: 7533 | F99: 0.075 | G99: 0.075 | H99: 0 | I99: 288.0945 | J99: 288.0945 | K99: 0 | L99: 374.52285 | M99: 45967.09966 | N99: 187.275654 | O99: 46528.89816
A100: 96 | B100: 7533 | C100: 3841.26 | D100: 3841.26 | E100: 7533 | F100: 0.075 | G100: 0.075 | H100: 0 | I100: 576.189 | J100: 576.189 | K100: 0 | L100: 749.0457 | M100: 46528.89816 | N100: 189.5644906 | O100: 47467.50835
A101: 97 | B101: 7533 | C101: 3841.26 | D101: 3841.26 | E101: 7533 | F101: 0.075 | G101: 0.075 | H101: 0 | I101: 288.0945 | J101: 288.0945 | K101: 0 | L101: 374.52285 | M101: 47467.50835 | N101: 193.3885047 | O101: 48035.41971
A102: 98 | B102: 7533 | C102: 3841.26 | D102: 3841.26 | E102: 7533 | F102: 0.075 | G102: 0.075 | H102: 0 | I102: 288.0945 | J102: 288.0945 | K102: 0 | L102: 374.52285 | M102: 48035.41971 | N102: 195.7022459 | O102: 48605.6448
A103: 99 | B103: 7533 | C103: 3841.26 | D103: 3841.26 | E103: 7533 | F103: 0.075 | G103: 0.075 | H103: 0 | I103: 288.0945 | J103: 288.0945 | K103: 0 | L103: 374.52285 | M103: 48605.6448 | N103: 198.0254135 | O103: 49178.19307
A104: 100 | B104: 7533 | C104: 3841.26 | D104: 3841.26 | E104: 7533 | F104: 0.075 | G104: 0.075 | H104: 0 | I104: 288.0945 | J104: 288.0945 | K104: 0 | L104: 374.52285 | M104: 49178.19307 | N104: 200.358046 | O104: 49753.07396
A105: 101 | B105: 7533 | C105: 3841.26 | D105: 3841.26 | E105: 7533 | F105: 0.075 | G105: 0.075 | H105: 0 | I105: 288.0945 | J105: 288.0945 | K105: 0 | L105: 374.52285 | M105: 49753.07396 | N105: 202.7001819 | O105: 50330.297
A106: 102 | B106: 7533 | C106: 3841.26 | D106: 3841.26 | E106: 7533 | F106: 0.075 | G106: 0.075 | H106: 0 | I106: 288.0945 | J106: 288.0945 | K106: 0 | L106: 374.52285 | M106: 50330.297 | N106: 205.05186 | O106: 50909.87171
A107: 103 | B107: 7533 | C107: 3841.26 | D107: 3841.26 | E107: 7533 | F107: 0.075 | G107: 0.075 | H107: 0 | I107: 288.0945 | J107: 288.0945 | K107: 0 | L107: 374.52285 | M107: 50909.87171 | N107: 207.4131191 | O107: 51491.80768
A108: 104 | B108: 7533 | C108: 3841.26 | D108: 3841.26 | E108: 7533 | F108: 0.075 | G108: 0.075 | H108: 0 | I108: 288.0945 | J108: 288.0945 | K108: 0 | L108: 374.52285 | M108: 51491.80768 | N108: 209.7839983 | O108: 52076.11452
A109: 105 | B109: 7533 | C109: 3841.26 | D109: 3841.26 | E109: 7533 | F109: 0.075 | G109: 0.075 | H109: 0 | I109: 288.0945 | J109: 288.0945 | K109: 0 | L109: 374.52285 | M109: 52076.11452 | N109: 212.1645367 | O109: 52662.80191
A110: 106 | B110: 7533 | C110: 3841.26 | D110: 3841.26 | E110: 7533 | F110: 0.075 | G110: 0.075 | H110: 0 | I110: 288.0945 | J110: 288.0945 | K110: 0 | L110: 374.52285 | M110: 52662.80191 | N110: 214.5547738 | O110: 53251.87953
A111: 107 | B111: 7533 | C111: 3841.26 | D111: 3841.26 | E111: 7533 | F111: 0.075 | G111: 0.075 | H111: 0 | I111: 288.0945 | J111: 288.0945 | K111: 0 | L111: 374.52285 | M111: 53251.87953 | N111: 216.9547489 | O111: 53843.35713
A112: 108 | B112: 7533 | C112: 3841.26 | D112: 3841.26 | E112: 7533 | F112: 0.075 | G112: 0.075 | H112: 0 | I112: 576.189 | J112: 576.189 | K112: 0 | L112: 749.0457 | M112: 53843.35713 | N112: 219.3645019 | O112: 54811.76734
A113: 109 | B113: 7533 | C113: 3841.26 | D113: 3841.26 | E113: 7533 | F113: 0.075 | G113: 0.075 | H113: 0 | I113: 288.0945 | J113: 288.0945 | K113: 0 | L113: 374.52285 | M113: 54811.76734 | N113: 223.3099249 | O113: 55409.60011
A114: 110 | B114: 7533 | C114: 3841.26 | D114: 3841.26 | E114: 7533 | F114: 0.075 | G114: 0.075 | H114: 0 | I114: 288.0945 | J114: 288.0945 | K114: 0 | L114: 374.52285 | M114: 55409.60011 | N114: 225.7455697 | O114: 56009.86853
A115: 111 | B115: 7533 | C115: 3841.26 | D115: 3841.26 | E115: 7533 | F115: 0.075 | G115: 0.075 | H115: 0 | I115: 288.0945 | J115: 288.0945 | K115: 0 | L115: 374.52285 | M115: 56009.86853 | N115: 228.1911375 | O115: 56612.58252
A116: 112 | B116: 7533 | C116: 3841.26 | D116: 3841.26 | E116: 7533 | F116: 0.075 | G116: 0.075 | H116: 0 | I116: 288.0945 | J116: 288.0945 | K116: 0 | L116: 374.52285 | M116: 56612.58252 | N116: 230.6466689 | O116: 57217.75204
A117: 113 | B117: 7533 | C117: 3841.26 | D117: 3841.26 | E117: 7533 | F117: 0.075 | G117: 0.075 | H117: 0 | I117: 288.0945 | J117: 288.0945 | K117: 0 | L117: 374.52285 | M117: 57217.75204 | N117: 233.1122044 | O117: 57825.38709
A118: 114 | B118: 7533 | C118: 3841.26 | D118: 3841.26 | E118: 7533 | F118: 0.075 | G118: 0.075 | H118: 0 | I118: 288.0945 | J118: 288.0945 | K118: 0 | L118: 374.52285 | M118: 57825.38709 | N118: 235.5877848 | O118: 58435.49773
A119: 115 | B119: 7533 | C119: 3841.26 | D119: 3841.26 | E119: 7533 | F119: 0.075 | G119: 0.075 | H119: 0 | I119: 288.0945 | J119: 288.0945 | K119: 0 | L119: 374.52285 | M119: 58435.49773 | N119: 238.0734511 | O119: 59048.09403
A120: 116 | B120: 7533 | C120: 3841.26 | D120: 3841.26 | E120: 7533 | F120: 0.075 | G120: 0.075 | H120: 0 | I120: 288.0945 | J120: 288.0945 | K120: 0 | L120: 374.52285 | M120: 59048.09403 | N120: 240.5692443 | O120: 59663.18612
A121: 117 | B121: 7533 | C121: 3841.26 | D121: 3841.26 | E121: 7533 | F121: 0.075 | G121: 0.075 | H121: 0 | I121: 288.0945 | J121: 288.0945 | K121: 0 | L121: 374.52285 | M121: 59663.18612 | N121: 243.0752056 | O121: 60280.78418
A122: 118 | B122: 7533 | C122: 3841.26 | D122: 3841.26 | E122: 7533 | F122: 0.075 | G122: 0.075 | H122: 0 | I122: 288.0945 | J122: 288.0945 | K122: 0 | L122: 374.52285 | M122: 60280.78418 | N122: 245.5913765 | O122: 60900.8984
A123: 119 | B123: 7533 | C123: 3841.26 | D123: 3841.26 | E123: 7533 | F123: 0.075 | G123: 0.075 | H123: 0 | I123: 288.0945 | J123: 288.0945 | K123: 0 | L123: 374.52285 | M123: 60900.8984 | N123: 248.1177986 | O123: 61523.53905
A124: 120 | B124: 7533 | C124: 3841.26 | D124: 3841.26 | E124: 7533 | F124: 0.075 | G124: 0.075 | H124: 0 | I124: 576.189 | J124: 576.189 | K124: 0 | L124: 749.0457 | M124: 61523.53905 | N124: 250.6545137 | O124: 62523.23927
A125: 121 | B125: 7533 | C125: 3841.26 | D125: 3841.26 | E125: 7533 | F125: 0.075 | G125: 0.075 | H125: 0 | I125: 288.0945 | J125: 288.0945 | K125: 0 | L125: 374.52285 | M125: 62523.23927 | N125: 254.7274161 | O125: 63152.48953
A126: 122 | B126: 7533 | C126: 3841.26 | D126: 3841.26 | E126: 7533 | F126: 0.075 | G126: 0.075 | H126: 0 | I126: 288.0945 | J126: 288.0945 | K126: 0 | L126: 374.52285 | M126: 63152.48953 | N126: 257.2910596 | O126: 63784.30344
A127: 123 | B127: 7533 | C127: 3841.26 | D127: 3841.26 | E127: 7533 | F127: 0.075 | G127: 0.075 | H127: 0 | I127: 288.0945 | J127: 288.0945 | K127: 0 | L127: 374.52285 | M127: 63784.30344 | N127: 259.8651477 | O127: 64418.69144
A128: 124 | B128: 7533 | C128: 3841.26 | D128: 3841.26 | E128: 7533 | F128: 0.075 | G128: 0.075 | H128: 0 | I128: 288.0945 | J128: 288.0945 | K128: 0 | L128: 374.52285 | M128: 64418.69144 | N128: 262.4497229 | O128: 65055.66401
A129: 125 | B129: 7533 | C129: 3841.26 | D129: 3841.26 | E129: 7533 | F129: 0.075 | G129: 0.075 | H129: 0 | I129: 288.0945 | J129: 288.0945 | K129: 0 | L129: 374.52285 | M129: 65055.66401 | N129: 265.044828 | O129: 65695.23169
A130: 126 | B130: 7533 | C130: 3841.26 | D130: 3841.26 | E130: 7533 | F130: 0.075 | G130: 0.075 | H130: 0 | I130: 288.0945 | J130: 288.0945 | K130: 0 | L130: 374.52285 | M130: 65695.23169 | N130: 267.6505059 | O130: 66337.40505
A131: 127 | B131: 7533 | C131: 3841.26 | D131: 3841.26 | E131: 7533 | F131: 0.075 | G131: 0.075 | H131: 0 | I131: 288.0945 | J131: 288.0945 | K131: 0 | L131: 374.52285 | M131: 66337.40505 | N131: 270.2667996 | O131: 66982.19469
A132: 128 | B132: 7533 | C132: 3841.26 | D132: 3841.26 | E132: 7533 | F132: 0.075 | G132: 0.075 | H132: 0 | I132: 288.0945 | J132: 288.0945 | K132: 0 | L132: 374.52285 | M132: 66982.19469 | N132: 272.8937525 | O132: 67629.6113
A133: 129 | B133: =IF($A133>meses_de_contribuição,0,VLOOKUP($A133,período_contributivo,3,TRUE)) -> 7533 | C133: 3841.26 | D133: 3841.26 | E133: 7533 | F133: =RPC_alíquota_participante -> 0.075 | G133: =IF($F133>RPC_alíquota_máxima_patrocinador,RPC_alíquota_máxima_patrocinador,$F133) -> 0.075 | H133: =RPC_alíquota_contribuição_facultativa -> 0 | I133: 288.0945 | J133: 288.0945 | K133: 0 | L133: =SUM(I133:K133)*RPC_percentual_custeio_aposentadoria_acumulação -> 374.52285 | M133: 67629.6113 | N133: =$M133*IF(A133>meses_de_contribuição,0,rentabilidade_mensal) -> 275.5314079 | O133: 68279.66556
A134: =ROW()-4 -> 130 | B134: 7533 | C134: 3841.26 | D134: 3841.26 | E134: =B134 -> 7533 | F134: 0.075 | G134: 0.075 | H134: 0 | I134: =C134*F134*IF(MOD($A134,12)=0,2,1) -> 288.0945 | J134: =D134*G134*IF(MOD($A134,12)=0,2,1) -> 288.0945 | K134: =E134*H134*IF(MOD($A134,12)=0,2,1) -> 0 | L134: 374.52285 | M134: =IF($A134=1,0,O133) -> 68279.66556 | N134: 278.1798094 | O134: =SUM(L134:N134) -> 68932.36821
A135: 131 | B135: 7533 | C135: 3841.26 | D135: 3841.26 | E135: 7533 | F135: 0.075 | G135: 0.075 | H135: 0 | I135: 288.0945 | J135: 288.0945 | K135: 0 | L135: 374.52285 | M135: 68932.36821 | N135: 280.8390008 | O135: 69587.73007
A136: 132 | B136: 7533 | C136: 3841.26 | D136: 3841.26 | E136: 7533 | F136: 0.075 | G136: 0.075 | H136: 0 | I136: 576.189 | J136: 576.189 | K136: 0 | L136: 749.0457 | M136: 69587.73007 | N136: 283.5090261 | O136: 70620.28479
A137: 133 | B137: 7533 | C137: 3841.26 | D137: 3841.26 | E137: 7533 | F137: 0.075 | G137: 0.075 | H137: 0 | I137: 288.0945 | J137: 288.0945 | K137: 0 | L137: 374.52285 | M137: 70620.28479 | N137: 287.7157819 | O137: 71282.52342
A138: 134 | B138: 7533 | C138: 3841.26 | D138: 3841.26 | E138: 7533 | F138: 0.075 | G138: 0.075 | H138: 0 | I138: 288.0945 | J138: 288.0945 | K138: 0 | L138: 374.52285 | M138: 71282.52342 | N138: 290.413824 | O138: 71947.4601
A139: 135 | B139: 7533 | C139: 3841.26 | D139: 3841.26 | E139: 7533 | F139: 0.075 | G139: 0.075 | H139: 0 | I139: 288.0945 | J139: 288.0945 | K139: 0 | L139: 374.52285 | M139: 71947.4601 | N139: 293.1228584 | O139: 72615.10581
A140: 136 | B140: 7533 | C140: 3841.26 | D140: 3841.26 | E140: 7533 | F140: 0.075 | G140: 0.075 | H140: 0 | I140: 288.0945 | J140: 288.0945 | K140: 0 | L140: 374.52285 | M140: 72615.10581 | N140: 295.8429296 | O140: 73285.47159
A141: 137 | B141: 7533 | C141: 3841.26 | D141: 3841.26 | E141: 7533 | F141: 0.075 | G141: 0.075 | H141: 0 | I141: 288.0945 | J141: 288.0945 | K141: 0 | L141: 374.52285 | M141: 73285.47159 | N141: 298.5740828 | O141: 73958.56852
A142: 138 | B142: 7533 | C142: 3841.26 | D142: 3841.26 | E142: 7533 | F142: 0.075 | G142: 0.075 | H142: 0 | I142: 288.0945 | J142: 288.0945 | K142: 0 | L142: 374.52285 | M142: 73958.56852 | N142: 301.316363 | O142: 74634.40773
A143: 139 | B143: 7533 | C143: 3841.26 | D143: 3841.26 | E143: 7533 | F143: 0.075 | G143: 0.075 | H143: 0 | I143: 288.0945 | J143: 288.0945 | K143: 0 | L143: 374.52285 | M143: 74634.40773 | N143: 304.0698156 | O143: 75313.0004
A144: 140 | B144: 7533 | C144: 3841.26 | D144: 3841.26 | E144: 7533 | F144: 0.075 | G144: 0.075 | H144: 0 | I144: 288.0945 | J144: 288.0945 | K144: 0 | L144: 374.52285 | M144: 75313.0004 | N144: 306.8344861 | O144: 75994.35773
A145: 141 | B145: 7533 | C145: 3841.26 | D145: 3841.26 | E145: 7533 | F145: 0.075 | G145: 0.075 | H145: 0 | I145: 288.0945 | J145: 288.0945 | K145: 0 | L145: 374.52285 | M145: 75994.35773 | N145: 309.6104203 | O145: 76678.491
A146: 142 | B146: 7533 | C146: 3841.26 | D146: 3841.26 | E146: 7533 | F146: 0.075 | G146: 0.075 | H146: 0 | I146: 288.0945 | J146: 288.0945 | K146: 0 | L146: 374.52285 | M146: 76678.491 | N146: 312.3976639 | O146: 77365.41152
A147: 143 | B147: 7533 | C147: 3841.26 | D147: 3841.26 | E147: 7533 | F147: 0.075 | G147: 0.075 | H147: 0 | I147: 288.0945 | J147: 288.0945 | K147: 0 | L147: 374.52285 | M147: 77365.41152 | N147: 315.1962631 | O147: 78055.13063
A148: 144 | B148: 7533 | C148: 3841.26 | D148: 3841.26 | E148: 7533 | F148: 0.075 | G148: 0.075 | H148: 0 | I148: 576.189 | J148: 576.189 | K148: 0 | L148: 749.0457 | M148: 78055.13063 | N148: 318.0062641 | O148: 79122.18259
A149: 145 | B149: 7533 | C149: 3841.26 | D149: 3841.26 | E149: 7533 | F149: 0.075 | G149: 0.075 | H149: 0 | I149: 288.0945 | J149: 288.0945 | K149: 0 | L149: 374.52285 | M149: 79122.18259 | N149: 322.3535659 | O149: 79819.05901
A150: 146 | B150: 7533 | C150: 3841.26 | D150: 3841.26 | E150: 7533 | F150: 0.075 | G150: 0.075 | H150: 0 | I150: 288.0945 | J150: 288.0945 | K150: 0 | L150: 374.52285 | M150: 79819.05901 | N150: 325.1927267 | O150: 80518.77459
A151: 147 | B151: 7533 | C151: 3841.26 | D151: 3841.26 | E151: 7533 | F151: 0.075 | G151: 0.075 | H151: 0 | I151: 288.0945 | J151: 288.0945 | K151: 0 | L151: 374.52285 | M151: 80518.77459 | N151: 328.0434546 | O151: 81221.34089
A152: 148 | B152: 7533 | C152: 3841.26 | D152: 3841.26 | E152: 7533 | F152: 0.075 | G152: 0.075 | H152: 0 | I152: 288.0945 | J152: 288.0945 | K152: 0 | L152: 374.52285 | M152: 81221.34089 | N152: 330.9057967 | O152: 81926.76954
A153: 149 | B153: 7533 | C153: =IF($B153<RGPS_limite_máximo_valor_benefício,0,$B153-RGPS_limite_máximo_valor_benefício) -> 3841.26 | D153: 3841.26 | E153: 7533 | F153: 0.075 | G153: 0.075 | H153: 0 | I153: 288.0945 | J153: 288.0945 | K153: 0 | L153: 374.52285 | M153: 81926.76954 | N153: 333.7798003 | O153: 82635.07219
A154: 150 | B154: 7533 | C154: 3841.26 | D154: 3841.26 | E154: 7533 | F154: 0.075 | G154: 0.075 | H154: 0 | I154: 288.0945 | J154: 288.0945 | K154: 0 | L154: 374.52285 | M154: 82635.07219 | N154: 336.665513 | O154: 83346.26055
A155: 151 | B155: 7533 | C155: 3841.26 | D155: 3841.26 | E155: 7533 | F155: 0.075 | G155: 0.075 | H155: 0 | I155: 288.0945 | J155: 288.0945 | K155: 0 | L155: 374.52285 | M155: 83346.26055 | N155: 339.5629824 | O155: 84060.34638
A156: 152 | B156: 7533 | C156: 3841.26 | D156: 3841.26 | E156: 7533 | F156: 0.075 | G156: 0.075 | H156: 0 | I156: 288.0945 | J156: 288.0945 | K156: 0 | L156: 374.52285 | M156: 84060.34638 | N156: 342.4722565 | O156: 84777.34149
A157: 153 | B157: 7533 | C157: 3841.26 | D157: 3841.26 | E157: 7533 | F157: 0.075 | G157: 0.075 | H157: 0 | I157: 288.0945 | J157: 288.0945 | K157: 0 | L157: 374.52285 | M157: 84777.34149 | N157: 345.3933833 | O157: 85497.25772
A158: 154 | B158: 7533 | C158: 3841.26 | D158: 3841.26 | E158: 7533 | F158: 0.075 | G158: 0.075 | H158: 0 | I158: 288.0945 | J158: 288.0945 | K158: 0 | L158: 374.52285 | M158: 85497.25772 | N158: 348.3264111 | O158: 86220.10698
A159: 155 | B159: 7533 | C159: 3841.26 | D159: 3841.26 | E159: 7533 | F159: 0.075 | G159: 0.075 | H159: 0 | I159: 288.0945 | J159: 288.0945 | K159: 0 | L159: 374.52285 | M159: 86220.10698 | N159: 351.2713885 | O159: 86945.90122
A160: 156 | B160: 7533 | C160: 3841.26 | D160: 3841.26 | E160: 7533 | F160: 0.075 | G160: 0.075 | H160: 0 | I160: 576.189 | J160: 576.189 | K160: 0 | L160: 749.0457 | M160: 86945.90122 | N160: 354.2283641 | O160: 88049.17529
A161: 157 | B161: 7533 | C161: 3841.26 | D161: 3841.26 | E161: 7533 | F161: 0.075 | G161: 0.075 | H161: 0 | I161: 288.0945 | J161: 288.0945 | K161: 0 | L161: 374.52285 | M161: 88049.17529 | N161: 358.7232392 | O161: 88782.42138
A162: 158 | B162: 7533 | C162: 3841.26 | D162: 3841.26 | E162: 7533 | F162: 0.075 | G162: 0.075 | H162: 0 | I162: 288.0945 | J162: 288.0945 | K162: 0 | L162: 374.52285 | M162: 88782.42138 | N162: 361.7105745 | O162: 89518.6548
A163: 159 | B163: 7533 | C163: 3841.26 | D163: 3841.26 | E163: 7533 | F163: 0.075 | G163: 0.075 | H163: 0 | I163: 288.0945 | J163: 288.0945 | K163: 0 | L163: 374.52285 | M163: 89518.6548 | N163: 364.7100806 | O163: 90257.88773
A164: 160 | B164: 7533 | C164: 3841.26 | D164: 3841.26 | E164: 7533 | F164: 0.075 | G164: 0.075 | H164: 0 | I164: 288.0945 | J164: 288.0945 | K164: 0 | L164: 374.52285 | M164: 90257.88773 | N164: 367.7218071 | O164: 91000.13239
A165: 161 | B165: 7533 | C165: 3841.26 | D165: 3841.26 | E165: 7533 | F165: 0.075 | G165: 0.075 | H165: 0 | I165: 288.0945 | J165: 288.0945 | K165: 0 | L165: 374.52285 | M165: 91000.13239 | N165: 370.7458037 | O165: 91745.40104
A166: 162 | B166: 7533 | C166: 3841.26 | D166: 3841.26 | E166: 7533 | F166: 0.075 | G166: 0.075 | H166: 0 | I166: 288.0945 | J166: 288.0945 | K166: 0 | L166: 374.52285 | M166: 91745.40104 | N166: 373.7821204 | O166: 92493.70601
A167: 163 | B167: 7533 | C167: 3841.26 | D167: 3841.26 | E167: 7533 | F167: 0.075 | G167: 0.075 | H167: 0 | I167: 288.0945 | J167: 288.0945 | K167: 0 | L167: 374.52285 | M167: 92493.70601 | N167: 376.8308075 | O167: 93245.05967
A168: 164 | B168: 7533 | C168: 3841.26 | D168: 3841.26 | E168: 7533 | F168: 0.075 | G168: 0.075 | H168: 0 | I168: 288.0945 | J168: 288.0945 | K168: 0 | L168: 374.52285 | M168: 93245.05967 | N168: 379.8919153 | O168: 93999.47444
A169: 165 | B169: 7533 | C169: 3841.26 | D169: 3841.26 | E169: 7533 | F169: 0.075 | G169: 0.075 | H169: 0 | I169: 288.0945 | J169: 288.0945 | K169: 0 | L169: 374.52285 | M169: 93999.47444 | N169: 382.9654944 | O169: 94756.96278
A170: 166 | B170: 7533 | C170: 3841.26 | D170: 3841.26 | E170: 7533 | F170: 0.075 | G170: 0.075 | H170: 0 | I170: 288.0945 | J170: 288.0945 | K170: 0 | L170: 374.52285 | M170: 94756.96278 | N170: 386.0515957 | O170: 95517.53723
A171: 167 | B171: 7533 | C171: 3841.26 | D171: 3841.26 | E171: 7533 | F171: 0.075 | G171: 0.075 | H171: 0 | I171: 288.0945 | J171: 288.0945 | K171: 0 | L171: 374.52285 | M171: 95517.53723 | N171: 389.1502702 | O171: 96281.21035
A172: 168 | B172: 7533 | C172: 3841.26 | D172: 3841.26 | E172: 7533 | F172: 0.075 | G172: 0.075 | H172: 0 | I172: 576.189 | J172: 576.189 | K172: 0 | L172: 749.0457 | M172: 96281.21035 | N172: 392.261569 | O172: 97422.51761
A173: 169 | B173: 7533 | C173: 3841.26 | D173: 3841.26 | E173: 7533 | F173: 0.075 | G173: 0.075 | H173: 0 | I173: 288.0945 | J173: 288.0945 | K173: 0 | L173: 374.52285 | M173: 97422.51761 | N173: 396.9113961 | O173: 98193.95186
A174: 170 | B174: 7533 | C174: 3841.26 | D174: 3841.26 | E174: 7533 | F174: 0.075 | G174: 0.075 | H174: 0 | I174: 288.0945 | J174: 288.0945 | K174: 0 | L174: 374.52285 | M174: 98193.95186 | N174: 400.0543147 | O174: 98968.52903
A175: 171 | B175: 7533 | C175: 3841.26 | D175: 3841.26 | E175: 7533 | F175: 0.075 | G175: 0.075 | H175: 0 | I175: 288.0945 | J175: 288.0945 | K175: 0 | L175: 374.52285 | M175: 98968.52903 | N175: 403.2100379 | O175: 99746.26191
A176: 172 | B176: 7533 | C176: 3841.26 | D176: 3841.26 | E176: 7533 | F176: 0.075 | G176: 0.075 | H176: 0 | I176: 288.0945 | J176: 288.0945 | K176: 0 | L176: 374.52285 | M176: 99746.26191 | N176: 406.378618 | O176: 100527.1634
A177: 173 | B177: 7533 | C177: 3841.26 | D177: 3841.26 | E177: 7533 | F177: 0.075 | G177: 0.075 | H177: 0 | I177: 288.0945 | J177: 288.0945 | K177: 0 | L177: 374.52285 | M177: 100527.1634 | N177: 409.5601072 | O177: 101311.2463
A178: 174 | B178: 7533 | C178: 3841.26 | D178: 3841.26 | E178: 7533 | F178: 0.075 | G178: 0.075 | H178: 0 | I178: 288.0945 | J178: 288.0945 | K178: 0 | L178: 374.52285 | M178: 101311.2463 | N178: 412.7545583 | O178: 102098.5237
A179: 175 | B179: 7533 | C179: 3841.26 | D179: 3841.26 | E179: 7533 | F179: 0.075 | G179: 0.075 | H179: 0 | I179: 288.0945 | J179: 288.0945 | K179: 0 | L179: 374.52285 | M179: 102098.5237 | N179: 415.9620239 | O179: 102889.0086
A180: 176 | B180: 7533 | C180: 3841.26 | D180: 3841.26 | E180: 7533 | F180: 0.075 | G180: 0.075 | H180: 0 | I180: 288.0945 | J180: 288.0945 | K180: 0 | L180: 374.52285 | M180: 102889.0086 | N180: 419.1825571 | O180: 103682.714
A181: 177 | B181: 7533 | C181: 3841.26 | D181: 3841.26 | E181: 7533 | F181: 0.075 | G181: 0.075 | H181: 0 | I181: 288.0945 | J181: 288.0945 | K181: 0 | L181: 374.52285 | M181: 103682.714 | N181: 422.4162112 | O181: 104479.6531
A182: 178 | B182: 7533 | C182: 3841.26 | D182: 3841.26 | E182: 7533 | F182: 0.075 | G182: 0.075 | H182: 0 | I182: 288.0945 | J182: 288.0945 | K182: 0 | L182: 374.52285 | M182: 104479.6531 | N182: 425.6630396 | O182: 105279.839
A183: 179 | B183: 7533 | C183: 3841.26 | D183: 3841.26 | E183: 7533 | F183: 0.075 | G183: 0.075 | H183: 0 | I183: 288.0945 | J183: 288.0945 | K183: 0 | L183: 374.52285 | M183: 105279.839 | N183: 428.9230959 | O183: 106083.2849
A184: 180 | B184: 7533 | C184: 3841.26 | D184: 3841.26 | E184: 7533 | F184: 0.075 | G184: 0.075 | H184: 0 | I184: 576.189 | J184: 576.189 | K184: 0 | L184: 749.0457 | M184: 106083.2849 | N184: 432.1964342 | O184: 107264.5271
A185: 181 | B185: 7533 | C185: 3841.26 | D185: 3841.26 | E185: 7533 | F185: 0.075 | G185: 0.075 | H185: 0 | I185: 288.0945 | J185: 288.0945 | K185: 0 | L185: 374.52285 | M185: 107264.5271 | N185: 437.0089608 | O185: 108076.0589
A186: 182 | B186: 7533 | C186: 3841.26 | D186: 3841.26 | E186: 7533 | F186: 0.075 | G186: 0.075 | H186: 0 | I186: 288.0945 | J186: 288.0945 | K186: 0 | L186: 374.52285 | M186: 108076.0589 | N186: 440.3152419 | O186: 108890.897
A187: 183 | B187: 7533 | C187: 3841.26 | D187: 3841.26 | E187: 7533 | F187: 0.075 | G187: 0.075 | H187: 0 | I187: 288.0945 | J187: 288.0945 | K187: 0 | L187: 374.52285 | M187: 108890.897 | N187: 443.6349931 | O187: 109709.0548
A188: 184 | B188: 7533 | C188: 3841.26 | D188: 3841.26 | E188: 7533 | F188: 0.075 | G188: 0.075 | H188: 0 | I188: 288.0945 | J188: 288.0945 | K188: 0 | L188: 374.52285 | M188: 109709.0548 | N188: 446.9682695 | O188: 110530.5459
A189: 185 | B189: 7533 | C189: 3841.26 | D189: 3841.26 | E189: 7533 | F189: 0.075 | G189: 0.075 | H189: 0 | I189: 288.0945 | J189: 288.0945 | K189: 0 | L189: 374.52285 | M189: 110530.5459 | N189: 450.315126 | O189: 111355.3839
A190: 186 | B190: 7533 | C190: 3841.26 | D190: 3841.26 | E190: 7533 | F190: 0.075 | G190: 0.075 | H190: 0 | I190: 288.0945 | J190: 288.0945 | K190: 0 | L190: 374.52285 | M190: 111355.3839 | N190: 453.675618 | O190: 112183.5824
A191: 187 | B191: 7533 | C191: 3841.26 | D191: 3841.26 | E191: 7533 | F191: 0.075 | G191: 0.075 | H191: 0 | I191: 288.0945 | J191: 288.0945 | K191: 0 | L191: 374.52285 | M191: 112183.5824 | N191: 457.0498011 | O191: 113015.155
A192: 188 | B192: 7533 | C192: 3841.26 | D192: 3841.26 | E192: 7533 | F192: 0.075 | G192: 0.075 | H192: 0 | I192: 288.0945 | J192: 288.0945 | K192: 0 | L192: 374.52285 | M192: 113015.155 | N192: 460.437731 | O192: 113850.1156
A193: 189 | B193: 7533 | C193: 3841.26 | D193: 3841.26 | E193: 7533 | F193: 0.075 | G193: 0.075 | H193: 0 | I193: 288.0945 | J193: 288.0945 | K193: 0 | L193: 374.52285 | M193: 113850.1156 | N193: 463.8394637 | O193: 114688.4779
A194: 190 | B194: 7533 | C194: 3841.26 | D194: 3841.26 | E194: 7533 | F194: 0.075 | G194: 0.075 | H194: 0 | I194: 288.0945 | J194: 288.0945 | K194: 0 | L194: 374.52285 | M194: 114688.4779 | N194: 467.2550556 | O194: 115530.2558
A195: 191 | B195: 7533 | C195: 3841.26 | D195: 3841.26 | E195: 7533 | F195: 0.075 | G195: 0.075 | H195: 0 | I195: 288.0945 | J195: 288.0945 | K195: 0 | L195: 374.52285 | M195: 115530.2558 | N195: 470.684563 | O195: 116375.4632
A196: 192 | B196: 7533 | C196: 3841.26 | D196: 3841.26 | E196: 7533 | F196: 0.075 | G196: 0.075 | H196: 0 | I196: 576.189 | J196: 576.189 | K196: 0 | L196: 749.0457 | M196: 116375.4632 | N196: 474.1280426 | O196: 117598.637
A197: 193 | B197: =IF($A197>meses_de_contribuição,0,VLOOKUP($A197,período_contributivo,3,TRUE)) -> 7533 | C197: 3841.26 | D197: 3841.26 | E197: 7533 | F197: =RPC_alíquota_participante -> 0.075 | G197: =IF($F197>RPC_alíquota_máxima_patrocinador,RPC_alíquota_máxima_patrocinador,$F197) -> 0.075 | H197: =RPC_alíquota_contribuição_facultativa -> 0 | I197: 288.0945 | J197: 288.0945 | K197: 0 | L197: =SUM(I197:K197)*RPC_percentual_custeio_aposentadoria_acumulação -> 374.52285 | M197: 117598.637 | N197: =$M197*IF(A197>meses_de_contribuição,0,rentabilidade_mensal) -> 479.1114038 | O197: 118452.2712
A198: =ROW()-4 -> 194 | B198: 7533 | C198: 3841.26 | D198: 3841.26 | E198: =B198 -> 7533 | F198: 0.075 | G198: 0.075 | H198: 0 | I198: =C198*F198*IF(MOD($A198,12)=0,2,1) -> 288.0945 | J198: =D198*G198*IF(MOD($A198,12)=0,2,1) -> 288.0945 | K198: =E198*H198*IF(MOD($A198,12)=0,2,1) -> 0 | L198: 374.52285 | M198: =IF($A198=1,0,O197) -> 118452.2712 | N198: 482.5892154 | O198: =SUM(L198:N198) -> 119309.3833
A199: 195 | B199: 7533 | C199: 3841.26 | D199: 3841.26 | E199: 7533 | F199: 0.075 | G199: 0.075 | H199: 0 | I199: 288.0945 | J199: 288.0945 | K199: 0 | L199: 374.52285 | M199: 119309.3833 | N199: 486.0811961 | O199: 120169.9873
A200: 196 | B200: 7533 | C200: 3841.26 | D200: 3841.26 | E200: 7533 | F200: 0.075 | G200: 0.075 | H200: 0 | I200: 288.0945 | J200: 288.0945 | K200: 0 | L200: 374.52285 | M200: 120169.9873 | N200: 489.5874035 | O200: 121034.0976
... 1004 more rows

Sheet 7. Acumulação RPSPF sem RPC
A1: Mês | B1: Remuneração | C1: CONTRIBUIÇÕES | M1: Saldo anterior | N1: Rendimentos | O1: Saldo atual
C2: Bases de cálculo | F2: Alíquotas | I2: Valores
C3: Normal | E3: Facultativa | F3: Normal | H3: Facultativa | I3: Normal | K3: Facultativa | L3: Custeio de aposentadoria
C4: Servidor | D4: União | F4: Servidor | G4: União | I4: Servidor | J4: União
A5: =ROW()-4 -> 1 | B5: =IF($A5>meses_de_contribuição,0,VLOOKUP($A5,período_contributivo,3,TRUE)) -> 7533 | C5: =IF($A5>meses_de_contribuição,0,$B5) -> 7533 | D5: 7533 | F5: =RPSPF_alíquota_servidor -> 0.11 | G5: =RPSPF_alíquota_União -> 0.22 | I5: =C5*F5*IF(MOD($A5,12)=0,2,1) -> 828.63 | J5: =D5*G5*IF(MOD($A5,12)=0,2,1) -> 1657.26 | L5: =SUM(I5:K5)*RPSPF_percentual_custeio_ativo -> 1615.8285 | M5: =IF($A5=1,0,O4) -> 0 | N5: =$M5*IF(OR(RPSPF_simular_rentabilidade="Não",A5>meses_de_contribuição),0,rentabilidade_mensal) -> 0 | O5: =SUM(L5:N5) -> 1615.8285
A6: =ROW()-4 -> 2 | B6: 7533 | C6: 7533 | D6: 7533 | F6: 0.11 | G6: 0.22 | I6: =C6*F6*IF(MOD($A6,12)=0,2,1) -> 828.63 | J6: =D6*G6*IF(MOD($A6,12)=0,2,1) -> 1657.26 | L6: 1615.8285 | M6: =IF($A6=1,0,O5) -> 1615.8285 | N6: 0 | O6: =SUM(L6:N6) -> 3231.657
A7: 3 | B7: 7533 | C7: 7533 | D7: 7533 | F7: 0.11 | G7: 0.22 | I7: 828.63 | J7: 1657.26 | L7: 1615.8285 | M7: 3231.657 | N7: 0 | O7: 4847.4855
A8: 4 | B8: 7533 | C8: 7533 | D8: 7533 | F8: 0.11 | G8: 0.22 | I8: 828.63 | J8: 1657.26 | L8: 1615.8285 | M8: 4847.4855 | N8: 0 | O8: 6463.314
A9: 5 | B9: 7533 | C9: 7533 | D9: 7533 | F9: 0.11 | G9: 0.22 | I9: 828.63 | J9: 1657.26 | L9: 1615.8285 | M9: 6463.314 | N9: 0 | O9: 8079.1425
A10: 6 | B10: 7533 | C10: 7533 | D10: 7533 | F10: 0.11 | G10: 0.22 | I10: 828.63 | J10: 1657.26 | L10: 1615.8285 | M10: 8079.1425 | N10: 0 | O10: 9694.971
A11: 7 | B11: 7533 | C11: 7533 | D11: 7533 | F11: 0.11 | G11: 0.22 | I11: 828.63 | J11: 1657.26 | L11: 1615.8285 | M11: 9694.971 | N11: 0 | O11: 11310.7995
A12: 8 | B12: 7533 | C12: 7533 | D12: 7533 | F12: 0.11 | G12: 0.22 | I12: 828.63 | J12: 1657.26 | L12: 1615.8285 | M12: 11310.7995 | N12: 0 | O12: 12926.628
A13: 9 | B13: 7533 | C13: 7533 | D13: 7533 | F13: 0.11 | G13: 0.22 | I13: 828.63 | J13: 1657.26 | L13: 1615.8285 | M13: 12926.628 | N13: 0 | O13: 14542.4565
A14: 10 | B14: 7533 | C14: 7533 | D14: 7533 | F14: 0.11 | G14: 0.22 | I14: 828.63 | J14: 1657.26 | L14: 1615.8285 | M14: 14542.4565 | N14: 0 | O14: 16158.285
A15: 11 | B15: 7533 | C15: 7533 | D15: 7533 | F15: 0.11 | G15: 0.22 | I15: 828.63 | J15: 1657.26 | L15: 1615.8285 | M15: 16158.285 | N15: 0 | O15: 17774.1135
A16: 12 | B16: 7533 | C16: 7533 | D16: 7533 | F16: 0.11 | G16: 0.22 | I16: 1657.26 | J16: 3314.52 | L16: 3231.657 | M16: 17774.1135 | N16: 0 | O16: 21005.7705
A17: 13 | B17: 7533 | C17: 7533 | D17: 7533 | F17: 0.11 | G17: 0.22 | I17: 828.63 | J17: 1657.26 | L17: 1615.8285 | M17: 21005.7705 | N17: 0 | O17: 22621.599
A18: 14 | B18: 7533 | C18: 7533 | D18: 7533 | F18: 0.11 | G18: 0.22 | I18: 828.63 | J18: 1657.26 | L18: 1615.8285 | M18: 22621.599 | N18: 0 | O18: 24237.4275
A19: 15 | B19: 7533 | C19: 7533 | D19: 7533 | F19: 0.11 | G19: 0.22 | I19: 828.63 | J19: 1657.26 | L19: 1615.8285 | M19: 24237.4275 | N19: 0 | O19: 25853.256
A20: 16 | B20: 7533 | C20: 7533 | D20: 7533 | F20: 0.11 | G20: 0.22 | I20: 828.63 | J20: 1657.26 | L20: 1615.8285 | M20: 25853.256 | N20: 0 | O20: 27469.0845
A21: 17 | B21: 7533 | C21: 7533 | D21: 7533 | F21: 0.11 | G21: 0.22 | I21: 828.63 | J21: 1657.26 | L21: 1615.8285 | M21: 27469.0845 | N21: 0 | O21: 29084.913
A22: 18 | B22: 7533 | C22: 7533 | D22: 7533 | F22: 0.11 | G22: 0.22 | I22: 828.63 | J22: 1657.26 | L22: 1615.8285 | M22: 29084.913 | N22: 0 | O22: 30700.7415
A23: 19 | B23: 7533 | C23: 7533 | D23: 7533 | F23: 0.11 | G23: 0.22 | I23: 828.63 | J23: 1657.26 | L23: 1615.8285 | M23: 30700.7415 | N23: 0 | O23: 32316.57
A24: 20 | B24: 7533 | C24: 7533 | D24: 7533 | F24: 0.11 | G24: 0.22 | I24: 828.63 | J24: 1657.26 | L24: 1615.8285 | M24: 32316.57 | N24: 0 | O24: 33932.3985
A25: 21 | B25: 7533 | C25: =IF($A25>meses_de_contribuição,0,$B25) -> 7533 | D25: 7533 | F25: 0.11 | G25: 0.22 | I25: 828.63 | J25: 1657.26 | L25: 1615.8285 | M25: 33932.3985 | N25: 0 | O25: 35548.227
A26: 22 | B26: 7533 | C26: 7533 | D26: 7533 | F26: 0.11 | G26: 0.22 | I26: 828.63 | J26: 1657.26 | L26: 1615.8285 | M26: 35548.227 | N26: 0 | O26: 37164.0555
A27: 23 | B27: 7533 | C27: 7533 | D27: 7533 | F27: 0.11 | G27: 0.22 | I27: 828.63 | J27: 1657.26 | L27: 1615.8285 | M27: 37164.0555 | N27: 0 | O27: 38779.884
A28: 24 | B28: 7533 | C28: 7533 | D28: 7533 | F28: 0.11 | G28: 0.22 | I28: 1657.26 | J28: 3314.52 | L28: 3231.657 | M28: 38779.884 | N28: 0 | O28: 42011.541
A29: 25 | B29: 7533 | C29: 7533 | D29: 7533 | F29: 0.11 | G29: 0.22 | I29: 828.63 | J29: 1657.26 | L29: 1615.8285 | M29: 42011.541 | N29: 0 | O29: 43627.3695
A30: 26 | B30: 7533 | C30: 7533 | D30: 7533 | F30: 0.11 | G30: 0.22 | I30: 828.63 | J30: 1657.26 | L30: 1615.8285 | M30: 43627.3695 | N30: 0 | O30: 45243.198
A31: 27 | B31: 7533 | C31: 7533 | D31: 7533 | F31: 0.11 | G31: 0.22 | I31: 828.63 | J31: 1657.26 | L31: 1615.8285 | M31: 45243.198 | N31: 0 | O31: 46859.0265
A32: 28 | B32: 7533 | C32: 7533 | D32: 7533 | F32: 0.11 | G32: 0.22 | I32: 828.63 | J32: 1657.26 | L32: 1615.8285 | M32: 46859.0265 | N32: 0 | O32: 48474.855
A33: 29 | B33: 7533 | C33: 7533 | D33: 7533 | F33: 0.11 | G33: 0.22 | I33: 828.63 | J33: 1657.26 | L33: 1615.8285 | M33: 48474.855 | N33: 0 | O33: 50090.6835
A34: 30 | B34: 7533 | C34: 7533 | D34: 7533 | F34: 0.11 | G34: 0.22 | I34: 828.63 | J34: 1657.26 | L34: 1615.8285 | M34: 50090.6835 | N34: 0 | O34: 51706.512
A35: 31 | B35: 7533 | C35: 7533 | D35: 7533 | F35: 0.11 | G35: 0.22 | I35: 828.63 | J35: 1657.26 | L35: 1615.8285 | M35: 51706.512 | N35: 0 | O35: 53322.3405
A36: 32 | B36: 7533 | C36: 7533 | D36: 7533 | F36: 0.11 | G36: 0.22 | I36: 828.63 | J36: 1657.26 | L36: 1615.8285 | M36: 53322.3405 | N36: 0 | O36: 54938.169
A37: 33 | B37: 7533 | C37: 7533 | D37: 7533 | F37: 0.11 | G37: 0.22 | I37: 828.63 | J37: 1657.26 | L37: 1615.8285 | M37: 54938.169 | N37: 0 | O37: 56553.9975
A38: 34 | B38: 7533 | C38: 7533 | D38: 7533 | F38: 0.11 | G38: 0.22 | I38: 828.63 | J38: 1657.26 | L38: 1615.8285 | M38: 56553.9975 | N38: 0 | O38: 58169.826
A39: 35 | B39: 7533 | C39: 7533 | D39: 7533 | F39: 0.11 | G39: 0.22 | I39: 828.63 | J39: 1657.26 | L39: 1615.8285 | M39: 58169.826 | N39: 0 | O39: 59785.6545
A40: 36 | B40: 7533 | C40: 7533 | D40: 7533 | F40: 0.11 | G40: 0.22 | I40: 1657.26 | J40: 3314.52 | L40: 3231.657 | M40: 59785.6545 | N40: 0 | O40: 63017.3115
A41: 37 | B41: 7533 | C41: 7533 | D41: 7533 | F41: 0.11 | G41: 0.22 | I41: 828.63 | J41: 1657.26 | L41: 1615.8285 | M41: 63017.3115 | N41: 0 | O41: 64633.14
A42: 38 | B42: 7533 | C42: 7533 | D42: 7533 | F42: 0.11 | G42: 0.22 | I42: 828.63 | J42: 1657.26 | L42: 1615.8285 | M42: 64633.14 | N42: 0 | O42: 66248.9685
A43: 39 | B43: 7533 | C43: 7533 | D43: 7533 | F43: 0.11 | G43: 0.22 | I43: 828.63 | J43: 1657.26 | L43: 1615.8285 | M43: 66248.9685 | N43: 0 | O43: 67864.797
A44: 40 | B44: 7533 | C44: 7533 | D44: 7533 | F44: 0.11 | G44: 0.22 | I44: 828.63 | J44: 1657.26 | L44: 1615.8285 | M44: 67864.797 | N44: 0 | O44: 69480.6255
A45: 41 | B45: 7533 | C45: 7533 | D45: 7533 | F45: 0.11 | G45: 0.22 | I45: 828.63 | J45: 1657.26 | L45: 1615.8285 | M45: 69480.6255 | N45: 0 | O45: 71096.454
A46: 42 | B46: 7533 | C46: 7533 | D46: 7533 | F46: 0.11 | G46: 0.22 | I46: 828.63 | J46: 1657.26 | L46: 1615.8285 | M46: 71096.454 | N46: 0 | O46: 72712.2825
A47: 43 | B47: 7533 | C47: 7533 | D47: 7533 | F47: 0.11 | G47: 0.22 | I47: 828.63 | J47: 1657.26 | L47: 1615.8285 | M47: 72712.2825 | N47: 0 | O47: 74328.111
A48: 44 | B48: 7533 | C48: 7533 | D48: 7533 | F48: 0.11 | G48: 0.22 | I48: 828.63 | J48: 1657.26 | L48: 1615.8285 | M48: 74328.111 | N48: 0 | O48: 75943.9395
A49: 45 | B49: 7533 | C49: 7533 | D49: 7533 | F49: 0.11 | G49: 0.22 | I49: 828.63 | J49: 1657.26 | L49: 1615.8285 | M49: 75943.9395 | N49: 0 | O49: 77559.768
A50: 46 | B50: 7533 | C50: 7533 | D50: 7533 | F50: 0.11 | G50: 0.22 | I50: 828.63 | J50: 1657.26 | L50: 1615.8285 | M50: 77559.768 | N50: 0 | O50: 79175.5965
A51: 47 | B51: 7533 | C51: 7533 | D51: 7533 | F51: 0.11 | G51: 0.22 | I51: 828.63 | J51: 1657.26 | L51: 1615.8285 | M51: 79175.5965 | N51: 0 | O51: 80791.425
A52: 48 | B52: 7533 | C52: 7533 | D52: 7533 | F52: 0.11 | G52: 0.22 | I52: 1657.26 | J52: 3314.52 | L52: 3231.657 | M52: 80791.425 | N52: 0 | O52: 84023.082
A53: 49 | B53: 7533 | C53: 7533 | D53: 7533 | F53: 0.11 | G53: 0.22 | I53: 828.63 | J53: 1657.26 | L53: 1615.8285 | M53: 84023.082 | N53: 0 | O53: 85638.9105
A54: 50 | B54: 7533 | C54: 7533 | D54: 7533 | F54: 0.11 | G54: 0.22 | I54: 828.63 | J54: 1657.26 | L54: 1615.8285 | M54: 85638.9105 | N54: 0 | O54: 87254.739
A55: 51 | B55: 7533 | C55: 7533 | D55: 7533 | F55: 0.11 | G55: 0.22 | I55: 828.63 | J55: 1657.26 | L55: 1615.8285 | M55: 87254.739 | N55: 0 | O55: 88870.5675
A56: 52 | B56: 7533 | C56: 7533 | D56: 7533 | F56: 0.11 | G56: 0.22 | I56: 828.63 | J56: 1657.26 | L56: 1615.8285 | M56: 88870.5675 | N56: 0 | O56: 90486.396
A57: 53 | B57: 7533 | C57: 7533 | D57: 7533 | F57: 0.11 | G57: 0.22 | I57: 828.63 | J57: 1657.26 | L57: 1615.8285 | M57: 90486.396 | N57: 0 | O57: 92102.2245
A58: 54 | B58: 7533 | C58: 7533 | D58: 7533 | F58: 0.11 | G58: 0.22 | I58: 828.63 | J58: 1657.26 | L58: 1615.8285 | M58: 92102.2245 | N58: 0 | O58: 93718.053
A59: 55 | B59: 7533 | C59: 7533 | D59: 7533 | F59: 0.11 | G59: 0.22 | I59: 828.63 | J59: 1657.26 | L59: 1615.8285 | M59: 93718.053 | N59: 0 | O59: 95333.8815
A60: 56 | B60: 7533 | C60: 7533 | D60: 7533 | F60: 0.11 | G60: 0.22 | I60: 828.63 | J60: 1657.26 | L60: 1615.8285 | M60: 95333.8815 | N60: 0 | O60: 96949.71
A61: 57 | B61: 7533 | C61: 7533 | D61: 7533 | F61: 0.11 | G61: 0.22 | I61: 828.63 | J61: 1657.26 | L61: 1615.8285 | M61: 96949.71 | N61: 0 | O61: 98565.5385
A62: 58 | B62: 7533 | C62: 7533 | D62: 7533 | F62: 0.11 | G62: 0.22 | I62: 828.63 | J62: 1657.26 | L62: 1615.8285 | M62: 98565.5385 | N62: 0 | O62: 100181.367
A63: 59 | B63: 7533 | C63: 7533 | D63: 7533 | F63: 0.11 | G63: 0.22 | I63: 828.63 | J63: 1657.26 | L63: 1615.8285 | M63: 100181.367 | N63: 0 | O63: 101797.1955
A64: 60 | B64: 7533 | C64: 7533 | D64: 7533 | F64: 0.11 | G64: 0.22 | I64: 1657.26 | J64: 3314.52 | L64: 3231.657 | M64: 101797.1955 | N64: 0 | O64: 105028.8525
A65: 61 | B65: 7533 | C65: 7533 | D65: 7533 | F65: 0.11 | G65: 0.22 | I65: 828.63 | J65: 1657.26 | L65: 1615.8285 | M65: 105028.8525 | N65: 0 | O65: 106644.681
A66: 62 | B66: 7533 | C66: 7533 | D66: 7533 | F66: 0.11 | G66: 0.22 | I66: 828.63 | J66: 1657.26 | L66: 1615.8285 | M66: 106644.681 | N66: 0 | O66: 108260.5095
A67: 63 | B67: 7533 | C67: 7533 | D67: 7533 | F67: 0.11 | G67: 0.22 | I67: 828.63 | J67: 1657.26 | L67: 1615.8285 | M67: 108260.5095 | N67: 0 | O67: 109876.338
A68: 64 | B68: 7533 | C68: 7533 | D68: 7533 | F68: 0.11 | G68: 0.22 | I68: 828.63 | J68: 1657.26 | L68: 1615.8285 | M68: 109876.338 | N68: 0 | O68: 111492.1665
A69: 65 | B69: =IF($A69>meses_de_contribuição,0,VLOOKUP($A69,período_contributivo,3,TRUE)) -> 7533 | C69: 7533 | D69: 7533 | F69: =RPSPF_alíquota_servidor -> 0.11 | G69: =RPSPF_alíquota_União -> 0.22 | I69: 828.63 | J69: 1657.26 | L69: =SUM(I69:K69)*RPSPF_percentual_custeio_ativo -> 1615.8285 | M69: 111492.1665 | N69: =$M69*IF(OR(RPSPF_simular_rentabilidade="Não",A69>meses_de_contribuição),0,rentabilidade_mensal) -> 0 | O69: 113107.995
A70: =ROW()-4 -> 66 | B70: 7533 | C70: 7533 | D70: 7533 | F70: 0.11 | G70: 0.22 | I70: =C70*F70*IF(MOD($A70,12)=0,2,1) -> 828.63 | J70: =D70*G70*IF(MOD($A70,12)=0,2,1) -> 1657.26 | L70: 1615.8285 | M70: =IF($A70=1,0,O69) -> 113107.995 | N70: 0 | O70: =SUM(L70:N70) -> 114723.8235
A71: 67 | B71: 7533 | C71: 7533 | D71: 7533 | F71: 0.11 | G71: 0.22 | I71: 828.63 | J71: 1657.26 | L71: 1615.8285 | M71: 114723.8235 | N71: 0 | O71: 116339.652
A72: 68 | B72: 7533 | C72: 7533 | D72: 7533 | F72: 0.11 | G72: 0.22 | I72: 828.63 | J72: 1657.26 | L72: 1615.8285 | M72: 116339.652 | N72: 0 | O72: 117955.4805
A73: 69 | B73: 7533 | C73: 7533 | D73: 7533 | F73: 0.11 | G73: 0.22 | I73: 828.63 | J73: 1657.26 | L73: 1615.8285 | M73: 117955.4805 | N73: 0 | O73: 119571.309
A74: 70 | B74: 7533 | C74: 7533 | D74: 7533 | F74: 0.11 | G74: 0.22 | I74: 828.63 | J74: 1657.26 | L74: 1615.8285 | M74: 119571.309 | N74: 0 | O74: 121187.1375
A75: 71 | B75: 7533 | C75: 7533 | D75: 7533 | F75: 0.11 | G75: 0.22 | I75: 828.63 | J75: 1657.26 | L75: 1615.8285 | M75: 121187.1375 | N75: 0 | O75: 122802.966
A76: 72 | B76: 7533 | C76: 7533 | D76: 7533 | F76: 0.11 | G76: 0.22 | I76: 1657.26 | J76: 3314.52 | L76: 3231.657 | M76: 122802.966 | N76: 0 | O76: 126034.623
A77: 73 | B77: 7533 | C77: 7533 | D77: 7533 | F77: 0.11 | G77: 0.22 | I77: 828.63 | J77: 1657.26 | L77: 1615.8285 | M77: 126034.623 | N77: 0 | O77: 127650.4515
A78: 74 | B78: 7533 | C78: 7533 | D78: 7533 | F78: 0.11 | G78: 0.22 | I78: 828.63 | J78: 1657.26 | L78: 1615.8285 | M78: 127650.4515 | N78: 0 | O78: 129266.28
A79: 75 | B79: 7533 | C79: 7533 | D79: 7533 | F79: 0.11 | G79: 0.22 | I79: 828.63 | J79: 1657.26 | L79: 1615.8285 | M79: 129266.28 | N79: 0 | O79: 130882.1085
A80: 76 | B80: 7533 | C80: 7533 | D80: 7533 | F80: 0.11 | G80: 0.22 | I80: 828.63 | J80: 1657.26 | L80: 1615.8285 | M80: 130882.1085 | N80: 0 | O80: 132497.937
A81: 77 | B81: 7533 | C81: 7533 | D81: 7533 | F81: 0.11 | G81: 0.22 | I81: 828.63 | J81: 1657.26 | L81: 1615.8285 | M81: 132497.937 | N81: 0 | O81: 134113.7655
A82: 78 | B82: 7533 | C82: 7533 | D82: 7533 | F82: 0.11 | G82: 0.22 | I82: 828.63 | J82: 1657.26 | L82: 1615.8285 | M82: 134113.7655 | N82: 0 | O82: 135729.594
A83: 79 | B83: 7533 | C83: 7533 | D83: 7533 | F83: 0.11 | G83: 0.22 | I83: 828.63 | J83: 1657.26 | L83: 1615.8285 | M83: 135729.594 | N83: 0 | O83: 137345.4225
A84: 80 | B84: 7533 | C84: 7533 | D84: 7533 | F84: 0.11 | G84: 0.22 | I84: 828.63 | J84: 1657.26 | L84: 1615.8285 | M84: 137345.4225 | N84: 0 | O84: 138961.251
A85: 81 | B85: 7533 | C85: 7533 | D85: 7533 | F85: 0.11 | G85: 0.22 | I85: 828.63 | J85: 1657.26 | L85: 1615.8285 | M85: 138961.251 | N85: 0 | O85: 140577.0795
A86: 82 | B86: 7533 | C86: 7533 | D86: 7533 | F86: 0.11 | G86: 0.22 | I86: 828.63 | J86: 1657.26 | L86: 1615.8285 | M86: 140577.0795 | N86: 0 | O86: 142192.908
A87: 83 | B87: 7533 | C87: 7533 | D87: 7533 | F87: 0.11 | G87: 0.22 | I87: 828.63 | J87: 1657.26 | L87: 1615.8285 | M87: 142192.908 | N87: 0 | O87: 143808.7365
A88: 84 | B88: 7533 | C88: 7533 | D88: 7533 | F88: 0.11 | G88: 0.22 | I88: 1657.26 | J88: 3314.52 | L88: 3231.657 | M88: 143808.7365 | N88: 0 | O88: 147040.3935
A89: 85 | B89: 7533 | C89: =IF($A89>meses_de_contribuição,0,$B89) -> 7533 | D89: 7533 | F89: 0.11 | G89: 0.22 | I89: 828.63 | J89: 1657.26 | L89: 1615.8285 | M89: 147040.3935 | N89: 0 | O89: 148656.222
A90: 86 | B90: 7533 | C90: 7533 | D90: 7533 | F90: 0.11 | G90: 0.22 | I90: 828.63 | J90: 1657.26 | L90: 1615.8285 | M90: 148656.222 | N90: 0 | O90: 150272.0505
A91: 87 | B91: 7533 | C91: 7533 | D91: 7533 | F91: 0.11 | G91: 0.22 | I91: 828.63 | J91: 1657.26 | L91: 1615.8285 | M91: 150272.0505 | N91: 0 | O91: 151887.879
A92: 88 | B92: 7533 | C92: 7533 | D92: 7533 | F92: 0.11 | G92: 0.22 | I92: 828.63 | J92: 1657.26 | L92: 1615.8285 | M92: 151887.879 | N92: 0 | O92: 153503.7075
A93: 89 | B93: 7533 | C93: 7533 | D93: 7533 | F93: 0.11 | G93: 0.22 | I93: 828.63 | J93: 1657.26 | L93: 1615.8285 | M93: 153503.7075 | N93: 0 | O93: 155119.536
A94: 90 | B94: 7533 | C94: 7533 | D94: 7533 | F94: 0.11 | G94: 0.22 | I94: 828.63 | J94: 1657.26 | L94: 1615.8285 | M94: 155119.536 | N94: 0 | O94: 156735.3645
A95: 91 | B95: 7533 | C95: 7533 | D95: 7533 | F95: 0.11 | G95: 0.22 | I95: 828.63 | J95: 1657.26 | L95: 1615.8285 | M95: 156735.3645 | N95: 0 | O95: 158351.193
A96: 92 | B96: 7533 | C96: 7533 | D96: 7533 | F96: 0.11 | G96: 0.22 | I96: 828.63 | J96: 1657.26 | L96: 1615.8285 | M96: 158351.193 | N96: 0 | O96: 159967.0215
A97: 93 | B97: 7533 | C97: 7533 | D97: 7533 | F97: 0.11 | G97: 0.22 | I97: 828.63 | J97: 1657.26 | L97: 1615.8285 | M97: 159967.0215 | N97: 0 | O97: 161582.85
A98: 94 | B98: 7533 | C98: 7533 | D98: 7533 | F98: 0.11 | G98: 0.22 | I98: 828.63 | J98: 1657.26 | L98: 1615.8285 | M98: 161582.85 | N98: 0 | O98: 163198.6785
A99: 95 | B99: 7533 | C99: 7533 | D99: 7533 | F99: 0.11 | G99: 0.22 | I99: 828.63 | J99: 1657.26 | L99: 1615.8285 | M99: 163198.6785 | N99: 0 | O99: 164814.507
A100: 96 | B100: 7533 | C100: 7533 | D100: 7533 | F100: 0.11 | G100: 0.22 | I100: 1657.26 | J100: 3314.52 | L100: 3231.657 | M100: 164814.507 | N100: 0 | O100: 168046.164
A101: 97 | B101: 7533 | C101: 7533 | D101: 7533 | F101: 0.11 | G101: 0.22 | I101: 828.63 | J101: 1657.26 | L101: 1615.8285 | M101: 168046.164 | N101: 0 | O101: 169661.9925
A102: 98 | B102: 7533 | C102: 7533 | D102: 7533 | F102: 0.11 | G102: 0.22 | I102: 828.63 | J102: 1657.26 | L102: 1615.8285 | M102: 169661.9925 | N102: 0 | O102: 171277.821
A103: 99 | B103: 7533 | C103: 7533 | D103: 7533 | F103: 0.11 | G103: 0.22 | I103: 828.63 | J103: 1657.26 | L103: 1615.8285 | M103: 171277.821 | N103: 0 | O103: 172893.6495
A104: 100 | B104: 7533 | C104: 7533 | D104: 7533 | F104: 0.11 | G104: 0.22 | I104: 828.63 | J104: 1657.26 | L104: 1615.8285 | M104: 172893.6495 | N104: 0 | O104: 174509.478
A105: 101 | B105: 7533 | C105: 7533 | D105: 7533 | F105: 0.11 | G105: 0.22 | I105: 828.63 | J105: 1657.26 | L105: 1615.8285 | M105: 174509.478 | N105: 0 | O105: 176125.3065
A106: 102 | B106: 7533 | C106: 7533 | D106: 7533 | F106: 0.11 | G106: 0.22 | I106: 828.63 | J106: 1657.26 | L106: 1615.8285 | M106: 176125.3065 | N106: 0 | O106: 177741.135
A107: 103 | B107: 7533 | C107: 7533 | D107: 7533 | F107: 0.11 | G107: 0.22 | I107: 828.63 | J107: 1657.26 | L107: 1615.8285 | M107: 177741.135 | N107: 0 | O107: 179356.9635
A108: 104 | B108: 7533 | C108: 7533 | D108: 7533 | F108: 0.11 | G108: 0.22 | I108: 828.63 | J108: 1657.26 | L108: 1615.8285 | M108: 179356.9635 | N108: 0 | O108: 180972.792
A109: 105 | B109: 7533 | C109: 7533 | D109: 7533 | F109: 0.11 | G109: 0.22 | I109: 828.63 | J109: 1657.26 | L109: 1615.8285 | M109: 180972.792 | N109: 0 | O109: 182588.6205
A110: 106 | B110: 7533 | C110: 7533 | D110: 7533 | F110: 0.11 | G110: 0.22 | I110: 828.63 | J110: 1657.26 | L110: 1615.8285 | M110: 182588.6205 | N110: 0 | O110: 184204.449
A111: 107 | B111: 7533 | C111: 7533 | D111: 7533 | F111: 0.11 | G111: 0.22 | I111: 828.63 | J111: 1657.26 | L111: 1615.8285 | M111: 184204.449 | N111: 0 | O111: 185820.2775
A112: 108 | B112: 7533 | C112: 7533 | D112: 7533 | F112: 0.11 | G112: 0.22 | I112: 1657.26 | J112: 3314.52 | L112: 3231.657 | M112: 185820.2775 | N112: 0 | O112: 189051.9345
A113: 109 | B113: 7533 | C113: 7533 | D113: 7533 | F113: 0.11 | G113: 0.22 | I113: 828.63 | J113: 1657.26 | L113: 1615.8285 | M113: 189051.9345 | N113: 0 | O113: 190667.763
A114: 110 | B114: 7533 | C114: 7533 | D114: 7533 | F114: 0.11 | G114: 0.22 | I114: 828.63 | J114: 1657.26 | L114: 1615.8285 | M114: 190667.763 | N114: 0 | O114: 192283.5915
A115: 111 | B115: 7533 | C115: 7533 | D115: 7533 | F115: 0.11 | G115: 0.22 | I115: 828.63 | J115: 1657.26 | L115: 1615.8285 | M115: 192283.5915 | N115: 0 | O115: 193899.42
A116: 112 | B116: 7533 | C116: 7533 | D116: 7533 | F116: 0.11 | G116: 0.22 | I116: 828.63 | J116: 1657.26 | L116: 1615.8285 | M116: 193899.42 | N116: 0 | O116: 195515.2485
A117: 113 | B117: 7533 | C117: 7533 | D117: 7533 | F117: 0.11 | G117: 0.22 | I117: 828.63 | J117: 1657.26 | L117: 1615.8285 | M117: 195515.2485 | N117: 0 | O117: 197131.077
A118: 114 | B118: 7533 | C118: 7533 | D118: 7533 | F118: 0.11 | G118: 0.22 | I118: 828.63 | J118: 1657.26 | L118: 1615.8285 | M118: 197131.077 | N118: 0 | O118: 198746.9055
A119: 115 | B119: 7533 | C119: 7533 | D119: 7533 | F119: 0.11 | G119: 0.22 | I119: 828.63 | J119: 1657.26 | L119: 1615.8285 | M119: 198746.9055 | N119: 0 | O119: 200362.734
A120: 116 | B120: 7533 | C120: 7533 | D120: 7533 | F120: 0.11 | G120: 0.22 | I120: 828.63 | J120: 1657.26 | L120: 1615.8285 | M120: 200362.734 | N120: 0 | O120: 201978.5625
A121: 117 | B121: 7533 | C121: 7533 | D121: 7533 | F121: 0.11 | G121: 0.22 | I121: 828.63 | J121: 1657.26 | L121: 1615.8285 | M121: 201978.5625 | N121: 0 | O121: 203594.391
A122: 118 | B122: 7533 | C122: 7533 | D122: 7533 | F122: 0.11 | G122: 0.22 | I122: 828.63 | J122: 1657.26 | L122: 1615.8285 | M122: 203594.391 | N122: 0 | O122: 205210.2195
A123: 119 | B123: 7533 | C123: 7533 | D123: 7533 | F123: 0.11 | G123: 0.22 | I123: 828.63 | J123: 1657.26 | L123: 1615.8285 | M123: 205210.2195 | N123: 0 | O123: 206826.048
A124: 120 | B124: 7533 | C124: 7533 | D124: 7533 | F124: 0.11 | G124: 0.22 | I124: 1657.26 | J124: 3314.52 | L124: 3231.657 | M124: 206826.048 | N124: 0 | O124: 210057.705
A125: 121 | B125: 7533 | C125: 7533 | D125: 7533 | F125: 0.11 | G125: 0.22 | I125: 828.63 | J125: 1657.26 | L125: 1615.8285 | M125: 210057.705 | N125: 0 | O125: 211673.5335
A126: 122 | B126: 7533 | C126: 7533 | D126: 7533 | F126: 0.11 | G126: 0.22 | I126: 828.63 | J126: 1657.26 | L126: 1615.8285 | M126: 211673.5335 | N126: 0 | O126: 213289.362
A127: 123 | B127: 7533 | C127: 7533 | D127: 7533 | F127: 0.11 | G127: 0.22 | I127: 828.63 | J127: 1657.26 | L127: 1615.8285 | M127: 213289.362 | N127: 0 | O127: 214905.1905
A128: 124 | B128: 7533 | C128: 7533 | D128: 7533 | F128: 0.11 | G128: 0.22 | I128: 828.63 | J128: 1657.26 | L128: 1615.8285 | M128: 214905.1905 | N128: 0 | O128: 216521.019
A129: 125 | B129: 7533 | C129: 7533 | D129: 7533 | F129: 0.11 | G129: 0.22 | I129: 828.63 | J129: 1657.26 | L129: 1615.8285 | M129: 216521.019 | N129: 0 | O129: 218136.8475
A130: 126 | B130: 7533 | C130: 7533 | D130: 7533 | F130: 0.11 | G130: 0.22 | I130: 828.63 | J130: 1657.26 | L130: 1615.8285 | M130: 218136.8475 | N130: 0 | O130: 219752.676
A131: 127 | B131: 7533 | C131: 7533 | D131: 7533 | F131: 0.11 | G131: 0.22 | I131: 828.63 | J131: 1657.26 | L131: 1615.8285 | M131: 219752.676 | N131: 0 | O131: 221368.5045
A132: 128 | B132: 7533 | C132: 7533 | D132: 7533 | F132: 0.11 | G132: 0.22 | I132: 828.63 | J132: 1657.26 | L132: 1615.8285 | M132: 221368.5045 | N132: 0 | O132: 222984.333
A133: 129 | B133: =IF($A133>meses_de_contribuição,0,VLOOKUP($A133,período_contributivo,3,TRUE)) -> 7533 | C133: 7533 | D133: 7533 | F133: =RPSPF_alíquota_servidor -> 0.11 | G133: =RPSPF_alíquota_União -> 0.22 | I133: 828.63 | J133: 1657.26 | L133: =SUM(I133:K133)*RPSPF_percentual_custeio_ativo -> 1615.8285 | M133: 222984.333 | N133: =$M133*IF(OR(RPSPF_simular_rentabilidade="Não",A133>meses_de_contribuição),0,rentabilidade_mensal) -> 0 | O133: 224600.1615
A134: =ROW()-4 -> 130 | B134: 7533 | C134: 7533 | D134: 7533 | F134: 0.11 | G134: 0.22 | I134: =C134*F134*IF(MOD($A134,12)=0,2,1) -> 828.63 | J134: =D134*G134*IF(MOD($A134,12)=0,2,1) -> 1657.26 | L134: 1615.8285 | M134: =IF($A134=1,0,O133) -> 224600.1615 | N134: 0 | O134: =SUM(L134:N134) -> 226215.99
A135: 131 | B135: 7533 | C135: 7533 | D135: 7533 | F135: 0.11 | G135: 0.22 | I135: 828.63 | J135: 1657.26 | L135: 1615.8285 | M135: 226215.99 | N135: 0 | O135: 227831.8185
A136: 132 | B136: 7533 | C136: 7533 | D136: 7533 | F136: 0.11 | G136: 0.22 | I136: 1657.26 | J136: 3314.52 | L136: 3231.657 | M136: 227831.8185 | N136: 0 | O136: 231063.4755
A137: 133 | B137: 7533 | C137: 7533 | D137: 7533 | F137: 0.11 | G137: 0.22 | I137: 828.63 | J137: 1657.26 | L137: 1615.8285 | M137: 231063.4755 | N137: 0 | O137: 232679.304
A138: 134 | B138: 7533 | C138: 7533 | D138: 7533 | F138: 0.11 | G138: 0.22 | I138: 828.63 | J138: 1657.26 | L138: 1615.8285 | M138: 232679.304 | N138: 0 | O138: 234295.1325
A139: 135 | B139: 7533 | C139: 7533 | D139: 7533 | F139: 0.11 | G139: 0.22 | I139: 828.63 | J139: 1657.26 | L139: 1615.8285 | M139: 234295.1325 | N139: 0 | O139: 235910.961
A140: 136 | B140: 7533 | C140: 7533 | D140: 7533 | F140: 0.11 | G140: 0.22 | I140: 828.63 | J140: 1657.26 | L140: 1615.8285 | M140: 235910.961 | N140: 0 | O140: 237526.7895
A141: 137 | B141: 7533 | C141: 7533 | D141: 7533 | F141: 0.11 | G141: 0.22 | I141: 828.63 | J141: 1657.26 | L141: 1615.8285 | M141: 237526.7895 | N141: 0 | O141: 239142.618
A142: 138 | B142: 7533 | C142: 7533 | D142: 7533 | F142: 0.11 | G142: 0.22 | I142: 828.63 | J142: 1657.26 | L142: 1615.8285 | M142: 239142.618 | N142: 0 | O142: 240758.4465
A143: 139 | B143: 7533 | C143: 7533 | D143: 7533 | F143: 0.11 | G143: 0.22 | I143: 828.63 | J143: 1657.26 | L143: 1615.8285 | M143: 240758.4465 | N143: 0 | O143: 242374.275
A144: 140 | B144: 7533 | C144: 7533 | D144: 7533 | F144: 0.11 | G144: 0.22 | I144: 828.63 | J144: 1657.26 | L144: 1615.8285 | M144: 242374.275 | N144: 0 | O144: 243990.1035
A145: 141 | B145: 7533 | C145: 7533 | D145: 7533 | F145: 0.11 | G145: 0.22 | I145: 828.63 | J145: 1657.26 | L145: 1615.8285 | M145: 243990.1035 | N145: 0 | O145: 245605.932
A146: 142 | B146: 7533 | C146: 7533 | D146: 7533 | F146: 0.11 | G146: 0.22 | I146: 828.63 | J146: 1657.26 | L146: 1615.8285 | M146: 245605.932 | N146: 0 | O146: 247221.7605
A147: 143 | B147: 7533 | C147: 7533 | D147: 7533 | F147: 0.11 | G147: 0.22 | I147: 828.63 | J147: 1657.26 | L147: 1615.8285 | M147: 247221.7605 | N147: 0 | O147: 248837.589
A148: 144 | B148: 7533 | C148: 7533 | D148: 7533 | F148: 0.11 | G148: 0.22 | I148: 1657.26 | J148: 3314.52 | L148: 3231.657 | M148: 248837.589 | N148: 0 | O148: 252069.246
A149: 145 | B149: 7533 | C149: 7533 | D149: 7533 | F149: 0.11 | G149: 0.22 | I149: 828.63 | J149: 1657.26 | L149: 1615.8285 | M149: 252069.246 | N149: 0 | O149: 253685.0745
A150: 146 | B150: 7533 | C150: 7533 | D150: 7533 | F150: 0.11 | G150: 0.22 | I150: 828.63 | J150: 1657.26 | L150: 1615.8285 | M150: 253685.0745 | N150: 0 | O150: 255300.903
A151: 147 | B151: 7533 | C151: 7533 | D151: 7533 | F151: 0.11 | G151: 0.22 | I151: 828.63 | J151: 1657.26 | L151: 1615.8285 | M151: 255300.903 | N151: 0 | O151: 256916.7315
A152: 148 | B152: 7533 | C152: 7533 | D152: 7533 | F152: 0.11 | G152: 0.22 | I152: 828.63 | J152: 1657.26 | L152: 1615.8285 | M152: 256916.7315 | N152: 0 | O152: 258532.56
A153: 149 | B153: 7533 | C153: =IF($A153>meses_de_contribuição,0,$B153) -> 7533 | D153: 7533 | F153: 0.11 | G153: 0.22 | I153: 828.63 | J153: 1657.26 | L153: 1615.8285 | M153: 258532.56 | N153: 0 | O153: 260148.3885
A154: 150 | B154: 7533 | C154: 7533 | D154: 7533 | F154: 0.11 | G154: 0.22 | I154: 828.63 | J154: 1657.26 | L154: 1615.8285 | M154: 260148.3885 | N154: 0 | O154: 261764.217
A155: 151 | B155: 7533 | C155: 7533 | D155: 7533 | F155: 0.11 | G155: 0.22 | I155: 828.63 | J155: 1657.26 | L155: 1615.8285 | M155: 261764.217 | N155: 0 | O155: 263380.0455
A156: 152 | B156: 7533 | C156: 7533 | D156: 7533 | F156: 0.11 | G156: 0.22 | I156: 828.63 | J156: 1657.26 | L156: 1615.8285 | M156: 263380.0455 | N156: 0 | O156: 264995.874
A157: 153 | B157: 7533 | C157: 7533 | D157: 7533 | F157: 0.11 | G157: 0.22 | I157: 828.63 | J157: 1657.26 | L157: 1615.8285 | M157: 264995.874 | N157: 0 | O157: 266611.7025
A158: 154 | B158: 7533 | C158: 7533 | D158: 7533 | F158: 0.11 | G158: 0.22 | I158: 828.63 | J158: 1657.26 | L158: 1615.8285 | M158: 266611.7025 | N158: 0 | O158: 268227.531
A159: 155 | B159: 7533 | C159: 7533 | D159: 7533 | F159: 0.11 | G159: 0.22 | I159: 828.63 | J159: 1657.26 | L159: 1615.8285 | M159: 268227.531 | N159: 0 | O159: 269843.3595
A160: 156 | B160: 7533 | C160: 7533 | D160: 7533 | F160: 0.11 | G160: 0.22 | I160: 1657.26 | J160: 3314.52 | L160: 3231.657 | M160: 269843.3595 | N160: 0 | O160: 273075.0165
A161: 157 | B161: 7533 | C161: 7533 | D161: 7533 | F161: 0.11 | G161: 0.22 | I161: 828.63 | J161: 1657.26 | L161: 1615.8285 | M161: 273075.0165 | N161: 0 | O161: 274690.845
A162: 158 | B162: 7533 | C162: 7533 | D162: 7533 | F162: 0.11 | G162: 0.22 | I162: 828.63 | J162: 1657.26 | L162: 1615.8285 | M162: 274690.845 | N162: 0 | O162: 276306.6735
A163: 159 | B163: 7533 | C163: 7533 | D163: 7533 | F163: 0.11 | G163: 0.22 | I163: 828.63 | J163: 1657.26 | L163: 1615.8285 | M163: 276306.6735 | N163: 0 | O163: 277922.502
A164: 160 | B164: 7533 | C164: 7533 | D164: 7533 | F164: 0.11 | G164: 0.22 | I164: 828.63 | J164: 1657.26 | L164: 1615.8285 | M164: 277922.502 | N164: 0 | O164: 279538.3305
A165: 161 | B165: 7533 | C165: 7533 | D165: 7533 | F165: 0.11 | G165: 0.22 | I165: 828.63 | J165: 1657.26 | L165: 1615.8285 | M165: 279538.3305 | N165: 0 | O165: 281154.159
A166: 162 | B166: 7533 | C166: 7533 | D166: 7533 | F166: 0.11 | G166: 0.22 | I166: 828.63 | J166: 1657.26 | L166: 1615.8285 | M166: 281154.159 | N166: 0 | O166: 282769.9875
A167: 163 | B167: 7533 | C167: 7533 | D167: 7533 | F167: 0.11 | G167: 0.22 | I167: 828.63 | J167: 1657.26 | L167: 1615.8285 | M167: 282769.9875 | N167: 0 | O167: 284385.816
A168: 164 | B168: 7533 | C168: 7533 | D168: 7533 | F168: 0.11 | G168: 0.22 | I168: 828.63 | J168: 1657.26 | L168: 1615.8285 | M168: 284385.816 | N168: 0 | O168: 286001.6445
A169: 165 | B169: 7533 | C169: 7533 | D169: 7533 | F169: 0.11 | G169: 0.22 | I169: 828.63 | J169: 1657.26 | L169: 1615.8285 | M169: 286001.6445 | N169: 0 | O169: 287617.473
A170: 166 | B170: 7533 | C170: 7533 | D170: 7533 | F170: 0.11 | G170: 0.22 | I170: 828.63 | J170: 1657.26 | L170: 1615.8285 | M170: 287617.473 | N170: 0 | O170: 289233.3015
A171: 167 | B171: 7533 | C171: 7533 | D171: 7533 | F171: 0.11 | G171: 0.22 | I171: 828.63 | J171: 1657.26 | L171: 1615.8285 | M171: 289233.3015 | N171: 0 | O171: 290849.13
A172: 168 | B172: 7533 | C172: 7533 | D172: 7533 | F172: 0.11 | G172: 0.22 | I172: 1657.26 | J172: 3314.52 | L172: 3231.657 | M172: 290849.13 | N172: 0 | O172: 294080.787
A173: 169 | B173: 7533 | C173: 7533 | D173: 7533 | F173: 0.11 | G173: 0.22 | I173: 828.63 | J173: 1657.26 | L173: 1615.8285 | M173: 294080.787 | N173: 0 | O173: 295696.6155
A174: 170 | B174: 7533 | C174: 7533 | D174: 7533 | F174: 0.11 | G174: 0.22 | I174: 828.63 | J174: 1657.26 | L174: 1615.8285 | M174: 295696.6155 | N174: 0 | O174: 297312.444
A175: 171 | B175: 7533 | C175: 7533 | D175: 7533 | F175: 0.11 | G175: 0.22 | I175: 828.63 | J175: 1657.26 | L175: 1615.8285 | M175: 297312.444 | N175: 0 | O175: 298928.2725
A176: 172 | B176: 7533 | C176: 7533 | D176: 7533 | F176: 0.11 | G176: 0.22 | I176: 828.63 | J176: 1657.26 | L176: 1615.8285 | M176: 298928.2725 | N176: 0 | O176: 300544.101
A177: 173 | B177: 7533 | C177: 7533 | D177: 7533 | F177: 0.11 | G177: 0.22 | I177: 828.63 | J177: 1657.26 | L177: 1615.8285 | M177: 300544.101 | N177: 0 | O177: 302159.9295
A178: 174 | B178: 7533 | C178: 7533 | D178: 7533 | F178: 0.11 | G178: 0.22 | I178: 828.63 | J178: 1657.26 | L178: 1615.8285 | M178: 302159.9295 | N178: 0 | O178: 303775.758
A179: 175 | B179: 7533 | C179: 7533 | D179: 7533 | F179: 0.11 | G179: 0.22 | I179: 828.63 | J179: 1657.26 | L179: 1615.8285 | M179: 303775.758 | N179: 0 | O179: 305391.5865
A180: 176 | B180: 7533 | C180: 7533 | D180: 7533 | F180: 0.11 | G180: 0.22 | I180: 828.63 | J180: 1657.26 | L180: 1615.8285 | M180: 305391.5865 | N180: 0 | O180: 307007.415
A181: 177 | B181: 7533 | C181: 7533 | D181: 7533 | F181: 0.11 | G181: 0.22 | I181: 828.63 | J181: 1657.26 | L181: 1615.8285 | M181: 307007.415 | N181: 0 | O181: 308623.2435
A182: 178 | B182: 7533 | C182: 7533 | D182: 7533 | F182: 0.11 | G182: 0.22 | I182: 828.63 | J182: 1657.26 | L182: 1615.8285 | M182: 308623.2435 | N182: 0 | O182: 310239.072
A183: 179 | B183: 7533 | C183: 7533 | D183: 7533 | F183: 0.11 | G183: 0.22 | I183: 828.63 | J183: 1657.26 | L183: 1615.8285 | M183: 310239.072 | N183: 0 | O183: 311854.9005
A184: 180 | B184: 7533 | C184: 7533 | D184: 7533 | F184: 0.11 | G184: 0.22 | I184: 1657.26 | J184: 3314.52 | L184: 3231.657 | M184: 311854.9005 | N184: 0 | O184: 315086.5575
A185: 181 | B185: 7533 | C185: 7533 | D185: 7533 | F185: 0.11 | G185: 0.22 | I185: 828.63 | J185: 1657.26 | L185: 1615.8285 | M185: 315086.5575 | N185: 0 | O185: 316702.386
A186: 182 | B186: 7533 | C186: 7533 | D186: 7533 | F186: 0.11 | G186: 0.22 | I186: 828.63 | J186: 1657.26 | L186: 1615.8285 | M186: 316702.386 | N186: 0 | O186: 318318.2145
A187: 183 | B187: 7533 | C187: 7533 | D187: 7533 | F187: 0.11 | G187: 0.22 | I187: 828.63 | J187: 1657.26 | L187: 1615.8285 | M187: 318318.2145 | N187: 0 | O187: 319934.043
A188: 184 | B188: 7533 | C188: 7533 | D188: 7533 | F188: 0.11 | G188: 0.22 | I188: 828.63 | J188: 1657.26 | L188: 1615.8285 | M188: 319934.043 | N188: 0 | O188: 321549.8715
A189: 185 | B189: 7533 | C189: 7533 | D189: 7533 | F189: 0.11 | G189: 0.22 | I189: 828.63 | J189: 1657.26 | L189: 1615.8285 | M189: 321549.8715 | N189: 0 | O189: 323165.7
A190: 186 | B190: 7533 | C190: 7533 | D190: 7533 | F190: 0.11 | G190: 0.22 | I190: 828.63 | J190: 1657.26 | L190: 1615.8285 | M190: 323165.7 | N190: 0 | O190: 324781.5285
A191: 187 | B191: 7533 | C191: 7533 | D191: 7533 | F191: 0.11 | G191: 0.22 | I191: 828.63 | J191: 1657.26 | L191: 1615.8285 | M191: 324781.5285 | N191: 0 | O191: 326397.357
A192: 188 | B192: 7533 | C192: 7533 | D192: 7533 | F192: 0.11 | G192: 0.22 | I192: 828.63 | J192: 1657.26 | L192: 1615.8285 | M192: 326397.357 | N192: 0 | O192: 328013.1855
A193: 189 | B193: 7533 | C193: 7533 | D193: 7533 | F193: 0.11 | G193: 0.22 | I193: 828.63 | J193: 1657.26 | L193: 1615.8285 | M193: 328013.1855 | N193: 0 | O193: 329629.014
A194: 190 | B194: 7533 | C194: 7533 | D194: 7533 | F194: 0.11 | G194: 0.22 | I194: 828.63 | J194: 1657.26 | L194: 1615.8285 | M194: 329629.014 | N194: 0 | O194: 331244.8425
A195: 191 | B195: 7533 | C195: 7533 | D195: 7533 | F195: 0.11 | G195: 0.22 | I195: 828.63 | J195: 1657.26 | L195: 1615.8285 | M195: 331244.8425 | N195: 0 | O195: 332860.671
A196: 192 | B196: 7533 | C196: 7533 | D196: 7533 | F196: 0.11 | G196: 0.22 | I196: 1657.26 | J196: 3314.52 | L196: 3231.657 | M196: 332860.671 | N196: 0 | O196: 336092.328
A197: 193 | B197: =IF($A197>meses_de_contribuição,0,VLOOKUP($A197,período_contributivo,3,TRUE)) -> 7533 | C197: 7533 | D197: 7533 | F197: =RPSPF_alíquota_servidor -> 0.11 | G197: =RPSPF_alíquota_União -> 0.22 | I197: 828.63 | J197: 1657.26 | L197: =SUM(I197:K197)*RPSPF_percentual_custeio_ativo -> 1615.8285 | M197: 336092.328 | N197: =$M197*IF(OR(RPSPF_simular_rentabilidade="Não",A197>meses_de_contribuição),0,rentabilidade_mensal) -> 0 | O197: 337708.1565
A198: =ROW()-4 -> 194 | B198: 7533 | C198: 7533 | D198: 7533 | F198: 0.11 | G198: 0.22 | I198: =C198*F198*IF(MOD($A198,12)=0,2,1) -> 828.63 | J198: =D198*G198*IF(MOD($A198,12)=0,2,1) -> 1657.26 | L198: 1615.8285 | M198: =IF($A198=1,0,O197) -> 337708.1565 | N198: 0 | O198: =SUM(L198:N198) -> 339323.985
A199: 195 | B199: 7533 | C199: 7533 | D199: 7533 | F199: 0.11 | G199: 0.22 | I199: 828.63 | J199: 1657.26 | L199: 1615.8285 | M199: 339323.985 | N199: 0 | O199: 340939.8135
A200: 196 | B200: 7533 | C200: 7533 | D200: 7533 | F200: 0.11 | G200: 0.22 | I200: 828.63 | J200: 1657.26 | L200: 1615.8285 | M200: 340939.8135 | N200: 0 | O200: 342555.642
... 1004 more rows

Sheet 8. Maiores Remunerações
A1: BASES DE CÁLCULO DAS CONTRIBUIÇÕES
A2: RGPS | B2: RPSPF com RPC | D2: RPSPF sem RPC
B3: RPSPF | C3: RPC
A4: 3691.74 | B4: 3691.74 | C4: 3841.26 | D4: 7533
A5: 3691.74 | B5: 3691.74 | C5: 3841.26 | D5: 7533
A6: 3691.74 | B6: 3691.74 | C6: 3841.26 | D6: 7533
A7: 3691.74 | B7: 3691.74 | C7: 3841.26 | D7: 7533
A8: 3691.74 | B8: 3691.74 | C8: 3841.26 | D8: 7533
A9: 3691.74 | B9: 3691.74 | C9: 3841.26 | D9: 7533
A10: 3691.74 | B10: 3691.74 | C10: 3841.26 | D10: 7533
A11: 3691.74 | B11: 3691.74 | C11: 3841.26 | D11: 7533
A12: 3691.74 | B12: 3691.74 | C12: 3841.26 | D12: 7533
A13: 3691.74 | B13: 3691.74 | C13: 3841.26 | D13: 7533
A14: 3691.74 | B14: 3691.74 | C14: 3841.26 | D14: 7533
A15: 3691.74 | B15: 3691.74 | C15: 3841.26 | D15: 7533
A16: 3691.74 | B16: 3691.74 | C16: 3841.26 | D16: 7533
A17: 3691.74 | B17: 3691.74 | C17: 3841.26 | D17: 7533
A18: 3691.74 | B18: 3691.74 | C18: 3841.26 | D18: 7533
A19: 3691.74 | B19: 3691.74 | C19: 3841.26 | D19: 7533
A20: 3691.74 | B20: 3691.74 | C20: 3841.26 | D20: 7533
A21: 3691.74 | B21: 3691.74 | C21: 3841.26 | D21: 7533
A22: 3691.74 | B22: 3691.74 | C22: 3841.26 | D22: 7533
A23: 3691.74 | B23: 3691.74 | C23: 3841.26 | D23: 7533
A24: 3691.74 | B24: 3691.74 | C24: 3841.26 | D24: 7533
A25: 3691.74 | B25: 3691.74 | C25: 3841.26 | D25: 7533
A26: 3691.74 | B26: 3691.74 | C26: 3841.26 | D26: 7533
A27: 3691.74 | B27: 3691.74 | C27: 3841.26 | D27: 7533
A28: 3691.74 | B28: 3691.74 | C28: 3841.26 | D28: 7533
A29: 3691.74 | B29: 3691.74 | C29: 3841.26 | D29: 7533
A30: 3691.74 | B30: 3691.74 | C30: 3841.26 | D30: 7533
A31: 3691.74 | B31: 3691.74 | C31: 3841.26 | D31: 7533
A32: 3691.74 | B32: 3691.74 | C32: 3841.26 | D32: 7533
A33: 3691.74 | B33: 3691.74 | C33: 3841.26 | D33: 7533
A34: 3691.74 | B34: 3691.74 | C34: 3841.26 | D34: 7533
A35: 3691.74 | B35: 3691.74 | C35: 3841.26 | D35: 7533
A36: 3691.74 | B36: 3691.74 | C36: 3841.26 | D36: 7533
A37: 3691.74 | B37: 3691.74 | C37: 3841.26 | D37: 7533
A38: 3691.74 | B38: 3691.74 | C38: 3841.26 | D38: 7533
A39: 3691.74 | B39: 3691.74 | C39: 3841.26 | D39: 7533
A40: 3691.74 | B40: 3691.74 | C40: 3841.26 | D40: 7533
A41: 3691.74 | B41: 3691.74 | C41: 3841.26 | D41: 7533
A42: 3691.74 | B42: 3691.74 | C42: 3841.26 | D42: 7533
A43: 3691.74 | B43: 3691.74 | C43: 3841.26 | D43: 7533
A44: 3691.74 | B44: 3691.74 | C44: 3841.26 | D44: 7533
A45: 3691.74 | B45: 3691.74 | C45: 3841.26 | D45: 7533
A46: 3691.74 | B46: 3691.74 | C46: 3841.26 | D46: 7533
A47: 3691.74 | B47: 3691.74 | C47: 3841.26 | D47: 7533
A48: 3691.74 | B48: 3691.74 | C48: 3841.26 | D48: 7533
A49: 3691.74 | B49: 3691.74 | C49: 3841.26 | D49: 7533
A50: 3691.74 | B50: 3691.74 | C50: 3841.26 | D50: 7533
A51: 3691.74 | B51: 3691.74 | C51: 3841.26 | D51: 7533
A52: 3691.74 | B52: 3691.74 | C52: 3841.26 | D52: 7533
A53: 3691.74 | B53: 3691.74 | C53: 3841.26 | D53: 7533
A54: 3691.74 | B54: 3691.74 | C54: 3841.26 | D54: 7533
A55: 3691.74 | B55: 3691.74 | C55: 3841.26 | D55: 7533
A56: 3691.74 | B56: 3691.74 | C56: 3841.26 | D56: 7533
A57: 3691.74 | B57: 3691.74 | C57: 3841.26 | D57: 7533
A58: 3691.74 | B58: 3691.74 | C58: 3841.26 | D58: 7533
A59: 3691.74 | B59: 3691.74 | C59: 3841.26 | D59: 7533
A60: 3691.74 | B60: 3691.74 | C60: 3841.26 | D60: 7533
A61: 3691.74 | B61: 3691.74 | C61: 3841.26 | D61: 7533
A62: 3691.74 | B62: 3691.74 | C62: 3841.26 | D62: 7533
A63: 3691.74 | B63: 3691.74 | C63: 3841.26 | D63: 7533
A64: 3691.74 | B64: 3691.74 | C64: 3841.26 | D64: 7533
A65: 3691.74 | B65: 3691.74 | C65: 3841.26 | D65: 7533
A66: 3691.74 | B66: 3691.74 | C66: 3841.26 | D66: 7533
A67: 3691.74 | B67: 3691.74 | C67: 3841.26 | D67: 7533
A68: 3691.74 | B68: 3691.74 | C68: 3841.26 | D68: 7533
A69: 3691.74 | B69: 3691.74 | C69: 3841.26 | D69: 7533
A70: 3691.74 | B70: 3691.74 | C70: 3841.26 | D70: 7533
A71: 3691.74 | B71: 3691.74 | C71: 3841.26 | D71: 7533
A72: 3691.74 | B72: 3691.74 | C72: 3841.26 | D72: 7533
A73: 3691.74 | B73: 3691.74 | C73: 3841.26 | D73: 7533
A74: 3691.74 | B74: 3691.74 | C74: 3841.26 | D74: 7533
A75: 3691.74 | B75: 3691.74 | C75: 3841.26 | D75: 7533
A76: 3691.74 | B76: 3691.74 | C76: 3841.26 | D76: 7533
A77: 3691.74 | B77: 3691.74 | C77: 3841.26 | D77: 7533
A78: 3691.74 | B78: 3691.74 | C78: 3841.26 | D78: 7533
A79: 3691.74 | B79: 3691.74 | C79: 3841.26 | D79: 7533
A80: 3691.74 | B80: 3691.74 | C80: 3841.26 | D80: 7533
A81: 3691.74 | B81: 3691.74 | C81: 3841.26 | D81: 7533
A82: 3691.74 | B82: 3691.74 | C82: 3841.26 | D82: 7533
A83: 3691.74 | B83: 3691.74 | C83: 3841.26 | D83: 7533
A84: 3691.74 | B84: 3691.74 | C84: 3841.26 | D84: 7533
A85: 3691.74 | B85: 3691.74 | C85: 3841.26 | D85: 7533
A86: 3691.74 | B86: 3691.74 | C86: 3841.26 | D86: 7533
A87: 3691.74 | B87: 3691.74 | C87: 3841.26 | D87: 7533
A88: 3691.74 | B88: 3691.74 | C88: 3841.26 | D88: 7533
A89: 3691.74 | B89: 3691.74 | C89: 3841.26 | D89: 7533
A90: 3691.74 | B90: 3691.74 | C90: 3841.26 | D90: 7533
A91: 3691.74 | B91: 3691.74 | C91: 3841.26 | D91: 7533
A92: 3691.74 | B92: 3691.74 | C92: 3841.26 | D92: 7533
A93: 3691.74 | B93: 3691.74 | C93: 3841.26 | D93: 7533
A94: 3691.74 | B94: 3691.74 | C94: 3841.26 | D94: 7533
A95: 3691.74 | B95: 3691.74 | C95: 3841.26 | D95: 7533
A96: 3691.74 | B96: 3691.74 | C96: 3841.26 | D96: 7533
A97: 3691.74 | B97: 3691.74 | C97: 3841.26 | D97: 7533
A98: 3691.74 | B98: 3691.74 | C98: 3841.26 | D98: 7533
A99: 3691.74 | B99: 3691.74 | C99: 3841.26 | D99: 7533
A100: 3691.74 | B100: 3691.74 | C100: 3841.26 | D100: 7533
A101: 3691.74 | B101: 3691.74 | C101: 3841.26 | D101: 7533
A102: 3691.74 | B102: 3691.74 | C102: 3841.26 | D102: 7533
A103: 3691.74 | B103: 3691.74 | C103: 3841.26 | D103: 7533
A104: 3691.74 | B104: 3691.74 | C104: 3841.26 | D104: 7533
A105: 3691.74 | B105: 3691.74 | C105: 3841.26 | D105: 7533
A106: 3691.74 | B106: 3691.74 | C106: 3841.26 | D106: 7533
A107: 3691.74 | B107: 3691.74 | C107: 3841.26 | D107: 7533
A108: 3691.74 | B108: 3691.74 | C108: 3841.26 | D108: 7533
A109: 3691.74 | B109: 3691.74 | C109: 3841.26 | D109: 7533
A110: 3691.74 | B110: 3691.74 | C110: 3841.26 | D110: 7533
A111: 3691.74 | B111: 3691.74 | C111: 3841.26 | D111: 7533
A112: 3691.74 | B112: 3691.74 | C112: 3841.26 | D112: 7533
A113: 3691.74 | B113: 3691.74 | C113: 3841.26 | D113: 7533
A114: 3691.74 | B114: 3691.74 | C114: 3841.26 | D114: 7533
A115: 3691.74 | B115: 3691.74 | C115: 3841.26 | D115: 7533
A116: 3691.74 | B116: 3691.74 | C116: 3841.26 | D116: 7533
A117: 3691.74 | B117: 3691.74 | C117: 3841.26 | D117: 7533
A118: 3691.74 | B118: 3691.74 | C118: 3841.26 | D118: 7533
A119: 3691.74 | B119: 3691.74 | C119: 3841.26 | D119: 7533
A120: 3691.74 | B120: 3691.74 | C120: 3841.26 | D120: 7533
A121: 3691.74 | B121: 3691.74 | C121: 3841.26 | D121: 7533
A122: 3691.74 | B122: 3691.74 | C122: 3841.26 | D122: 7533
A123: 3691.74 | B123: 3691.74 | C123: 3841.26 | D123: 7533
A124: 3691.74 | B124: 3691.74 | C124: 3841.26 | D124: 7533
A125: 3691.74 | B125: 3691.74 | C125: 3841.26 | D125: 7533
A126: 3691.74 | B126: 3691.74 | C126: 3841.26 | D126: 7533
A127: 3691.74 | B127: 3691.74 | C127: 3841.26 | D127: 7533
A128: 3691.74 | B128: 3691.74 | C128: 3841.26 | D128: 7533
A129: 3691.74 | B129: 3691.74 | C129: 3841.26 | D129: 7533
A130: 3691.74 | B130: 3691.74 | C130: 3841.26 | D130: 7533
A131: 3691.74 | B131: 3691.74 | C131: 3841.26 | D131: 7533
A132: 3691.74 | B132: 3691.74 | C132: 3841.26 | D132: 7533
A133: 3691.74 | B133: 3691.74 | C133: 3841.26 | D133: 7533
A134: 3691.74 | B134: 3691.74 | C134: 3841.26 | D134: 7533
A135: 3691.74 | B135: 3691.74 | C135: 3841.26 | D135: 7533
A136: 3691.74 | B136: 3691.74 | C136: 3841.26 | D136: 7533
A137: 3691.74 | B137: 3691.74 | C137: 3841.26 | D137: 7533
A138: 3691.74 | B138: 3691.74 | C138: 3841.26 | D138: 7533
A139: 3691.74 | B139: 3691.74 | C139: 3841.26 | D139: 7533
A140: 3691.74 | B140: 3691.74 | C140: 3841.26 | D140: 7533
A141: 3691.74 | B141: 3691.74 | C141: 3841.26 | D141: 7533
A142: 3691.74 | B142: 3691.74 | C142: 3841.26 | D142: 7533
A143: 3691.74 | B143: 3691.74 | C143: 3841.26 | D143: 7533
A144: 3691.74 | B144: 3691.74 | C144: 3841.26 | D144: 7533
A145: 3691.74 | B145: 3691.74 | C145: 3841.26 | D145: 7533
A146: 3691.74 | B146: 3691.74 | C146: 3841.26 | D146: 7533
A147: 3691.74 | B147: 3691.74 | C147: 3841.26 | D147: 7533
A148: 3691.74 | B148: 3691.74 | C148: 3841.26 | D148: 7533
A149: 3691.74 | B149: 3691.74 | C149: 3841.26 | D149: 7533
A150: 3691.74 | B150: 3691.74 | C150: 3841.26 | D150: 7533
A151: 3691.74 | B151: 3691.74 | C151: 3841.26 | D151: 7533
A152: 3691.74 | B152: 3691.74 | C152: 3841.26 | D152: 7533
A153: 3691.74 | B153: 3691.74 | C153: 3841.26 | D153: 7533
A154: 3691.74 | B154: 3691.74 | C154: 3841.26 | D154: 7533
A155: 3691.74 | B155: 3691.74 | C155: 3841.26 | D155: 7533
A156: 3691.74 | B156: 3691.74 | C156: 3841.26 | D156: 7533
A157: 3691.74 | B157: 3691.74 | C157: 3841.26 | D157: 7533
A158: 3691.74 | B158: 3691.74 | C158: 3841.26 | D158: 7533
A159: 3691.74 | B159: 3691.74 | C159: 3841.26 | D159: 7533
A160: 3691.74 | B160: 3691.74 | C160: 3841.26 | D160: 7533
A161: 3691.74 | B161: 3691.74 | C161: 3841.26 | D161: 7533
A162: 3691.74 | B162: 3691.74 | C162: 3841.26 | D162: 7533
A163: 3691.74 | B163: 3691.74 | C163: 3841.26 | D163: 7533
A164: 3691.74 | B164: 3691.74 | C164: 3841.26 | D164: 7533
A165: 3691.74 | B165: 3691.74 | C165: 3841.26 | D165: 7533
A166: 3691.74 | B166: 3691.74 | C166: 3841.26 | D166: 7533
A167: 3691.74 | B167: 3691.74 | C167: 3841.26 | D167: 7533
A168: 3691.74 | B168: 3691.74 | C168: 3841.26 | D168: 7533
A169: 3691.74 | B169: 3691.74 | C169: 3841.26 | D169: 7533
A170: 3691.74 | B170: 3691.74 | C170: 3841.26 | D170: 7533
A171: 3691.74 | B171: 3691.74 | C171: 3841.26 | D171: 7533
A172: 3691.74 | B172: 3691.74 | C172: 3841.26 | D172: 7533
A173: 3691.74 | B173: 3691.74 | C173: 3841.26 | D173: 7533
A174: 3691.74 | B174: 3691.74 | C174: 3841.26 | D174: 7533
A175: 3691.74 | B175: 3691.74 | C175: 3841.26 | D175: 7533
A176: 3691.74 | B176: 3691.74 | C176: 3841.26 | D176: 7533
A177: 3691.74 | B177: 3691.74 | C177: 3841.26 | D177: 7533
A178: 3691.74 | B178: 3691.74 | C178: 3841.26 | D178: 7533
A179: 3691.74 | B179: 3691.74 | C179: 3841.26 | D179: 7533
A180: 3691.74 | B180: 3691.74 | C180: 3841.26 | D180: 7533
A181: 3691.74 | B181: 3691.74 | C181: 3841.26 | D181: 7533
A182: 3691.74 | B182: 3691.74 | C182: 3841.26 | D182: 7533
A183: 3691.74 | B183: 3691.74 | C183: 3841.26 | D183: 7533
A184: 3691.74 | B184: 3691.74 | C184: 3841.26 | D184: 7533
A185: 3691.74 | B185: 3691.74 | C185: 3841.26 | D185: 7533
A186: 3691.74 | B186: 3691.74 | C186: 3841.26 | D186: 7533
A187: 3691.74 | B187: 3691.74 | C187: 3841.26 | D187: 7533
A188: 3691.74 | B188: 3691.74 | C188: 3841.26 | D188: 7533
A189: 3691.74 | B189: 3691.74 | C189: 3841.26 | D189: 7533
A190: 3691.74 | B190: 3691.74 | C190: 3841.26 | D190: 7533
A191: 3691.74 | B191: 3691.74 | C191: 3841.26 | D191: 7533
A192: 3691.74 | B192: 3691.74 | C192: 3841.26 | D192: 7533
A193: 3691.74 | B193: 3691.74 | C193: 3841.26 | D193: 7533
A194: 3691.74 | B194: 3691.74 | C194: 3841.26 | D194: 7533
A195: 3691.74 | B195: 3691.74 | C195: 3841.26 | D195: 7533
A196: 3691.74 | B196: 3691.74 | C196: 3841.26 | D196: 7533
A197: 3691.74 | B197: 3691.74 | C197: 3841.26 | D197: 7533
A198: 3691.74 | B198: 3691.74 | C198: 3841.26 | D198: 7533
A199: 3691.74 | B199: 3691.74 | C199: 3841.26 | D199: 7533
A200: 3691.74 | B200: 3691.74 | C200: 3841.26 | D200: 7533
... 1003 more rows

Sheet 9. Percepção RGPS
A1: Mês | B1: Benefício | C1: CONTRIBUIÇÃO DO APOSENTADO | G1: Saldo anterior | H1: Rendimentos | I1: Saldo atual
C3: Base de cálculo | D3: Alíquota | E3: Valor | F3: Custeio de aposentadoria
A5: =ROW()-4 -> 1 | B5: =IF($A5>expectativa_de_sobrevida_em_meses,0,RGPS_valor_do_benefício)*IF(MOD($A5,12)=0,2,1) -> 3212.921322 | G5: =IF($A5=1,RGPS_recursos_acumulados,I4) -> 182757.6633 | H5: =IF(OR($G5<0,$A5>expectativa_de_sobrevida_em_meses,RGPS_simular_rentabilidade="Não"),0,$G5*rentabilidade_mensal) -> 0 | I5: =SUM(G5:H5)-$B5 -> 179544.7419
A6: =ROW()-4 -> 2 | B6: 3212.921322 | G6: =IF($A6=1,RGPS_recursos_acumulados,I5) -> 179544.7419 | H6: 0 | I6: =SUM(G6:H6)-$B6 -> 176331.8206
A7: 3 | B7: 3212.921322 | G7: 176331.8206 | H7: 0 | I7: 173118.8993
A8: 4 | B8: 3212.921322 | G8: 173118.8993 | H8: 0 | I8: 169905.978
A9: 5 | B9: 3212.921322 | G9: 169905.978 | H9: 0 | I9: 166693.0567
A10: 6 | B10: 3212.921322 | G10: 166693.0567 | H10: 0 | I10: 163480.1353
A11: 7 | B11: 3212.921322 | G11: 163480.1353 | H11: 0 | I11: 160267.214
A12: 8 | B12: 3212.921322 | G12: 160267.214 | H12: 0 | I12: 157054.2927
A13: 9 | B13: 3212.921322 | G13: 157054.2927 | H13: 0 | I13: 153841.3714
A14: 10 | B14: 3212.921322 | G14: 153841.3714 | H14: 0 | I14: 150628.4501
A15: 11 | B15: 3212.921322 | G15: 150628.4501 | H15: 0 | I15: 147415.5287
A16: 12 | B16: 6425.842644 | G16: 147415.5287 | H16: 0 | I16: 140989.6861
A17: 13 | B17: 3212.921322 | G17: 140989.6861 | H17: 0 | I17: 137776.7648
A18: 14 | B18: 3212.921322 | G18: 137776.7648 | H18: 0 | I18: 134563.8434
A19: 15 | B19: 3212.921322 | G19: 134563.8434 | H19: 0 | I19: 131350.9221
A20: 16 | B20: 3212.921322 | G20: 131350.9221 | H20: 0 | I20: 128138.0008
A21: 17 | B21: 3212.921322 | G21: 128138.0008 | H21: 0 | I21: 124925.0795
A22: 18 | B22: 3212.921322 | G22: 124925.0795 | H22: 0 | I22: 121712.1582
A23: 19 | B23: 3212.921322 | G23: 121712.1582 | H23: 0 | I23: 118499.2368
A24: 20 | B24: 3212.921322 | G24: 118499.2368 | H24: 0 | I24: 115286.3155
A25: 21 | B25: 3212.921322 | G25: 115286.3155 | H25: 0 | I25: 112073.3942
A26: 22 | B26: 3212.921322 | G26: 112073.3942 | H26: 0 | I26: 108860.4729
A27: 23 | B27: 3212.921322 | G27: 108860.4729 | H27: 0 | I27: 105647.5515
A28: 24 | B28: 6425.842644 | G28: 105647.5515 | H28: 0 | I28: 99221.7089
A29: 25 | B29: 3212.921322 | G29: 99221.7089 | H29: 0 | I29: 96008.78758
A30: 26 | B30: 3212.921322 | G30: 96008.78758 | H30: 0 | I30: 92795.86625
A31: 27 | B31: 3212.921322 | G31: 92795.86625 | H31: 0 | I31: 89582.94493
A32: 28 | B32: 3212.921322 | G32: 89582.94493 | H32: 0 | I32: 86370.02361
A33: 29 | B33: 3212.921322 | G33: 86370.02361 | H33: 0 | I33: 83157.10229
A34: 30 | B34: 3212.921322 | G34: 83157.10229 | H34: 0 | I34: 79944.18097
A35: 31 | B35: 3212.921322 | G35: 79944.18097 | H35: 0 | I35: 76731.25964
A36: 32 | B36: 3212.921322 | G36: 76731.25964 | H36: 0 | I36: 73518.33832
A37: 33 | B37: 3212.921322 | G37: 73518.33832 | H37: 0 | I37: 70305.417
A38: 34 | B38: 3212.921322 | G38: 70305.417 | H38: 0 | I38: 67092.49568
A39: 35 | B39: 3212.921322 | G39: 67092.49568 | H39: 0 | I39: 63879.57436
A40: 36 | B40: 6425.842644 | G40: 63879.57436 | H40: 0 | I40: 57453.73171
A41: 37 | B41: 3212.921322 | G41: 57453.73171 | H41: 0 | I41: 54240.81039
A42: 38 | B42: 3212.921322 | G42: 54240.81039 | H42: 0 | I42: 51027.88907
A43: 39 | B43: 3212.921322 | G43: 51027.88907 | H43: 0 | I43: 47814.96775
A44: 40 | B44: 3212.921322 | G44: 47814.96775 | H44: 0 | I44: 44602.04642
A45: 41 | B45: 3212.921322 | G45: 44602.04642 | H45: 0 | I45: 41389.1251
A46: 42 | B46: 3212.921322 | G46: 41389.1251 | H46: 0 | I46: 38176.20378
A47: 43 | B47: 3212.921322 | G47: 38176.20378 | H47: 0 | I47: 34963.28246
A48: 44 | B48: 3212.921322 | G48: 34963.28246 | H48: 0 | I48: 31750.36114
A49: 45 | B49: 3212.921322 | G49: 31750.36114 | H49: 0 | I49: 28537.43981
A50: 46 | B50: 3212.921322 | G50: 28537.43981 | H50: 0 | I50: 25324.51849
A51: 47 | B51: 3212.921322 | G51: 25324.51849 | H51: 0 | I51: 22111.59717
A52: 48 | B52: 6425.842644 | G52: 22111.59717 | H52: 0 | I52: 15685.75453
A53: 49 | B53: 3212.921322 | G53: 15685.75453 | H53: 0 | I53: 12472.8332
A54: 50 | B54: 3212.921322 | G54: 12472.8332 | H54: 0 | I54: 9259.911882
A55: 51 | B55: 3212.921322 | G55: 9259.911882 | H55: 0 | I55: 6046.99056
A56: 52 | B56: 3212.921322 | G56: 6046.99056 | H56: 0 | I56: 2834.069238
A57: 53 | B57: 3212.921322 | G57: 2834.069238 | H57: 0 | I57: -378.852084
A58: 54 | B58: 3212.921322 | G58: -378.852084 | H58: 0 | I58: -3591.773406
A59: 55 | B59: 3212.921322 | G59: -3591.773406 | H59: 0 | I59: -6804.694728
A60: 56 | B60: 3212.921322 | G60: -6804.694728 | H60: 0 | I60: -10017.61605
A61: 57 | B61: 3212.921322 | G61: -10017.61605 | H61: 0 | I61: -13230.53737
A62: 58 | B62: 3212.921322 | G62: -13230.53737 | H62: 0 | I62: -16443.45869
A63: 59 | B63: 3212.921322 | G63: -16443.45869 | H63: 0 | I63: -19656.38002
A64: 60 | B64: 6425.842644 | G64: -19656.38002 | H64: 0 | I64: -26082.22266
A65: 61 | B65: 3212.921322 | G65: -26082.22266 | H65: 0 | I65: -29295.14398
A66: 62 | B66: 3212.921322 | G66: -29295.14398 | H66: 0 | I66: -32508.0653
A67: 63 | B67: 3212.921322 | G67: -32508.0653 | H67: 0 | I67: -35720.98663
A68: 64 | B68: 3212.921322 | G68: -35720.98663 | H68: 0 | I68: -38933.90795
A69: 65 | B69: =IF($A69>expectativa_de_sobrevida_em_meses,0,RGPS_valor_do_benefício)*IF(MOD($A69,12)=0,2,1) -> 3212.921322 | G69: -38933.90795 | H69: =IF(OR($G69<0,$A69>expectativa_de_sobrevida_em_meses,RGPS_simular_rentabilidade="Não"),0,$G69*rentabilidade_mensal) -> 0 | I69: -42146.82927
A70: =ROW()-4 -> 66 | B70: 3212.921322 | G70: =IF($A70=1,RGPS_recursos_acumulados,I69) -> -42146.82927 | H70: 0 | I70: =SUM(G70:H70)-$B70 -> -45359.75059
A71: 67 | B71: 3212.921322 | G71: -45359.75059 | H71: 0 | I71: -48572.67191
A72: 68 | B72: 3212.921322 | G72: -48572.67191 | H72: 0 | I72: -51785.59324
A73: 69 | B73: 3212.921322 | G73: -51785.59324 | H73: 0 | I73: -54998.51456
A74: 70 | B74: 3212.921322 | G74: -54998.51456 | H74: 0 | I74: -58211.43588
A75: 71 | B75: 3212.921322 | G75: -58211.43588 | H75: 0 | I75: -61424.3572
A76: 72 | B76: 6425.842644 | G76: -61424.3572 | H76: 0 | I76: -67850.19985
A77: 73 | B77: 3212.921322 | G77: -67850.19985 | H77: 0 | I77: -71063.12117
A78: 74 | B78: 3212.921322 | G78: -71063.12117 | H78: 0 | I78: -74276.04249
A79: 75 | B79: 3212.921322 | G79: -74276.04249 | H79: 0 | I79: -77488.96381
A80: 76 | B80: 3212.921322 | G80: -77488.96381 | H80: 0 | I80: -80701.88513
A81: 77 | B81: 3212.921322 | G81: -80701.88513 | H81: 0 | I81: -83914.80646
A82: 78 | B82: 3212.921322 | G82: -83914.80646 | H82: 0 | I82: -87127.72778
A83: 79 | B83: 3212.921322 | G83: -87127.72778 | H83: 0 | I83: -90340.6491
A84: 80 | B84: 3212.921322 | G84: -90340.6491 | H84: 0 | I84: -93553.57042
A85: 81 | B85: 3212.921322 | G85: -93553.57042 | H85: 0 | I85: -96766.49174
A86: 82 | B86: 3212.921322 | G86: -96766.49174 | H86: 0 | I86: -99979.41307
A87: 83 | B87: 3212.921322 | G87: -99979.41307 | H87: 0 | I87: -103192.3344
A88: 84 | B88: 6425.842644 | G88: -103192.3344 | H88: 0 | I88: -109618.177
A89: 85 | B89: 3212.921322 | G89: -109618.177 | H89: 0 | I89: -112831.0984
A90: 86 | B90: 3212.921322 | G90: -112831.0984 | H90: 0 | I90: -116044.0197
A91: 87 | B91: 3212.921322 | G91: -116044.0197 | H91: 0 | I91: -119256.941
A92: 88 | B92: 3212.921322 | G92: -119256.941 | H92: 0 | I92: -122469.8623
A93: 89 | B93: 3212.921322 | G93: -122469.8623 | H93: 0 | I93: -125682.7836
A94: 90 | B94: 3212.921322 | G94: -125682.7836 | H94: 0 | I94: -128895.705
A95: 91 | B95: 3212.921322 | G95: -128895.705 | H95: 0 | I95: -132108.6263
A96: 92 | B96: 3212.921322 | G96: -132108.6263 | H96: 0 | I96: -135321.5476
A97: 93 | B97: 3212.921322 | G97: -135321.5476 | H97: 0 | I97: -138534.4689
A98: 94 | B98: 3212.921322 | G98: -138534.4689 | H98: 0 | I98: -141747.3903
A99: 95 | B99: 3212.921322 | G99: -141747.3903 | H99: 0 | I99: -144960.3116
A100: 96 | B100: 6425.842644 | G100: -144960.3116 | H100: 0 | I100: -151386.1542
A101: 97 | B101: 3212.921322 | G101: -151386.1542 | H101: 0 | I101: -154599.0755
A102: 98 | B102: 3212.921322 | G102: -154599.0755 | H102: 0 | I102: -157811.9969
A103: 99 | B103: 3212.921322 | G103: -157811.9969 | H103: 0 | I103: -161024.9182
A104: 100 | B104: 3212.921322 | G104: -161024.9182 | H104: 0 | I104: -164237.8395
A105: 101 | B105: 3212.921322 | G105: -164237.8395 | H105: 0 | I105: -167450.7608
A106: 102 | B106: 3212.921322 | G106: -167450.7608 | H106: 0 | I106: -170663.6821
A107: 103 | B107: 3212.921322 | G107: -170663.6821 | H107: 0 | I107: -173876.6035
A108: 104 | B108: 3212.921322 | G108: -173876.6035 | H108: 0 | I108: -177089.5248
A109: 105 | B109: 3212.921322 | G109: -177089.5248 | H109: 0 | I109: -180302.4461
A110: 106 | B110: 3212.921322 | G110: -180302.4461 | H110: 0 | I110: -183515.3674
A111: 107 | B111: 3212.921322 | G111: -183515.3674 | H111: 0 | I111: -186728.2888
A112: 108 | B112: 6425.842644 | G112: -186728.2888 | H112: 0 | I112: -193154.1314
A113: 109 | B113: 3212.921322 | G113: -193154.1314 | H113: 0 | I113: -196367.0527
A114: 110 | B114: 3212.921322 | G114: -196367.0527 | H114: 0 | I114: -199579.974
A115: 111 | B115: 3212.921322 | G115: -199579.974 | H115: 0 | I115: -202792.8954
A116: 112 | B116: 3212.921322 | G116: -202792.8954 | H116: 0 | I116: -206005.8167
A117: 113 | B117: 3212.921322 | G117: -206005.8167 | H117: 0 | I117: -209218.738
A118: 114 | B118: 3212.921322 | G118: -209218.738 | H118: 0 | I118: -212431.6593
A119: 115 | B119: 3212.921322 | G119: -212431.6593 | H119: 0 | I119: -215644.5807
A120: 116 | B120: 3212.921322 | G120: -215644.5807 | H120: 0 | I120: -218857.502
A121: 117 | B121: 3212.921322 | G121: -218857.502 | H121: 0 | I121: -222070.4233
A122: 118 | B122: 3212.921322 | G122: -222070.4233 | H122: 0 | I122: -225283.3446
A123: 119 | B123: 3212.921322 | G123: -225283.3446 | H123: 0 | I123: -228496.2659
A124: 120 | B124: 6425.842644 | G124: -228496.2659 | H124: 0 | I124: -234922.1086
A125: 121 | B125: 3212.921322 | G125: -234922.1086 | H125: 0 | I125: -238135.0299
A126: 122 | B126: 3212.921322 | G126: -238135.0299 | H126: 0 | I126: -241347.9512
A127: 123 | B127: 3212.921322 | G127: -241347.9512 | H127: 0 | I127: -244560.8726
A128: 124 | B128: 3212.921322 | G128: -244560.8726 | H128: 0 | I128: -247773.7939
A129: 125 | B129: 3212.921322 | G129: -247773.7939 | H129: 0 | I129: -250986.7152
A130: 126 | B130: 3212.921322 | G130: -250986.7152 | H130: 0 | I130: -254199.6365
A131: 127 | B131: 3212.921322 | G131: -254199.6365 | H131: 0 | I131: -257412.5578
A132: 128 | B132: 3212.921322 | G132: -257412.5578 | H132: 0 | I132: -260625.4792
A133: 129 | B133: =IF($A133>expectativa_de_sobrevida_em_meses,0,RGPS_valor_do_benefício)*IF(MOD($A133,12)=0,2,1) -> 3212.921322 | G133: -260625.4792 | H133: =IF(OR($G133<0,$A133>expectativa_de_sobrevida_em_meses,RGPS_simular_rentabilidade="Não"),0,$G133*rentabilidade_mensal) -> 0 | I133: -263838.4005
A134: =ROW()-4 -> 130 | B134: 3212.921322 | G134: =IF($A134=1,RGPS_recursos_acumulados,I133) -> -263838.4005 | H134: 0 | I134: =SUM(G134:H134)-$B134 -> -267051.3218
A135: 131 | B135: 3212.921322 | G135: -267051.3218 | H135: 0 | I135: -270264.2431
A136: 132 | B136: 6425.842644 | G136: -270264.2431 | H136: 0 | I136: -276690.0858
A137: 133 | B137: 3212.921322 | G137: -276690.0858 | H137: 0 | I137: -279903.0071
A138: 134 | B138: 3212.921322 | G138: -279903.0071 | H138: 0 | I138: -283115.9284
A139: 135 | B139: 3212.921322 | G139: -283115.9284 | H139: 0 | I139: -286328.8497
A140: 136 | B140: 3212.921322 | G140: -286328.8497 | H140: 0 | I140: -289541.7711
A141: 137 | B141: 3212.921322 | G141: -289541.7711 | H141: 0 | I141: -292754.6924
A142: 138 | B142: 3212.921322 | G142: -292754.6924 | H142: 0 | I142: -295967.6137
A143: 139 | B143: 3212.921322 | G143: -295967.6137 | H143: 0 | I143: -299180.535
A144: 140 | B144: 3212.921322 | G144: -299180.535 | H144: 0 | I144: -302393.4564
A145: 141 | B145: 3212.921322 | G145: -302393.4564 | H145: 0 | I145: -305606.3777
A146: 142 | B146: 3212.921322 | G146: -305606.3777 | H146: 0 | I146: -308819.299
A147: 143 | B147: 3212.921322 | G147: -308819.299 | H147: 0 | I147: -312032.2203
A148: 144 | B148: 6425.842644 | G148: -312032.2203 | H148: 0 | I148: -318458.063
A149: 145 | B149: 3212.921322 | G149: -318458.063 | H149: 0 | I149: -321670.9843
A150: 146 | B150: 3212.921322 | G150: -321670.9843 | H150: 0 | I150: -324883.9056
A151: 147 | B151: 3212.921322 | G151: -324883.9056 | H151: 0 | I151: -328096.8269
A152: 148 | B152: 3212.921322 | G152: -328096.8269 | H152: 0 | I152: -331309.7482
A153: 149 | B153: 3212.921322 | G153: -331309.7482 | H153: 0 | I153: -334522.6696
A154: 150 | B154: 3212.921322 | G154: -334522.6696 | H154: 0 | I154: -337735.5909
A155: 151 | B155: 3212.921322 | G155: -337735.5909 | H155: 0 | I155: -340948.5122
A156: 152 | B156: 3212.921322 | G156: -340948.5122 | H156: 0 | I156: -344161.4335
A157: 153 | B157: 3212.921322 | G157: -344161.4335 | H157: 0 | I157: -347374.3549
A158: 154 | B158: 3212.921322 | G158: -347374.3549 | H158: 0 | I158: -350587.2762
A159: 155 | B159: 3212.921322 | G159: -350587.2762 | H159: 0 | I159: -353800.1975
A160: 156 | B160: 6425.842644 | G160: -353800.1975 | H160: 0 | I160: -360226.0401
A161: 157 | B161: 3212.921322 | G161: -360226.0401 | H161: 0 | I161: -363438.9615
A162: 158 | B162: 3212.921322 | G162: -363438.9615 | H162: 0 | I162: -366651.8828
A163: 159 | B163: 3212.921322 | G163: -366651.8828 | H163: 0 | I163: -369864.8041
A164: 160 | B164: 3212.921322 | G164: -369864.8041 | H164: 0 | I164: -373077.7254
A165: 161 | B165: 3212.921322 | G165: -373077.7254 | H165: 0 | I165: -376290.6468
A166: 162 | B166: 3212.921322 | G166: -376290.6468 | H166: 0 | I166: -379503.5681
A167: 163 | B167: 3212.921322 | G167: -379503.5681 | H167: 0 | I167: -382716.4894
A168: 164 | B168: 3212.921322 | G168: -382716.4894 | H168: 0 | I168: -385929.4107
A169: 165 | B169: 3212.921322 | G169: -385929.4107 | H169: 0 | I169: -389142.332
A170: 166 | B170: 3212.921322 | G170: -389142.332 | H170: 0 | I170: -392355.2534
A171: 167 | B171: 3212.921322 | G171: -392355.2534 | H171: 0 | I171: -395568.1747
A172: 168 | B172: 6425.842644 | G172: -395568.1747 | H172: 0 | I172: -401994.0173
A173: 169 | B173: 3212.921322 | G173: -401994.0173 | H173: 0 | I173: -405206.9387
A174: 170 | B174: 3212.921322 | G174: -405206.9387 | H174: 0 | I174: -408419.86
A175: 171 | B175: 3212.921322 | G175: -408419.86 | H175: 0 | I175: -411632.7813
A176: 172 | B176: 3212.921322 | G176: -411632.7813 | H176: 0 | I176: -414845.7026
A177: 173 | B177: 3212.921322 | G177: -414845.7026 | H177: 0 | I177: -418058.6239
A178: 174 | B178: 3212.921322 | G178: -418058.6239 | H178: 0 | I178: -421271.5453
A179: 175 | B179: 3212.921322 | G179: -421271.5453 | H179: 0 | I179: -424484.4666
A180: 176 | B180: 3212.921322 | G180: -424484.4666 | H180: 0 | I180: -427697.3879
A181: 177 | B181: 3212.921322 | G181: -427697.3879 | H181: 0 | I181: -430910.3092
A182: 178 | B182: 3212.921322 | G182: -430910.3092 | H182: 0 | I182: -434123.2306
A183: 179 | B183: 3212.921322 | G183: -434123.2306 | H183: 0 | I183: -437336.1519
A184: 180 | B184: 6425.842644 | G184: -437336.1519 | H184: 0 | I184: -443761.9945
A185: 181 | B185: 3212.921322 | G185: -443761.9945 | H185: 0 | I185: -446974.9158
A186: 182 | B186: 3212.921322 | G186: -446974.9158 | H186: 0 | I186: -450187.8372
A187: 183 | B187: 3212.921322 | G187: -450187.8372 | H187: 0 | I187: -453400.7585
A188: 184 | B188: 3212.921322 | G188: -453400.7585 | H188: 0 | I188: -456613.6798
A189: 185 | B189: 3212.921322 | G189: -456613.6798 | H189: 0 | I189: -459826.6011
A190: 186 | B190: 3212.921322 | G190: -459826.6011 | H190: 0 | I190: -463039.5225
A191: 187 | B191: 3212.921322 | G191: -463039.5225 | H191: 0 | I191: -466252.4438
A192: 188 | B192: 3212.921322 | G192: -466252.4438 | H192: 0 | I192: -469465.3651
A193: 189 | B193: 3212.921322 | G193: -469465.3651 | H193: 0 | I193: -472678.2864
A194: 190 | B194: 3212.921322 | G194: -472678.2864 | H194: 0 | I194: -475891.2077
A195: 191 | B195: 3212.921322 | G195: -475891.2077 | H195: 0 | I195: -479104.1291
A196: 192 | B196: 6425.842644 | G196: -479104.1291 | H196: 0 | I196: -485529.9717
A197: 193 | B197: =IF($A197>expectativa_de_sobrevida_em_meses,0,RGPS_valor_do_benefício)*IF(MOD($A197,12)=0,2,1) -> 3212.921322 | G197: -485529.9717 | H197: =IF(OR($G197<0,$A197>expectativa_de_sobrevida_em_meses,RGPS_simular_rentabilidade="Não"),0,$G197*rentabilidade_mensal) -> 0 | I197: -488742.893
A198: =ROW()-4 -> 194 | B198: 3212.921322 | G198: =IF($A198=1,RGPS_recursos_acumulados,I197) -> -488742.893 | H198: 0 | I198: =SUM(G198:H198)-$B198 -> -491955.8143
A199: 195 | B199: 3212.921322 | G199: -491955.8143 | H199: 0 | I199: -495168.7357
A200: 196 | B200: 3212.921322 | G200: -495168.7357 | H200: 0 | I200: -498381.657
A201: 197 | B201: 3212.921322 | G201: -498381.657 | H201: 0 | I201: -501594.5783
A202: 198 | B202: 3212.921322 | G202: -501594.5783 | H202: 0 | I202: -504807.4996
... 1002 more rows

Sheet 10. Percepção RPSPF com RPC
A1: Mês | B1: Benefício | C1: CONTRIBUIÇÃO DO APOSENTADO | G1: Saldo anterior | H1: Rendimentos | I1: Saldo atual
C3: Base de cálculo | D3: Alíquota | E3: Valor | F3: Custeio de aposentadoria
A5: =ROW()-4 -> 1 | B5: =IF($A5>expectativa_de_sobrevida_em_meses,0,RPSPF_com_RPC_valor_do_benefício)*IF(MOD($A5,12)=0,2,1) -> 3691.74 | D5: =RPSPF_alíquota_servidor -> 0.11 | E5: =C5*D5 -> 0 | G5: =IF($A5=1,RPSPF_com_RPC_recursos_acumulados,I4) -> 610236.1766 | H5: =IF(OR($G5<0,$A5>expectativa_de_sobrevida_em_meses,RPSPF_simular_rentabilidade="Não"),0,$G5*rentabilidade_mensal) -> 0 | I5: =SUM(G5:H5)-$B5 -> 606544.4366
A6: =ROW()-4 -> 2 | B6: 3691.74 | D6: 0.11 | E6: =C6*D6 -> 0 | G6: =IF($A6=1,RPSPF_com_RPC_recursos_acumulados,I5) -> 606544.4366 | H6: 0 | I6: =SUM(G6:H6)-$B6 -> 602852.6966
A7: 3 | B7: 3691.74 | D7: 0.11 | E7: 0 | G7: 602852.6966 | H7: 0 | I7: 599160.9566
A8: 4 | B8: 3691.74 | D8: 0.11 | E8: 0 | G8: 599160.9566 | H8: 0 | I8: 595469.2166
A9: 5 | B9: 3691.74 | D9: 0.11 | E9: 0 | G9: 595469.2166 | H9: 0 | I9: 591777.4766
A10: 6 | B10: 3691.74 | D10: 0.11 | E10: 0 | G10: 591777.4766 | H10: 0 | I10: 588085.7366
A11: 7 | B11: 3691.74 | D11: 0.11 | E11: 0 | G11: 588085.7366 | H11: 0 | I11: 584393.9966
A12: 8 | B12: 3691.74 | D12: 0.11 | E12: 0 | G12: 584393.9966 | H12: 0 | I12: 580702.2566
A13: 9 | B13: 3691.74 | D13: 0.11 | E13: 0 | G13: 580702.2566 | H13: 0 | I13: 577010.5166
A14: 10 | B14: 3691.74 | D14: 0.11 | E14: 0 | G14: 577010.5166 | H14: 0 | I14: 573318.7766
A15: 11 | B15: 3691.74 | D15: 0.11 | E15: 0 | G15: 573318.7766 | H15: 0 | I15: 569627.0366
A16: 12 | B16: 7383.48 | D16: 0.11 | E16: 0 | G16: 569627.0366 | H16: 0 | I16: 562243.5566
A17: 13 | B17: 3691.74 | D17: 0.11 | E17: 0 | G17: 562243.5566 | H17: 0 | I17: 558551.8166
A18: 14 | B18: 3691.74 | D18: 0.11 | E18: 0 | G18: 558551.8166 | H18: 0 | I18: 554860.0766
A19: 15 | B19: 3691.74 | D19: 0.11 | E19: 0 | G19: 554860.0766 | H19: 0 | I19: 551168.3366
A20: 16 | B20: 3691.74 | D20: 0.11 | E20: 0 | G20: 551168.3366 | H20: 0 | I20: 547476.5966
A21: 17 | B21: 3691.74 | D21: 0.11 | E21: 0 | G21: 547476.5966 | H21: 0 | I21: 543784.8566
A22: 18 | B22: 3691.74 | D22: 0.11 | E22: 0 | G22: 543784.8566 | H22: 0 | I22: 540093.1166
A23: 19 | B23: 3691.74 | D23: 0.11 | E23: 0 | G23: 540093.1166 | H23: 0 | I23: 536401.3766
A24: 20 | B24: 3691.74 | D24: 0.11 | E24: 0 | G24: 536401.3766 | H24: 0 | I24: 532709.6366
A25: 21 | B25: 3691.74 | D25: 0.11 | E25: 0 | G25: 532709.6366 | H25: 0 | I25: 529017.8966
A26: 22 | B26: 3691.74 | D26: 0.11 | E26: 0 | G26: 529017.8966 | H26: 0 | I26: 525326.1566
A27: 23 | B27: 3691.74 | D27: 0.11 | E27: 0 | G27: 525326.1566 | H27: 0 | I27: 521634.4166
A28: 24 | B28: 7383.48 | D28: 0.11 | E28: 0 | G28: 521634.4166 | H28: 0 | I28: 514250.9366
A29: 25 | B29: 3691.74 | D29: 0.11 | E29: 0 | G29: 514250.9366 | H29: 0 | I29: 510559.1966
A30: 26 | B30: 3691.74 | D30: 0.11 | E30: 0 | G30: 510559.1966 | H30: 0 | I30: 506867.4566
A31: 27 | B31: 3691.74 | D31: 0.11 | E31: 0 | G31: 506867.4566 | H31: 0 | I31: 503175.7166
A32: 28 | B32: 3691.74 | D32: 0.11 | E32: 0 | G32: 503175.7166 | H32: 0 | I32: 499483.9766
A33: 29 | B33: 3691.74 | D33: 0.11 | E33: 0 | G33: 499483.9766 | H33: 0 | I33: 495792.2366
A34: 30 | B34: 3691.74 | D34: 0.11 | E34: 0 | G34: 495792.2366 | H34: 0 | I34: 492100.4966
A35: 31 | B35: 3691.74 | D35: 0.11 | E35: 0 | G35: 492100.4966 | H35: 0 | I35: 488408.7566
A36: 32 | B36: 3691.74 | D36: 0.11 | E36: 0 | G36: 488408.7566 | H36: 0 | I36: 484717.0166
A37: 33 | B37: 3691.74 | D37: 0.11 | E37: 0 | G37: 484717.0166 | H37: 0 | I37: 481025.2766
A38: 34 | B38: 3691.74 | D38: 0.11 | E38: 0 | G38: 481025.2766 | H38: 0 | I38: 477333.5366
A39: 35 | B39: 3691.74 | D39: 0.11 | E39: 0 | G39: 477333.5366 | H39: 0 | I39: 473641.7966
A40: 36 | B40: 7383.48 | D40: 0.11 | E40: 0 | G40: 473641.7966 | H40: 0 | I40: 466258.3166
A41: 37 | B41: 3691.74 | D41: 0.11 | E41: 0 | G41: 466258.3166 | H41: 0 | I41: 462566.5766
A42: 38 | B42: 3691.74 | D42: 0.11 | E42: 0 | G42: 462566.5766 | H42: 0 | I42: 458874.8366
A43: 39 | B43: 3691.74 | D43: 0.11 | E43: 0 | G43: 458874.8366 | H43: 0 | I43: 455183.0966
A44: 40 | B44: 3691.74 | D44: 0.11 | E44: 0 | G44: 455183.0966 | H44: 0 | I44: 451491.3566
A45: 41 | B45: 3691.74 | D45: 0.11 | E45: 0 | G45: 451491.3566 | H45: 0 | I45: 447799.6166
A46: 42 | B46: 3691.74 | D46: 0.11 | E46: 0 | G46: 447799.6166 | H46: 0 | I46: 444107.8766
A47: 43 | B47: 3691.74 | D47: 0.11 | E47: 0 | G47: 444107.8766 | H47: 0 | I47: 440416.1366
A48: 44 | B48: 3691.74 | D48: 0.11 | E48: 0 | G48: 440416.1366 | H48: 0 | I48: 436724.3966
A49: 45 | B49: 3691.74 | D49: 0.11 | E49: 0 | G49: 436724.3966 | H49: 0 | I49: 433032.6566
A50: 46 | B50: 3691.74 | D50: 0.11 | E50: 0 | G50: 433032.6566 | H50: 0 | I50: 429340.9166
A51: 47 | B51: 3691.74 | D51: 0.11 | E51: 0 | G51: 429340.9166 | H51: 0 | I51: 425649.1766
A52: 48 | B52: 7383.48 | D52: 0.11 | E52: 0 | G52: 425649.1766 | H52: 0 | I52: 418265.6966
A53: 49 | B53: 3691.74 | D53: 0.11 | E53: 0 | G53: 418265.6966 | H53: 0 | I53: 414573.9566
A54: 50 | B54: 3691.74 | D54: 0.11 | E54: 0 | G54: 414573.9566 | H54: 0 | I54: 410882.2166
A55: 51 | B55: 3691.74 | D55: 0.11 | E55: 0 | G55: 410882.2166 | H55: 0 | I55: 407190.4766
A56: 52 | B56: 3691.74 | D56: 0.11 | E56: 0 | G56: 407190.4766 | H56: 0 | I56: 403498.7366
A57: 53 | B57: 3691.74 | D57: 0.11 | E57: 0 | G57: 403498.7366 | H57: 0 | I57: 399806.9966
A58: 54 | B58: 3691.74 | D58: 0.11 | E58: 0 | G58: 399806.9966 | H58: 0 | I58: 396115.2566
A59: 55 | B59: 3691.74 | D59: 0.11 | E59: 0 | G59: 396115.2566 | H59: 0 | I59: 392423.5166
A60: 56 | B60: 3691.74 | D60: 0.11 | E60: 0 | G60: 392423.5166 | H60: 0 | I60: 388731.7766
A61: 57 | B61: 3691.74 | D61: 0.11 | E61: 0 | G61: 388731.7766 | H61: 0 | I61: 385040.0366
A62: 58 | B62: 3691.74 | D62: 0.11 | E62: 0 | G62: 385040.0366 | H62: 0 | I62: 381348.2966
A63: 59 | B63: 3691.74 | D63: 0.11 | E63: 0 | G63: 381348.2966 | H63: 0 | I63: 377656.5566
A64: 60 | B64: 7383.48 | D64: 0.11 | E64: 0 | G64: 377656.5566 | H64: 0 | I64: 370273.0766
A65: 61 | B65: 3691.74 | D65: 0.11 | E65: 0 | G65: 370273.0766 | H65: 0 | I65: 366581.3366
A66: 62 | B66: 3691.74 | D66: 0.11 | E66: 0 | G66: 366581.3366 | H66: 0 | I66: 362889.5966
A67: 63 | B67: 3691.74 | D67: 0.11 | E67: 0 | G67: 362889.5966 | H67: 0 | I67: 359197.8566
A68: 64 | B68: 3691.74 | D68: 0.11 | E68: 0 | G68: 359197.8566 | H68: 0 | I68: 355506.1166
A69: 65 | B69: =IF($A69>expectativa_de_sobrevida_em_meses,0,RPSPF_com_RPC_valor_do_benefício)*IF(MOD($A69,12)=0,2,1) -> 3691.74 | D69: =RPSPF_alíquota_servidor -> 0.11 | E69: 0 | G69: 355506.1166 | H69: =IF(OR($G69<0,$A69>expectativa_de_sobrevida_em_meses,RPSPF_simular_rentabilidade="Não"),0,$G69*rentabilidade_mensal) -> 0 | I69: 351814.3766
A70: =ROW()-4 -> 66 | B70: 3691.74 | D70: 0.11 | E70: =C70*D70 -> 0 | G70: =IF($A70=1,RPSPF_com_RPC_recursos_acumulados,I69) -> 351814.3766 | H70: 0 | I70: =SUM(G70:H70)-$B70 -> 348122.6366
A71: 67 | B71: 3691.74 | D71: 0.11 | E71: 0 | G71: 348122.6366 | H71: 0 | I71: 344430.8966
A72: 68 | B72: 3691.74 | D72: 0.11 | E72: 0 | G72: 344430.8966 | H72: 0 | I72: 340739.1566
A73: 69 | B73: 3691.74 | D73: 0.11 | E73: 0 | G73: 340739.1566 | H73: 0 | I73: 337047.4166
A74: 70 | B74: 3691.74 | D74: 0.11 | E74: 0 | G74: 337047.4166 | H74: 0 | I74: 333355.6766
A75: 71 | B75: 3691.74 | D75: 0.11 | E75: 0 | G75: 333355.6766 | H75: 0 | I75: 329663.9366
A76: 72 | B76: 7383.48 | D76: 0.11 | E76: 0 | G76: 329663.9366 | H76: 0 | I76: 322280.4566
A77: 73 | B77: 3691.74 | D77: 0.11 | E77: 0 | G77: 322280.4566 | H77: 0 | I77: 318588.7166
A78: 74 | B78: 3691.74 | D78: 0.11 | E78: 0 | G78: 318588.7166 | H78: 0 | I78: 314896.9766
A79: 75 | B79: 3691.74 | D79: 0.11 | E79: 0 | G79: 314896.9766 | H79: 0 | I79: 311205.2366
A80: 76 | B80: 3691.74 | D80: 0.11 | E80: 0 | G80: 311205.2366 | H80: 0 | I80: 307513.4966
A81: 77 | B81: 3691.74 | D81: 0.11 | E81: 0 | G81: 307513.4966 | H81: 0 | I81: 303821.7566
A82: 78 | B82: 3691.74 | D82: 0.11 | E82: 0 | G82: 303821.7566 | H82: 0 | I82: 300130.0166
A83: 79 | B83: 3691.74 | D83: 0.11 | E83: 0 | G83: 300130.0166 | H83: 0 | I83: 296438.2766
A84: 80 | B84: 3691.74 | D84: 0.11 | E84: 0 | G84: 296438.2766 | H84: 0 | I84: 292746.5366
A85: 81 | B85: 3691.74 | D85: 0.11 | E85: 0 | G85: 292746.5366 | H85: 0 | I85: 289054.7966
A86: 82 | B86: 3691.74 | D86: 0.11 | E86: 0 | G86: 289054.7966 | H86: 0 | I86: 285363.0566
A87: 83 | B87: 3691.74 | D87: 0.11 | E87: 0 | G87: 285363.0566 | H87: 0 | I87: 281671.3166
A88: 84 | B88: 7383.48 | D88: 0.11 | E88: 0 | G88: 281671.3166 | H88: 0 | I88: 274287.8366
A89: 85 | B89: 3691.74 | D89: 0.11 | E89: 0 | G89: 274287.8366 | H89: 0 | I89: 270596.0966
A90: 86 | B90: 3691.74 | D90: 0.11 | E90: 0 | G90: 270596.0966 | H90: 0 | I90: 266904.3566
A91: 87 | B91: 3691.74 | D91: 0.11 | E91: 0 | G91: 266904.3566 | H91: 0 | I91: 263212.6166
A92: 88 | B92: 3691.74 | D92: 0.11 | E92: 0 | G92: 263212.6166 | H92: 0 | I92: 259520.8766
A93: 89 | B93: 3691.74 | D93: 0.11 | E93: 0 | G93: 259520.8766 | H93: 0 | I93: 255829.1366
A94: 90 | B94: 3691.74 | D94: 0.11 | E94: 0 | G94: 255829.1366 | H94: 0 | I94: 252137.3966
A95: 91 | B95: 3691.74 | D95: 0.11 | E95: 0 | G95: 252137.3966 | H95: 0 | I95: 248445.6566
A96: 92 | B96: 3691.74 | D96: 0.11 | E96: 0 | G96: 248445.6566 | H96: 0 | I96: 244753.9166
A97: 93 | B97: 3691.74 | D97: 0.11 | E97: 0 | G97: 244753.9166 | H97: 0 | I97: 241062.1766
A98: 94 | B98: 3691.74 | D98: 0.11 | E98: 0 | G98: 241062.1766 | H98: 0 | I98: 237370.4366
A99: 95 | B99: 3691.74 | D99: 0.11 | E99: 0 | G99: 237370.4366 | H99: 0 | I99: 233678.6966
A100: 96 | B100: 7383.48 | D100: 0.11 | E100: 0 | G100: 233678.6966 | H100: 0 | I100: 226295.2166
A101: 97 | B101: 3691.74 | D101: 0.11 | E101: 0 | G101: 226295.2166 | H101: 0 | I101: 222603.4766
A102: 98 | B102: 3691.74 | D102: 0.11 | E102: 0 | G102: 222603.4766 | H102: 0 | I102: 218911.7366
A103: 99 | B103: 3691.74 | D103: 0.11 | E103: 0 | G103: 218911.7366 | H103: 0 | I103: 215219.9966
A104: 100 | B104: 3691.74 | D104: 0.11 | E104: 0 | G104: 215219.9966 | H104: 0 | I104: 211528.2566
A105: 101 | B105: 3691.74 | D105: 0.11 | E105: 0 | G105: 211528.2566 | H105: 0 | I105: 207836.5166
A106: 102 | B106: 3691.74 | D106: 0.11 | E106: 0 | G106: 207836.5166 | H106: 0 | I106: 204144.7766
A107: 103 | B107: 3691.74 | D107: 0.11 | E107: 0 | G107: 204144.7766 | H107: 0 | I107: 200453.0366
A108: 104 | B108: 3691.74 | D108: 0.11 | E108: 0 | G108: 200453.0366 | H108: 0 | I108: 196761.2966
A109: 105 | B109: 3691.74 | D109: 0.11 | E109: 0 | G109: 196761.2966 | H109: 0 | I109: 193069.5566
A110: 106 | B110: 3691.74 | D110: 0.11 | E110: 0 | G110: 193069.5566 | H110: 0 | I110: 189377.8166
A111: 107 | B111: 3691.74 | D111: 0.11 | E111: 0 | G111: 189377.8166 | H111: 0 | I111: 185686.0766
A112: 108 | B112: 7383.48 | D112: 0.11 | E112: 0 | G112: 185686.0766 | H112: 0 | I112: 178302.5966
A113: 109 | B113: 3691.74 | D113: 0.11 | E113: 0 | G113: 178302.5966 | H113: 0 | I113: 174610.8566
A114: 110 | B114: 3691.74 | D114: 0.11 | E114: 0 | G114: 174610.8566 | H114: 0 | I114: 170919.1166
A115: 111 | B115: 3691.74 | D115: 0.11 | E115: 0 | G115: 170919.1166 | H115: 0 | I115: 167227.3766
A116: 112 | B116: 3691.74 | D116: 0.11 | E116: 0 | G116: 167227.3766 | H116: 0 | I116: 163535.6366
A117: 113 | B117: 3691.74 | D117: 0.11 | E117: 0 | G117: 163535.6366 | H117: 0 | I117: 159843.8966
A118: 114 | B118: 3691.74 | D118: 0.11 | E118: 0 | G118: 159843.8966 | H118: 0 | I118: 156152.1566
A119: 115 | B119: 3691.74 | D119: 0.11 | E119: 0 | G119: 156152.1566 | H119: 0 | I119: 152460.4166
A120: 116 | B120: 3691.74 | D120: 0.11 | E120: 0 | G120: 152460.4166 | H120: 0 | I120: 148768.6766
A121: 117 | B121: 3691.74 | D121: 0.11 | E121: 0 | G121: 148768.6766 | H121: 0 | I121: 145076.9366
A122: 118 | B122: 3691.74 | D122: 0.11 | E122: 0 | G122: 145076.9366 | H122: 0 | I122: 141385.1966
A123: 119 | B123: 3691.74 | D123: 0.11 | E123: 0 | G123: 141385.1966 | H123: 0 | I123: 137693.4566
A124: 120 | B124: 7383.48 | D124: 0.11 | E124: 0 | G124: 137693.4566 | H124: 0 | I124: 130309.9766
A125: 121 | B125: 3691.74 | D125: 0.11 | E125: 0 | G125: 130309.9766 | H125: 0 | I125: 126618.2366
A126: 122 | B126: 3691.74 | D126: 0.11 | E126: 0 | G126: 126618.2366 | H126: 0 | I126: 122926.4966
A127: 123 | B127: 3691.74 | D127: 0.11 | E127: 0 | G127: 122926.4966 | H127: 0 | I127: 119234.7566
A128: 124 | B128: 3691.74 | D128: 0.11 | E128: 0 | G128: 119234.7566 | H128: 0 | I128: 115543.0166
A129: 125 | B129: 3691.74 | D129: 0.11 | E129: 0 | G129: 115543.0166 | H129: 0 | I129: 111851.2766
A130: 126 | B130: 3691.74 | D130: 0.11 | E130: 0 | G130: 111851.2766 | H130: 0 | I130: 108159.5366
A131: 127 | B131: 3691.74 | D131: 0.11 | E131: 0 | G131: 108159.5366 | H131: 0 | I131: 104467.7966
A132: 128 | B132: 3691.74 | D132: 0.11 | E132: 0 | G132: 104467.7966 | H132: 0 | I132: 100776.0566
A133: 129 | B133: =IF($A133>expectativa_de_sobrevida_em_meses,0,RPSPF_com_RPC_valor_do_benefício)*IF(MOD($A133,12)=0,2,1) -> 3691.74 | D133: =RPSPF_alíquota_servidor -> 0.11 | E133: 0 | G133: 100776.0566 | H133: =IF(OR($G133<0,$A133>expectativa_de_sobrevida_em_meses,RPSPF_simular_rentabilidade="Não"),0,$G133*rentabilidade_mensal) -> 0 | I133: 97084.31655
A134: =ROW()-4 -> 130 | B134: 3691.74 | D134: 0.11 | E134: =C134*D134 -> 0 | G134: =IF($A134=1,RPSPF_com_RPC_recursos_acumulados,I133) -> 97084.31655 | H134: 0 | I134: =SUM(G134:H134)-$B134 -> 93392.57655
A135: 131 | B135: 3691.74 | D135: 0.11 | E135: 0 | G135: 93392.57655 | H135: 0 | I135: 89700.83655
A136: 132 | B136: 7383.48 | D136: 0.11 | E136: 0 | G136: 89700.83655 | H136: 0 | I136: 82317.35655
A137: 133 | B137: 3691.74 | D137: 0.11 | E137: 0 | G137: 82317.35655 | H137: 0 | I137: 78625.61655
A138: 134 | B138: 3691.74 | D138: 0.11 | E138: 0 | G138: 78625.61655 | H138: 0 | I138: 74933.87655
A139: 135 | B139: 3691.74 | D139: 0.11 | E139: 0 | G139: 74933.87655 | H139: 0 | I139: 71242.13655
A140: 136 | B140: 3691.74 | D140: 0.11 | E140: 0 | G140: 71242.13655 | H140: 0 | I140: 67550.39655
A141: 137 | B141: 3691.74 | D141: 0.11 | E141: 0 | G141: 67550.39655 | H141: 0 | I141: 63858.65655
A142: 138 | B142: 3691.74 | D142: 0.11 | E142: 0 | G142: 63858.65655 | H142: 0 | I142: 60166.91655
A143: 139 | B143: 3691.74 | D143: 0.11 | E143: 0 | G143: 60166.91655 | H143: 0 | I143: 56475.17655
A144: 140 | B144: 3691.74 | D144: 0.11 | E144: 0 | G144: 56475.17655 | H144: 0 | I144: 52783.43655
A145: 141 | B145: 3691.74 | D145: 0.11 | E145: 0 | G145: 52783.43655 | H145: 0 | I145: 49091.69655
A146: 142 | B146: 3691.74 | D146: 0.11 | E146: 0 | G146: 49091.69655 | H146: 0 | I146: 45399.95655
A147: 143 | B147: 3691.74 | D147: 0.11 | E147: 0 | G147: 45399.95655 | H147: 0 | I147: 41708.21655
A148: 144 | B148: 7383.48 | D148: 0.11 | E148: 0 | G148: 41708.21655 | H148: 0 | I148: 34324.73655
A149: 145 | B149: 3691.74 | D149: 0.11 | E149: 0 | G149: 34324.73655 | H149: 0 | I149: 30632.99655
A150: 146 | B150: 3691.74 | D150: 0.11 | E150: 0 | G150: 30632.99655 | H150: 0 | I150: 26941.25655
A151: 147 | B151: 3691.74 | D151: 0.11 | E151: 0 | G151: 26941.25655 | H151: 0 | I151: 23249.51655
A152: 148 | B152: 3691.74 | D152: 0.11 | E152: 0 | G152: 23249.51655 | H152: 0 | I152: 19557.77655
A153: 149 | B153: 3691.74 | D153: 0.11 | E153: 0 | G153: 19557.77655 | H153: 0 | I153: 15866.03655
A154: 150 | B154: 3691.74 | D154: 0.11 | E154: 0 | G154: 15866.03655 | H154: 0 | I154: 12174.29655
A155: 151 | B155: 3691.74 | D155: 0.11 | E155: 0 | G155: 12174.29655 | H155: 0 | I155: 8482.55655
A156: 152 | B156: 3691.74 | D156: 0.11 | E156: 0 | G156: 8482.55655 | H156: 0 | I156: 4790.81655
A157: 153 | B157: 3691.74 | D157: 0.11 | E157: 0 | G157: 4790.81655 | H157: 0 | I157: 1099.07655
A158: 154 | B158: 3691.74 | D158: 0.11 | E158: 0 | G158: 1099.07655 | H158: 0 | I158: -2592.66345
A159: 155 | B159: 3691.74 | D159: 0.11 | E159: 0 | G159: -2592.66345 | H159: 0 | I159: -6284.40345
A160: 156 | B160: 7383.48 | D160: 0.11 | E160: 0 | G160: -6284.40345 | H160: 0 | I160: -13667.88345
A161: 157 | B161: 3691.74 | D161: 0.11 | E161: 0 | G161: -13667.88345 | H161: 0 | I161: -17359.62345
A162: 158 | B162: 3691.74 | D162: 0.11 | E162: 0 | G162: -17359.62345 | H162: 0 | I162: -21051.36345
A163: 159 | B163: 3691.74 | D163: 0.11 | E163: 0 | G163: -21051.36345 | H163: 0 | I163: -24743.10345
A164: 160 | B164: 3691.74 | D164: 0.11 | E164: 0 | G164: -24743.10345 | H164: 0 | I164: -28434.84345
A165: 161 | B165: 3691.74 | D165: 0.11 | E165: 0 | G165: -28434.84345 | H165: 0 | I165: -32126.58345
A166: 162 | B166: 3691.74 | D166: 0.11 | E166: 0 | G166: -32126.58345 | H166: 0 | I166: -35818.32345
A167: 163 | B167: 3691.74 | D167: 0.11 | E167: 0 | G167: -35818.32345 | H167: 0 | I167: -39510.06345
A168: 164 | B168: 3691.74 | D168: 0.11 | E168: 0 | G168: -39510.06345 | H168: 0 | I168: -43201.80345
A169: 165 | B169: 3691.74 | D169: 0.11 | E169: 0 | G169: -43201.80345 | H169: 0 | I169: -46893.54345
A170: 166 | B170: 3691.74 | D170: 0.11 | E170: 0 | G170: -46893.54345 | H170: 0 | I170: -50585.28345
A171: 167 | B171: 3691.74 | D171: 0.11 | E171: 0 | G171: -50585.28345 | H171: 0 | I171: -54277.02345
A172: 168 | B172: 7383.48 | D172: 0.11 | E172: 0 | G172: -54277.02345 | H172: 0 | I172: -61660.50345
A173: 169 | B173: 3691.74 | D173: 0.11 | E173: 0 | G173: -61660.50345 | H173: 0 | I173: -65352.24345
A174: 170 | B174: 3691.74 | D174: 0.11 | E174: 0 | G174: -65352.24345 | H174: 0 | I174: -69043.98345
A175: 171 | B175: 3691.74 | D175: 0.11 | E175: 0 | G175: -69043.98345 | H175: 0 | I175: -72735.72345
A176: 172 | B176: 3691.74 | D176: 0.11 | E176: 0 | G176: -72735.72345 | H176: 0 | I176: -76427.46345
A177: 173 | B177: 3691.74 | D177: 0.11 | E177: 0 | G177: -76427.46345 | H177: 0 | I177: -80119.20345
A178: 174 | B178: 3691.74 | D178: 0.11 | E178: 0 | G178: -80119.20345 | H178: 0 | I178: -83810.94345
A179: 175 | B179: 3691.74 | D179: 0.11 | E179: 0 | G179: -83810.94345 | H179: 0 | I179: -87502.68345
A180: 176 | B180: 3691.74 | D180: 0.11 | E180: 0 | G180: -87502.68345 | H180: 0 | I180: -91194.42345
A181: 177 | B181: 3691.74 | D181: 0.11 | E181: 0 | G181: -91194.42345 | H181: 0 | I181: -94886.16345
A182: 178 | B182: 3691.74 | D182: 0.11 | E182: 0 | G182: -94886.16345 | H182: 0 | I182: -98577.90345
A183: 179 | B183: 3691.74 | D183: 0.11 | E183: 0 | G183: -98577.90345 | H183: 0 | I183: -102269.6434
A184: 180 | B184: 7383.48 | D184: 0.11 | E184: 0 | G184: -102269.6434 | H184: 0 | I184: -109653.1234
A185: 181 | B185: 3691.74 | D185: 0.11 | E185: 0 | G185: -109653.1234 | H185: 0 | I185: -113344.8634
A186: 182 | B186: 3691.74 | D186: 0.11 | E186: 0 | G186: -113344.8634 | H186: 0 | I186: -117036.6034
A187: 183 | B187: 3691.74 | D187: 0.11 | E187: 0 | G187: -117036.6034 | H187: 0 | I187: -120728.3434
A188: 184 | B188: 3691.74 | D188: 0.11 | E188: 0 | G188: -120728.3434 | H188: 0 | I188: -124420.0834
A189: 185 | B189: 3691.74 | D189: 0.11 | E189: 0 | G189: -124420.0834 | H189: 0 | I189: -128111.8234
A190: 186 | B190: 3691.74 | D190: 0.11 | E190: 0 | G190: -128111.8234 | H190: 0 | I190: -131803.5634
A191: 187 | B191: 3691.74 | D191: 0.11 | E191: 0 | G191: -131803.5634 | H191: 0 | I191: -135495.3034
A192: 188 | B192: 3691.74 | D192: 0.11 | E192: 0 | G192: -135495.3034 | H192: 0 | I192: -139187.0434
A193: 189 | B193: 3691.74 | D193: 0.11 | E193: 0 | G193: -139187.0434 | H193: 0 | I193: -142878.7834
A194: 190 | B194: 3691.74 | D194: 0.11 | E194: 0 | G194: -142878.7834 | H194: 0 | I194: -146570.5234
A195: 191 | B195: 3691.74 | D195: 0.11 | E195: 0 | G195: -146570.5234 | H195: 0 | I195: -150262.2634
A196: 192 | B196: 7383.48 | D196: 0.11 | E196: 0 | G196: -150262.2634 | H196: 0 | I196: -157645.7434
A197: 193 | B197: =IF($A197>expectativa_de_sobrevida_em_meses,0,RPSPF_com_RPC_valor_do_benefício)*IF(MOD($A197,12)=0,2,1) -> 3691.74 | D197: =RPSPF_alíquota_servidor -> 0.11 | E197: 0 | G197: -157645.7434 | H197: =IF(OR($G197<0,$A197>expectativa_de_sobrevida_em_meses,RPSPF_simular_rentabilidade="Não"),0,$G197*rentabilidade_mensal) -> 0 | I197: -161337.4834
A198: =ROW()-4 -> 194 | B198: 3691.74 | D198: 0.11 | E198: =C198*D198 -> 0 | G198: =IF($A198=1,RPSPF_com_RPC_recursos_acumulados,I197) -> -161337.4834 | H198: 0 | I198: =SUM(G198:H198)-$B198 -> -165029.2234
A199: 195 | B199: 3691.74 | D199: 0.11 | E199: 0 | G199: -165029.2234 | H199: 0 | I199: -168720.9634
A200: 196 | B200: 3691.74 | D200: 0.11 | E200: 0 | G200: -168720.9634 | H200: 0 | I200: -172412.7034
A201: 197 | B201: 3691.74 | D201: 0.11 | E201: 0 | G201: -172412.7034 | H201: 0 | I201: -176104.4434
A202: 198 | B202: 3691.74 | D202: 0.11 | E202: 0 | G202: -176104.4434 | H202: 0 | I202: -179796.1834
... 1002 more rows

Sheet 11. Percepção RPC
A1: Mês | B1: Benefício | C1: CONTRIBUIÇÃO DO ASSISTIDO | G1: Saldo anterior | H1: Rendimentos | I1: Saldo atual
C3: Base de cálculo | D3: Alíquota | E3: Valor | F3: Custeio de aposentadoria
A5: =ROW()-4 -> 1 | B5: =IF($A5>expectativa_de_sobrevida_em_meses,0,RPC_valor_do_benefício)*IF(MOD($A5,12)=0,2,1) -> 2758.756022 | C5: =$B5 -> 2758.756022 | D5: =RPC_alíquota_assistido -> 0.01 | E5: =C5*D5 -> 27.58756022 | F5: =SUM(E5:E5)*RPC_percentual_custeio_aposentadoria_percepção -> 0 | G5: =IF($A5=1,RPC_recursos_acumulados,I4) -> 448971.7312 | H5: =IF(OR($G5<0,$A5>expectativa_de_sobrevida_em_meses),0,$G5*rentabilidade_mensal) -> 1829.166408 | I5: =SUM(F5:H5)-$B5 -> 448042.1416
A6: =ROW()-4 -> 2 | B6: 2758.756022 | C6: =$B6 -> 2758.756022 | D6: 0.01 | E6: =C6*D6 -> 27.58756022 | F6: 0 | G6: =IF($A6=1,RPC_recursos_acumulados,I5) -> 448042.1416 | H6: 1825.379145 | I6: =SUM(F6:H6)-$B6 -> 447108.7648
A7: 3 | B7: 2758.756022 | C7: 2758.756022 | D7: 0.01 | E7: 27.58756022 | F7: 0 | G7: 447108.7648 | H7: 1821.576452 | I7: 446171.5852
A8: 4 | B8: 2758.756022 | C8: 2758.756022 | D8: 0.01 | E8: 27.58756022 | F8: 0 | G8: 446171.5852 | H8: 1817.758267 | I8: 445230.5874
A9: 5 | B9: 2758.756022 | C9: 2758.756022 | D9: 0.01 | E9: 27.58756022 | F9: 0 | G9: 445230.5874 | H9: 1813.924525 | I9: 444285.7559
A10: 6 | B10: 2758.756022 | C10: 2758.756022 | D10: 0.01 | E10: 27.58756022 | F10: 0 | G10: 444285.7559 | H10: 1810.075165 | I10: 443337.0751
A11: 7 | B11: 2758.756022 | C11: 2758.756022 | D11: 0.01 | E11: 27.58756022 | F11: 0 | G11: 443337.0751 | H11: 1806.210122 | I11: 442384.5292
A12: 8 | B12: 2758.756022 | C12: 2758.756022 | D12: 0.01 | E12: 27.58756022 | F12: 0 | G12: 442384.5292 | H12: 1802.329332 | I12: 441428.1025
A13: 9 | B13: 2758.756022 | C13: 2758.756022 | D13: 0.01 | E13: 27.58756022 | F13: 0 | G13: 441428.1025 | H13: 1798.432731 | I13: 440467.7792
A14: 10 | B14: 2758.756022 | C14: 2758.756022 | D14: 0.01 | E14: 27.58756022 | F14: 0 | G14: 440467.7792 | H14: 1794.520255 | I14: 439503.5434
A15: 11 | B15: 2758.756022 | C15: 2758.756022 | D15: 0.01 | E15: 27.58756022 | F15: 0 | G15: 439503.5434 | H15: 1790.591839 | I15: 438535.3792
A16: 12 | B16: 5517.512044 | C16: 5517.512044 | D16: 0.01 | E16: 55.17512044 | F16: 0 | G16: 438535.3792 | H16: 1786.647419 | I16: 434804.5146
A17: 13 | B17: 2758.756022 | C17: 2758.756022 | D17: 0.01 | E17: 27.58756022 | F17: 0 | G17: 434804.5146 | H17: 1771.447414 | I17: 433817.206
A18: 14 | B18: 2758.756022 | C18: 2758.756022 | D18: 0.01 | E18: 27.58756022 | F18: 0 | G18: 433817.206 | H18: 1767.424997 | I18: 432825.875
A19: 15 | B19: 2758.756022 | C19: 2758.756022 | D19: 0.01 | E19: 27.58756022 | F19: 0 | G19: 432825.875 | H19: 1763.386191 | I19: 431830.5052
A20: 16 | B20: 2758.756022 | C20: 2758.756022 | D20: 0.01 | E20: 27.58756022 | F20: 0 | G20: 431830.5052 | H20: 1759.330932 | I20: 430831.0801
A21: 17 | B21: 2758.756022 | C21: 2758.756022 | D21: 0.01 | E21: 27.58756022 | F21: 0 | G21: 430831.0801 | H21: 1755.25915 | I21: 429827.5832
A22: 18 | B22: 2758.756022 | C22: 2758.756022 | D22: 0.01 | E22: 27.58756022 | F22: 0 | G22: 429827.5832 | H22: 1751.17078 | I22: 428819.9979
A23: 19 | B23: 2758.756022 | C23: 2758.756022 | D23: 0.01 | E23: 27.58756022 | F23: 0 | G23: 428819.9979 | H23: 1747.065753 | I23: 427808.3077
A24: 20 | B24: 2758.756022 | C24: 2758.756022 | D24: 0.01 | E24: 27.58756022 | F24: 0 | G24: 427808.3077 | H24: 1742.944001 | I24: 426792.4957
A25: 21 | B25: 2758.756022 | C25: 2758.756022 | D25: 0.01 | E25: 27.58756022 | F25: 0 | G25: 426792.4957 | H25: 1738.805457 | I25: 425772.5451
A26: 22 | B26: 2758.756022 | C26: 2758.756022 | D26: 0.01 | E26: 27.58756022 | F26: 0 | G26: 425772.5451 | H26: 1734.650052 | I26: 424748.4391
A27: 23 | B27: 2758.756022 | C27: 2758.756022 | D27: 0.01 | E27: 27.58756022 | F27: 0 | G27: 424748.4391 | H27: 1730.477718 | I27: 423720.1608
A28: 24 | B28: 5517.512044 | C28: 5517.512044 | D28: 0.01 | E28: 55.17512044 | F28: 0 | G28: 423720.1608 | H28: 1726.288385 | I28: 419928.9372
A29: 25 | B29: 2758.756022 | C29: 2758.756022 | D29: 0.01 | E29: 27.58756022 | F29: 0 | G29: 419928.9372 | H29: 1710.84247 | I29: 418881.0236
A30: 26 | B30: 2758.756022 | C30: 2758.756022 | D30: 0.01 | E30: 27.58756022 | F30: 0 | G30: 418881.0236 | H30: 1706.573141 | I30: 417828.8407
A31: 27 | B31: 2758.756022 | C31: 2758.756022 | D31: 0.01 | E31: 27.58756022 | F31: 0 | G31: 417828.8407 | H31: 1702.286417 | I31: 416772.3711
A32: 28 | B32: 2758.756022 | C32: 2758.756022 | D32: 0.01 | E32: 27.58756022 | F32: 0 | G32: 416772.3711 | H32: 1697.98223 | I32: 415711.5973
A33: 29 | B33: 2758.756022 | C33: 2758.756022 | D33: 0.01 | E33: 27.58756022 | F33: 0 | G33: 415711.5973 | H33: 1693.660506 | I33: 414646.5018
A34: 30 | B34: 2758.756022 | C34: 2758.756022 | D34: 0.01 | E34: 27.58756022 | F34: 0 | G34: 414646.5018 | H34: 1689.321175 | I34: 413577.067
A35: 31 | B35: 2758.756022 | C35: 2758.756022 | D35: 0.01 | E35: 27.58756022 | F35: 0 | G35: 413577.067 | H35: 1684.964165 | I35: 412503.2751
A36: 32 | B36: 2758.756022 | C36: 2758.756022 | D36: 0.01 | E36: 27.58756022 | F36: 0 | G36: 412503.2751 | H36: 1680.589404 | I36: 411425.1085
A37: 33 | B37: 2758.756022 | C37: 2758.756022 | D37: 0.01 | E37: 27.58756022 | F37: 0 | G37: 411425.1085 | H37: 1676.19682 | I37: 410342.5493
A38: 34 | B38: 2758.756022 | C38: 2758.756022 | D38: 0.01 | E38: 27.58756022 | F38: 0 | G38: 410342.5493 | H38: 1671.786339 | I38: 409255.5796
A39: 35 | B39: 2758.756022 | C39: 2758.756022 | D39: 0.01 | E39: 27.58756022 | F39: 0 | G39: 409255.5796 | H39: 1667.35789 | I39: 408164.1815
A40: 36 | B40: 5517.512044 | C40: 5517.512044 | D40: 0.01 | E40: 55.17512044 | F40: 0 | G40: 408164.1815 | H40: 1662.911399 | I40: 404309.5808
A41: 37 | B41: 2758.756022 | C41: 2758.756022 | D41: 0.01 | E41: 27.58756022 | F41: 0 | G41: 404309.5808 | H41: 1647.207279 | I41: 403198.0321
A42: 38 | B42: 2758.756022 | C42: 2758.756022 | D42: 0.01 | E42: 27.58756022 | F42: 0 | G42: 403198.0321 | H42: 1642.678692 | I42: 402081.9548
A43: 39 | B43: 2758.756022 | C43: 2758.756022 | D43: 0.01 | E43: 27.58756022 | F43: 0 | G43: 402081.9548 | H43: 1638.131655 | I43: 400961.3304
A44: 40 | B44: 2758.756022 | C44: 2758.756022 | D44: 0.01 | E44: 27.58756022 | F44: 0 | G44: 400961.3304 | H44: 1633.566092 | I44: 399836.1405
A45: 41 | B45: 2758.756022 | C45: 2758.756022 | D45: 0.01 | E45: 27.58756022 | F45: 0 | G45: 399836.1405 | H45: 1628.981929 | I45: 398706.3664
A46: 42 | B46: 2758.756022 | C46: 2758.756022 | D46: 0.01 | E46: 27.58756022 | F46: 0 | G46: 398706.3664 | H46: 1624.37909 | I46: 397571.9894
A47: 43 | B47: 2758.756022 | C47: 2758.756022 | D47: 0.01 | E47: 27.58756022 | F47: 0 | G47: 397571.9894 | H47: 1619.757498 | I47: 396432.9909
A48: 44 | B48: 2758.756022 | C48: 2758.756022 | D48: 0.01 | E48: 27.58756022 | F48: 0 | G48: 396432.9909 | H48: 1615.117077 | I48: 395289.352
A49: 45 | B49: 2758.756022 | C49: 2758.756022 | D49: 0.01 | E49: 27.58756022 | F49: 0 | G49: 395289.352 | H49: 1610.45775 | I49: 394141.0537
A50: 46 | B50: 2758.756022 | C50: 2758.756022 | D50: 0.01 | E50: 27.58756022 | F50: 0 | G50: 394141.0537 | H50: 1605.779441 | I50: 392988.0771
A51: 47 | B51: 2758.756022 | C51: 2758.756022 | D51: 0.01 | E51: 27.58756022 | F51: 0 | G51: 392988.0771 | H51: 1601.082072 | I51: 391830.4032
A52: 48 | B52: 5517.512044 | C52: 5517.512044 | D52: 0.01 | E52: 55.17512044 | F52: 0 | G52: 391830.4032 | H52: 1596.365565 | I52: 387909.2567
A53: 49 | B53: 2758.756022 | C53: 2758.756022 | D53: 0.01 | E53: 27.58756022 | F53: 0 | G53: 387909.2567 | H53: 1580.390329 | I53: 386730.891
A54: 50 | B54: 2758.756022 | C54: 2758.756022 | D54: 0.01 | E54: 27.58756022 | F54: 0 | G54: 386730.891 | H54: 1575.589521 | I54: 385547.7245
A55: 51 | B55: 2758.756022 | C55: 2758.756022 | D55: 0.01 | E55: 27.58756022 | F55: 0 | G55: 385547.7245 | H55: 1570.769154 | I55: 384359.7376
A56: 52 | B56: 2758.756022 | C56: 2758.756022 | D56: 0.01 | E56: 27.58756022 | F56: 0 | G56: 384359.7376 | H56: 1565.929149 | I56: 383166.9107
A57: 53 | B57: 2758.756022 | C57: 2758.756022 | D57: 0.01 | E57: 27.58756022 | F57: 0 | G57: 383166.9107 | H57: 1561.069424 | I57: 381969.2241
A58: 54 | B58: 2758.756022 | C58: 2758.756022 | D58: 0.01 | E58: 27.58756022 | F58: 0 | G58: 381969.2241 | H58: 1556.189901 | I58: 380766.658
A59: 55 | B59: 2758.756022 | C59: 2758.756022 | D59: 0.01 | E59: 27.58756022 | F59: 0 | G59: 380766.658 | H59: 1551.290497 | I59: 379559.1925
A60: 56 | B60: 2758.756022 | C60: 2758.756022 | D60: 0.01 | E60: 27.58756022 | F60: 0 | G60: 379559.1925 | H60: 1546.371133 | I60: 378346.8076
A61: 57 | B61: 2758.756022 | C61: 2758.756022 | D61: 0.01 | E61: 27.58756022 | F61: 0 | G61: 378346.8076 | H61: 1541.431727 | I61: 377129.4833
A62: 58 | B62: 2758.756022 | C62: 2758.756022 | D62: 0.01 | E62: 27.58756022 | F62: 0 | G62: 377129.4833 | H62: 1536.472197 | I62: 375907.1995
A63: 59 | B63: 2758.756022 | C63: 2758.756022 | D63: 0.01 | E63: 27.58756022 | F63: 0 | G63: 375907.1995 | H63: 1531.492462 | I63: 374679.9359
A64: 60 | B64: 5517.512044 | C64: 5517.512044 | D64: 0.01 | E64: 55.17512044 | F64: 0 | G64: 374679.9359 | H64: 1526.492438 | I64: 370688.9163
A65: 61 | B65: 2758.756022 | C65: 2758.756022 | D65: 0.01 | E65: 27.58756022 | F65: 0 | G65: 370688.9163 | H65: 1510.23253 | I65: 369440.3928
A66: 62 | B66: 2758.756022 | C66: 2758.756022 | D66: 0.01 | E66: 27.58756022 | F66: 0 | G66: 369440.3928 | H66: 1505.145891 | I66: 368186.7827
A67: 63 | B67: 2758.756022 | C67: 2758.756022 | D67: 0.01 | E67: 27.58756022 | F67: 0 | G67: 368186.7827 | H67: 1500.038528 | I67: 366928.0652
A68: 64 | B68: 2758.756022 | C68: 2758.756022 | D68: 0.01 | E68: 27.58756022 | F68: 0 | G68: 366928.0652 | H68: 1494.910357 | I68: 365664.2195
A69: 65 | B69: =IF($A69>expectativa_de_sobrevida_em_meses,0,RPC_valor_do_benefício)*IF(MOD($A69,12)=0,2,1) -> 2758.756022 | C69: 2758.756022 | D69: =RPC_alíquota_assistido -> 0.01 | E69: 27.58756022 | F69: =SUM(E69:E69)*RPC_percentual_custeio_aposentadoria_percepção -> 0 | G69: 365664.2195 | H69: =IF(OR($G69<0,$A69>expectativa_de_sobrevida_em_meses),0,$G69*rentabilidade_mensal) -> 1489.761294 | I69: 364395.2248
A70: =ROW()-4 -> 66 | B70: 2758.756022 | C70: =$B70 -> 2758.756022 | D70: 0.01 | E70: =C70*D70 -> 27.58756022 | F70: 0 | G70: =IF($A70=1,RPC_recursos_acumulados,I69) -> 364395.2248 | H70: 1484.591252 | I70: =SUM(F70:H70)-$B70 -> 363121.06
A71: 67 | B71: 2758.756022 | C71: 2758.756022 | D71: 0.01 | E71: 27.58756022 | F71: 0 | G71: 363121.06 | H71: 1479.400147 | I71: 361841.7042
A72: 68 | B72: 2758.756022 | C72: 2758.756022 | D72: 0.01 | E72: 27.58756022 | F72: 0 | G72: 361841.7042 | H72: 1474.187893 | I72: 360557.136
A73: 69 | B73: 2758.756022 | C73: 2758.756022 | D73: 0.01 | E73: 27.58756022 | F73: 0 | G73: 360557.136 | H73: 1468.954403 | I73: 359267.3344
A74: 70 | B74: 2758.756022 | C74: 2758.756022 | D74: 0.01 | E74: 27.58756022 | F74: 0 | G74: 359267.3344 | H74: 1463.699592 | I74: 357972.278
A75: 71 | B75: 2758.756022 | C75: 2758.756022 | D75: 0.01 | E75: 27.58756022 | F75: 0 | G75: 357972.278 | H75: 1458.423372 | I75: 356671.9453
A76: 72 | B76: 5517.512044 | C76: 5517.512044 | D76: 0.01 | E76: 55.17512044 | F76: 0 | G76: 356671.9453 | H76: 1453.125655 | I76: 352607.559
A77: 73 | B77: 2758.756022 | C77: 2758.756022 | D77: 0.01 | E77: 27.58756022 | F77: 0 | G77: 352607.559 | H77: 1436.566842 | I77: 351285.3698
A78: 74 | B78: 2758.756022 | C78: 2758.756022 | D78: 0.01 | E78: 27.58756022 | F78: 0 | G78: 351285.3698 | H78: 1431.18008 | I78: 349957.7938
A79: 75 | B79: 2758.756022 | C79: 2758.756022 | D79: 0.01 | E79: 27.58756022 | F79: 0 | G79: 349957.7938 | H79: 1425.771371 | I79: 348624.8092
A80: 76 | B80: 2758.756022 | C80: 2758.756022 | D80: 0.01 | E80: 27.58756022 | F80: 0 | G80: 348624.8092 | H80: 1420.340627 | I80: 347286.3938
A81: 77 | B81: 2758.756022 | C81: 2758.756022 | D81: 0.01 | E81: 27.58756022 | F81: 0 | G81: 347286.3938 | H81: 1414.887757 | I81: 345942.5255
A82: 78 | B82: 2758.756022 | C82: 2758.756022 | D82: 0.01 | E82: 27.58756022 | F82: 0 | G82: 345942.5255 | H82: 1409.412671 | I82: 344593.1822
A83: 79 | B83: 2758.756022 | C83: 2758.756022 | D83: 0.01 | E83: 27.58756022 | F83: 0 | G83: 344593.1822 | H83: 1403.915279 | I83: 343238.3414
A84: 80 | B84: 2758.756022 | C84: 2758.756022 | D84: 0.01 | E84: 27.58756022 | F84: 0 | G84: 343238.3414 | H84: 1398.39549 | I84: 341877.9809
A85: 81 | B85: 2758.756022 | C85: 2758.756022 | D85: 0.01 | E85: 27.58756022 | F85: 0 | G85: 341877.9809 | H85: 1392.853213 | I85: 340512.0781
A86: 82 | B86: 2758.756022 | C86: 2758.756022 | D86: 0.01 | E86: 27.58756022 | F86: 0 | G86: 340512.0781 | H86: 1387.288356 | I86: 339140.6104
A87: 83 | B87: 2758.756022 | C87: 2758.756022 | D87: 0.01 | E87: 27.58756022 | F87: 0 | G87: 339140.6104 | H87: 1381.700827 | I87: 337763.5552
A88: 84 | B88: 5517.512044 | C88: 5517.512044 | D88: 0.01 | E88: 55.17512044 | F88: 0 | G88: 337763.5552 | H88: 1376.090534 | I88: 333622.1337
A89: 85 | B89: 2758.756022 | C89: 2758.756022 | D89: 0.01 | E89: 27.58756022 | F89: 0 | G89: 333622.1337 | H89: 1359.21787 | I89: 332222.5956
A90: 86 | B90: 2758.756022 | C90: 2758.756022 | D90: 0.01 | E90: 27.58756022 | F90: 0 | G90: 332222.5956 | H90: 1353.515978 | I90: 330817.3555
A91: 87 | B91: 2758.756022 | C91: 2758.756022 | D91: 0.01 | E91: 27.58756022 | F91: 0 | G91: 330817.3555 | H91: 1347.790856 | I91: 329406.3904
A92: 88 | B92: 2758.756022 | C92: 2758.756022 | D92: 0.01 | E92: 27.58756022 | F92: 0 | G92: 329406.3904 | H92: 1342.042409 | I92: 327989.6767
A93: 89 | B93: 2758.756022 | C93: 2758.756022 | D93: 0.01 | E93: 27.58756022 | F93: 0 | G93: 327989.6767 | H93: 1336.270543 | I93: 326567.1913
A94: 90 | B94: 2758.756022 | C94: 2758.756022 | D94: 0.01 | E94: 27.58756022 | F94: 0 | G94: 326567.1913 | H94: 1330.475161 | I94: 325138.9104
A95: 91 | B95: 2758.756022 | C95: 2758.756022 | D95: 0.01 | E95: 27.58756022 | F95: 0 | G95: 325138.9104 | H95: 1324.656168 | I95: 323704.8105
A96: 92 | B96: 2758.756022 | C96: 2758.756022 | D96: 0.01 | E96: 27.58756022 | F96: 0 | G96: 323704.8105 | H96: 1318.813468 | I96: 322264.868
A97: 93 | B97: 2758.756022 | C97: 2758.756022 | D97: 0.01 | E97: 27.58756022 | F97: 0 | G97: 322264.868 | H97: 1312.946963 | I97: 320819.0589
A98: 94 | B98: 2758.756022 | C98: 2758.756022 | D98: 0.01 | E98: 27.58756022 | F98: 0 | G98: 320819.0589 | H98: 1307.056558 | I98: 319367.3595
A99: 95 | B99: 2758.756022 | C99: 2758.756022 | D99: 0.01 | E99: 27.58756022 | F99: 0 | G99: 319367.3595 | H99: 1301.142155 | I99: 317909.7456
A100: 96 | B100: 5517.512044 | C100: 5517.512044 | D100: 0.01 | E100: 55.17512044 | F100: 0 | G100: 317909.7456 | H100: 1295.203656 | I100: 313687.4372
A101: 97 | B101: 2758.756022 | C101: 2758.756022 | D101: 0.01 | E101: 27.58756022 | F101: 0 | G101: 313687.4372 | H101: 1278.001449 | I101: 312206.6826
A102: 98 | B102: 2758.756022 | C102: 2758.756022 | D102: 0.01 | E102: 27.58756022 | F102: 0 | G102: 312206.6826 | H102: 1271.968671 | I102: 310719.8953
A103: 99 | B103: 2758.756022 | C103: 2758.756022 | D103: 0.01 | E103: 27.58756022 | F103: 0 | G103: 310719.8953 | H103: 1265.911315 | I103: 309227.0506
A104: 100 | B104: 2758.756022 | C104: 2758.756022 | D104: 0.01 | E104: 27.58756022 | F104: 0 | G104: 309227.0506 | H104: 1259.829281 | I104: 307728.1238
A105: 101 | B105: 2758.756022 | C105: 2758.756022 | D105: 0.01 | E105: 27.58756022 | F105: 0 | G105: 307728.1238 | H105: 1253.722468 | I105: 306223.0903
A106: 102 | B106: 2758.756022 | C106: 2758.756022 | D106: 0.01 | E106: 27.58756022 | F106: 0 | G106: 306223.0903 | H106: 1247.590775 | I106: 304711.925
A107: 103 | B107: 2758.756022 | C107: 2758.756022 | D107: 0.01 | E107: 27.58756022 | F107: 0 | G107: 304711.925 | H107: 1241.434101 | I107: 303194.6031
A108: 104 | B108: 2758.756022 | C108: 2758.756022 | D108: 0.01 | E108: 27.58756022 | F108: 0 | G108: 303194.6031 | H108: 1235.252344 | I108: 301671.0994
A109: 105 | B109: 2758.756022 | C109: 2758.756022 | D109: 0.01 | E109: 27.58756022 | F109: 0 | G109: 301671.0994 | H109: 1229.045401 | I109: 300141.3888
A110: 106 | B110: 2758.756022 | C110: 2758.756022 | D110: 0.01 | E110: 27.58756022 | F110: 0 | G110: 300141.3888 | H110: 1222.813171 | I110: 298605.446
A111: 107 | B111: 2758.756022 | C111: 2758.756022 | D111: 0.01 | E111: 27.58756022 | F111: 0 | G111: 298605.446 | H111: 1216.555549 | I111: 297063.2455
A112: 108 | B112: 5517.512044 | C112: 5517.512044 | D112: 0.01 | E112: 55.17512044 | F112: 0 | G112: 297063.2455 | H112: 1210.272434 | I112: 292756.0059
A113: 109 | B113: 2758.756022 | C113: 2758.756022 | D113: 0.01 | E113: 27.58756022 | F113: 0 | G113: 292756.0059 | H113: 1192.724206 | I113: 291189.9741
A114: 110 | B114: 2758.756022 | C114: 2758.756022 | D114: 0.01 | E114: 27.58756022 | F114: 0 | G114: 291189.9741 | H114: 1186.343999 | I114: 289617.562
A115: 111 | B115: 2758.756022 | C115: 2758.756022 | D115: 0.01 | E115: 27.58756022 | F115: 0 | G115: 289617.562 | H115: 1179.937798 | I115: 288038.7438
A116: 112 | B116: 2758.756022 | C116: 2758.756022 | D116: 0.01 | E116: 27.58756022 | F116: 0 | G116: 288038.7438 | H116: 1173.505497 | I116: 286453.4933
A117: 113 | B117: 2758.756022 | C117: 2758.756022 | D117: 0.01 | E117: 27.58756022 | F117: 0 | G117: 286453.4933 | H117: 1167.04699 | I117: 284861.7843
A118: 114 | B118: 2758.756022 | C118: 2758.756022 | D118: 0.01 | E118: 27.58756022 | F118: 0 | G118: 284861.7843 | H118: 1160.56217 | I118: 283263.5904
A119: 115 | B119: 2758.756022 | C119: 2758.756022 | D119: 0.01 | E119: 27.58756022 | F119: 0 | G119: 283263.5904 | H119: 1154.050931 | I119: 281658.8853
A120: 116 | B120: 2758.756022 | C120: 2758.756022 | D120: 0.01 | E120: 27.58756022 | F120: 0 | G120: 281658.8853 | H120: 1147.513164 | I120: 280047.6425
A121: 117 | B121: 2758.756022 | C121: 2758.756022 | D121: 0.01 | E121: 27.58756022 | F121: 0 | G121: 280047.6425 | H121: 1140.948761 | I121: 278429.8352
A122: 118 | B122: 2758.756022 | C122: 2758.756022 | D122: 0.01 | E122: 27.58756022 | F122: 0 | G122: 278429.8352 | H122: 1134.357614 | I122: 276805.4368
A123: 119 | B123: 2758.756022 | C123: 2758.756022 | D123: 0.01 | E123: 27.58756022 | F123: 0 | G123: 276805.4368 | H123: 1127.739613 | I123: 275174.4204
A124: 120 | B124: 5517.512044 | C124: 5517.512044 | D124: 0.01 | E124: 55.17512044 | F124: 0 | G124: 275174.4204 | H124: 1121.094651 | I124: 270778.003
A125: 121 | B125: 2758.756022 | C125: 2758.756022 | D125: 0.01 | E125: 27.58756022 | F125: 0 | G125: 270778.003 | H125: 1103.183102 | I125: 269122.4301
A126: 122 | B126: 2758.756022 | C126: 2758.756022 | D126: 0.01 | E126: 27.58756022 | F126: 0 | G126: 269122.4301 | H126: 1096.438093 | I126: 267460.1121
A127: 123 | B127: 2758.756022 | C127: 2758.756022 | D127: 0.01 | E127: 27.58756022 | F127: 0 | G127: 267460.1121 | H127: 1089.665604 | I127: 265791.0217
A128: 124 | B128: 2758.756022 | C128: 2758.756022 | D128: 0.01 | E128: 27.58756022 | F128: 0 | G128: 265791.0217 | H128: 1082.865523 | I128: 264115.1312
A129: 125 | B129: 2758.756022 | C129: 2758.756022 | D129: 0.01 | E129: 27.58756022 | F129: 0 | G129: 264115.1312 | H129: 1076.037738 | I129: 262432.4129
A130: 126 | B130: 2758.756022 | C130: 2758.756022 | D130: 0.01 | E130: 27.58756022 | F130: 0 | G130: 262432.4129 | H130: 1069.182135 | I130: 260742.8391
A131: 127 | B131: 2758.756022 | C131: 2758.756022 | D131: 0.01 | E131: 27.58756022 | F131: 0 | G131: 260742.8391 | H131: 1062.298602 | I131: 259046.3816
A132: 128 | B132: 2758.756022 | C132: 2758.756022 | D132: 0.01 | E132: 27.58756022 | F132: 0 | G132: 259046.3816 | H132: 1055.387024 | I132: 257343.0126
A133: 129 | B133: =IF($A133>expectativa_de_sobrevida_em_meses,0,RPC_valor_do_benefício)*IF(MOD($A133,12)=0,2,1) -> 2758.756022 | C133: 2758.756022 | D133: =RPC_alíquota_assistido -> 0.01 | E133: 27.58756022 | F133: =SUM(E133:E133)*RPC_percentual_custeio_aposentadoria_percepção -> 0 | G133: 257343.0126 | H133: =IF(OR($G133<0,$A133>expectativa_de_sobrevida_em_meses),0,$G133*rentabilidade_mensal) -> 1048.447288 | I133: 255632.7039
A134: =ROW()-4 -> 130 | B134: 2758.756022 | C134: =$B134 -> 2758.756022 | D134: 0.01 | E134: =C134*D134 -> 27.58756022 | F134: 0 | G134: =IF($A134=1,RPC_recursos_acumulados,I133) -> 255632.7039 | H134: 1041.479279 | I134: =SUM(F134:H134)-$B134 -> 253915.4272
A135: 131 | B135: 2758.756022 | C135: 2758.756022 | D135: 0.01 | E135: 27.58756022 | F135: 0 | G135: 253915.4272 | H135: 1034.482881 | I135: 252191.154
A136: 132 | B136: 5517.512044 | C136: 5517.512044 | D136: 0.01 | E136: 55.17512044 | F136: 0 | G136: 252191.154 | H136: 1027.457979 | I136: 247701.1
A137: 133 | B137: 2758.756022 | C137: 2758.756022 | D137: 0.01 | E137: 27.58756022 | F137: 0 | G137: 247701.1 | H137: 1009.164943 | I137: 245951.5089
A138: 134 | B138: 2758.756022 | C138: 2758.756022 | D138: 0.01 | E138: 27.58756022 | F138: 0 | G138: 245951.5089 | H138: 1002.036892 | I138: 244194.7897
A139: 135 | B139: 2758.756022 | C139: 2758.756022 | D139: 0.01 | E139: 27.58756022 | F139: 0 | G139: 244194.7897 | H139: 994.8798007 | I139: 242430.9135
A140: 136 | B140: 2758.756022 | C140: 2758.756022 | D140: 0.01 | E140: 27.58756022 | F140: 0 | G140: 242430.9135 | H140: 987.6935507 | I140: 240659.851
A141: 137 | B141: 2758.756022 | C141: 2758.756022 | D141: 0.01 | E141: 27.58756022 | F141: 0 | G141: 240659.851 | H141: 980.4780229 | I141: 238881.573
A142: 138 | B142: 2758.756022 | C142: 2758.756022 | D142: 0.01 | E142: 27.58756022 | F142: 0 | G142: 238881.573 | H142: 973.2330982 | I142: 237096.0501
A143: 139 | B143: 2758.756022 | C143: 2758.756022 | D143: 0.01 | E143: 27.58756022 | F143: 0 | G143: 237096.0501 | H143: 965.9586568 | I143: 235303.2528
A144: 140 | B144: 2758.756022 | C144: 2758.756022 | D144: 0.01 | E144: 27.58756022 | F144: 0 | G144: 235303.2528 | H144: 958.6545784 | I144: 233503.1513
A145: 141 | B145: 2758.756022 | C145: 2758.756022 | D145: 0.01 | E145: 27.58756022 | F145: 0 | G145: 233503.1513 | H145: 951.3207423 | I145: 231695.716
A146: 142 | B146: 2758.756022 | C146: 2758.756022 | D146: 0.01 | E146: 27.58756022 | F146: 0 | G146: 231695.716 | H146: 943.9570273 | I146: 229880.917
A147: 143 | B147: 2758.756022 | C147: 2758.756022 | D147: 0.01 | E147: 27.58756022 | F147: 0 | G147: 229880.917 | H147: 936.5633115 | I147: 228058.7243
A148: 144 | B148: 5517.512044 | C148: 5517.512044 | D148: 0.01 | E148: 55.17512044 | F148: 0 | G148: 228058.7243 | H148: 929.1394729 | I148: 223470.3518
A149: 145 | B149: 2758.756022 | C149: 2758.756022 | D149: 0.01 | E149: 27.58756022 | F149: 0 | G149: 223470.3518 | H149: 910.445875 | I149: 221622.0416
A150: 146 | B150: 2758.756022 | C150: 2758.756022 | D150: 0.01 | E150: 27.58756022 | F150: 0 | G150: 221622.0416 | H150: 902.9156307 | I150: 219766.2012
A151: 147 | B151: 2758.756022 | C151: 2758.756022 | D151: 0.01 | E151: 27.58756022 | F151: 0 | G151: 219766.2012 | H151: 895.3547072 | I151: 217902.7999
A152: 148 | B152: 2758.756022 | C152: 2758.756022 | D152: 0.01 | E152: 27.58756022 | F152: 0 | G152: 217902.7999 | H152: 887.7629796 | I152: 216031.8069
A153: 149 | B153: 2758.756022 | C153: 2758.756022 | D153: 0.01 | E153: 27.58756022 | F153: 0 | G153: 216031.8069 | H153: 880.1403224 | I153: 214153.1912
A154: 150 | B154: 2758.756022 | C154: 2758.756022 | D154: 0.01 | E154: 27.58756022 | F154: 0 | G154: 214153.1912 | H154: 872.4866095 | I154: 212266.9218
A155: 151 | B155: 2758.756022 | C155: 2758.756022 | D155: 0.01 | E155: 27.58756022 | F155: 0 | G155: 212266.9218 | H155: 864.8017144 | I155: 210372.9674
A156: 152 | B156: 2758.756022 | C156: 2758.756022 | D156: 0.01 | E156: 27.58756022 | F156: 0 | G156: 210372.9674 | H156: 857.0855101 | I156: 208471.2969
A157: 153 | B157: 2758.756022 | C157: 2758.756022 | D157: 0.01 | E157: 27.58756022 | F157: 0 | G157: 208471.2969 | H157: 849.337869 | I157: 206561.8788
A158: 154 | B158: 2758.756022 | C158: 2758.756022 | D158: 0.01 | E158: 27.58756022 | F158: 0 | G158: 206561.8788 | H158: 841.5586631 | I158: 204644.6814
A159: 155 | B159: 2758.756022 | C159: 2758.756022 | D159: 0.01 | E159: 27.58756022 | F159: 0 | G159: 204644.6814 | H159: 833.7477638 | I159: 202719.6732
A160: 156 | B160: 5517.512044 | C160: 5517.512044 | D160: 0.01 | E160: 55.17512044 | F160: 0 | G160: 202719.6732 | H160: 825.9050418 | I160: 198028.0662
A161: 157 | B161: 2758.756022 | C161: 2758.756022 | D161: 0.01 | E161: 27.58756022 | F161: 0 | G161: 198028.0662 | H161: 806.7908542 | I161: 196076.101
A162: 158 | B162: 2758.756022 | C162: 2758.756022 | D162: 0.01 | E162: 27.58756022 | F162: 0 | G162: 196076.101 | H162: 798.8383065 | I162: 194116.1833
A163: 159 | B163: 2758.756022 | C163: 2758.756022 | D163: 0.01 | E163: 27.58756022 | F163: 0 | G163: 194116.1833 | H163: 790.8533591 | I163: 192148.2806
A164: 160 | B164: 2758.756022 | C164: 2758.756022 | D164: 0.01 | E164: 27.58756022 | F164: 0 | G164: 192148.2806 | H164: 782.83588 | I164: 190172.3605
A165: 161 | B165: 2758.756022 | C165: 2758.756022 | D165: 0.01 | E165: 27.58756022 | F165: 0 | G165: 190172.3605 | H165: 774.7857368 | I165: 188188.3902
A166: 162 | B166: 2758.756022 | C166: 2758.756022 | D166: 0.01 | E166: 27.58756022 | F166: 0 | G166: 188188.3902 | H166: 766.7027963 | I166: 186196.337
A167: 163 | B167: 2758.756022 | C167: 2758.756022 | D167: 0.01 | E167: 27.58756022 | F167: 0 | G167: 186196.337 | H167: 758.5869248 | I167: 184196.1679
A168: 164 | B168: 2758.756022 | C168: 2758.756022 | D168: 0.01 | E168: 27.58756022 | F168: 0 | G168: 184196.1679 | H168: 750.4379884 | I168: 182187.8498
A169: 165 | B169: 2758.756022 | C169: 2758.756022 | D169: 0.01 | E169: 27.58756022 | F169: 0 | G169: 182187.8498 | H169: 742.2558521 | I169: 180171.3497
A170: 166 | B170: 2758.756022 | C170: 2758.756022 | D170: 0.01 | E170: 27.58756022 | F170: 0 | G170: 180171.3497 | H170: 734.0403808 | I170: 178146.634
A171: 167 | B171: 2758.756022 | C171: 2758.756022 | D171: 0.01 | E171: 27.58756022 | F171: 0 | G171: 178146.634 | H171: 725.7914386 | I171: 176113.6694
A172: 168 | B172: 5517.512044 | C172: 5517.512044 | D172: 0.01 | E172: 55.17512044 | F172: 0 | G172: 176113.6694 | H172: 717.5088893 | I172: 171313.6663
A173: 169 | B173: 2758.756022 | C173: 2758.756022 | D173: 0.01 | E173: 27.58756022 | F173: 0 | G173: 171313.6663 | H173: 697.9530823 | I173: 169252.8633
A174: 170 | B174: 2758.756022 | C174: 2758.756022 | D174: 0.01 | E174: 27.58756022 | F174: 0 | G174: 169252.8633 | H174: 689.557116 | I174: 167183.6644
A175: 171 | B175: 2758.756022 | C175: 2758.756022 | D175: 0.01 | E175: 27.58756022 | F175: 0 | G175: 167183.6644 | H175: 681.1269435 | I175: 165106.0354
A176: 172 | B176: 2758.756022 | C176: 2758.756022 | D176: 0.01 | E176: 27.58756022 | F176: 0 | G176: 165106.0354 | H176: 672.6624255 | I176: 163019.9418
A177: 173 | B177: 2758.756022 | C177: 2758.756022 | D177: 0.01 | E177: 27.58756022 | F177: 0 | G177: 163019.9418 | H177: 664.1634219 | I177: 160925.3492
A178: 174 | B178: 2758.756022 | C178: 2758.756022 | D178: 0.01 | E178: 27.58756022 | F178: 0 | G178: 160925.3492 | H178: 655.6297924 | I178: 158822.2229
A179: 175 | B179: 2758.756022 | C179: 2758.756022 | D179: 0.01 | E179: 27.58756022 | F179: 0 | G179: 158822.2229 | H179: 647.0613958 | I179: 156710.5283
A180: 176 | B180: 2758.756022 | C180: 2758.756022 | D180: 0.01 | E180: 27.58756022 | F180: 0 | G180: 156710.5283 | H180: 638.4580905 | I180: 154590.2304
A181: 177 | B181: 2758.756022 | C181: 2758.756022 | D181: 0.01 | E181: 27.58756022 | F181: 0 | G181: 154590.2304 | H181: 629.8197343 | I181: 152461.2941
A182: 178 | B182: 2758.756022 | C182: 2758.756022 | D182: 0.01 | E182: 27.58756022 | F182: 0 | G182: 152461.2941 | H182: 621.1461843 | I182: 150323.6842
A183: 179 | B183: 2758.756022 | C183: 2758.756022 | D183: 0.01 | E183: 27.58756022 | F183: 0 | G183: 150323.6842 | H183: 612.4372972 | I183: 148177.3655
A184: 180 | B184: 5517.512044 | C184: 5517.512044 | D184: 0.01 | E184: 55.17512044 | F184: 0 | G184: 148177.3655 | H184: 603.6929291 | I184: 143263.5464
A185: 181 | B185: 2758.756022 | C185: 2758.756022 | D185: 0.01 | E185: 27.58756022 | F185: 0 | G185: 143263.5464 | H185: 583.6734217 | I185: 141088.4638
A186: 182 | B186: 2758.756022 | C186: 2758.756022 | D186: 0.01 | E186: 27.58756022 | F186: 0 | G186: 141088.4638 | H186: 574.811866 | I186: 138904.5196
A187: 183 | B187: 2758.756022 | C187: 2758.756022 | D187: 0.01 | E187: 27.58756022 | F187: 0 | G187: 138904.5196 | H187: 565.9142072 | I187: 136711.6778
A188: 184 | B188: 2758.756022 | C188: 2758.756022 | D188: 0.01 | E188: 27.58756022 | F188: 0 | G188: 136711.6778 | H188: 556.9802982 | I188: 134509.9021
A189: 185 | B189: 2758.756022 | C189: 2758.756022 | D189: 0.01 | E189: 27.58756022 | F189: 0 | G189: 134509.9021 | H189: 548.0099913 | I189: 132299.1561
A190: 186 | B190: 2758.756022 | C190: 2758.756022 | D190: 0.01 | E190: 27.58756022 | F190: 0 | G190: 132299.1561 | H190: 539.0031383 | I190: 130079.4032
A191: 187 | B191: 2758.756022 | C191: 2758.756022 | D191: 0.01 | E191: 27.58756022 | F191: 0 | G191: 130079.4032 | H191: 529.9595903 | I191: 127850.6068
A192: 188 | B192: 2758.756022 | C192: 2758.756022 | D192: 0.01 | E192: 27.58756022 | F192: 0 | G192: 127850.6068 | H192: 520.8791978 | I192: 125612.7299
A193: 189 | B193: 2758.756022 | C193: 2758.756022 | D193: 0.01 | E193: 27.58756022 | F193: 0 | G193: 125612.7299 | H193: 511.7618106 | I193: 123365.7357
A194: 190 | B194: 2758.756022 | C194: 2758.756022 | D194: 0.01 | E194: 27.58756022 | F194: 0 | G194: 123365.7357 | H194: 502.607278 | I194: 121109.587
A195: 191 | B195: 2758.756022 | C195: 2758.756022 | D195: 0.01 | E195: 27.58756022 | F195: 0 | G195: 121109.587 | H195: 493.4154488 | I195: 118844.2464
A196: 192 | B196: 5517.512044 | C196: 5517.512044 | D196: 0.01 | E196: 55.17512044 | F196: 0 | G196: 118844.2464 | H196: 484.1861709 | I196: 113810.9205
A197: 193 | B197: =IF($A197>expectativa_de_sobrevida_em_meses,0,RPC_valor_do_benefício)*IF(MOD($A197,12)=0,2,1) -> 2758.756022 | C197: 2758.756022 | D197: =RPC_alíquota_assistido -> 0.01 | E197: 27.58756022 | F197: =SUM(E197:E197)*RPC_percentual_custeio_aposentadoria_percepção -> 0 | G197: 113810.9205 | H197: =IF(OR($G197<0,$A197>expectativa_de_sobrevida_em_meses),0,$G197*rentabilidade_mensal) -> 463.6797782 | I197: 111515.8443
A198: =ROW()-4 -> 194 | B198: 2758.756022 | C198: =$B198 -> 2758.756022 | D198: 0.01 | E198: =C198*D198 -> 27.58756022 | F198: 0 | G198: =IF($A198=1,RPC_recursos_acumulados,I197) -> 111515.8443 | H198: 454.3293535 | I198: =SUM(F198:H198)-$B198 -> 109211.4176
A199: 195 | B199: 2758.756022 | C199: 2758.756022 | D199: 0.01 | E199: 27.58756022 | F199: 0 | G199: 109211.4176 | H199: 444.940834 | I199: 106897.6024
A200: 196 | B200: 2758.756022 | C200: 2758.756022 | D200: 0.01 | E200: 27.58756022 | F200: 0 | G200: 106897.6024 | H200: 435.5140645 | I200: 104574.3605
A201: 197 | B201: 2758.756022 | C201: 2758.756022 | D201: 0.01 | E201: 27.58756022 | F201: 0 | G201: 104574.3605 | H201: 426.0488892 | I201: 102241.6533
A202: 198 | B202: 2758.756022 | C202: 2758.756022 | D202: 0.01 | E202: 27.58756022 | F202: 0 | G202: 102241.6533 | H202: 416.5451516 | I202: 99899.44248
... 1002 more rows

Sheet 12. Percepção RPSPF sem RPC
A1: Mês | B1: Benefício | C1: CONTRIBUIÇÃO DO APOSENTADO | G1: Saldo anterior | H1: Rendimentos | I1: Saldo atual
C3: Base de cálculo | D3: Alíquota | E3: Valor | F3: Custeio de aposentadoria
A5: =ROW()-4 -> 1 | B5: =IF($A5>expectativa_de_sobrevida_em_meses,0,RPSPF_sem_RPC_valor_do_benefício)*IF(MOD($A5,12)=0,2,1) -> 7533 | C5: =IF($A5>expectativa_de_sobrevida_em_meses,0,IF(portador_doença_incapacitante="Sim",IF(RPSPF_sem_RPC_valor_do_benefício>2*RGPS_limite_máximo_valor_benefício,RPSPF_sem_RPC_valor_do_benefício-2*RGPS_limite_máximo_valor_benefício,0),IF(RPSPF_sem_RPC_valor_do_benefício>RGPS_limite_máximo_valor_benefício,RPSPF_sem_RPC_valor_do_benefício-RGPS_limite_máximo_valor_benefício,0))*IF(MOD($A5,12)=0,2,1)) -> 3841.26 | D5: =RPSPF_alíquota_servidor -> 0.11 | E5: =C5*D5 -> 422.5386 | F5: =E5*RPSPF_percentual_custeio_inativo -> 274.65009 | G5: =IF($A5=1,RPSPF_sem_RPC_recursos_acumulados,I4) -> 735201.9675 | H5: =IF(OR($G5<0,$A5>expectativa_de_sobrevida_em_meses,RPSPF_simular_rentabilidade="Não"),0,$G5*rentabilidade_mensal) -> 0 | I5: =SUM(F5:H5)-$B5 -> 727943.6176
A6: =ROW()-4 -> 2 | B6: 7533 | C6: 3841.26 | D6: 0.11 | E6: =C6*D6 -> 422.5386 | F6: 274.65009 | G6: =IF($A6=1,RPSPF_sem_RPC_recursos_acumulados,I5) -> 727943.6176 | H6: 0 | I6: =SUM(F6:H6)-$B6 -> 720685.2677
A7: 3 | B7: 7533 | C7: 3841.26 | D7: 0.11 | E7: 422.5386 | F7: 274.65009 | G7: 720685.2677 | H7: 0 | I7: 713426.9178
A8: 4 | B8: 7533 | C8: 3841.26 | D8: 0.11 | E8: 422.5386 | F8: 274.65009 | G8: 713426.9178 | H8: 0 | I8: 706168.5679
A9: 5 | B9: 7533 | C9: 3841.26 | D9: 0.11 | E9: 422.5386 | F9: 274.65009 | G9: 706168.5679 | H9: 0 | I9: 698910.2179
A10: 6 | B10: 7533 | C10: 3841.26 | D10: 0.11 | E10: 422.5386 | F10: 274.65009 | G10: 698910.2179 | H10: 0 | I10: 691651.868
A11: 7 | B11: 7533 | C11: 3841.26 | D11: 0.11 | E11: 422.5386 | F11: 274.65009 | G11: 691651.868 | H11: 0 | I11: 684393.5181
A12: 8 | B12: 7533 | C12: 3841.26 | D12: 0.11 | E12: 422.5386 | F12: 274.65009 | G12: 684393.5181 | H12: 0 | I12: 677135.1682
A13: 9 | B13: 7533 | C13: 3841.26 | D13: 0.11 | E13: 422.5386 | F13: 274.65009 | G13: 677135.1682 | H13: 0 | I13: 669876.8183
A14: 10 | B14: 7533 | C14: 3841.26 | D14: 0.11 | E14: 422.5386 | F14: 274.65009 | G14: 669876.8183 | H14: 0 | I14: 662618.4684
A15: 11 | B15: 7533 | C15: 3841.26 | D15: 0.11 | E15: 422.5386 | F15: 274.65009 | G15: 662618.4684 | H15: 0 | I15: 655360.1185
A16: 12 | B16: 15066 | C16: 7682.52 | D16: 0.11 | E16: 845.0772 | F16: 549.30018 | G16: 655360.1185 | H16: 0 | I16: 640843.4187
A17: 13 | B17: 7533 | C17: 3841.26 | D17: 0.11 | E17: 422.5386 | F17: 274.65009 | G17: 640843.4187 | H17: 0 | I17: 633585.0688
A18: 14 | B18: 7533 | C18: 3841.26 | D18: 0.11 | E18: 422.5386 | F18: 274.65009 | G18: 633585.0688 | H18: 0 | I18: 626326.7188
A19: 15 | B19: 7533 | C19: 3841.26 | D19: 0.11 | E19: 422.5386 | F19: 274.65009 | G19: 626326.7188 | H19: 0 | I19: 619068.3689
A20: 16 | B20: 7533 | C20: 3841.26 | D20: 0.11 | E20: 422.5386 | F20: 274.65009 | G20: 619068.3689 | H20: 0 | I20: 611810.019
A21: 17 | B21: 7533 | C21: 3841.26 | D21: 0.11 | E21: 422.5386 | F21: 274.65009 | G21: 611810.019 | H21: 0 | I21: 604551.6691
A22: 18 | B22: 7533 | C22: 3841.26 | D22: 0.11 | E22: 422.5386 | F22: 274.65009 | G22: 604551.6691 | H22: 0 | I22: 597293.3192
A23: 19 | B23: 7533 | C23: 3841.26 | D23: 0.11 | E23: 422.5386 | F23: 274.65009 | G23: 597293.3192 | H23: 0 | I23: 590034.9693
A24: 20 | B24: 7533 | C24: 3841.26 | D24: 0.11 | E24: 422.5386 | F24: 274.65009 | G24: 590034.9693 | H24: 0 | I24: 582776.6194
A25: 21 | B25: 7533 | C25: 3841.26 | D25: 0.11 | E25: 422.5386 | F25: 274.65009 | G25: 582776.6194 | H25: 0 | I25: 575518.2695
A26: 22 | B26: 7533 | C26: 3841.26 | D26: 0.11 | E26: 422.5386 | F26: 274.65009 | G26: 575518.2695 | H26: 0 | I26: 568259.9196
A27: 23 | B27: 7533 | C27: 3841.26 | D27: 0.11 | E27: 422.5386 | F27: 274.65009 | G27: 568259.9196 | H27: 0 | I27: 561001.5697
A28: 24 | B28: 15066 | C28: 7682.52 | D28: 0.11 | E28: 845.0772 | F28: 549.30018 | G28: 561001.5697 | H28: 0 | I28: 546484.8698
A29: 25 | B29: 7533 | C29: 3841.26 | D29: 0.11 | E29: 422.5386 | F29: 274.65009 | G29: 546484.8698 | H29: 0 | I29: 539226.5199
A30: 26 | B30: 7533 | C30: 3841.26 | D30: 0.11 | E30: 422.5386 | F30: 274.65009 | G30: 539226.5199 | H30: 0 | I30: 531968.17
A31: 27 | B31: 7533 | C31: 3841.26 | D31: 0.11 | E31: 422.5386 | F31: 274.65009 | G31: 531968.17 | H31: 0 | I31: 524709.8201
A32: 28 | B32: 7533 | C32: 3841.26 | D32: 0.11 | E32: 422.5386 | F32: 274.65009 | G32: 524709.8201 | H32: 0 | I32: 517451.4702
A33: 29 | B33: 7533 | C33: 3841.26 | D33: 0.11 | E33: 422.5386 | F33: 274.65009 | G33: 517451.4702 | H33: 0 | I33: 510193.1203
A34: 30 | B34: 7533 | C34: 3841.26 | D34: 0.11 | E34: 422.5386 | F34: 274.65009 | G34: 510193.1203 | H34: 0 | I34: 502934.7704
A35: 31 | B35: 7533 | C35: 3841.26 | D35: 0.11 | E35: 422.5386 | F35: 274.65009 | G35: 502934.7704 | H35: 0 | I35: 495676.4205
A36: 32 | B36: 7533 | C36: 3841.26 | D36: 0.11 | E36: 422.5386 | F36: 274.65009 | G36: 495676.4205 | H36: 0 | I36: 488418.0706
A37: 33 | B37: 7533 | C37: 3841.26 | D37: 0.11 | E37: 422.5386 | F37: 274.65009 | G37: 488418.0706 | H37: 0 | I37: 481159.7206
A38: 34 | B38: 7533 | C38: 3841.26 | D38: 0.11 | E38: 422.5386 | F38: 274.65009 | G38: 481159.7206 | H38: 0 | I38: 473901.3707
A39: 35 | B39: 7533 | C39: 3841.26 | D39: 0.11 | E39: 422.5386 | F39: 274.65009 | G39: 473901.3707 | H39: 0 | I39: 466643.0208
A40: 36 | B40: 15066 | C40: 7682.52 | D40: 0.11 | E40: 845.0772 | F40: 549.30018 | G40: 466643.0208 | H40: 0 | I40: 452126.321
A41: 37 | B41: 7533 | C41: 3841.26 | D41: 0.11 | E41: 422.5386 | F41: 274.65009 | G41: 452126.321 | H41: 0 | I41: 444867.9711
A42: 38 | B42: 7533 | C42: 3841.26 | D42: 0.11 | E42: 422.5386 | F42: 274.65009 | G42: 444867.9711 | H42: 0 | I42: 437609.6212
A43: 39 | B43: 7533 | C43: 3841.26 | D43: 0.11 | E43: 422.5386 | F43: 274.65009 | G43: 437609.6212 | H43: 0 | I43: 430351.2713
A44: 40 | B44: 7533 | C44: 3841.26 | D44: 0.11 | E44: 422.5386 | F44: 274.65009 | G44: 430351.2713 | H44: 0 | I44: 423092.9214
A45: 41 | B45: 7533 | C45: 3841.26 | D45: 0.11 | E45: 422.5386 | F45: 274.65009 | G45: 423092.9214 | H45: 0 | I45: 415834.5715
A46: 42 | B46: 7533 | C46: 3841.26 | D46: 0.11 | E46: 422.5386 | F46: 274.65009 | G46: 415834.5715 | H46: 0 | I46: 408576.2215
A47: 43 | B47: 7533 | C47: 3841.26 | D47: 0.11 | E47: 422.5386 | F47: 274.65009 | G47: 408576.2215 | H47: 0 | I47: 401317.8716
A48: 44 | B48: 7533 | C48: 3841.26 | D48: 0.11 | E48: 422.5386 | F48: 274.65009 | G48: 401317.8716 | H48: 0 | I48: 394059.5217
A49: 45 | B49: 7533 | C49: 3841.26 | D49: 0.11 | E49: 422.5386 | F49: 274.65009 | G49: 394059.5217 | H49: 0 | I49: 386801.1718
A50: 46 | B50: 7533 | C50: 3841.26 | D50: 0.11 | E50: 422.5386 | F50: 274.65009 | G50: 386801.1718 | H50: 0 | I50: 379542.8219
A51: 47 | B51: 7533 | C51: 3841.26 | D51: 0.11 | E51: 422.5386 | F51: 274.65009 | G51: 379542.8219 | H51: 0 | I51: 372284.472
A52: 48 | B52: 15066 | C52: 7682.52 | D52: 0.11 | E52: 845.0772 | F52: 549.30018 | G52: 372284.472 | H52: 0 | I52: 357767.7722
A53: 49 | B53: 7533 | C53: 3841.26 | D53: 0.11 | E53: 422.5386 | F53: 274.65009 | G53: 357767.7722 | H53: 0 | I53: 350509.4223
A54: 50 | B54: 7533 | C54: 3841.26 | D54: 0.11 | E54: 422.5386 | F54: 274.65009 | G54: 350509.4223 | H54: 0 | I54: 343251.0724
A55: 51 | B55: 7533 | C55: 3841.26 | D55: 0.11 | E55: 422.5386 | F55: 274.65009 | G55: 343251.0724 | H55: 0 | I55: 335992.7224
A56: 52 | B56: 7533 | C56: 3841.26 | D56: 0.11 | E56: 422.5386 | F56: 274.65009 | G56: 335992.7224 | H56: 0 | I56: 328734.3725
A57: 53 | B57: 7533 | C57: 3841.26 | D57: 0.11 | E57: 422.5386 | F57: 274.65009 | G57: 328734.3725 | H57: 0 | I57: 321476.0226
A58: 54 | B58: 7533 | C58: 3841.26 | D58: 0.11 | E58: 422.5386 | F58: 274.65009 | G58: 321476.0226 | H58: 0 | I58: 314217.6727
A59: 55 | B59: 7533 | C59: 3841.26 | D59: 0.11 | E59: 422.5386 | F59: 274.65009 | G59: 314217.6727 | H59: 0 | I59: 306959.3228
A60: 56 | B60: 7533 | C60: 3841.26 | D60: 0.11 | E60: 422.5386 | F60: 274.65009 | G60: 306959.3228 | H60: 0 | I60: 299700.9729
A61: 57 | B61: 7533 | C61: 3841.26 | D61: 0.11 | E61: 422.5386 | F61: 274.65009 | G61: 299700.9729 | H61: 0 | I61: 292442.623
A62: 58 | B62: 7533 | C62: 3841.26 | D62: 0.11 | E62: 422.5386 | F62: 274.65009 | G62: 292442.623 | H62: 0 | I62: 285184.2731
A63: 59 | B63: 7533 | C63: 3841.26 | D63: 0.11 | E63: 422.5386 | F63: 274.65009 | G63: 285184.2731 | H63: 0 | I63: 277925.9232
A64: 60 | B64: 15066 | C64: 7682.52 | D64: 0.11 | E64: 845.0772 | F64: 549.30018 | G64: 277925.9232 | H64: 0 | I64: 263409.2233
A65: 61 | B65: 7533 | C65: 3841.26 | D65: 0.11 | E65: 422.5386 | F65: 274.65009 | G65: 263409.2233 | H65: 0 | I65: 256150.8734
A66: 62 | B66: 7533 | C66: 3841.26 | D66: 0.11 | E66: 422.5386 | F66: 274.65009 | G66: 256150.8734 | H66: 0 | I66: 248892.5235
A67: 63 | B67: 7533 | C67: 3841.26 | D67: 0.11 | E67: 422.5386 | F67: 274.65009 | G67: 248892.5235 | H67: 0 | I67: 241634.1736
A68: 64 | B68: 7533 | C68: 3841.26 | D68: 0.11 | E68: 422.5386 | F68: 274.65009 | G68: 241634.1736 | H68: 0 | I68: 234375.8237
A69: 65 | B69: =IF($A69>expectativa_de_sobrevida_em_meses,0,RPSPF_sem_RPC_valor_do_benefício)*IF(MOD($A69,12)=0,2,1) -> 7533 | C69: =IF($A69>expectativa_de_sobrevida_em_meses,0,IF(portador_doença_incapacitante="Sim",IF(RPSPF_sem_RPC_valor_do_benefício>2*RGPS_limite_máximo_valor_benefício,RPSPF_sem_RPC_valor_do_benefício-2*RGPS_limite_máximo_valor_benefício,0),IF(RPSPF_sem_RPC_valor_do_benefício>RGPS_limite_máximo_valor_benefício,RPSPF_sem_RPC_valor_do_benefício-RGPS_limite_máximo_valor_benefício,0))*IF(MOD($A69,12)=0,2,1)) -> 3841.26 | D69: =RPSPF_alíquota_servidor -> 0.11 | E69: 422.5386 | F69: =E69*RPSPF_percentual_custeio_inativo -> 274.65009 | G69: 234375.8237 | H69: =IF(OR($G69<0,$A69>expectativa_de_sobrevida_em_meses,RPSPF_simular_rentabilidade="Não"),0,$G69*rentabilidade_mensal) -> 0 | I69: 227117.4738
A70: =ROW()-4 -> 66 | B70: 7533 | C70: 3841.26 | D70: 0.11 | E70: =C70*D70 -> 422.5386 | F70: 274.65009 | G70: =IF($A70=1,RPSPF_sem_RPC_recursos_acumulados,I69) -> 227117.4738 | H70: 0 | I70: =SUM(F70:H70)-$B70 -> 219859.1239
A71: 67 | B71: 7533 | C71: 3841.26 | D71: 0.11 | E71: 422.5386 | F71: 274.65009 | G71: 219859.1239 | H71: 0 | I71: 212600.774
A72: 68 | B72: 7533 | C72: 3841.26 | D72: 0.11 | E72: 422.5386 | F72: 274.65009 | G72: 212600.774 | H72: 0 | I72: 205342.4241
A73: 69 | B73: 7533 | C73: 3841.26 | D73: 0.11 | E73: 422.5386 | F73: 274.65009 | G73: 205342.4241 | H73: 0 | I73: 198084.0742
A74: 70 | B74: 7533 | C74: 3841.26 | D74: 0.11 | E74: 422.5386 | F74: 274.65009 | G74: 198084.0742 | H74: 0 | I74: 190825.7242
A75: 71 | B75: 7533 | C75: 3841.26 | D75: 0.11 | E75: 422.5386 | F75: 274.65009 | G75: 190825.7242 | H75: 0 | I75: 183567.3743
A76: 72 | B76: 15066 | C76: 7682.52 | D76: 0.11 | E76: 845.0772 | F76: 549.30018 | G76: 183567.3743 | H76: 0 | I76: 169050.6745
A77: 73 | B77: 7533 | C77: 3841.26 | D77: 0.11 | E77: 422.5386 | F77: 274.65009 | G77: 169050.6745 | H77: 0 | I77: 161792.3246
A78: 74 | B78: 7533 | C78: 3841.26 | D78: 0.11 | E78: 422.5386 | F78: 274.65009 | G78: 161792.3246 | H78: 0 | I78: 154533.9747
A79: 75 | B79: 7533 | C79: 3841.26 | D79: 0.11 | E79: 422.5386 | F79: 274.65009 | G79: 154533.9747 | H79: 0 | I79: 147275.6248
A80: 76 | B80: 7533 | C80: 3841.26 | D80: 0.11 | E80: 422.5386 | F80: 274.65009 | G80: 147275.6248 | H80: 0 | I80: 140017.2749
A81: 77 | B81: 7533 | C81: 3841.26 | D81: 0.11 | E81: 422.5386 | F81: 274.65009 | G81: 140017.2749 | H81: 0 | I81: 132758.925
A82: 78 | B82: 7533 | C82: 3841.26 | D82: 0.11 | E82: 422.5386 | F82: 274.65009 | G82: 132758.925 | H82: 0 | I82: 125500.5751
A83: 79 | B83: 7533 | C83: 3841.26 | D83: 0.11 | E83: 422.5386 | F83: 274.65009 | G83: 125500.5751 | H83: 0 | I83: 118242.2251
A84: 80 | B84: 7533 | C84: 3841.26 | D84: 0.11 | E84: 422.5386 | F84: 274.65009 | G84: 118242.2251 | H84: 0 | I84: 110983.8752
A85: 81 | B85: 7533 | C85: 3841.26 | D85: 0.11 | E85: 422.5386 | F85: 274.65009 | G85: 110983.8752 | H85: 0 | I85: 103725.5253
A86: 82 | B86: 7533 | C86: 3841.26 | D86: 0.11 | E86: 422.5386 | F86: 274.65009 | G86: 103725.5253 | H86: 0 | I86: 96467.17542
A87: 83 | B87: 7533 | C87: 3841.26 | D87: 0.11 | E87: 422.5386 | F87: 274.65009 | G87: 96467.17542 | H87: 0 | I87: 89208.82551
A88: 84 | B88: 15066 | C88: 7682.52 | D88: 0.11 | E88: 845.0772 | F88: 549.30018 | G88: 89208.82551 | H88: 0 | I88: 74692.12569
A89: 85 | B89: 7533 | C89: 3841.26 | D89: 0.11 | E89: 422.5386 | F89: 274.65009 | G89: 74692.12569 | H89: 0 | I89: 67433.77578
A90: 86 | B90: 7533 | C90: 3841.26 | D90: 0.11 | E90: 422.5386 | F90: 274.65009 | G90: 67433.77578 | H90: 0 | I90: 60175.42587
A91: 87 | B91: 7533 | C91: 3841.26 | D91: 0.11 | E91: 422.5386 | F91: 274.65009 | G91: 60175.42587 | H91: 0 | I91: 52917.07596
A92: 88 | B92: 7533 | C92: 3841.26 | D92: 0.11 | E92: 422.5386 | F92: 274.65009 | G92: 52917.07596 | H92: 0 | I92: 45658.72605
A93: 89 | B93: 7533 | C93: 3841.26 | D93: 0.11 | E93: 422.5386 | F93: 274.65009 | G93: 45658.72605 | H93: 0 | I93: 38400.37614
A94: 90 | B94: 7533 | C94: 3841.26 | D94: 0.11 | E94: 422.5386 | F94: 274.65009 | G94: 38400.37614 | H94: 0 | I94: 31142.02623
A95: 91 | B95: 7533 | C95: 3841.26 | D95: 0.11 | E95: 422.5386 | F95: 274.65009 | G95: 31142.02623 | H95: 0 | I95: 23883.67632
A96: 92 | B96: 7533 | C96: 3841.26 | D96: 0.11 | E96: 422.5386 | F96: 274.65009 | G96: 23883.67632 | H96: 0 | I96: 16625.32641
A97: 93 | B97: 7533 | C97: 3841.26 | D97: 0.11 | E97: 422.5386 | F97: 274.65009 | G97: 16625.32641 | H97: 0 | I97: 9366.9765
A98: 94 | B98: 7533 | C98: 3841.26 | D98: 0.11 | E98: 422.5386 | F98: 274.65009 | G98: 9366.9765 | H98: 0 | I98: 2108.62659
A99: 95 | B99: 7533 | C99: 3841.26 | D99: 0.11 | E99: 422.5386 | F99: 274.65009 | G99: 2108.62659 | H99: 0 | I99: -5149.72332
A100: 96 | B100: 15066 | C100: 7682.52 | D100: 0.11 | E100: 845.0772 | F100: 549.30018 | G100: -5149.72332 | H100: 0 | I100: -19666.42314
A101: 97 | B101: 7533 | C101: 3841.26 | D101: 0.11 | E101: 422.5386 | F101: 274.65009 | G101: -19666.42314 | H101: 0 | I101: -26924.77305
A102: 98 | B102: 7533 | C102: 3841.26 | D102: 0.11 | E102: 422.5386 | F102: 274.65009 | G102: -26924.77305 | H102: 0 | I102: -34183.12296
A103: 99 | B103: 7533 | C103: 3841.26 | D103: 0.11 | E103: 422.5386 | F103: 274.65009 | G103: -34183.12296 | H103: 0 | I103: -41441.47287
A104: 100 | B104: 7533 | C104: 3841.26 | D104: 0.11 | E104: 422.5386 | F104: 274.65009 | G104: -41441.47287 | H104: 0 | I104: -48699.82278
A105: 101 | B105: 7533 | C105: 3841.26 | D105: 0.11 | E105: 422.5386 | F105: 274.65009 | G105: -48699.82278 | H105: 0 | I105: -55958.17269
A106: 102 | B106: 7533 | C106: 3841.26 | D106: 0.11 | E106: 422.5386 | F106: 274.65009 | G106: -55958.17269 | H106: 0 | I106: -63216.5226
A107: 103 | B107: 7533 | C107: 3841.26 | D107: 0.11 | E107: 422.5386 | F107: 274.65009 | G107: -63216.5226 | H107: 0 | I107: -70474.87251
A108: 104 | B108: 7533 | C108: 3841.26 | D108: 0.11 | E108: 422.5386 | F108: 274.65009 | G108: -70474.87251 | H108: 0 | I108: -77733.22242
A109: 105 | B109: 7533 | C109: 3841.26 | D109: 0.11 | E109: 422.5386 | F109: 274.65009 | G109: -77733.22242 | H109: 0 | I109: -84991.57233
A110: 106 | B110: 7533 | C110: 3841.26 | D110: 0.11 | E110: 422.5386 | F110: 274.65009 | G110: -84991.57233 | H110: 0 | I110: -92249.92224
A111: 107 | B111: 7533 | C111: 3841.26 | D111: 0.11 | E111: 422.5386 | F111: 274.65009 | G111: -92249.92224 | H111: 0 | I111: -99508.27215
A112: 108 | B112: 15066 | C112: 7682.52 | D112: 0.11 | E112: 845.0772 | F112: 549.30018 | G112: -99508.27215 | H112: 0 | I112: -114024.972
A113: 109 | B113: 7533 | C113: 3841.26 | D113: 0.11 | E113: 422.5386 | F113: 274.65009 | G113: -114024.972 | H113: 0 | I113: -121283.3219
A114: 110 | B114: 7533 | C114: 3841.26 | D114: 0.11 | E114: 422.5386 | F114: 274.65009 | G114: -121283.3219 | H114: 0 | I114: -128541.6718
A115: 111 | B115: 7533 | C115: 3841.26 | D115: 0.11 | E115: 422.5386 | F115: 274.65009 | G115: -128541.6718 | H115: 0 | I115: -135800.0217
A116: 112 | B116: 7533 | C116: 3841.26 | D116: 0.11 | E116: 422.5386 | F116: 274.65009 | G116: -135800.0217 | H116: 0 | I116: -143058.3716
A117: 113 | B117: 7533 | C117: 3841.26 | D117: 0.11 | E117: 422.5386 | F117: 274.65009 | G117: -143058.3716 | H117: 0 | I117: -150316.7215
A118: 114 | B118: 7533 | C118: 3841.26 | D118: 0.11 | E118: 422.5386 | F118: 274.65009 | G118: -150316.7215 | H118: 0 | I118: -157575.0714
A119: 115 | B119: 7533 | C119: 3841.26 | D119: 0.11 | E119: 422.5386 | F119: 274.65009 | G119: -157575.0714 | H119: 0 | I119: -164833.4213
A120: 116 | B120: 7533 | C120: 3841.26 | D120: 0.11 | E120: 422.5386 | F120: 274.65009 | G120: -164833.4213 | H120: 0 | I120: -172091.7713
A121: 117 | B121: 7533 | C121: 3841.26 | D121: 0.11 | E121: 422.5386 | F121: 274.65009 | G121: -172091.7713 | H121: 0 | I121: -179350.1212
A122: 118 | B122: 7533 | C122: 3841.26 | D122: 0.11 | E122: 422.5386 | F122: 274.65009 | G122: -179350.1212 | H122: 0 | I122: -186608.4711
A123: 119 | B123: 7533 | C123: 3841.26 | D123: 0.11 | E123: 422.5386 | F123: 274.65009 | G123: -186608.4711 | H123: 0 | I123: -193866.821
A124: 120 | B124: 15066 | C124: 7682.52 | D124: 0.11 | E124: 845.0772 | F124: 549.30018 | G124: -193866.821 | H124: 0 | I124: -208383.5208
A125: 121 | B125: 7533 | C125: 3841.26 | D125: 0.11 | E125: 422.5386 | F125: 274.65009 | G125: -208383.5208 | H125: 0 | I125: -215641.8707
A126: 122 | B126: 7533 | C126: 3841.26 | D126: 0.11 | E126: 422.5386 | F126: 274.65009 | G126: -215641.8707 | H126: 0 | I126: -222900.2206
A127: 123 | B127: 7533 | C127: 3841.26 | D127: 0.11 | E127: 422.5386 | F127: 274.65009 | G127: -222900.2206 | H127: 0 | I127: -230158.5705
A128: 124 | B128: 7533 | C128: 3841.26 | D128: 0.11 | E128: 422.5386 | F128: 274.65009 | G128: -230158.5705 | H128: 0 | I128: -237416.9204
A129: 125 | B129: 7533 | C129: 3841.26 | D129: 0.11 | E129: 422.5386 | F129: 274.65009 | G129: -237416.9204 | H129: 0 | I129: -244675.2704
A130: 126 | B130: 7533 | C130: 3841.26 | D130: 0.11 | E130: 422.5386 | F130: 274.65009 | G130: -244675.2704 | H130: 0 | I130: -251933.6203
A131: 127 | B131: 7533 | C131: 3841.26 | D131: 0.11 | E131: 422.5386 | F131: 274.65009 | G131: -251933.6203 | H131: 0 | I131: -259191.9702
A132: 128 | B132: 7533 | C132: 3841.26 | D132: 0.11 | E132: 422.5386 | F132: 274.65009 | G132: -259191.9702 | H132: 0 | I132: -266450.3201
A133: 129 | B133: =IF($A133>expectativa_de_sobrevida_em_meses,0,RPSPF_sem_RPC_valor_do_benefício)*IF(MOD($A133,12)=0,2,1) -> 7533 | C133: =IF($A133>expectativa_de_sobrevida_em_meses,0,IF(portador_doença_incapacitante="Sim",IF(RPSPF_sem_RPC_valor_do_benefício>2*RGPS_limite_máximo_valor_benefício,RPSPF_sem_RPC_valor_do_benefício-2*RGPS_limite_máximo_valor_benefício,0),IF(RPSPF_sem_RPC_valor_do_benefício>RGPS_limite_máximo_valor_benefício,RPSPF_sem_RPC_valor_do_benefício-RGPS_limite_máximo_valor_benefício,0))*IF(MOD($A133,12)=0,2,1)) -> 3841.26 | D133: =RPSPF_alíquota_servidor -> 0.11 | E133: 422.5386 | F133: =E133*RPSPF_percentual_custeio_inativo -> 274.65009 | G133: -266450.3201 | H133: =IF(OR($G133<0,$A133>expectativa_de_sobrevida_em_meses,RPSPF_simular_rentabilidade="Não"),0,$G133*rentabilidade_mensal) -> 0 | I133: -273708.67
A134: =ROW()-4 -> 130 | B134: 7533 | C134: 3841.26 | D134: 0.11 | E134: =C134*D134 -> 422.5386 | F134: 274.65009 | G134: =IF($A134=1,RPSPF_sem_RPC_recursos_acumulados,I133) -> -273708.67 | H134: 0 | I134: =SUM(F134:H134)-$B134 -> -280967.0199
A135: 131 | B135: 7533 | C135: 3841.26 | D135: 0.11 | E135: 422.5386 | F135: 274.65009 | G135: -280967.0199 | H135: 0 | I135: -288225.3698
A136: 132 | B136: 15066 | C136: 7682.52 | D136: 0.11 | E136: 845.0772 | F136: 549.30018 | G136: -288225.3698 | H136: 0 | I136: -302742.0696
A137: 133 | B137: 7533 | C137: 3841.26 | D137: 0.11 | E137: 422.5386 | F137: 274.65009 | G137: -302742.0696 | H137: 0 | I137: -310000.4195
A138: 134 | B138: 7533 | C138: 3841.26 | D138: 0.11 | E138: 422.5386 | F138: 274.65009 | G138: -310000.4195 | H138: 0 | I138: -317258.7695
A139: 135 | B139: 7533 | C139: 3841.26 | D139: 0.11 | E139: 422.5386 | F139: 274.65009 | G139: -317258.7695 | H139: 0 | I139: -324517.1194
A140: 136 | B140: 7533 | C140: 3841.26 | D140: 0.11 | E140: 422.5386 | F140: 274.65009 | G140: -324517.1194 | H140: 0 | I140: -331775.4693
A141: 137 | B141: 7533 | C141: 3841.26 | D141: 0.11 | E141: 422.5386 | F141: 274.65009 | G141: -331775.4693 | H141: 0 | I141: -339033.8192
A142: 138 | B142: 7533 | C142: 3841.26 | D142: 0.11 | E142: 422.5386 | F142: 274.65009 | G142: -339033.8192 | H142: 0 | I142: -346292.1691
A143: 139 | B143: 7533 | C143: 3841.26 | D143: 0.11 | E143: 422.5386 | F143: 274.65009 | G143: -346292.1691 | H143: 0 | I143: -353550.519
A144: 140 | B144: 7533 | C144: 3841.26 | D144: 0.11 | E144: 422.5386 | F144: 274.65009 | G144: -353550.519 | H144: 0 | I144: -360808.8689
A145: 141 | B145: 7533 | C145: 3841.26 | D145: 0.11 | E145: 422.5386 | F145: 274.65009 | G145: -360808.8689 | H145: 0 | I145: -368067.2188
A146: 142 | B146: 7533 | C146: 3841.26 | D146: 0.11 | E146: 422.5386 | F146: 274.65009 | G146: -368067.2188 | H146: 0 | I146: -375325.5687
A147: 143 | B147: 7533 | C147: 3841.26 | D147: 0.11 | E147: 422.5386 | F147: 274.65009 | G147: -375325.5687 | H147: 0 | I147: -382583.9186
A148: 144 | B148: 15066 | C148: 7682.52 | D148: 0.11 | E148: 845.0772 | F148: 549.30018 | G148: -382583.9186 | H148: 0 | I148: -397100.6185
A149: 145 | B149: 7533 | C149: 3841.26 | D149: 0.11 | E149: 422.5386 | F149: 274.65009 | G149: -397100.6185 | H149: 0 | I149: -404358.9684
A150: 146 | B150: 7533 | C150: 3841.26 | D150: 0.11 | E150: 422.5386 | F150: 274.65009 | G150: -404358.9684 | H150: 0 | I150: -411617.3183
A151: 147 | B151: 7533 | C151: 3841.26 | D151: 0.11 | E151: 422.5386 | F151: 274.65009 | G151: -411617.3183 | H151: 0 | I151: -418875.6682
A152: 148 | B152: 7533 | C152: 3841.26 | D152: 0.11 | E152: 422.5386 | F152: 274.65009 | G152: -418875.6682 | H152: 0 | I152: -426134.0181
A153: 149 | B153: 7533 | C153: 3841.26 | D153: 0.11 | E153: 422.5386 | F153: 274.65009 | G153: -426134.0181 | H153: 0 | I153: -433392.368
A154: 150 | B154: 7533 | C154: 3841.26 | D154: 0.11 | E154: 422.5386 | F154: 274.65009 | G154: -433392.368 | H154: 0 | I154: -440650.7179
A155: 151 | B155: 7533 | C155: 3841.26 | D155: 0.11 | E155: 422.5386 | F155: 274.65009 | G155: -440650.7179 | H155: 0 | I155: -447909.0678
A156: 152 | B156: 7533 | C156: 3841.26 | D156: 0.11 | E156: 422.5386 | F156: 274.65009 | G156: -447909.0678 | H156: 0 | I156: -455167.4177
A157: 153 | B157: 7533 | C157: 3841.26 | D157: 0.11 | E157: 422.5386 | F157: 274.65009 | G157: -455167.4177 | H157: 0 | I157: -462425.7677
A158: 154 | B158: 7533 | C158: 3841.26 | D158: 0.11 | E158: 422.5386 | F158: 274.65009 | G158: -462425.7677 | H158: 0 | I158: -469684.1176
A159: 155 | B159: 7533 | C159: 3841.26 | D159: 0.11 | E159: 422.5386 | F159: 274.65009 | G159: -469684.1176 | H159: 0 | I159: -476942.4675
A160: 156 | B160: 15066 | C160: 7682.52 | D160: 0.11 | E160: 845.0772 | F160: 549.30018 | G160: -476942.4675 | H160: 0 | I160: -491459.1673
A161: 157 | B161: 7533 | C161: 3841.26 | D161: 0.11 | E161: 422.5386 | F161: 274.65009 | G161: -491459.1673 | H161: 0 | I161: -498717.5172
A162: 158 | B162: 7533 | C162: 3841.26 | D162: 0.11 | E162: 422.5386 | F162: 274.65009 | G162: -498717.5172 | H162: 0 | I162: -505975.8671
A163: 159 | B163: 7533 | C163: 3841.26 | D163: 0.11 | E163: 422.5386 | F163: 274.65009 | G163: -505975.8671 | H163: 0 | I163: -513234.217
A164: 160 | B164: 7533 | C164: 3841.26 | D164: 0.11 | E164: 422.5386 | F164: 274.65009 | G164: -513234.217 | H164: 0 | I164: -520492.5669
A165: 161 | B165: 7533 | C165: 3841.26 | D165: 0.11 | E165: 422.5386 | F165: 274.65009 | G165: -520492.5669 | H165: 0 | I165: -527750.9168
A166: 162 | B166: 7533 | C166: 3841.26 | D166: 0.11 | E166: 422.5386 | F166: 274.65009 | G166: -527750.9168 | H166: 0 | I166: -535009.2668
A167: 163 | B167: 7533 | C167: 3841.26 | D167: 0.11 | E167: 422.5386 | F167: 274.65009 | G167: -535009.2668 | H167: 0 | I167: -542267.6167
A168: 164 | B168: 7533 | C168: 3841.26 | D168: 0.11 | E168: 422.5386 | F168: 274.65009 | G168: -542267.6167 | H168: 0 | I168: -549525.9666
A169: 165 | B169: 7533 | C169: 3841.26 | D169: 0.11 | E169: 422.5386 | F169: 274.65009 | G169: -549525.9666 | H169: 0 | I169: -556784.3165
A170: 166 | B170: 7533 | C170: 3841.26 | D170: 0.11 | E170: 422.5386 | F170: 274.65009 | G170: -556784.3165 | H170: 0 | I170: -564042.6664
A171: 167 | B171: 7533 | C171: 3841.26 | D171: 0.11 | E171: 422.5386 | F171: 274.65009 | G171: -564042.6664 | H171: 0 | I171: -571301.0163
A172: 168 | B172: 15066 | C172: 7682.52 | D172: 0.11 | E172: 845.0772 | F172: 549.30018 | G172: -571301.0163 | H172: 0 | I172: -585817.7161
A173: 169 | B173: 7533 | C173: 3841.26 | D173: 0.11 | E173: 422.5386 | F173: 274.65009 | G173: -585817.7161 | H173: 0 | I173: -593076.066
A174: 170 | B174: 7533 | C174: 3841.26 | D174: 0.11 | E174: 422.5386 | F174: 274.65009 | G174: -593076.066 | H174: 0 | I174: -600334.4159
A175: 171 | B175: 7533 | C175: 3841.26 | D175: 0.11 | E175: 422.5386 | F175: 274.65009 | G175: -600334.4159 | H175: 0 | I175: -607592.7659
A176: 172 | B176: 7533 | C176: 3841.26 | D176: 0.11 | E176: 422.5386 | F176: 274.65009 | G176: -607592.7659 | H176: 0 | I176: -614851.1158
A177: 173 | B177: 7533 | C177: 3841.26 | D177: 0.11 | E177: 422.5386 | F177: 274.65009 | G177: -614851.1158 | H177: 0 | I177: -622109.4657
A178: 174 | B178: 7533 | C178: 3841.26 | D178: 0.11 | E178: 422.5386 | F178: 274.65009 | G178: -622109.4657 | H178: 0 | I178: -629367.8156
A179: 175 | B179: 7533 | C179: 3841.26 | D179: 0.11 | E179: 422.5386 | F179: 274.65009 | G179: -629367.8156 | H179: 0 | I179: -636626.1655
A180: 176 | B180: 7533 | C180: 3841.26 | D180: 0.11 | E180: 422.5386 | F180: 274.65009 | G180: -636626.1655 | H180: 0 | I180: -643884.5154
A181: 177 | B181: 7533 | C181: 3841.26 | D181: 0.11 | E181: 422.5386 | F181: 274.65009 | G181: -643884.5154 | H181: 0 | I181: -651142.8653
A182: 178 | B182: 7533 | C182: 3841.26 | D182: 0.11 | E182: 422.5386 | F182: 274.65009 | G182: -651142.8653 | H182: 0 | I182: -658401.2152
A183: 179 | B183: 7533 | C183: 3841.26 | D183: 0.11 | E183: 422.5386 | F183: 274.65009 | G183: -658401.2152 | H183: 0 | I183: -665659.5651
A184: 180 | B184: 15066 | C184: 7682.52 | D184: 0.11 | E184: 845.0772 | F184: 549.30018 | G184: -665659.5651 | H184: 0 | I184: -680176.265
A185: 181 | B185: 7533 | C185: 3841.26 | D185: 0.11 | E185: 422.5386 | F185: 274.65009 | G185: -680176.265 | H185: 0 | I185: -687434.6149
A186: 182 | B186: 7533 | C186: 3841.26 | D186: 0.11 | E186: 422.5386 | F186: 274.65009 | G186: -687434.6149 | H186: 0 | I186: -694692.9648
A187: 183 | B187: 7533 | C187: 3841.26 | D187: 0.11 | E187: 422.5386 | F187: 274.65009 | G187: -694692.9648 | H187: 0 | I187: -701951.3147
A188: 184 | B188: 7533 | C188: 3841.26 | D188: 0.11 | E188: 422.5386 | F188: 274.65009 | G188: -701951.3147 | H188: 0 | I188: -709209.6646
A189: 185 | B189: 7533 | C189: 3841.26 | D189: 0.11 | E189: 422.5386 | F189: 274.65009 | G189: -709209.6646 | H189: 0 | I189: -716468.0145
A190: 186 | B190: 7533 | C190: 3841.26 | D190: 0.11 | E190: 422.5386 | F190: 274.65009 | G190: -716468.0145 | H190: 0 | I190: -723726.3644
A191: 187 | B191: 7533 | C191: 3841.26 | D191: 0.11 | E191: 422.5386 | F191: 274.65009 | G191: -723726.3644 | H191: 0 | I191: -730984.7143
A192: 188 | B192: 7533 | C192: 3841.26 | D192: 0.11 | E192: 422.5386 | F192: 274.65009 | G192: -730984.7143 | H192: 0 | I192: -738243.0642
A193: 189 | B193: 7533 | C193: 3841.26 | D193: 0.11 | E193: 422.5386 | F193: 274.65009 | G193: -738243.0642 | H193: 0 | I193: -745501.4141
A194: 190 | B194: 7533 | C194: 3841.26 | D194: 0.11 | E194: 422.5386 | F194: 274.65009 | G194: -745501.4141 | H194: 0 | I194: -752759.7641
A195: 191 | B195: 7533 | C195: 3841.26 | D195: 0.11 | E195: 422.5386 | F195: 274.65009 | G195: -752759.7641 | H195: 0 | I195: -760018.114
A196: 192 | B196: 15066 | C196: 7682.52 | D196: 0.11 | E196: 845.0772 | F196: 549.30018 | G196: -760018.114 | H196: 0 | I196: -774534.8138
A197: 193 | B197: =IF($A197>expectativa_de_sobrevida_em_meses,0,RPSPF_sem_RPC_valor_do_benefício)*IF(MOD($A197,12)=0,2,1) -> 7533 | C197: =IF($A197>expectativa_de_sobrevida_em_meses,0,IF(portador_doença_incapacitante="Sim",IF(RPSPF_sem_RPC_valor_do_benefício>2*RGPS_limite_máximo_valor_benefício,RPSPF_sem_RPC_valor_do_benefício-2*RGPS_limite_máximo_valor_benefício,0),IF(RPSPF_sem_RPC_valor_do_benefício>RGPS_limite_máximo_valor_benefício,RPSPF_sem_RPC_valor_do_benefício-RGPS_limite_máximo_valor_benefício,0))*IF(MOD($A197,12)=0,2,1)) -> 3841.26 | D197: =RPSPF_alíquota_servidor -> 0.11 | E197: 422.5386 | F197: =E197*RPSPF_percentual_custeio_inativo -> 274.65009 | G197: -774534.8138 | H197: =IF(OR($G197<0,$A197>expectativa_de_sobrevida_em_meses,RPSPF_simular_rentabilidade="Não"),0,$G197*rentabilidade_mensal) -> 0 | I197: -781793.1637
A198: =ROW()-4 -> 194 | B198: 7533 | C198: 3841.26 | D198: 0.11 | E198: =C198*D198 -> 422.5386 | F198: 274.65009 | G198: =IF($A198=1,RPSPF_sem_RPC_recursos_acumulados,I197) -> -781793.1637 | H198: 0 | I198: =SUM(F198:H198)-$B198 -> -789051.5136
A199: 195 | B199: 7533 | C199: 3841.26 | D199: 0.11 | E199: 422.5386 | F199: 274.65009 | G199: -789051.5136 | H199: 0 | I199: -796309.8635
A200: 196 | B200: 7533 | C200: 3841.26 | D200: 0.11 | E200: 422.5386 | F200: 274.65009 | G200: -796309.8635 | H200: 0 | I200: -803568.2134
A201: 197 | B201: 7533 | C201: 3841.26 | D201: 0.11 | E201: 422.5386 | F201: 274.65009 | G201: -803568.2134 | H201: 0 | I201: -810826.5633
A202: 198 | B202: 7533 | C202: 3841.26 | D202: 0.11 | E202: 422.5386 | F202: 274.65009 | G202: -810826.5633 | H202: 0 | I202: -818084.9132
... 1002 more rows
